Workbook

Sheet PORTADA
O5: ENDAVANT
F31: INTRUCCIONS BÀSIQUES
F33: CODI DE COLORS | I33: DADES A INTRODUIR PER L'USUARI
I34: DADES DE SORTIDA O RESULTATS
I35: DADES FIXADES
I36: CÀLCULS
I37: ÀREES D'INCENDI POSSIBLES
I38: ÀREES D'INCENDI NO POSSIBLES
F40: ACCIONS
I42: CANVI A LA SEGÜENT PESTANYA
H44: ENDAVANT
I47: CANVI A LA PESTANYA ANTERIOR
H49: ENDARRERE
I51: ACTIVACIÓ DE LES MACROS VISUAL BASIC

Sheet Escenaris
M4: ENDARRERE | N4: ENDAVANT
D6: Dimensions del magatzem [m2] | G6: NIVELL DE PROTECCIÓ 1 | J6: f20m2 [any-1] | K6: fAm2 [any-1]
D7: Àrea [m2] | E7: 600 | G7: 1. Ruixadors automàtics | J7: =IF(G7=D12,E41,"-") -> - | K7: =IF(G7=D12,IF(E7<=50,K41,K40),"-") -> -
D8: Alçada [m] | E8: 6 | G8: 2. Ruixadors automàtics en racks | J8: =IF(G8=D12,E45,"-") -> - | K8: =IF(G8=D12,IF(E7<=50,K45,K44),"-") -> -
D9: Volum [m3] | E9: =E7*E8 -> 3600 | G9: 3. Sistema automàtic de diluvi | J9: =IF(G9=D12,E49,"-") -> - | K9: =IF(G9=D12,IF(E7<=50,K49,K48),"-") -> -
D10: Sistema de protecció | G10: 4. Gas inert | J10: =IF(G10=D12,E52,"-") -> - | K10: =IF(G10=D12,K52,"-") -> -
D11: Selecciona el sistema de protecció: | G11: 5. Escuma d'alta expansió | J11: =IF(G11=D12,E55,"-") -> - | K11: =IF(G11=D12,K55,"-") -> -
D12: 6. Escuma amb aire comprimit | G12: 6. Escuma amb aire comprimit | J12: =IF(G12=D12,E59,"-") -> 0.000767536 | K12: =IF(G12=D12,IF(E7<=50,K59,K58),"-") -> 7.92e-08
D13: Nivell de protecció | G13: 7. Equip de bombers. Canonada seca | J13: =IF(G13=D12,E63,"-") -> - | K13: =IF(G13=D12,IF(E7<=50,K63,K62),"-") -> -
D14: Selecciona el nivell de protecció: | G14: 8. Equip de bombers. Hidrants | J14: =IF(G14=D12,M41,"-") -> - | K14: =IF(G14=D12,IF(E7<=50,S41,S40),"-") -> -
D15: Nivell de protecció 1 | G15: 9. Equip de bombers. Sistemes de pols | J15: =IF(G15=D12,M45,"-") -> - | K15: =IF(G15=D12,IF(E7<=50,S45,S44),"-") -> -
D16: Freqüència [any-1] | E16: =(IF(D15=N70,0.00018,0.00088)) -> 0.00088 | G16: 10. Equip de bombers. Extintors | J16: =IF(G16=D12,M48,"-") -> - | K16: =IF(G16=D12,S48,"-") -> -
D17: Tancament de portes
D18: selecciona el sistema de tancament de portes: | G18: NIVELL DE PROTECCIÓ 2
D19: totalment automàtic | G19: 11. Embalatges sintètics (t< 6 min) | J19: =IF(G19=D12,M52,"-") -> - | K19: =IF(G19=D12,S52,"-") -> -
D20: Factor de ventilació F=4 | E20: F=∞ | G20: 12. Embalatges no sintètics (t< 6 min) | J20: =IF(G20=D12,M55,"-") -> - | K20: =IF(G20=D12,S55,"-") -> -
D21: Factor corrector [-] | G21: 13. Embalatges sintètics (t< 15 min) | J21: =IF(G21=D12,M58,"-") -> - | K21: =IF(G21=D12,S58,"-") -> -
D22: =1-E22 -> 0.98 | E22: =IF(D19=N75,0.02,0.1) -> 0.02 | G22: 14. Embalatges no sintètics (t<15 min) | J22: =IF(G22=D12,M61,"-") -> - | K22: =IF(G22=D12,S61,"-") -> -
G24: NIVELL DE PROTECCIÓ 3
G25: Sistema 15 | J25: =IF(G25=D12,M65,"-") -> - | K25: =IF(G25=D12,S65,"-") -> -
D36: Àrea d'incendi | E36: 20 | F36: 50 | G36: 100 | H36: 300 | I36: 600 | J36: 900 | K36: =E7 -> 600 | L36: Àrea d'incendi | M36: 20 | N36: 50 | O36: 100 | P36: 300 | Q36: 600 | R36: 900 | S36: =E7 -> 600
D37: NIVELL DE PROTECCIÓ 1 | L37: NIVELL DE PROTECCIÓ 1
D38: 1. Ruixadors automàtics | I38: VÀLID | J38: =IF($D$38=$D$12,"OK","KO") -> KO | K38: =J38 -> KO | L38: 8. Equip de bombers. Hidrants | Q38: VÀLID | R38: =IF($L$38=$D$12,"OK","KO") -> KO | S38: =R38 -> KO
D39: Probabilitats | E39: 0.45 | F39: =1-$E39 -> 0.55 | G39: =1-$E39 -> 0.55 | H39: =1-$E39 -> 0.55 | I39: =1-$E39 -> 0.55 | J39: =1-$E39 -> 0.55 | K39: =MAX(G67:M67) -> 0.55 | L39: Probabilitats | M39: 0.35 | N39: 0.45 | O39: 0.1 | P39: 0.05 | Q39: =(R39*(I36-H$36)+P39*(J$36-I36))/(J$36-H$36) -> 0.045 | R39: 0.04 | S39: =((1-M39)+MAX(G74:M74))/2 -> 0.3475
D40: Freqüència (F=∞) | E40: =E39*$E$16*$E$22 -> 7.92e-06 | F40: =F39*$E$16*$E$22 -> 9.68e-06 | G40: 9.68e-06 | H40: 9.68e-06 | I40: 9.68e-06 | J40: 9.68e-06 | K40: 9.68e-06 | L40: Freqüència (F=∞) | M40: =M39*$E$16*$E$22 -> 6.16e-06 | N40: =N39*$E$16*$E$22 -> 7.92e-06 | O40: =O39*$E$16*$E$22 -> 1.76e-06 | P40: =P39*$E$16*$E$22 -> 8.8e-07 | Q40: =Q39*$E$16*$E$22 -> 7.92e-07 | R40: =R39*$E$16*$E$22 -> 7.04e-07 | S40: =S39*$E$16*$E$22 -> 6.116e-06
D41: Freqüència (F=4) | E41: =E39*$E$16*$D$22 -> 0.00038808 | F41: =F39*$E$16*$D$22 -> 0.00047432 | G41: 0.00047432 | H41: 0.00047432 | I41: 0.00047432 | J41: 0.00047432 | K41: 0.00047432 | L41: Freqüència (F=4) | M41: =M39*$E$16*$D$22 -> 0.00030184 | N41: =N39*$E$16*$D$22 -> 0.00038808 | O41: 8.624e-05 | P41: 4.312e-05 | Q41: 3.8808e-05 | R41: 3.4496e-05 | S41: 0.000299684
D42: 2. Ruixadors automàtics en racks | I42: VÀLID | J42: =IF($D$42=$D$12,"OK","KO") -> KO | K42: =J42 -> KO | L42: 9. Equip de bombers. Sistemes de pols | Q42: VÀLID | R42: =IF($L$42=$D$12,"OK","KO") -> KO | S42: =R42 -> KO
D43: Probabilitats | E43: 0.63 | F43: =1-$E43 -> 0.37 | G43: =1-$E43 -> 0.37 | H43: =1-$E43 -> 0.37 | I43: =1-$E43 -> 0.37 | J43: =1-$E43 -> 0.37 | K43: =MAX(G68:M68) -> 0.37 | L43: Probabilitats | M43: 0.2 | N43: 0.2 | O43: 0.3 | P43: 0.25 | Q43: =(R43*(I$36-H$36)+P43*(J$36-I$36))/(J$36-H$36) -> 0.225 | R43: 0.2 | S43: =MAX(G75:M75) -> 0.225
D44: Freqüència (F=∞) | E44: =E43*$E$16*$E$22 -> 1.1088e-05 | F44: =F43*$E$16*$E$22 -> 6.512e-06 | G44: =G43*$E$16*$E$22 -> 6.512e-06 | H44: =H43*$E$16*$E$22 -> 6.512e-06 | I44: =I43*$E$16*$E$22 -> 6.512e-06 | J44: =J43*$E$16*$E$22 -> 6.512e-06 | K44: =K43*$E$16*$E$22 -> 6.512e-06 | L44: Freqüència (F=∞) | M44: =M43*$E$16*$E$22 -> 3.52e-06 | N44: =N43*$E$16*$E$22 -> 3.52e-06 | O44: =O43*$E$16*$E$22 -> 5.28e-06 | P44: =P43*$E$16*$E$22 -> 4.4e-06 | Q44: =Q43*$E$16*$E$22 -> 3.96e-06 | R44: =R43*$E$16*$E$22 -> 3.52e-06 | S44: =S43*$E$16*$E$22 -> 3.96e-06
D45: Freqüència (F=4) | E45: =E43*$E$16*$D$22 -> 0.000543312 | F45: =F43*$E$16*$D$22 -> 0.000319088 | G45: 0.000319088 | H45: 0.000319088 | I45: 0.000319088 | J45: 0.000319088 | K45: 0.000319088 | L45: Freqüència (F=4) | M45: =M43*$E$16*$D$22 -> 0.00017248 | N45: =N43*$E$16*$D$22 -> 0.00017248 | O45: 0.00025872 | P45: 0.0002156 | Q45: 0.00019404 | R45: 0.00017248 | S45: 0.00019404
D46: 3. Sistema automàtic de diluvi | I46: VÀLID | J46: =IF($D$46=$D$12,"OK","KO") -> KO | K46: =J46 -> KO | L46: 10. Equip de bombers. Extintors | Q46: VÀLID | R46: =IF($L$46=$D$12,"OK","KO") -> KO | S46: =R46 -> KO
D47: Probabilitats | E47: 0.63 | F47: =1-$E47 -> 0.37 | G47: =1-$E47 -> 0.37 | H47: =1-$E47 -> 0.37 | I47: =1-$E47 -> 0.37 | J47: =1-$E47 -> 0.37 | K47: =MAX(G69:M69) -> 0.37 | L47: Probabilitats | M47: 0.2 | N47: 0.2 | O47: 0.3 | P47: 0.28 | Q47: =(R47*(I$36-H$36)+P47*(J$36-I$36))/(J$36-H$36) -> 0.22 | R47: 0.16 | S47: =MAX(G76:M76) -> 0.22
D48: Freqüència (F=∞) | E48: =E47*$E$16*$E$22 -> 1.1088e-05 | F48: =F47*$E$16*$E$22 -> 6.512e-06 | G48: =G47*$E$16*$E$22 -> 6.512e-06 | H48: =H47*$E$16*$E$22 -> 6.512e-06 | I48: =I47*$E$16*$E$22 -> 6.512e-06 | J48: =J47*$E$16*$E$22 -> 6.512e-06 | K48: =K47*$E$16*$E$22 -> 6.512e-06 | L48: Freqüència (F=∞) | M48: =M47*$E$16 -> 0.000176 | N48: 0.000176 | O48: 0.000264 | P48: 0.0002464 | Q48: 0.0001936 | R48: 0.0001408 | S48: 0.0001936
D49: Freqüència (F=4) | E49: =E47*$E$16*$D$22 -> 0.000543312 | F49: =F47*$E$16*$D$22 -> 0.000319088 | G49: 0.000319088 | H49: 0.000319088 | I49: 0.000319088 | J49: 0.000319088 | K49: 0.000319088 | L49: NIVELL DE PROTECCIÓ 2
D50: 4. Gas inert | I50: VÀLID | J50: =IF($D$50=$D$12,"OK","KO") -> KO | K50: =J50 -> KO | L50: 11. Embalatges sintètics (t< 6 min) | Q50: VÀLID | R50: =IF($L$50=$D$12,"OK","KO") -> KO | S50: =R50 -> KO
D51: Probabilitats | E51: 0.99 | F51: =1-$E51 -> 0.01 | G51: =1-$E51 -> 0.01 | H51: =1-$E51 -> 0.01 | I51: =1-$E51 -> 0.01 | J51: =1-$E51 -> 0.01 | K51: =MAX(G70:M70) -> 0.01 | L51: Probabilitats | M51: 0.72 | N51: 0.72 | O51: 0.72 | P51: 0.72 | Q51: =(R51*(I$36-H$36)+P51*(J$36-I$36))/(J$36-H$36) -> 0.5 | R51: 0.28 | S51: =MAX(G77:M77) -> 0.5
D52: Freqüència | E52: =E$51*$E$16 -> 0.0008712 | F52: 8.8e-06 | G52: 8.8e-06 | H52: 8.8e-06 | I52: 8.8e-06 | J52: 8.8e-06 | K52: 8.8e-06 | L52: Freqüència (F=∞) | M52: =M51*$E$16 -> 0.0006336 | N52: 0.0006336 | O52: 0.0006336 | P52: 0.0006336 | Q52: 0.00044 | R52: 0.0002464 | S52: 0.00044
D53: 5. Escuma d'alta expansió | I53: VÀLID | J53: =IF($D$53=$D$12,"OK","KO") -> KO | K53: =J53 -> KO | L53: 12. Embalatges no sintètics (t< 6 min) | Q53: VÀLID | R53: =IF($L$53=$D$12,"OK","KO") -> KO | S53: =R53 -> KO
D54: Probabilitats | E54: 0.89 | F54: 0.09 | G54: 0.01 | H54: 0.005 | I54: =(J54*(I$36-H$36)+H54*(J$36-I$36))/(J$36-H$36) -> 0.0045 | J54: 0.004 | K54: =MAX(G71:M71) -> 0.0045 | L54: Probabilitats | M54: 0.2 | N54: 0.2 | O54: 0.3 | P54: 0.28 | Q54: =(R54*(I$36-H$36)+P54*(J$36-I$36))/(J$36-H$36) -> 0.22 | R54: 0.16 | S54: =MAX(G78:M78) -> 0.22
D55: Freqüència (F=∞) | E55: =E54*$E$16 -> 0.0007832 | F55: 7.92e-05 | G55: 8.8e-06 | H55: 4.4e-06 | I55: 3.96e-06 | J55: 3.52e-06 | K55: 3.96e-06 | L55: Freqüència (F=∞) | M55: =M54*$E$16 -> 0.000176 | N55: 0.000176 | O55: 0.000264 | P55: 0.0002464 | Q55: 0.0001936 | R55: 0.0001408 | S55: 0.0001936
D56: 6. Escuma amb aire comprimit | I56: VÀLID | J56: =IF($D$56=$D$12,"OK","KO") -> OK | K56: =J56 -> OK | L56: 13. Embalatges sintètics (t< 15 min) | Q56: VÀLID | R56: =IF($L$56=$D$12,"OK","KO") -> KO | S56: =R56 -> KO
D57: Probabilitats | E57: 0.89 | F57: 0.09 | G57: 0.01 | H57: 0.005 | I57: =(J57*(I$36-H$36)+H57*(J$36-I$36))/(J$36-H$36) -> 0.0045 | J57: 0.004 | K57: =MAX(G72:M72) -> 0.0045 | L57: Probabilitats | M57: 0.55 | N57: 0.55 | O57: 0.55 | P57: 0.55 | Q57: =(R57*(I$36-H$36)+P57*(J$36-I$36))/(J$36-H$36) -> 0.5 | R57: 0.45 | S57: =MAX(G79:M79) -> 0.5
D58: Freqüència (F=∞) | E58: =E57*$E$16*$E$22 -> 1.5664e-05 | F58: =F57*$E$16*$E$22 -> 1.584e-06 | G58: =G57*$E$16*$E$22 -> 1.76e-07 | H58: =H57*$E$16*$E$22 -> 8.8e-08 | I58: =I57*$E$16*$E$22 -> 7.92e-08 | J58: =J57*$E$16*$E$22 -> 7.04e-08 | K58: =K57*$E$16*$E$22 -> 7.92e-08 | L58: Freqüència (F=∞) | M58: =M57*$E$16 -> 0.000484 | N58: 0.000484 | O58: 0.000484 | P58: 0.000484 | Q58: 0.00044 | R58: 0.000396 | S58: 0.00044
B59: 1. Ruixadors automàtics | D59: Freqüència (F=4) | E59: =E57*$E$16*$D$22 -> 0.000767536 | F59: =F57*$E$16*$D$22 -> 7.7616e-05 | G59: 8.624e-06 | H59: 4.312e-06 | I59: 3.8808e-06 | J59: 3.4496e-06 | K59: 3.8808e-06 | L59: 14. Embalatges no sintètics (t<15 min) | Q59: VÀLID | R59: =IF($L$59=$D$12,"OK","KO") -> KO | S59: =R59 -> KO
B60: 2. Ruixadors automàtics en racks | D60: 7. Equip de bombers. Canonada seca | I60: VÀLID | J60: =IF($D$60=$D$12,"OK","KO") -> KO | K60: =J60 -> KO | L60: Probabilitats | M60: 0.78 | N60: 0.78 | O60: 0.78 | P60: 0.78 | Q60: =(R60*(I$36-H$36)+P60*(J$36-I$36))/(J$36-H$36) -> 0.47 | R60: 0.16 | S60: =MAX(G80:M80) -> 0.47
B61: 3. sistema automàtic de diluvi | D61: Probabilitats | E61: 0.1 | F61: 0.1 | G61: 0.6 | H61: 0.6 | I61: 0.4 | J61: 0.4 | K61: =MAX(G73:M73) -> 0.4 | L61: Freqüència (F=∞) | M61: =M60*$E$16 -> 0.0006864 | N61: 0.0006864 | O61: 0.0006864 | P61: 0.0006864 | Q61: 0.0004136 | R61: 0.0001408 | S61: 0.0004136
B62: 4. Gas inert | D62: Freqüència (F=∞) | E62: =E61*$E$16*$E$22 -> 1.76e-06 | F62: =F61*$E$16*$E$22 -> 1.76e-06 | G62: =G61*$E$16*$E$22 -> 1.056e-05 | H62: =H61*$E$16*$E$22 -> 1.056e-05 | I62: =I61*$E$16*$E$22 -> 7.04e-06 | J62: =J61*$E$16*$E$22 -> 7.04e-06 | K62: =K61*$E$16*$E$22 -> 7.04e-06 | L62: NIVELL DE PROTECCIÓ 3
B63: 5. Escuma d'alta expansió | D63: Freqüència (F=4) | E63: =E61*$E$16*$D$22 -> 8.624e-05 | F63: =F61*$E$16*$D$22 -> 8.624e-05 | G63: 0.00051744 | H63: 0.00051744 | I63: 0.00034496 | J63: 0.00034496 | K63: 0.00034496 | L63: Sistema 15 | Q63: VÀLID | R63: =IF($L$63=$D$12,"OK","KO") -> KO | S63: =R63 -> KO
B64: 6. Escuma amb aire comprimit | L64: Probabilitats | M64: 0.78 | N64: 0.78 | O64: 0.78 | P64: 0.78 | Q64: =(R64*(I$36-H$36)+P64*(J$36-I$36))/(J$36-H$36) -> 0.47 | R64: 0.16 | S64: =MAX(G81:M81) -> 0.47
E65: 4 | L65: Freqüència (F=∞) | M65: =M64*$E$16 -> 0.0006864 | N65: 0.0006864 | O65: 0.0006864 | P65: 0.0006864 | Q65: 0.0004136 | R65: 0.0001408 | S65: 0.0004136
M66: =MAX(J7:J16,J19:J22,J25) -> 0.000767536 | N66: =MAX(K7:K16,K19:K22,K25) -> 7.92e-08
D67: 1. Ruixadors automàtics | G67: =(IF(E$7<=E$36,E39,"NO")) -> NO | H67: =(IF(AND(E$7>=E$36,E$7<=F$36),(F39*(E$7-E$36)+E39*(F$36-E$7))/(F$36-E$36),"NO")) -> NO | I67: =(IF(AND(E$7>=F$36,E$7<=G$36),(G39*(E$7-F$36)+F39*(G$36-E$7))/(G$36-F$36),"NO")) -> NO | J67: =(IF(AND(E$7>=G$36,E$7<=H$36),(H39*(E$7-G$36)+G39*(H$36-E$7))/(H$36-G$36),"NO")) -> NO | K67: =(IF(AND(E$7>=H$36,E$7<=I$36),(I39*(E$7-H$36)+H39*(I$36-E$7))/(I$36-H$36),"NO")) -> 0.55 | L67: =(IF(AND(E$7>=I$36,E$7<=J$36),(J39*(E$7-I$36)+I39*(J$36-E$7))/(J$36-I$36),"NO")) -> 0.55 | M67: =(IF(E$7>=J$36,J39,"NO")) -> NO
D68: 2. Ruixadors automàtics en racks | G68: =(IF(E$7<=E$36,E43,"NO")) -> NO | H68: =(IF(AND(E$7>=E$36,E$7<=F$36),(F43*(E$7-E$36)+E43*(F$36-E$7))/(F$36-E$36),"NO")) -> NO | I68: =(IF(AND(E$7>=F$36,E$7<=G$36),(G43*(E$7-F$36)+F43*(G$36-E$7))/(G$36-F$36),"NO")) -> NO | J68: =(IF(AND(E$7>=G$36,E$7<=H$36),(H43*(E$7-G$36)+G43*(H$36-E$7))/(H$36-G$36),"NO")) -> NO | K68: =(IF(AND(E$7>=H$36,E$7<=I$36),(I43*(E$7-H$36)+H43*(I$36-E$7))/(I$36-H$36),"NO")) -> 0.37 | L68: =(IF(AND(E$7>=I$36,E$7<=J$36),(J43*(E$7-I$36)+I43*(J$36-E$7))/(J$36-I$36),"NO")) -> 0.37 | M68: =(IF(E$7>=J$36,J43,"NO")) -> NO | N68: Nivell de protecció 1
D69: 3. Sistema automàtic de diluvi | G69: =(IF(E$7<=E$36,E47,"NO")) -> NO | H69: =(IF(AND(E$7>=E$36,E$7<=F$36),(F47*(E$7-E$36)+E47*(F$36-E$7))/(F$36-E$36),"NO")) -> NO | I69: =(IF(AND(E$7>=F$36,E$7<=G$36),(G47*(E$7-F$36)+F47*(G$36-E$7))/(G$36-F$36),"NO")) -> NO | J69: =(IF(AND(E$7>=G$36,E$7<=H$36),(H47*(E$7-G$36)+G47*(H$36-E$7))/(H$36-G$36),"NO")) -> NO | K69: =(IF(AND(E$7>=H$36,E$7<=I$36),(I47*(E$7-H$36)+H47*(I$36-E$7))/(I$36-H$36),"NO")) -> 0.37 | L69: =(IF(AND(E$7>=I$36,E$7<=J$36),(J47*(E$7-I$36)+I47*(J$36-E$7))/(J$36-I$36),"NO")) -> 0.37 | M69: =(IF(E$7>=J$36,J47,"NO")) -> NO | N69: Nivell de protecció 2
D70: 4. Gas inert | G70: =(IF(E$7<=E$36,E51,"NO")) -> NO | H70: =(IF(AND(E$7>=E$36,E$7<=F$36),(F51*(E$7-E$36)+E51*(F$36-E$7))/(F$36-E$36),"NO")) -> NO | I70: =(IF(AND(E$7>=F$36,E$7<=G$36),(G51*(E$7-F$36)+F51*(G$36-E$7))/(G$36-F$36),"NO")) -> NO | J70: =(IF(AND(E$7>=G$36,E$7<=H$36),(H51*(E$7-G$36)+G51*(H$36-E$7))/(H$36-G$36),"NO")) -> NO | K70: =(IF(AND(E$7>=H$36,E$7<=I$36),(I51*(E$7-H$36)+H51*(I$36-E$7))/(I$36-H$36),"NO")) -> 0.01 | L70: =(IF(AND(E$7>=I$36,E$7<=J$36),(J51*(E$7-I$36)+I51*(J$36-E$7))/(J$36-I$36),"NO")) -> 0.01 | M70: =(IF(E$7>=J$36,J51,"NO")) -> NO | N70: Nivell de protecció 3
D71: 5. Escuma d'alta expansió | G71: =(IF(E$7<=E$36,E54,"NO")) -> NO | H71: =(IF(AND(E$7>=E$36,E$7<=F$36),(F54*(E$7-E$36)+E54*(F$36-E$7))/(F$36-E$36),"NO")) -> NO | I71: =(IF(AND(E$7>=F$36,E$7<=G$36),(G54*(E$7-F$36)+F54*(G$36-E$7))/(G$36-F$36),"NO")) -> NO | J71: =(IF(AND(E$7>=G$36,E$7<=H$36),(H54*(E$7-G$36)+G54*(H$36-E$7))/(H$36-G$36),"NO")) -> NO | K71: =(IF(AND(E$7>=H$36,E$7<=I$36),(I54*(E$7-H$36)+H54*(I$36-E$7))/(I$36-H$36),"NO")) -> 0.0045 | L71: =(IF(AND(E$7>=I$36,E$7<=J$36),(J54*(E$7-I$36)+I54*(J$36-E$7))/(J$36-I$36),"NO")) -> 0.0045 | M71: =(IF(E$7>=J$36,J54,"NO")) -> NO
D72: 6. Escuma amb aire comprimit | G72: =(IF(E$7<=E$36,E57,"NO")) -> NO | H72: =(IF(AND(E$7>=E$36,E$7<=F$36),(F57*(E$7-E$36)+E57*(F$36-E$7))/(F$36-E$36),"NO")) -> NO | I72: =(IF(AND(E$7>=F$36,E$7<=G$36),(G57*(E$7-F$36)+F57*(G$36-E$7))/(G$36-F$36),"NO")) -> NO | J72: =(IF(AND(E$7>=G$36,E$7<=H$36),(H57*(E$7-G$36)+G57*(H$36-E$7))/(H$36-G$36),"NO")) -> NO | K72: =(IF(AND(E$7>=H$36,E$7<=I$36),(I57*(E$7-H$36)+H57*(I$36-E$7))/(I$36-H$36),"NO")) -> 0.0045 | L72: =(IF(AND(E$7>=I$36,E$7<=J$36),(J57*(E$7-I$36)+I57*(J$36-E$7))/(J$36-I$36),"NO")) -> 0.0045 | M72: =(IF(E$7>=J$36,J57,"NO")) -> NO | N72: 4
D73: 7. Equip de bombers. Canonada seca | G73: =(IF(E$7<=E$36,E61,"NO")) -> NO | H73: =(IF(AND(E$7>=E$36,E$7<=F$36),(F61*(E$7-E$36)+E61*(F$36-E$7))/(F$36-E$36),"NO")) -> NO | I73: =(IF(AND(E$7>=F$36,E$7<=G$36),(G61*(E$7-F$36)+F61*(G$36-E$7))/(G$36-F$36),"NO")) -> NO | J73: =(IF(AND(E$7>=G$36,E$7<=H$36),(H61*(E$7-G$36)+G61*(H$36-E$7))/(H$36-G$36),"NO")) -> NO | K73: =(IF(AND(E$7>=H$36,E$7<=I$36),(I61*(E$7-H$36)+H61*(I$36-E$7))/(I$36-H$36),"NO")) -> 0.4 | L73: =(IF(AND(E$7>=I$36,E$7<=J$36),(J61*(E$7-I$36)+I61*(J$36-E$7))/(J$36-I$36),"NO")) -> 0.4 | M73: =(IF(E$7>=J$36,J61,"NO")) -> NO | N73: infinit
D74: 8. Equip de bombers. Hidrants | G74: =(IF(E$7<=E$36,M39,"NO")) -> NO | H74: =(IF(AND(E$7>=E$36,E$7<=F$36),(N39*(E$7-E$36)+M39*(F$36-E$7))/(F$36-E$36),"NO")) -> NO | I74: =(IF(AND(E$7>=F$36,E$7<=G$36),(O39*(E$7-F$36)+N39*(G$36-E$7))/(G$36-F$36),"NO")) -> NO | J74: =(IF(AND(E$7>=G$36,E$7<=H$36),(P39*(E$7-G$36)+O39*(H$36-E$7))/(H$36-G$36),"NO")) -> NO | K74: =(IF(AND(E$7>=H$36,E$7<=I$36),(Q39*(E$7-H$36)+P39*(I$36-E$7))/(I$36-H$36),"NO")) -> 0.045 | L74: =(IF(AND(E$7>=I$36,E$7<=J$36),(R39*(E$7-I$36)+Q39*(J$36-E$7))/(J$36-I$36),"NO")) -> 0.045 | M74: =(IF(E$7>=J$36,R39,"NO")) -> NO
D75: 9. Equip de bombers. Sistemes de pols | G75: =(IF(E$7<=E$36,M43,"NO")) -> NO | H75: =(IF(AND(E$7>=E$36,E$7<=F$36),(N43*(E$7-E$36)+M43*(F$36-E$7))/(F$36-E$36),"NO")) -> NO | I75: =(IF(AND(E$7>=F$36,E$7<=G$36),(O43*(E$7-F$36)+N43*(G$36-E$7))/(G$36-F$36),"NO")) -> NO | J75: =(IF(AND(E$7>=G$36,E$7<=H$36),(P43*(E$7-G$36)+O43*(H$36-E$7))/(H$36-G$36),"NO")) -> NO | K75: =(IF(AND(E$7>=H$36,E$7<=I$36),(Q43*(E$7-H$36)+P43*(I$36-E$7))/(I$36-H$36),"NO")) -> 0.225 | L75: =(IF(AND(E$7>=I$36,E$7<=J$36),(R43*(E$7-I$36)+Q43*(J$36-E$7))/(J$36-I$36),"NO")) -> 0.225 | M75: =(IF(E$7>=J$36,R43,"NO")) -> NO | N75: totalment automàtic
D76: 10. Equip de bombers. extintors | G76: =(IF(E$7<=E$36,M47,"NO")) -> NO | H76: =(IF(AND(E$7>=E$36,E$7<=F$36),(N47*(E$7-E$36)+M47*(F$36-E$7))/(F$36-E$36),"NO")) -> NO | I76: =(IF(AND(E$7>=F$36,E$7<=G$36),(O47*(E$7-F$36)+N47*(G$36-E$7))/(G$36-F$36),"NO")) -> NO | J76: =(IF(AND(E$7>=G$36,E$7<=H$36),(P47*(E$7-G$36)+O47*(H$36-E$7))/(H$36-G$36),"NO")) -> NO | K76: =(IF(AND(E$7>=H$36,E$7<=I$36),(Q47*(E$7-H$36)+P47*(I$36-E$7))/(I$36-H$36),"NO")) -> 0.22 | L76: =(IF(AND(E$7>=I$36,E$7<=J$36),(R47*(E$7-I$36)+Q47*(J$36-E$7))/(J$36-I$36),"NO")) -> 0.22 | M76: =(IF(E$7>=J$36,R47,"NO")) -> NO | N76: parcialment automàtic
D77: 11. Embalatges sintètics (t< 6 min) | G77: =(IF(E$7<=E$36,M51,"NO")) -> NO | H77: =(IF(AND(E$7>=E$36,E$7<=F$36),(N51*(E$7-E$36)+M51*(F$36-E$7))/(F$36-E$36),"NO")) -> NO | I77: =(IF(AND(E$7>=F$36,E$7<=G$36),(O51*(E$7-F$36)+N51*(G$36-E$7))/(G$36-F$36),"NO")) -> NO | J77: =(IF(AND(E$7>=G$36,E$7<=H$36),(P51*(E$7-G$36)+O51*(H$36-E$7))/(H$36-G$36),"NO")) -> NO | K77: =(IF(AND(E$7>=H$36,E$7<=I$36),(Q51*(E$7-H$36)+P51*(I$36-E$7))/(I$36-H$36),"NO")) -> 0.5 | L77: =(IF(AND(E$7>=I$36,E$7<=J$36),(R51*(E$7-I$36)+Q51*(J$36-E$7))/(J$36-I$36),"NO")) -> 0.5 | M77: =(IF(E$7>=J$36,R51,"NO")) -> NO
D78: 12. Embalatges no sintètics (t< 6 min) | G78: =(IF(E$7<=E$36,M54,"NO")) -> NO | H78: =(IF(AND(E$7>=E$36,E$7<=F$36),(N54*(E$7-E$36)+M54*(F$36-E$7))/(F$36-E$36),"NO")) -> NO | I78: =(IF(AND(E$7>=F$36,E$7<=G$36),(O54*(E$7-F$36)+N54*(G$36-E$7))/(G$36-F$36),"NO")) -> NO | J78: =(IF(AND(E$7>=G$36,E$7<=H$36),(P54*(E$7-G$36)+O54*(H$36-E$7))/(H$36-G$36),"NO")) -> NO | K78: =(IF(AND(E$7>=H$36,E$7<=I$36),(Q54*(E$7-H$36)+P54*(I$36-E$7))/(I$36-H$36),"NO")) -> 0.22 | L78: =(IF(AND(E$7>=I$36,E$7<=J$36),(R54*(E$7-I$36)+Q54*(J$36-E$7))/(J$36-I$36),"NO")) -> 0.22 | M78: =(IF(E$7>=J$36,R54,"NO")) -> NO
D79: 13. Embalatges sintètics (t< 15 min) | G79: =(IF(E$7<=E$36,M57,"NO")) -> NO | H79: =(IF(AND(E$7>=E$36,E$7<=F$36),(N57*(E$7-E$36)+M57*(F$36-E$7))/(F$36-E$36),"NO")) -> NO | I79: =(IF(AND(E$7>=F$36,E$7<=G$36),(O57*(E$7-F$36)+N57*(G$36-E$7))/(G$36-F$36),"NO")) -> NO | J79: =(IF(AND(E$7>=G$36,E$7<=H$36),(P57*(E$7-G$36)+O57*(H$36-E$7))/(H$36-G$36),"NO")) -> NO | K79: =(IF(AND(E$7>=H$36,E$7<=I$36),(Q57*(E$7-H$36)+P57*(I$36-E$7))/(I$36-H$36),"NO")) -> 0.5 | L79: =(IF(AND(E$7>=I$36,E$7<=J$36),(R57*(E$7-I$36)+Q57*(J$36-E$7))/(J$36-I$36),"NO")) -> 0.5 | M79: =(IF(E$7>=J$36,R57,"NO")) -> NO
D80: 14. Embalatges no sintètics (t<15 min) | G80: =(IF(E$7<=E$36,M60,"NO")) -> NO | H80: =(IF(AND(E$7>=E$36,E$7<=F$36),(N60*(E$7-E$36)+M60*(F$36-E$7))/(F$36-E$36),"NO")) -> NO | I80: =(IF(AND(E$7>=F$36,E$7<=G$36),(O60*(E$7-F$36)+N60*(G$36-E$7))/(G$36-F$36),"NO")) -> NO | J80: =(IF(AND(E$7>=G$36,E$7<=H$36),(P60*(E$7-G$36)+O60*(H$36-E$7))/(H$36-G$36),"NO")) -> NO | K80: =(IF(AND(E$7>=H$36,E$7<=I$36),(Q60*(E$7-H$36)+P60*(I$36-E$7))/(I$36-H$36),"NO")) -> 0.47 | L80: =(IF(AND(E$7>=I$36,E$7<=J$36),(R60*(E$7-I$36)+Q60*(J$36-E$7))/(J$36-I$36),"NO")) -> 0.47 | M80: =(IF(E$7>=J$36,R60,"NO")) -> NO
D81: Sistema 15 | G81: =(IF(E$7<=E$36,M64,"NO")) -> NO | H81: =(IF(AND(E$7>=E$36,E$7<=F$36),(N64*(E$7-E$36)+M64*(F$36-E$7))/(F$36-E$36),"NO")) -> NO | I81: =(IF(AND(E$7>=F$36,E$7<=G$36),(O64*(E$7-F$36)+N64*(G$36-E$7))/(G$36-F$36),"NO")) -> NO | J81: =(IF(AND(E$7>=G$36,E$7<=H$36),(P64*(E$7-G$36)+O64*(H$36-E$7))/(H$36-G$36),"NO")) -> NO | K81: =(IF(AND(E$7>=H$36,E$7<=I$36),(Q64*(E$7-H$36)+P64*(I$36-E$7))/(I$36-H$36),"NO")) -> 0.47 | L81: =(IF(AND(E$7>=I$36,E$7<=J$36),(R64*(E$7-I$36)+Q64*(J$36-E$7))/(J$36-I$36),"NO")) -> 0.47 | M81: =(IF(E$7>=J$36,R64,"NO")) -> NO

Sheet Substàncies
B5: ADR classe | C5: substància | D5: Quantitat [t] | E5: Massa molecular [kg/mol] | F5: substància activa | G5: formula molecular | H5: C | I5: H | J5: O | K5: Cl | L5: N | M5: S | N5: P | T5: ENDARRERE | V5: ENDAVANT
B6: 1
P8: FORMULA MOLECULAR MITJA
P9: C(a) | Q9: H(b) | R9: O( c) | S9: Cl(d) | T9: N( e) | U9: S(f) | V9: P(g)
P10: =IFERROR(((C142/C84)*$Q23)/($Q17*$S21),0) -> 2.849642023 | Q10: 4.02355525 | R10: 0.6458386879 | S10: 0.02761545825 | T10: 1.08302318 | U10: 0.04898781785 | V10: 0.02449390893
B11: 2
P12: CONTINGUT
P13: C | Q13: H | R13: O | S13: Cl | T13: N | U13: S | V13: P
P14: =IFERROR((P10*$C84*$S21)/$Q23*100,0) -> 21.83608783 | Q14: =IFERROR((Q10*$D84*$S21)/$Q23*100,0) -> 2.584906263 | R14: =IFERROR((R10*$E84*$S21)/$Q23*100,0) -> 6.592076741 | S14: =IFERROR((S10*$F84*$S21)/$Q23*100,0) -> 0.6246124031 | T14: =IFERROR((T10*$G84*$S21)/$Q23*100,0) -> 9.678058421 | U14: =IFERROR((U10*$H84*$S21)/$Q23*100,0) -> 1.00210021 | V14: =IFERROR((V10*$I84*$S21)/$Q23*100,0) -> 0.4840171517
B16: 3 | C16: etanol | D16: 10 | E16: 46.1 | F16: 1 | G16: C2H5OH | H16: 2 | I16: 6 | J16: 1 | P16: MASSA D'INCENDI
Q17: =D62-(SUM(D42:D46)) -> 660 | R17: [t]
P18: MASSA ACTIVA
Q19: =SUM(C142:I142) -> 282.4922696 | R19: [t]
P20: SUBSTÀNCIA ACTIVA
B21: 4 | Q21: =IFERROR(SUM(C142:I142)/Q17*100,0) -> 42.80185902 | R21: % | S21: =Q21*0.01 -> 0.4280185902
P22: MASSA MOLECULAR MITJÀ
Q23: =IFERROR(Q19/B142,0) -> 67.08991989 | R23: [kg/kmol]
B26: 5
B31: 6
B32: 6.1 GE I | C32: etoprofos | D32: 250 | E32: 242.4 | F32: 0.1 | G32: C8H19O2PS2 | H32: 8 | I32: 19 | J32: 2 | M32: 2 | N32: 1
B37: 6.1 GE II | C37: TDI | D37: 200 | E37: 174.2 | F37: 1 | G37: C9H6N2O2 | H37: 9 | I37: 6 | J37: 2 | L37: 2
B42: 6.1 GE III | C42: criolita | D42: 100 | E42: 209 | F42: 1 | G42: Na3AlF6
B47: 7
B52: 8 | C52: hidròxid amònic | D52: 150 | E52: 17 | F52: 0.25 | G52: NH3 | I52: 3 | L52: 1
B57: 9 | C57: diclorobenilo | D57: 50 | E57: 172 | F57: 0.2 | G57: C7H3Cl2N | H57: 7 | I57: 3 | K57: 2 | L57: 1
C62: TOTAL | D62: =SUM(D6:D61) -> 760
C84: 12.011 | D84: 1.007 | E84: 15.999 | F84: 35.453 | G84: 14.007 | H84: 32.064 | I84: 30.974
B85: masses inicial [t] | C85: C | D85: H | E85: O | F85: Cl | G85: N | H85: S | I85: P
A86: 1 | B86: =IFERROR((D5*F5)/E5,0) -> 0 | C86: =IFERROR((H5*D5*F5*C$84)/E5,0) -> 0 | D86: =IFERROR((I5*D5*F5*D$84)/E5,0) -> 0 | E86: =IFERROR((J5*D5*F5*E$84)/E5,0) -> 0 | F86: =IFERROR((K5*D5*F5*F$84)/E5,0) -> 0 | G86: =IFERROR((L5*D5*F5*G$84)/E5,0) -> 0 | H86: =IFERROR((M5*D5*F5*H$84)/E5,0) -> 0 | I86: =IFERROR((N5*D5*F5*I$84)/E5,0) -> 0
B87: =IFERROR((D6*F6)/E6,0) -> 0 | C87: =IFERROR((H6*D6*F6*C$84)/E6,0) -> 0 | D87: =IFERROR((I6*D6*F6*D$84)/E6,0) -> 0 | E87: =IFERROR((J6*D6*F6*E$84)/E6,0) -> 0 | F87: =IFERROR((K6*D6*F6*F$84)/E6,0) -> 0 | G87: =IFERROR((L6*D6*F6*G$84)/E6,0) -> 0 | H87: =IFERROR((M6*D6*F6*H$84)/E6,0) -> 0 | I87: =IFERROR((N6*D6*F6*I$84)/E6,0) -> 0
B88: 0 | C88: 0 | D88: 0 | E88: 0 | F88: 0 | G88: 0 | H88: 0 | I88: 0
B89: 0 | C89: 0 | D89: 0 | E89: 0 | F89: 0 | G89: 0 | H89: 0 | I89: 0
B90: 0 | C90: 0 | D90: 0 | E90: 0 | F90: 0 | G90: 0 | H90: 0 | I90: 0
A91: 2 | B91: 0 | C91: 0 | D91: 0 | E91: 0 | F91: 0 | G91: 0 | H91: 0 | I91: 0
B92: 0 | C92: 0 | D92: 0 | E92: 0 | F92: 0 | G92: 0 | H92: 0 | I92: 0
B93: 0 | C93: 0 | D93: 0 | E93: 0 | F93: 0 | G93: 0 | H93: 0 | I93: 0
B94: 0 | C94: 0 | D94: 0 | E94: 0 | F94: 0 | G94: 0 | H94: 0 | I94: 0
B95: 0 | C95: 0 | D95: 0 | E95: 0 | F95: 0 | G95: 0 | H95: 0 | I95: 0
B96: 0 | C96: 0 | D96: 0 | E96: 0 | F96: 0 | G96: 0 | H96: 0 | I96: 0
A97: 3 | B97: 0.2169197397 | C97: 5.210845987 | D97: 1.310629067 | E97: 3.470498915 | F97: 0 | G97: 0 | H97: 0 | I97: 0
B98: 0 | C98: 0 | D98: 0 | E98: 0 | F98: 0 | G98: 0 | H98: 0 | I98: 0
B99: 0 | C99: 0 | D99: 0 | E99: 0 | F99: 0 | G99: 0 | H99: 0 | I99: 0
B100: 0 | C100: 0 | D100: 0 | E100: 0 | F100: 0 | G100: 0 | H100: 0 | I100: 0
B101: 0 | C101: 0 | D101: 0 | E101: 0 | F101: 0 | G101: 0 | H101: 0 | I101: 0
A102: 4 | B102: 0 | C102: 0 | D102: 0 | E102: 0 | F102: 0 | G102: 0 | H102: 0 | I102: 0
B103: 0 | C103: 0 | D103: 0 | E103: 0 | F103: 0 | G103: 0 | H103: 0 | I103: 0
B104: 0 | C104: 0 | D104: 0 | E104: 0 | F104: 0 | G104: 0 | H104: 0 | I104: 0
B105: 0 | C105: 0 | D105: 0 | E105: 0 | F105: 0 | G105: 0 | H105: 0 | I105: 0
B106: 0 | C106: 0 | D106: 0 | E106: 0 | F106: 0 | G106: 0 | H106: 0 | I106: 0
A107: 5 | B107: 0 | C107: 0 | D107: 0 | E107: 0 | F107: 0 | G107: 0 | H107: 0 | I107: 0
B108: 0 | C108: 0 | D108: 0 | E108: 0 | F108: 0 | G108: 0 | H108: 0 | I108: 0
B109: 0 | C109: 0 | D109: 0 | E109: 0 | F109: 0 | G109: 0 | H109: 0 | I109: 0
B110: 0 | C110: 0 | D110: 0 | E110: 0 | F110: 0 | G110: 0 | H110: 0 | I110: 0
B111: 0 | C111: 0 | D111: 0 | E111: 0 | F111: 0 | G111: 0 | H111: 0 | I111: 0
A112: 6 | B112: 0 | C112: 0 | D112: 0 | E112: 0 | F112: 0 | G112: 0 | H112: 0 | I112: 0
B113: 0.1031353135 | C113: 9.910066007 | D113: 1.973287954 | E113: 3.300123762 | F113: 0 | G113: 0 | H113: 6.613861386 | I113: 3.194513201
B114: 0 | C114: 0 | D114: 0 | E114: 0 | F114: 0 | G114: 0 | H114: 0 | I114: 0
B115: 0 | C115: 0 | D115: 0 | E115: 0 | F115: 0 | G115: 0 | H115: 0 | I115: 0
B116: 0 | C116: 0 | D116: 0 | E116: 0 | F116: 0 | G116: 0 | H116: 0 | I116: 0
A117: 7 | B117: 0 | C117: 0 | D117: 0 | E117: 0 | F117: 0 | G117: 0 | H117: 0 | I117: 0
B118: 1.148105626 | C118: 124.10907 | D118: 6.936854191 | E118: 36.73708381 | F118: 0 | G118: 32.163031 | H118: 0 | I118: 0
B119: 0 | C119: 0 | D119: 0 | E119: 0 | F119: 0 | G119: 0 | H119: 0 | I119: 0
B120: 0 | C120: 0 | D120: 0 | E120: 0 | F120: 0 | G120: 0 | H120: 0 | I120: 0
B121: 0 | C121: 0 | D121: 0 | E121: 0 | F121: 0 | G121: 0 | H121: 0 | I121: 0
A122: 8 | B122: 0 | C122: 0 | D122: 0 | E122: 0 | F122: 0 | G122: 0 | H122: 0 | I122: 0
B123: 0.4784688995 | C123: 0 | D123: 0 | E123: 0 | F123: 0 | G123: 0 | H123: 0 | I123: 0
B124: 0 | C124: 0 | D124: 0 | E124: 0 | F124: 0 | G124: 0 | H124: 0 | I124: 0
B125: 0 | C125: 0 | D125: 0 | E125: 0 | F125: 0 | G125: 0 | H125: 0 | I125: 0
B126: 0 | C126: 0 | D126: 0 | E126: 0 | F126: 0 | G126: 0 | H126: 0 | I126: 0
A127: 9 | B127: 0 | C127: 0 | D127: 0 | E127: 0 | F127: 0 | G127: 0 | H127: 0 | I127: 0
B128: 0 | C128: 0 | D128: 0 | E128: 0 | F128: 0 | G128: 0 | H128: 0 | I128: 0
B129: 0 | C129: 0 | D129: 0 | E129: 0 | F129: 0 | G129: 0 | H129: 0 | I129: 0
B130: 0 | C130: 0 | D130: 0 | E130: 0 | F130: 0 | G130: 0 | H130: 0 | I130: 0
B131: 0 | C131: 0 | D131: 0 | E131: 0 | F131: 0 | G131: 0 | H131: 0 | I131: 0
B132: 0 | C132: 0 | D132: 0 | E132: 0 | F132: 0 | G132: 0 | H132: 0 | I132: 0
B133: 2.205882353 | C133: 0 | D133: 6.663970588 | E133: 0 | F133: 0 | G133: 30.89779412 | H133: 0 | I133: 0
B134: 0 | C134: 0 | D134: 0 | E134: 0 | F134: 0 | G134: 0 | H134: 0 | I134: 0
B135: 0 | C135: 0 | D135: 0 | E135: 0 | F135: 0 | G135: 0 | H135: 0 | I135: 0
B136: 0 | C136: 0 | D136: 0 | E136: 0 | F136: 0 | G136: 0 | H136: 0 | I136: 0
B137: 0 | C137: 0 | D137: 0 | E137: 0 | F137: 0 | G137: 0 | H137: 0 | I137: 0
B138: 0.05813953488 | C138: 4.888197674 | D138: 0.1756395349 | E138: 0 | F138: 4.12244186 | G138: 0.8143604651 | H138: 0 | I138: 0
B139: 0 | C139: 0 | D139: 0 | E139: 0 | F139: 0 | G139: 0 | H139: 0 | I139: 0
B140: 0 | C140: 0 | D140: 0 | E140: 0 | F140: 0 | G140: 0 | H140: 0 | I140: 0
B141: 0 | C141: 0 | D141: 0 | E141: 0 | F141: 0 | G141: 0 | H141: 0 | I141: 0
B142: =SUMIF(B86:B141,">0") -> 4.210651466 | C142: =SUMIF(C86:C141,">0") -> 144.1181797 | D142: 17.06038133 | E142: 43.50770649 | F142: 4.12244186 | G142: 63.87518558 | H142: 6.613861386 | I142: 3.194513201

Sheet Terme font
M4: ENDARRERE | N4: ENDAVANT
D6: MAGATZEM
E7: AREA [m2] | G7: ALÇADA [m] | I7: VOLUM [m3]
E8: =Escenaris!E7 -> 600 | G8: =Escenaris!E8 -> 6 | I8: =Escenaris!E9 -> 3600
D9: ÀREA d'INCENDI [m2]
D10: 20 | E10: 50 | F10: 100 | G10: 300 | H10: 600 | I10: 900 | J10: 2500
D13: TERME FONT
G14: POTÈNCIA FONT [kg/s]
D15: ÀREA [m2] | E15: V. COMB [kg/s] | F15: NO2 | G15: SO2 | H15: HCl | I15: GE I | J15: GE II
D16: =E8 -> 600 | E16: =IFERROR(L59,0) -> 15.59210526 | F16: =IFERROR(M59,0) -> 0.4956246567 | G16: 0.3121754198 | H16: 0.100156476 | I16: 0.05128981994 | J16: 0.4103185596 | L16: η rendiment de combustió (%)
D17: =D10 -> 20 | E17: =IFERROR(L52,0) -> 0.9108058735 | F17: =IFERROR(M52,0) -> 0.02895169323 | G17: 0.01823558789 | H17: 0.005850595868 | I17: 0.002996071952 | J17: 0.02396857562 | L17: NO2 | M17: 10
D18: =E10 -> 50 | E18: =IFERROR(L53,0) -> 1.299342105 | F18: =IFERROR(M53,0) -> 0.04130205473 | G18: =IFERROR(N53,0) -> 0.02601461832 | H18: =IFERROR(O53,0) -> 0.008346373002 | I18: =IFERROR(P53,0) -> 0.004274151662 | J18: =IFERROR(Q53,0) -> 0.0341932133 | L18: HCl | M18: 100
D19: =F10 -> 100 | E19: 2.598684211 | F19: 0.08260410945 | G19: 0.05202923664 | H19: 0.016692746 | I19: 0.008548303324 | J19: 0.06838642659 | L19: SO2 | M19: 100
D20: =G10 -> 300 | E20: 7.796052632 | F20: 0.2478123284 | G20: 0.1560877099 | H20: 0.05007823801 | I20: 0.02564490997 | J20: 0.2051592798
D21: =H10 -> 600 | E21: 15.59210526 | F21: 0.4956246567 | G21: 0.3121754198 | H21: 0.100156476 | I21: 0.05128981994 | J21: 0.4103185596 | L21: fracció residual
D22: =I10 -> 900 | E22: 23.38815789 | F22: 0.7434369851 | G22: 0.4682631298 | H22: 0.150234714 | I22: 0.07693472992 | J22: 0.6154778393 | L22: GE I | M22: 0.1
D23: =J10 -> 2500 | E23: 64.96710526 | F23: 2.065102736 | G23: 1.300730916 | H23: 0.4173186501 | I23: 0.2137075831 | J23: 1.709660665 | L23: GE II | M23: 0.1
A32: MAGATZEMS | C32: Factor de ventilació | E32: 4 | F32: o | G32: ∞
A33: Per aquest cas d'estudi es contemplaran magatzems d'àrea igual a:
G34: =Escenaris!E7 -> 600 | H34: [m2]
A35: l'atura mitjana per a tots els magatzems serà igual: | E35: =Escenaris!E8 -> 6 | G35: [m]
A36: Volum [m3] | B36: =Escenaris!E9 -> 3600
A38: FORMULA MOLECULAR MITJANA
A40: Massa [t] | B40: %subs act. | C40: Mmol [kg//kmol] | F40: 12.011 | G40: 1.007 | H40: 15.999 | I40: 35.453 | J40: 14.007 | K40: 32.064 | L40: 30.974
A41: =Substàncies!Q17 -> 660 | B41: =Substàncies!Q21 -> 42.80185902 | C41: =Substàncies!Q23 -> 67.08991989 | F41: C | G41: H | H41: O | I41: Cl | J41: N | K41: S | L41: P
B42: =Substàncies!S21 -> 0.4280185902 | F42: C(a) | G42: H(b) | H42: O( c) | I42: Cl(d) | J42: N( e) | K42: S(f) | L42: P(g)
F43: =Substàncies!P10 -> 2.849642023 | G43: =Substàncies!Q10 -> 4.02355525 | H43: =Substàncies!R10 -> 0.6458386879 | I43: =Substàncies!S10 -> 0.02761545825 | J43: =Substàncies!T10 -> 1.08302318 | K43: =Substàncies!U10 -> 0.04898781785 | L43: =Substàncies!V10 -> 0.02449390893
E44: %content | F44: =Substàncies!P14 -> 21.83608783 | G44: =Substàncies!Q14 -> 2.584906263 | H44: =Substàncies!R14 -> 6.592076741 | I44: =Substàncies!S14 -> 0.6246124031 | J44: =Substàncies!T14 -> 9.678058421 | K44: =Substàncies!U14 -> 1.00210021 | L44: =Substàncies!V14 -> 0.4840171517
A46: VELOCITAT DE COMBUSTIÓ
A48: Incendis límitats per l'oxigen
K49: TAULA RESUM
A50: DG [mol/mol] | B50: =F43+0.25*G43-0.5*H43-0.25*I43+0.1*J43+K43 -> 3.682997763 | C50: =B50 -> 3.682997763 | D50: =C50 -> 3.682997763 | E50: 3.682997763 | F50: 3.682997763 | G50: 3.682997763 | H50: =G50 -> 3.682997763 | N50: potencia font [kg/s]
A51: φO2 [kmol/s] | B51: =(0.2*(1+0.5*$E$32)*E8*$G$8)/(24*1800) -> 0.05 | C51: =(0.2*(1+0.5*$E$32)*E8*$G$8)/(24*1800) -> 0.05 | D51: =(0.2*(1+0.5*$E$32)*E8*$G$8)/(24*1800) -> 0.05 | E51: =(0.2*(1+0.5*$E$32)*E8*$G$8)/(24*1800) -> 0.05 | F51: =(0.2*(1+0.5*$E$32)*E8*$G$8)/(24*1800) -> 0.05 | G51: =(0.2*(1+0.5*$E$32)*E8*$G$8)/(24*1800) -> 0.05 | H51: =(0.2*(1+0.5*$E$32)*E8*$G$8)/(24*1800) -> 0.05 | I51: =(0.2*(1+0.5*$E$32)*E8*$G$8)/(24*1800) -> 0.05 | K51: superfície [m2] | L51: velocitat de combustió [kg/s] | M51: NO2 | N51: SO2 | O51: HCl | P51: GE I | Q51: GE II
A52: BO2 [kg/s] | B52: =IFERROR((B51*$C$41)/B50,0) -> 0.9108058735 | C52: =IFERROR((C51*$C$41)/B50,0) -> 0.9108058735 | D52: =IFERROR((D51*$C$41)/B50,0) -> 0.9108058735 | E52: =IFERROR((E51*$C$41)/B50,0) -> 0.9108058735 | F52: =IFERROR((F51*$C$41)/B50,0) -> 0.9108058735 | G52: =IFERROR((G51*$C$41)/B50,0) -> 0.9108058735 | H52: =IFERROR((H51*$C$41)/B50,0) -> 0.9108058735 | I52: =IFERROR((I51*$C$41)/B50,0) -> 0.9108058735 | K52: 20 | L52: =MAX(B52,A60) -> 0.9108058735 | M52: =MAX(B70,B77) -> 0.02895169323 | N52: =MAX(B72,B79) -> 0.01823558789 | O52: =MAX(B71,B78) -> 0.005850595868 | P52: =MAX(B86,B92) -> 0.002996071952 | Q52: =MAX(B87,B93) -> 0.02396857562
K53: 50 | L53: =MAX(C52,B60) -> 1.299342105 | M53: =MAX(D70,D77) -> 0.04130205473 | N53: =MAX(D72,D79) -> 0.02601461832 | O53: =MAX(D71,D78) -> 0.008346373002 | P53: =MAX(D86,D92) -> 0.004274151662 | Q53: =MAX(D87,D93) -> 0.0341932133
A54: incendis limitats per la superfície | K54: 100 | L54: =MAX(D52,C60) -> 2.598684211 | M54: =MAX(F70,F77) -> 0.08260410945 | N54: =MAX(F72,F79) -> 0.05202923664 | O54: =MAX(F71,F78) -> 0.016692746 | P54: =MAX(F86,F92) -> 0.008548303324 | Q54: =MAX(F87,F93) -> 0.06838642659
K55: 300 | L55: =MAX(E52,D60) -> 7.796052632 | M55: =MAX(H70,H77) -> 0.2478123284 | N55: =MAX(H72,H79) -> 0.1560877099 | O55: =MAX(H71,H78) -> 0.05007823801 | P55: =MAX(H86,H92) -> 0.02564490997 | Q55: =MAX(H87,H93) -> 0.2051592798
A56: y | B56: =IFERROR(SUMIF(Substàncies!D16:D20,">0")/Substàncies!D62,0) -> 0.01315789474 | E56: Àrea crítica [m2] | K56: 600 | L56: =MAX(F52,E60) -> 15.59210526 | M56: =MAX(J70,J77) -> 0.4956246567 | N56: =MAX(J72,J79) -> 0.3121754198 | O56: =MAX(J71,J78) -> 0.100156476 | P56: =MAX(J86,J92) -> 0.05128981994 | Q56: =MAX(J87,J93) -> 0.4103185596
A57: B [kg/m2s] | B57: =0.1*B56+0.025*(1-B56) -> 0.02598684211 | K57: 900 | L57: =MAX(G52,F60) -> 23.38815789 | M57: =MAX(L70,L77) -> 0.7434369851 | N57: =MAX(L72,L79) -> 0.4682631298 | O57: =MAX(L71,L78) -> 0.150234714 | P57: =MAX(L86,L92) -> 0.07693472992 | Q57: =MAX(L87,L93) -> 0.6154778393
A58: Bmax [kg/s] | K58: 2500 | L58: =MAX(H52,G60) -> 64.96710526 | M58: =MAX(N70,N77) -> 2.065102736 | N58: =MAX(N72,N79) -> 1.300730916 | O58: =MAX(N71,N78) -> 0.4173186501 | P58: =MAX(N86,N92) -> 0.2137075831 | Q58: =MAX(N87,N93) -> 1.709660665
A59: =D10 -> 20 | B59: 50 | C59: 100 | D59: 300 | E59: 600 | F59: 900 | G59: 2500 | H59: =E8 -> 600 | K59: =E8 -> 600 | L59: =MAX(I52,H60) -> 15.59210526 | M59: =MAX(P70,P77) -> 0.4956246567 | N59: =MAX(P72,P79) -> 0.3121754198 | O59: =MAX(P71,P78) -> 0.100156476 | P59: =MAX(P86,P92) -> 0.05128981994 | Q59: =MAX(P87,P93) -> 0.4103185596
A60: =IFERROR($B$57*A59,0) -> 0.5197368421 | B60: =IFERROR($B$57*B59,0) -> 1.299342105 | C60: =IFERROR($B$57*C59,0) -> 2.598684211 | D60: =IFERROR($B$57*D59,0) -> 7.796052632 | E60: 15.59210526 | F60: =IFERROR($B$57*F59,0) -> 23.38815789 | G60: 64.96710526 | H60: 15.59210526
A63: POTÈNCIA FONT
F64: Massa mol.
A65: productes de combustió tòxics | F65: =(J40+2*H40) -> 46.005 | G65: =M17/100 -> 0.1
F66: =(G40+I40) -> 36.46 | G66: =M18/100 -> 1
A67: amb ventilació il·limitada [F=inf] | F67: =(K40+2*H40) -> 64.062 | G67: =M19/100 -> 1
A69: 20 | B69: m2 | C69: 50 | D69: m2 | E69: 100 | F69: m2 | G69: 300 | H69: m2 | I69: 600 | J69: m2 | K69: 900 | L69: m2 | M69: 2500 | N69: m2 | O69: =E8 -> 600 | P69: m2
A70: φNO2 [kg/s] | B70: =IFERROR(A$60*B42*J$43*F65*G65/C41,0) -> 0.01652082189 | C70: φNO2 [kg/s] | D70: =IFERROR(B$60*$B$42*J$43*$F65*$G65/$C$41,0) -> 0.04130205473 | E70: φNO2 [kg/s] | F70: =IFERROR(C$60*$B$42*J$43*$F65*$G65/$C$41,0) -> 0.08260410945 | G70: φNO2 [kg/s] | H70: =IFERROR(D$60*$B$42*J$43*$F65*$G65/$C$41,0) -> 0.2478123284 | I70: φNO2 [kg/s] | J70: =IFERROR(E$60*$B$42*$J43*$F65*$G65/$C$41,0) -> 0.4956246567 | K70: φNO2 [kg/s] | L70: =IFERROR(F$60*$B$42*$J43*$F65*$G65/$C$41,0) -> 0.7434369851 | M70: φNO2 [kg/s] | N70: =IFERROR(G$60*$B$42*$J43*$F65*$G65/$C$41,0) -> 2.065102736 | O70: φNO2 [kg/s] | P70: =IFERROR(H$60*$B$42*$J43*$F65*$G65/$C$41,0) -> 0.4956246567
A71: φHCl [kg/s] | B71: =IFERROR(A$60*B42*I$43*F66*G66/C41,0) -> 0.003338549201 | C71: φHCl [kg/s] | D71: =IFERROR(B$60*$B$42*I$43*F66*G66/$C$41,0) -> 0.008346373002 | E71: φHCl [kg/s] | F71: =IFERROR(C$60*$B$42*I$43*$F66*$G66/$C$41,0) -> 0.016692746 | G71: φHCl [kg/s] | H71: =IFERROR(D$60*$B$42*I$43*$F66*$G66/$C$41,0) -> 0.05007823801 | I71: φHCl [kg/s] | J71: =IFERROR(E$60*$B$42*$I43*$F66*$G66/$C$41,0) -> 0.100156476 | K71: φHCl [kg/s] | L71: =IFERROR(F$60*$B$42*$I43*$F66*$G66/$C$41,0) -> 0.150234714 | M71: φHCl [kg/s] | N71: =IFERROR(G$60*$B$42*$I43*$F66*$G66/$C$41,0) -> 0.4173186501 | O71: φHCl [kg/s] | P71: =IFERROR(H$60*$B$42*$I43*$F66*$G66/$C$41,0) -> 0.100156476
A72: φSO2 [kg/s] | B72: =IFERROR(A$60*B42*K$43*F67*G67/C41,0) -> 0.01040584733 | C72: φSO2 [kg/s] | D72: =IFERROR(B$60*$B$42*K$43*F67*G67/$C$41,0) -> 0.02601461832 | E72: φSO2 [kg/s] | F72: =IFERROR(C$60*$B$42*K$43*$F67*$G67/$C$41,0) -> 0.05202923664 | G72: φSO2 [kg/s] | H72: =IFERROR(D$60*$B$42*K$43*$F67*$G67/$C$41,0) -> 0.1560877099 | I72: φSO2 [kg/s] | J72: =IFERROR(E$60*$B$42*$K43*$F67*$G67/$C$41,0) -> 0.3121754198 | K72: φSO2 [kg/s] | L72: =IFERROR(F$60*$B$42*$K43*$F67*$G67/$C$41,0) -> 0.4682631298 | M72: φSO2 [kg/s] | N72: =IFERROR(G$60*$B$42*$K43*$F67*$G67/$C$41,0) -> 1.300730916 | O72: φSO2 [kg/s] | P72: =IFERROR(H$60*$B$42*$K43*$F67*$G67/$C$41,0) -> 0.3121754198
A74: amb ventilació limitada per l'oxigen [F=4]
A76: 20 | B76: m2 | C76: 50 | D76: m2 | E76: 100 | F76: m2 | G76: 300 | H76: m2 | I76: 600 | J76: m2 | K76: 900 | L76: m2 | M76: 2500 | N76: m2 | O76: =O69 -> 600 | P76: m2
A77: φNO2 [kg/s] | B77: =IFERROR(B52*$B$42*$J43*$F65*$G65/$C$41,0) -> 0.02895169323 | C77: φNO2 [kg/s] | D77: =IFERROR(C52*$B$42*$J43*$F65*$G65/$C$41,0) -> 0.02895169323 | E77: φNO2 [kg/s] | F77: =IFERROR(D52*$B$42*$J43*$F65*$G65/$C$41,0) -> 0.02895169323 | G77: φNO2 [kg/s] | H77: =IFERROR(E52*$B$42*$J43*$F65*$G65/$C$41,0) -> 0.02895169323 | I77: φNO2 [kg/s] | J77: =IFERROR(F52*$B$42*$J43*$F65*$G65/$C$41,0) -> 0.02895169323 | K77: φNO2 [kg/s] | L77: =IFERROR(G52*$B$42*$J43*$F65*$G65/$C$41,0) -> 0.02895169323 | M77: φNO2 [kg/s] | N77: =IFERROR(H52*$B$42*$J43*$F65*$G65/$C$41,0) -> 0.02895169323 | O77: φNO2 [kg/s] | P77: =IFERROR(I52*$B$42*$J43*$F65*$G65/$C$41,0) -> 0.02895169323
A78: φHCl [kg/s] | B78: =IFERROR(B52*$B$42*$I43*$F66*$G66/$C$41,0) -> 0.005850595868 | C78: φHCl [kg/s] | D78: =IFERROR(C52*$B$42*$I43*$F66*$G66/$C$41,0) -> 0.005850595868 | E78: φHCl [kg/s] | F78: =IFERROR(D52*$B$42*$I43*$F66*$G66/$C$41,0) -> 0.005850595868 | G78: φHCl [kg/s] | H78: =IFERROR(E52*$B$42*$I43*$F66*$G66/$C$41,0) -> 0.005850595868 | I78: φHCl [kg/s] | J78: =IFERROR(F52*$B$42*$I43*$F66*$G66/$C$41,0) -> 0.005850595868 | K78: φHCl [kg/s] | L78: =IFERROR(G52*$B$42*$I43*$F66*$G66/$C$41,0) -> 0.005850595868 | M78: φHCl [kg/s] | N78: =IFERROR(H52*$B$42*$I43*$F66*$G66/$C$41,0) -> 0.005850595868 | O78: φHCl [kg/s] | P78: =IFERROR(I52*$B$42*$I43*$F66*$G66/$C$41,0) -> 0.005850595868
A79: φSO2 [kg/s] | B79: =IFERROR(B52*$B$42*$K43*$F67*$G67/$C$41,0) -> 0.01823558789 | C79: φSO2 [kg/s] | D79: =IFERROR(C52*$B$42*$K43*$F67*$G67/$C$41,0) -> 0.01823558789 | E79: φSO2 [kg/s] | F79: =IFERROR(D52*$B$42*$K43*$F67*$G67/$C$41,0) -> 0.01823558789 | G79: φSO2 [kg/s] | H79: =IFERROR(E52*$B$42*$K43*$F67*$G67/$C$41,0) -> 0.01823558789 | I79: φSO2 [kg/s] | J79: =IFERROR(F52*$B$42*$K43*$F67*$G67/$C$41,0) -> 0.01823558789 | K79: φSO2 [kg/s] | L79: =IFERROR(G52*$B$42*$K43*$F67*$G67/$C$41,0) -> 0.01823558789 | M79: φSO2 [kg/s] | N79: =IFERROR(H52*$B$42*$K43*$F67*$G67/$C$41,0) -> 0.01823558789 | O79: φSO2 [kg/s] | P79: =IFERROR(I52*$B$42*$K43*$F67*$G67/$C$41,0) -> 0.01823558789
A81: substàncies (molt) tòxiques sense cremar | F81: contribució | G81: %actiu
E82: etoprofos | F82: =IFERROR(SUMIF(Substàncies!D32:D36,">0")/Substàncies!D62,0) -> 0.3289473684 | G82: =IF(ISERROR((Substàncies!D32*Substàncies!F32+Substàncies!D33*Substàncies!F33+Substàncies!D34*Substàncies!F34+Substàncies!D35*Substàncies!F35+Substàncies!D36*Substàncies!F36)/SUM(Substàncies!D32:D36)),0,((Substàncies!D32*Substàncies!F32+Substàncies!D33*Substàncies!F33+Substàncies!D34*Substàncies!F34+Substàncies!D35*Substàncies!F35+Substàncies!D36*Substàncies!F36)/SUM(Substàncies!D32:D36))) -> 0.1
A83: amb ventilació il·limitada [F=inf] | E83: TDI | F83: =IFERROR(SUMIF(Substàncies!D37:D41,">0")/Substàncies!D62,0) -> 0.2631578947 | G83: =IF(ISERROR((Substàncies!D37*Substàncies!F37+Substàncies!D38*Substàncies!F38+Substàncies!D39*Substàncies!F39+Substàncies!D40*Substàncies!F40+Substàncies!D41*Substàncies!F41)/SUM(Substàncies!D37:D41)),0,((Substàncies!D37*Substàncies!F37+Substàncies!D38*Substàncies!F38+Substàncies!D39*Substàncies!F39+Substàncies!D40*Substàncies!F40+Substàncies!D41*Substàncies!F41)/SUM(Substàncies!D37:D41))) -> 1
A85: 20 | B85: m2 | C85: 50 | D85: m2 | E85: 100 | F85: m2 | G85: 300 | H85: m2 | I85: 600 | J85: m2 | K85: 900 | L85: m2 | M85: 2500 | N85: m2 | O85: =O76 -> 600 | P85: m2
A86: GE I: φT+ | B86: =IFERROR(A$60*F82*G82*M22,0) -> 0.001709660665 | C86: GE I: φT+ | D86: =IFERROR(B$60*F82*G82*M22,0) -> 0.004274151662 | E86: GE I: φT+ | F86: =IFERROR(C$60*F82*G82*M22,0) -> 0.008548303324 | G86: GE I: φT+ | H86: =IFERROR(D$60*F82*G82*M22,0) -> 0.02564490997 | I86: GE I: φT+ | J86: =IFERROR(E$60*F82*G82*M22,0) -> 0.05128981994 | K86: GE I: φT+ | L86: =IFERROR(F$60*F82*G82*M22,0) -> 0.07693472992 | M86: GE I: φT+ | N86: =IFERROR(G$60*F82*G82*M22,0) -> 0.2137075831 | O86: GE I: φT+ | P86: =IFERROR(H$60*F82*G82*M22,0) -> 0.05128981994
A87: GE II: φT+ | B87: =IFERROR(A$60*F83*G83*M23,0) -> 0.01367728532 | C87: GE II: φT+ | D87: =IFERROR(B$60*F83*G83*M23,0) -> 0.0341932133 | E87: GE II: φT+ | F87: =IFERROR(C$60*F83*G83*M23,0) -> 0.06838642659 | G87: GE II: φT+ | H87: =IFERROR(D$60*F83*G83*M23,0) -> 0.2051592798 | I87: GE II: φT+ | J87: =IFERROR(E$60*F83*G83*M23,0) -> 0.4103185596 | K87: GE II: φT+ | L87: =IFERROR(F$60*F83*G83*M23,0) -> 0.6154778393 | M87: GE II: φT+ | N87: =IFERROR(G$60*F83*G83*M23,0) -> 1.709660665 | O87: GE II: φT+ | P87: =IFERROR(H$60*F83*G83*M23,0) -> 0.4103185596
A89: amb ventilació limitada per l'oxigen [F=4]
A91: 20 | B91: m2 | C91: 50 | D91: m2 | E91: 100 | F91: m2 | G91: 300 | H91: m2 | I91: 600 | J91: m2 | K91: 900 | L91: m2 | M91: 2500 | N91: m2 | O91: =O85 -> 600 | P91: m2
A92: GE I: φT+ | B92: =IFERROR(B$52*$F$82*$G$82*$M$22,0) -> 0.002996071952 | C92: GE I: φT+ | D92: =IFERROR(C$52*$F$82*$G$82*$M$22,0) -> 0.002996071952 | E92: GE I: φT+ | F92: =IFERROR(D$52*$F$82*$G$82*$M$22,0) -> 0.002996071952 | G92: GE I: φT+ | H92: =IFERROR(E$52*$F$82*$G$82*$M$22,0) -> 0.002996071952 | I92: GE I: φT+ | J92: =IFERROR(F$52*$F$82*$G$82*$M$22,0) -> 0.002996071952 | K92: GE I: φT+ | L92: =IFERROR(G$52*$F$82*$G$82*$M$22,0) -> 0.002996071952 | M92: GE I: φT+ | N92: =IFERROR(H$52*$F$82*$G$82*$M$22,0) -> 0.002996071952 | O92: GE I: φT+ | P92: =IFERROR(I$52*$F$82*$G$82*$M$22,0) -> 0.002996071952
A93: GE II: φT+ | B93: =IFERROR(B$52*$F$83*$G$83*$M$23,0) -> 0.02396857562 | C93: GE II: φT+ | D93: =IFERROR(C$52*$F$83*$G$83*$M$23,0) -> 0.02396857562 | E93: GE II: φT+ | F93: =IFERROR(D$52*$F$83*$G$83*$M$23,0) -> 0.02396857562 | G93: GE II: φT+ | H93: =IFERROR(E$52*$F$83*$G$83*$M$23,0) -> 0.02396857562 | I93: GE II: φT+ | J93: =IFERROR(F$52*$F$83*$G$83*$M$23,0) -> 0.02396857562 | K93: GE II: φT+ | L93: =IFERROR(G$52*$F$83*$G$83*$M$23,0) -> 0.02396857562 | M93: GE II: φT+ | N93: =IFERROR(H$52*$F$83*$G$83*$M$23,0) -> 0.02396857562 | O93: GE II: φT+ | P93: =IFERROR(I$52*$F$83*$G$83*$M$23,0) -> 0.02396857562

Sheet letalitat
F1: 46 | H1: 64 | J1: 36.5
B5: TERME FONT | R5: ENDARRERE | S5: ENDAVANT
J6: POTÈNCIA FONT [kg/s]
B7: ÀREA [m2] | C7: vcomb.[kg/s] | D7: temps [min] | E7: NO2 | F7: fNO2 | G7: SO2 | H7: fSO2 | I7: HCl | J7: fHCl | K7: ffc | L7: GE I | M7: fGE I | N7: GE II | O7: fGE II | P7: TOTAL
B8: ='Terme font'!E8 -> 600 | C8: =IFERROR('Terme font'!E16,0) -> 15.59210526 | D8: 30 | E8: ='Terme font'!F16 -> 0.4956246567 | F8: =IFERROR((E8)/(E8+G8+I8),0) -> 0.5458682525 | G8: =IFERROR('Terme font'!G16,0) -> 0.3121754198 | H8: =IFERROR((G8)/(E8+G8+I8),0) -> 0.3438219802 | I8: =IFERROR('Terme font'!H16,0) -> 0.100156476 | J8: =IFERROR((I8)/(E8+G8+I8),0) -> 0.1103097673 | K8: =IFERROR((E8+G8+I8)/P8,0) -> 0.6629525416 | L8: =IFERROR('Terme font'!I16,0) -> 0.05128981994 | M8: =IFERROR((L8)/P8,0) -> 0.0374497176 | N8: =IFERROR('Terme font'!J16,0) -> 0.4103185596 | O8: =IFERROR((N8)/P8,0) -> 0.2995977408 | P8: =SUM(E8,G8,I8,L8,N8) -> 1.369564932
B9: ='Terme font'!K52 -> 20 | C9: =IFERROR('Terme font'!L52,0) -> 0.9108058735 | D9: 30 | E9: =IFERROR('Terme font'!M52,0) -> 0.02895169323 | F9: =IFERROR((E9)/(E9+G9+I9),0) -> 0.5458682525 | G9: =IFERROR('Terme font'!N52,0) -> 0.01823558789 | H9: =IFERROR((G9)/(E9+G9+I9),0) -> 0.3438219802 | I9: =IFERROR('Terme font'!O52,0) -> 0.005850595868 | J9: =IFERROR((I9)/(E9+G9+I9),0) -> 0.1103097673 | K9: =IFERROR((E9+G9+I9)/P9,0) -> 0.6629525416 | L9: =IFERROR('Terme font'!P52,0) -> 0.002996071952 | M9: =IFERROR((L9)/P9,0) -> 0.0374497176 | N9: =IFERROR('Terme font'!J17,0) -> 0.02396857562 | O9: =IFERROR((N9)/P9,0) -> 0.2995977408 | P9: 0.08000252456
B10: ='Terme font'!K53 -> 50 | C10: =IFERROR('Terme font'!L53,0) -> 1.299342105 | D10: 30 | E10: =IFERROR('Terme font'!M53,0) -> 0.04130205473 | F10: =IFERROR((E10)/(E10+G10+I10),0) -> 0.5458682525 | G10: =IFERROR('Terme font'!N53,0) -> 0.02601461832 | H10: =IFERROR((G10)/(E10+G10+I10),0) -> 0.3438219802 | I10: =IFERROR('Terme font'!O53,0) -> 0.008346373002 | J10: =IFERROR((I10)/(E10+G10+I10),0) -> 0.1103097673 | K10: =IFERROR((E10+G10+I10)/P10,0) -> 0.6629525416 | L10: =IFERROR('Terme font'!P53,0) -> 0.004274151662 | M10: =IFERROR((L10)/P10,0) -> 0.0374497176 | N10: =IFERROR('Terme font'!J18,0) -> 0.0341932133 | O10: =IFERROR((N10)/P10,0) -> 0.2995977408 | P10: 0.114130411
B11: ='Terme font'!K54 -> 100 | C11: =IFERROR('Terme font'!L54,0) -> 2.598684211 | D11: 30 | E11: =IFERROR('Terme font'!M54,0) -> 0.08260410945 | F11: 0.5458682525 | G11: =IFERROR('Terme font'!N54,0) -> 0.05202923664 | H11: 0.3438219802 | I11: =IFERROR('Terme font'!O54,0) -> 0.016692746 | J11: 0.1103097673 | K11: 0.6629525416 | L11: =IFERROR('Terme font'!P54,0) -> 0.008548303324 | M11: 0.0374497176 | N11: =IFERROR('Terme font'!J19,0) -> 0.06838642659 | O11: 0.2995977408 | P11: 0.228260822
B12: ='Terme font'!K55 -> 300 | C12: =IFERROR('Terme font'!L55,0) -> 7.796052632 | D12: 30 | E12: =IFERROR('Terme font'!M55,0) -> 0.2478123284 | F12: 0.5458682525 | G12: =IFERROR('Terme font'!N55,0) -> 0.1560877099 | H12: 0.3438219802 | I12: =IFERROR('Terme font'!O55,0) -> 0.05007823801 | J12: 0.1103097673 | K12: 0.6629525416 | L12: =IFERROR('Terme font'!P55,0) -> 0.02564490997 | M12: 0.0374497176 | N12: =IFERROR('Terme font'!J20,0) -> 0.2051592798 | O12: 0.2995977408 | P12: 0.684782466
B13: ='Terme font'!K56 -> 600 | C13: =IFERROR('Terme font'!L56,0) -> 15.59210526 | D13: 30 | E13: =IFERROR('Terme font'!M56,0) -> 0.4956246567 | F13: 0.5458682525 | G13: =IFERROR('Terme font'!N56,0) -> 0.3121754198 | H13: 0.3438219802 | I13: =IFERROR('Terme font'!O56,0) -> 0.100156476 | J13: 0.1103097673 | K13: 0.6629525416 | L13: =IFERROR('Terme font'!P56,0) -> 0.05128981994 | M13: 0.0374497176 | N13: =IFERROR('Terme font'!J21,0) -> 0.4103185596 | O13: 0.2995977408 | P13: 1.369564932
B14: ='Terme font'!K57 -> 900 | C14: =IFERROR('Terme font'!L57,0) -> 23.38815789 | D14: 30 | E14: =IFERROR('Terme font'!M57,0) -> 0.7434369851 | F14: 0.5458682525 | G14: =IFERROR('Terme font'!N57,0) -> 0.4682631298 | H14: 0.3438219802 | I14: =IFERROR('Terme font'!O57,0) -> 0.150234714 | J14: 0.1103097673 | K14: 0.6629525416 | L14: =IFERROR('Terme font'!P57,0) -> 0.07693472992 | M14: 0.0374497176 | N14: =IFERROR('Terme font'!J22,0) -> 0.6154778393 | O14: 0.2995977408 | P14: 2.054347398
B15: ='Terme font'!K58 -> 2500 | C15: =IFERROR('Terme font'!L58,0) -> 64.96710526 | D15: 30 | E15: =IFERROR('Terme font'!M58,0) -> 2.065102736 | F15: 0.5458682525 | G15: =IFERROR('Terme font'!N58,0) -> 1.300730916 | H15: 0.3438219802 | I15: =IFERROR('Terme font'!O58,0) -> 0.4173186501 | J15: 0.1103097673 | K15: 0.6629525416 | L15: =IFERROR('Terme font'!P58,0) -> 0.2137075831 | M15: 0.0374497176 | N15: =IFERROR('Terme font'!J23,0) -> 1.709660665 | O15: 0.2995977408 | P15: 5.70652055
B17: LETALITAT 1% | I17: LETALITAT 10%
D18: CONCENTRACIONS LETALS 1% (mg/m3) | K18: CONCENTRACIONS LETALS 10% (mg/m3)
B19: ÀREA [m2] | C19: temps [min] | D19: NO2, SO2, HCl | E19: GE I | F19: GE | G19: MITJA | I19: ÀREA [m2] | J19: temps [min] | K19: NO2, SO2, HCl | L19: GE I | M19: GE | N19: MITJA
B20: =B8 -> 600 | C20: =D8 -> 30 | D20: =E47 -> 225.2429521 | E20: =I47 -> 105.9648765 | F20: =K47 -> 651.0249185 | G20: =IFERROR(L47,0) -> 266.1777568 | I20: =B8 -> 600 | J20: =D8 -> 30 | K20: =E55 -> 302.6831018 | L20: =I55 -> 179.1292631 | M20: =K55 -> 1100.530834 | N20: =IFERROR(L55,0) -> 374.3147557
B21: 20 | C21: 30 | D21: 225.1988386 | E21: 105.9648765 | F21: 651.0249185 | G21: =IFERROR(L48,0) -> 266.1369142 | I21: 20 | J21: 30 | K21: 301.9734551 | L21: 179.1292631 | M21: 1100.530834 | N21: =IFERROR(L56,0) -> 373.5949659
B22: 50 | C22: 30 | D22: 225.1988386 | E22: 105.9648765 | F22: 651.0249185 | G22: =IFERROR(L49,0) -> 266.1369142 | I22: 50 | J22: 30 | K22: 301.9734551 | L22: 179.1292631 | M22: 1100.530834 | N22: =IFERROR(L57,0) -> 373.5949659
B23: 100 | C23: 30 | D23: 225.1988386 | E23: 105.9648765 | F23: 651.0249185 | G23: =IFERROR(L50,0) -> 266.1369142 | I23: 100 | J23: 30 | K23: 301.9734551 | L23: 179.1292631 | M23: 1100.530834 | N23: 373.5949659
B24: 300 | C24: 30 | D24: 225.1988386 | E24: 105.9648765 | F24: 651.0249185 | G24: =IFERROR(L51,0) -> 266.1369142 | I24: 300 | J24: 30 | K24: 301.9734551 | L24: 179.1292631 | M24: 1100.530834 | N24: 373.5949659
B25: 600 | C25: =D13 -> 30 | D25: 225.1988386 | E25: 105.9648765 | F25: 651.0249185 | G25: 266.1369142 | I25: 600 | J25: 30 | K25: 301.9734551 | L25: 179.1292631 | M25: 1100.530834 | N25: 373.5949659
B26: 900 | C26: 30 | D26: 225.1988386 | E26: 105.9648765 | F26: 651.0249185 | G26: 266.1369142 | I26: 900 | J26: 30 | K26: 301.9734551 | L26: 179.1292631 | M26: 1100.530834 | N26: 373.5949659
B27: 2500 | C27: 30 | D27: 225.1988386 | E27: 105.9648765 | F27: 651.0249185 | G27: 266.1369142 | I27: 2500 | J27: 30 | K27: 301.9734551 | L27: 179.1292631 | M27: 1100.530834 | N27: 373.5949659
B29: LETALITAT 50% | I29: LETALITAT 99%
D30: CONCENTRACIONS LETALS 50% (mg/m3) | K30: CONCENTRACIONS LETALS 99% (mg/m3)
B31: ÀREA [m2] | C31: temps [min] | D31: NO2, SO2, HCl | E31: GE I | F31: GE | G31: MITJA | I31: ÀREA [m2] | J31: temps [min] | K31: NO2, SO2, HCl | L31: GE I | M31: GE | N31: MITJA
B32: =B8 -> 600 | C32: =D8 -> 30 | D32: =E63 -> 428.981676 | E32: =I63 -> 339.7152224 | F32: =K63 -> 2087.135684 | G32: =IFERROR(L63,0) -> 555.804612 | I32: =B8 -> 600 | J32: =D8 -> 30 | K32: =E71 -> 808.9034772 | L32: =I71 -> 1089.100805 | M32: =K71 -> 6691.196049 | N32: =IFERROR(L71,0) -> 1112.680947
B33: 20 | C33: 30 | D33: 428.9232489 | E33: 339.7152224 | F33: 2087.135684 | G33: =IFERROR(L64,0) -> 555.7395882 | I33: 20 | J33: 30 | K33: 807.257765 | L33: 1089.100805 | M33: 6691.196049 | N33: =IFERROR(L72,0) -> 1110.616223
B34: 50 | C34: 30 | D34: 428.9232489 | E34: 339.7152224 | F34: 2087.135684 | G34: =IFERROR(L65,0) -> 555.7395882 | I34: 50 | J34: 30 | K34: 807.257765 | L34: 1089.100805 | M34: 6691.196049 | N34: =IFERROR(L73,0) -> 1110.616223
B35: 100 | C35: 30 | D35: 428.9232489 | E35: 339.7152224 | F35: 2087.135684 | G35: 555.7395882 | I35: 100 | J35: 30 | K35: 807.257765 | L35: 1089.100805 | M35: 6691.196049 | N35: 1110.616223
B36: 300 | C36: 30 | D36: 428.9232489 | E36: 339.7152224 | F36: 2087.135684 | G36: 555.7395882 | I36: 300 | J36: 30 | K36: 807.257765 | L36: 1089.100805 | M36: 6691.196049 | N36: 1110.616223
B37: 600 | C37: 30 | D37: 428.9232489 | E37: 339.7152224 | F37: 2087.135684 | G37: 555.7395882 | I37: 600 | J37: 30 | K37: 807.257765 | L37: 1089.100805 | M37: 6691.196049 | N37: 1110.616223
B38: 900 | C38: 30 | D38: 428.9232489 | E38: 339.7152224 | F38: 2087.135684 | G38: 555.7395882 | I38: 900 | J38: 30 | K38: 807.257765 | L38: 1089.100805 | M38: 6691.196049 | N38: 1110.616223
B39: 2500 | C39: 30 | D39: 428.9232489 | E39: 339.7152224 | F39: 2087.135684 | G39: 555.7395882 | I39: 2500 | J39: 30 | K39: 807.257765 | L39: 1089.100805 | M39: 6691.196049 | N39: 1110.616223
B44: PROBIT
E45: Mescla NO2, SO2 i HCl | H45: GE I | J45: GE II
B46: superfície [m2] | C46: Y(LC1) | D46: t | E46: C(mg/m3) | F46: Y | G46: ΔY | H46: C(ppm) | I46: C(mg/m3) | J46: C(ppm) | K46: C(mg/m3) | L46: LC1 mitja (mg/m3)
B47: ='Terme font'!E8 -> 600 | C47: 2.67 | D47: =D8 -> 30 | E47: 225.2429521 | F47: =IFERROR(-18.6+LN(((F8*E47)^3.7+0.549*(H8*E47)^2.4+1.47*100000*(J8*E47))*D47),0) -> 2.670691098 | G47: =C47-F47 -> -0.0006910978507 | H47: =((EXP(C47+5.47)/D47))^(1/2) -> 10.69098977 | I47: =(H47*242.2)/(0.082*298) -> 105.9648765 | J47: =((EXP(C47+9.76)/D47))^(1/2) -> 91.32287548 | K47: =(J47*174.2)/(0.082*298) -> 651.0249185 | L47: =IFERROR(((K8/E47)+(M8/I47)+(O8/K47))^(-1),0) -> 266.1777568
B48: =B9 -> 20 | C48: 2.67 | D48: =D9 -> 30 | E48: 225.1988386 | F48: =IFERROR(-18.6+LN(((F9*E48)^3.7+0.549*(H9*E48)^2.4+1.47*100000*(J9*E48))*D48),0) -> 2.669999998 | G48: =C48-F48 -> 2.474594751e-09 | H48: =((EXP(C48+5.47)/D48))^(1/2) -> 10.69098977 | I48: =(H48*242.2)/(0.082*298) -> 105.9648765 | J48: =((EXP(C48+9.76)/D48))^(1/2) -> 91.32287548 | K48: =(J48*174.2)/(0.082*298) -> 651.0249185 | L48: =IFERROR(((K9/E48)+(M9/I48)+(O9/K48))^(-1),0) -> 266.1369142
B49: 50 | C49: 2.67 | D49: 30 | E49: 225.1988386 | F49: =IFERROR(-18.6+LN(((F10*E49)^3.7+0.549*(H10*E49)^2.4+1.47*100000*(J10*E49))*D49),0) -> 2.669999998 | G49: 2.474598304e-09 | H49: =((EXP(C49+5.47)/D49))^(1/2) -> 10.69098977 | I49: =(H49*242.2)/(0.082*298) -> 105.9648765 | J49: 91.32287548 | K49: =(J49*174.2)/(0.082*298) -> 651.0249185 | L49: =IFERROR(((K10/E49)+(M10/I49)+(O10/K49))^(-1),0) -> 266.1369142
B50: 100 | C50: 2.67 | D50: 30 | E50: 225.1988386 | F50: 2.669999998 | G50: 2.474598304e-09 | H50: 10.69098977 | I50: 105.9648765 | J50: 91.32287548 | K50: 651.0249185 | L50: 266.1369142
B51: 300 | C51: 2.67 | D51: 30 | E51: 225.1988386 | F51: 2.669999998 | G51: 2.474594751e-09 | H51: 10.69098977 | I51: 105.9648765 | J51: 91.32287548 | K51: 651.0249185 | L51: =IFERROR(((K12/E51)+(M12/I51)+(O12/K51))^(-1),0) -> 266.1369142
B52: 600 | C52: 2.67 | D52: 30 | E52: 225.1988386 | F52: 2.669999998 | G52: 2.474594751e-09 | H52: 10.69098977 | I52: 105.9648765 | J52: 91.32287548 | K52: 651.0249185 | L52: 266.1369142
B53: 900 | C53: 2.67 | D53: 30 | E53: 225.1988386 | F53: 2.669999998 | G53: 2.474598304e-09 | H53: 10.69098977 | I53: 105.9648765 | J53: 91.32287548 | K53: 651.0249185 | L53: 266.1369142
B54: 2500 | C54: 2.67 | D54: 30 | E54: 225.1988386 | F54: 2.669999998 | G54: 2.474598304e-09 | H54: 10.69098977 | I54: 105.9648765 | J54: 91.32287548 | K54: 651.0249185 | L54: 266.1369142
B55: ='Terme font'!E8 -> 600 | C55: 3.72 | D55: =D47 -> 30 | E55: 302.6831018 | F55: =IFERROR(-18.6+LN(((F8*E55)^3.7+0.549*(H8*E55)^2.4+1.47*100000*(J8*E55))*D55),0) -> 3.728495804 | G55: -0.008495803869 | H55: =((EXP(C55+5.47)/D55))^(1/2) -> 18.07267825 | I55: 179.1292631 | J55: 154.3775629 | K55: =(J55*174.2)/(0.082*298) -> 1100.530834 | L55: =IFERROR(((K8/E55)+(M8/I55)+(O8/K55))^(-1),0) -> 374.3147557
B56: =B48 -> 20 | C56: 3.72 | D56: =D48 -> 30 | E56: 301.9734551 | F56: =IFERROR(-18.6+LN(((F9*E56)^3.7+0.549*(H9*E56)^2.4+1.47*100000*(J9*E56))*D56),0) -> 3.719999597 | G56: =C56-F56 -> 4.031595657e-07 | H56: =((EXP(C56+5.47)/D56))^(1/2) -> 18.07267825 | I56: =(H56*242.2)/(0.082*298) -> 179.1292631 | J56: =((EXP(C56+9.76)/D56))^(1/2) -> 154.3775629 | K56: =(J56*174.2)/(0.082*298) -> 1100.530834 | L56: =IFERROR(((K9/E56)+(M9/I56)+(O9/K56))^(-1),0) -> 373.5949659
B57: 50 | C57: 3.72 | D57: 30 | E57: 301.9734551 | F57: =IFERROR(-18.6+LN(((F10*E57)^3.7+0.549*(H10*E57)^2.4+1.47*100000*(J10*E57))*D57),0) -> 3.719999597 | G57: 4.031595657e-07 | H57: =((EXP(C57+5.47)/D57))^(1/2) -> 18.07267825 | I57: 179.1292631 | J57: 154.3775629 | K57: =(J57*174.2)/(0.082*298) -> 1100.530834 | L57: =IFERROR(((K10/E57)+(M10/I57)+(O10/K57))^(-1),0) -> 373.5949659
B58: 100 | C58: 3.72 | D58: 30 | E58: 301.9734551 | F58: 3.719999597 | G58: 4.031595657e-07 | H58: 18.07267825 | I58: 179.1292631 | J58: 154.3775629 | K58: 1100.530834 | L58: 373.5949659
B59: 300 | C59: 3.72 | D59: 30 | E59: 301.9734551 | F59: 3.719999597 | G59: 4.031595657e-07 | H59: 18.07267825 | I59: 179.1292631 | J59: 154.3775629 | K59: 1100.530834 | L59: 373.5949659
B60: 600 | C60: 3.72 | D60: 30 | E60: 301.9734551 | F60: 3.719999597 | G60: 4.031595657e-07 | H60: =((EXP(C60+5.47)/D60))^(1/2) -> 18.07267825 | I60: =(H60*242.2)/(0.082*298) -> 179.1292631 | J60: 154.3775629 | K60: =(J60*174.2)/(0.082*298) -> 1100.530834 | L60: 373.5949659
B61: 900 | C61: 3.72 | D61: 30 | E61: 301.9734551 | F61: 3.719999597 | G61: 4.031595657e-07 | H61: 18.07267825 | I61: 179.1292631 | J61: 154.3775629 | K61: 1100.530834 | L61: 373.5949659
B62: 2500 | C62: 3.72 | D62: 30 | E62: 301.9734551 | F62: 3.719999597 | G62: 4.031595657e-07 | H62: 18.07267825 | I62: 179.1292631 | J62: 154.3775629 | K62: 1100.530834 | L62: 373.5949659
B63: ='Terme font'!E8 -> 600 | C63: 5 | D63: =D55 -> 30 | E63: 428.981676 | F63: =IFERROR(-18.6+LN(((F8*E63)^3.7+0.549*(H8*E63)^2.4+1.47*100000*(J8*E63))*D63),0) -> 5.000499624 | G63: -0.0004996237634 | H63: =((EXP(C63+5.47)/D63))^(1/2) -> 34.27448875 | I63: 339.7152224 | J63: 292.7740963 | K63: =(J63*174.2)/(0.082*298) -> 2087.135684 | L63: =IFERROR(((K8/E63)+(M8/I63)+(O8/K63))^(-1),0) -> 555.804612
B64: =B56 -> 20 | C64: 5 | D64: =D56 -> 30 | E64: 428.9232489 | F64: =IFERROR(-18.6+LN(((F9*E64)^3.7+0.549*(H9*E64)^2.4+1.47*100000*(J9*E64))*D64),0) -> 4.999999998 | G64: =C64-F64 -> 1.560060525e-09 | H64: =((EXP(C64+5.47)/D64))^(1/2) -> 34.27448875 | I64: =(H64*242.2)/(0.082*298) -> 339.7152224 | J64: =((EXP(C64+9.76)/D64))^(1/2) -> 292.7740963 | K64: =(J64*174.2)/(0.082*298) -> 2087.135684 | L64: =IFERROR(((K9/E64)+(M9/I64)+(O9/K64))^(-1),0) -> 555.7395882
B65: 50 | C65: 5 | D65: 30 | E65: 428.9232489 | F65: =IFERROR(-18.6+LN(((F10*E65)^3.7+0.549*(H10*E65)^2.4+1.47*100000*(J10*E65))*D65),0) -> 4.999999998 | G65: 1.560060525e-09 | H65: =((EXP(C65+5.47)/D65))^(1/2) -> 34.27448875 | I65: 339.7152224 | J65: 292.7740963 | K65: =(J65*174.2)/(0.082*298) -> 2087.135684 | L65: =IFERROR(((K10/E65)+(M10/I65)+(O10/K65))^(-1),0) -> 555.7395882
B66: 100 | C66: 5 | D66: 30 | E66: 428.9232489 | F66: 4.999999998 | G66: 1.560060525e-09 | H66: 34.27448875 | I66: 339.7152224 | J66: 292.7740963 | K66: 2087.135684 | L66: 555.7395882
B67: 300 | C67: 5 | D67: 30 | E67: 428.9232489 | F67: 4.999999998 | G67: 1.560060525e-09 | H67: 34.27448875 | I67: 339.7152224 | J67: 292.7740963 | K67: 2087.135684 | L67: 555.7395882
B68: 600 | C68: 5 | D68: 30 | E68: 428.9232489 | F68: 4.999999998 | G68: 1.560060525e-09 | H68: =((EXP(C68+5.47)/D68))^(1/2) -> 34.27448875 | I68: =(H68*242.2)/(0.082*298) -> 339.7152224 | J68: 292.7740963 | K68: =(J68*174.2)/(0.082*298) -> 2087.135684 | L68: 555.7395882
B69: 900 | C69: 5 | D69: 30 | E69: 428.9232489 | F69: 4.999999998 | G69: 1.560060525e-09 | H69: 34.27448875 | I69: 339.7152224 | J69: 292.7740963 | K69: 2087.135684 | L69: 555.7395882
B70: 2500 | C70: 5 | D70: 30 | E70: 428.9232489 | F70: 4.999999998 | G70: 1.560060525e-09 | H70: 34.27448875 | I70: 339.7152224 | J70: 292.7740963 | K70: 2087.135684 | L70: 555.7395882
B71: ='Terme font'!E8 -> 600 | C71: 7.33 | D71: =D47 -> 30 | E71: 808.9034772 | F71: =IFERROR(-18.6+LN(((F8*E71)^3.7+0.549*(H8*E71)^2.4+1.47*100000*(J8*E71))*D71),0) -> 7.337522985 | G71: -0.007522985129 | H71: =((EXP(C71+5.47)/D71))^(1/2) -> 109.8813678 | I71: 1089.100805 | J71: 938.6111749 | K71: =(J71*174.2)/(0.082*298) -> 6691.196049 | L71: =IFERROR(((K8/E71)+(M8/I71)+(O8/K71))^(-1),0) -> 1112.680947
B72: =B64 -> 20 | C72: 7.33 | D72: =D48 -> 30 | E72: 807.257765 | F72: =IFERROR(-18.6+LN(((F9*E72)^3.7+0.549*(H9*E72)^2.4+1.47*100000*(J9*E72))*D72),0) -> 7.32999965 | G72: =C72-F72 -> 3.497631287e-07 | H72: =((EXP(C72+5.47)/D72))^(1/2) -> 109.8813678 | I72: =(H72*242.2)/(0.082*298) -> 1089.100805 | J72: =((EXP(C72+9.76)/D72))^(1/2) -> 938.6111749 | K72: =(J72*174.2)/(0.082*298) -> 6691.196049 | L72: =IFERROR(((K9/E72)+(M9/I72)+(O9/K72))^(-1),0) -> 1110.616223
B73: 50 | C73: 7.33 | D73: 30 | E73: 807.257765 | F73: =IFERROR(-18.6+LN(((F10*E73)^3.7+0.549*(H10*E73)^2.4+1.47*100000*(J10*E73))*D73),0) -> 7.32999965 | G73: 3.497631287e-07 | H73: =((EXP(C73+5.47)/D73))^(1/2) -> 109.8813678 | I73: 1089.100805 | J73: 938.6111749 | K73: =(J73*174.2)/(0.082*298) -> 6691.196049 | L73: =IFERROR(((K10/E73)+(M10/I73)+(O10/K73))^(-1),0) -> 1110.616223
B74: 100 | C74: 7.33 | D74: 30 | E74: 807.257765 | F74: 7.32999965 | G74: 3.497631287e-07 | H74: 109.8813678 | I74: 1089.100805 | J74: 938.6111749 | K74: 6691.196049 | L74: 1110.616223
B75: 300 | C75: 7.33 | D75: 30 | E75: 807.257765 | F75: 7.32999965 | G75: 3.497631287e-07 | H75: 109.8813678 | I75: 1089.100805 | J75: 938.6111749 | K75: 6691.196049 | L75: 1110.616223
B76: 600 | C76: 7.33 | D76: 30 | E76: 807.257765 | F76: 7.32999965 | G76: 3.497631287e-07 | H76: =((EXP(C76+5.47)/D76))^(1/2) -> 109.8813678 | I76: =(H76*242.2)/(0.082*298) -> 1089.100805 | J76: 938.6111749 | K76: =(J76*174.2)/(0.082*298) -> 6691.196049 | L76: 1110.616223
B77: 900 | C77: 7.33 | D77: 30 | E77: 807.257765 | F77: 7.32999965 | G77: 3.497631287e-07 | H77: 109.8813678 | I77: 1089.100805 | J77: 938.6111749 | K77: 6691.196049 | L77: 1110.616223
B78: 2500 | C78: 7.33 | D78: 30 | E78: 807.257765 | F78: 7.32999965 | G78: 3.497631287e-07 | H78: 109.8813678 | I78: 1089.100805 | J78: 938.6111749 | K78: 6691.196049 | L78: 1110.616223

Sheet dispersió
N5: ENDARRERE | O5: ENDAVANT
B7: ESTABILITAT ATMOSFÈRICA PASQUILL D | H7: ESTABILITAT ATMOSFÈRICA PASQUILL F
B8: CONSTANTS | H8: CONSTANTS
C9: a | D9: b | E9: c | F9: d | I9: a | J9: b | K9: c | L9: d
C10: 0.128 | D10: 0.905 | E10: 0.2 | F10: 0.76 | I10: 0.065 | J10: 0.902 | K10: 0.12 | L10: 0.67
B11: VELOCITAT DEL VENT [m/s] | H11: VELOCITAT DEL VENT [m/s]
C12: 4.8 | G12: 0 | I12: 1.56
C13: DISTÀNCIES LETALS [m] | G13: 0 | I13: DISTÀNCIES LETALS [m]
B14: ÀREA [m2] | C14: DL 1% | D14: DL 10% | E14: DL 50% | F14: DL 99% | G14: 0 | H14: ÀREA [m2] | I14: DL 1% | J14: DL 10% | K14: DL 50% | L14: DL 99%
B15: ='Terme font'!E8 -> 600 | C15: =G69 -> 245.058771 | D15: =G68 -> 188.8452895 | E15: =G67 -> 136.3881991 | F15: =G66 -> 68.86309294 | G15: 0 | H15: ='Terme font'!E8 -> 600 | I15: =L69 -> 1692.881625 | J15: =L68 -> 1334.515941 | K15: =L67 -> 1005.038593 | L15: =L66 -> 593.8430942
B16: ='Terme font'!D17 -> 20 | C16: =G38 -> 32.70567722 | D16: =G45 -> 22.46370412 | E16: =G52 -> 12.79248294 | F16: =G59 -> 0.5030148735 | G16: 0 | H16: ='Terme font'!D17 -> 20 | I16: =L38 -> 240.0714157 | J16: =L45 -> 182.2066903 | K16: =L52 -> 127.3615335 | L16: =L59 -> 60.56782487
B17: ='Terme font'!D18 -> 50 | C17: 40.24758303 | D17: 27.30922427 | E17: 14.94642652 | F17: 0 | G17: 0 | H17: ='Terme font'!D18 -> 50 | I17: 303.9924973 | J17: 230.2886065 | K17: 161.7287631 | L17: 76.32023419
B18: ='Terme font'!D19 -> 100 | C18: 70.21829046 | D18: 50.74043951 | E18: 32.16316403 | F18: 7.779196351 | G18: 0 | H18: ='Terme font'!D19 -> 100 | I18: 501.6284509 | J18: 386.9853771 | K18: 280.270041 | L18: 147.0366743
B19: ='Terme font'!D20 -> 300 | C19: 154.2827197 | D19: 117.1739541 | E19: 81.97346525 | F19: 36.60779665 | G19: 0 | H19: ='Terme font'!D20 -> 300 | I19: 1067.419627 | J19: 835.8884145 | K19: 623.3982378 | L19: 356.8495845
B20: ='Terme font'!D21 -> 600 | C20: 245.1725472 | D20: 189.1765314 | E20: 136.364069 | F20: 68.91701346 | G20: 0 | H20: ='Terme font'!D21 -> 600 | I20: 1693.421506 | J20: 1336.721404 | K20: 1005.081743 | L20: 592.5111892
B21: ='Terme font'!D22 -> 900 | C21: 318.9940091 | D21: 247.831098 | E21: 180.7781836 | F21: 95.50123421 | G21: 0 | H21: ='Terme font'!D22 -> 900 | I21: 2210.909878 | J21: 1749.424948 | K21: 1321.226049 | L21: 788.4336463
B22: ='Terme font'!D23 -> 2500 | C22: 610.1394369 | D22: 479.4702 | E22: 356.6379789 | F22: 201.5092453 | H22: ='Terme font'!D23 -> 2500 | I22: 4302.799562 | J22: 3420.060191 | K22: 2601.083554 | L22: 1585.007429
B24: C | C24: 0.2
G36: est. D | L36: est. F
A37: superfície | B37: sigma_y0'D | C37: sigma_z0'D | D37: Ap | E37: Xy0D | F37: Xz0D | G37: x_D [m] | H37: C(x)D [g/m3] | I37: ΔC(x)D | J37: Xy0F | K37: Xz0F | L37: x_F [m] | M37: C(x)F [g/m3] | N37: ΔC(x)F | O37: LC1 [g/m3]
A38: =letalitat!B48 -> 20 | B38: =(A38^(1/2))/4.3 -> 1.040031617 | C38: =('Terme font'!$G$8/2.15) -> 2.790697674 | D38: =A38^(1/2)*'Terme font'!$G$8 -> 26.83281573 | E38: =(B38/$C$10)^(1/$D$10) -> 10.12381684 | F38: =(C38/$E$10)^(1/$F$10) -> 32.07462386 | G38: 32.70567722 | H38: =IFERROR((letalitat!P9*1000)/((3.14159*$C$10*((E38+G38)^$D$10)*$E$10*((F38+G38)^$F$10)+$C$24*D38)*$C$12),0) -> 0.2655975694 | I38: =O38-H38 -> 0.0005393447229 | J38: =(B38/$I$10)^(1/$J$10) -> 21.62515285 | K38: =(C38/$K$10)^(1/$L$10) -> 109.5467052 | L38: 240.0714157 | M38: =(letalitat!P9*1000)/((3.14159*$I$10*((J38+L38)^$J$10)*$K$10*((K38+L38)^$L$10)+$C$24*D38)*$I$12) -> 0.2651269073 | N38: =O38-M38 -> 0.001010006824 | O38: =IFERROR(letalitat!L48/1000,0) -> 0.2661369142
A39: =letalitat!B49 -> 50 | B39: 1.644434375 | C39: =('Terme font'!$G$8/2.15) -> 2.790697674 | D39: =A39^(1/2)*'Terme font'!$G$8 -> 42.42640687 | E39: 16.79579779 | F39: 32.07462386 | G39: 40.24758303 | H39: =IFERROR((letalitat!P10*1000)/((3.14159*$C$10*((E39+G39)^$D$10)*$E$10*((F39+G39)^$F$10)+$C$24*D39)*$C$12),0) -> 0.2660890578 | I39: 4.785635822e-05 | J39: 35.93740995 | K39: 109.5467052 | L39: 303.9924973 | M39: =(letalitat!P10*1000)/((3.14159*$I$10*((J39+L39)^$J$10)*$K$10*((K39+L39)^$L$10)+$C$24*D39)*$I$12) -> 0.2660962583 | N39: 4.065588065e-05 | O39: =IFERROR(letalitat!L49/1000,0) -> 0.2661369142
A40: =letalitat!B50 -> 100 | B40: 2.325581395 | C40: =('Terme font'!$G$8/2.15) -> 2.790697674 | D40: =A40^(1/2)*'Terme font'!$G$8 -> 60 | E40: 24.63290048 | F40: 32.07462386 | G40: 70.21829046 | H40: =IFERROR((letalitat!P11*1000)/((3.14159*$C$10*((E40+G40)^$D$10)*$E$10*((F40+G40)^$F$10)+$C$24*D40)*$C$12),0) -> 0.2660211275 | I40: 0.0001157867006 | J40: 52.77337171 | K40: 109.5467052 | L40: 501.6284509 | M40: =(letalitat!P11*1000)/((3.14159*$I$10*((J40+L40)^$J$10)*$K$10*((K40+L40)^$L$10)+$C$24*D40)*$I$12) -> 0.2659647527 | N40: 0.0001721614548 | O40: =IFERROR(letalitat!L50/1000,0) -> 0.2661369142
A41: =letalitat!B51 -> 300 | B41: 4.028025134 | C41: =('Terme font'!$G$8/2.15) -> 2.790697674 | D41: =A41^(1/2)*'Terme font'!$G$8 -> 103.9230485 | E41: 45.19792065 | F41: 32.07462386 | G41: 154.2827197 | H41: =IFERROR((letalitat!P12*1000)/((3.14159*$C$10*((E41+G41)^$D$10)*$E$10*((F41+G41)^$F$10)+$C$24*D41)*$C$12),0) -> 0.2660008712 | I41: 0.0001360429273 | J41: 97.02741778 | K41: 109.5467052 | L41: 1067.419627 | M41: =(letalitat!P12*1000)/((3.14159*$I$10*((J41+L41)^$J$10)*$K$10*((K41+L41)^$L$10)+$C$24*D41)*$I$12) -> 0.2658462678 | N41: 0.0002906463789 | O41: =IFERROR(letalitat!L51/1000,0) -> 0.2661369142
A42: =letalitat!B52 -> 600 | B42: 5.696487774 | C42: =('Terme font'!$G$8/2.15) -> 2.790697674 | D42: =A42^(1/2)*'Terme font'!$G$8 -> 146.9693846 | E42: 66.28776405 | F42: 32.07462386 | G42: 245.1725472 | H42: =IFERROR((letalitat!P13*1000)/((3.14159*$C$10*((E42+G42)^$D$10)*$E$10*((F42+G42)^$F$10)+$C$24*D42)*$C$12),0) -> 0.2659373191 | I42: 0.0001995950796 | J42: 142.4828331 | K42: 109.5467052 | L42: 1693.421506 | M42: =(letalitat!P13*1000)/((3.14159*$I$10*((J42+L42)^$J$10)*$K$10*((K42+L42)^$L$10)+$C$24*D42)*$I$12) -> 0.2659650375 | N42: 0.0001718766326 | O42: =IFERROR(letalitat!L52/1000,0) -> 0.2661369142
A43: =letalitat!B53 -> 900 | B43: 6.976744186 | C43: =('Terme font'!$G$8/2.15) -> 2.790697674 | D43: =A43^(1/2)*'Terme font'!$G$8 -> 180 | E43: 82.93185096 | F43: 32.07462386 | G43: 318.9940091 | H43: =IFERROR((letalitat!P14*1000)/((3.14159*$C$10*((E43+G43)^$D$10)*$E$10*((F43+G43)^$F$10)+$C$24*D43)*$C$12),0) -> 0.2660503495 | I43: 8.656466179e-05 | J43: 178.3914784 | K43: 109.5467052 | L43: 2210.909878 | M43: =(letalitat!P14*1000)/((3.14159*$I$10*((J43+L43)^$J$10)*$K$10*((K43+L43)^$L$10)+$C$24*D43)*$I$12) -> 0.266072588 | N43: 6.432611402e-05 | O43: =IFERROR(letalitat!L53/1000,0) -> 0.2661369142
A44: =letalitat!B54 -> 2500 | B44: 11.62790698 | C44: =('Terme font'!$G$8/2.15) -> 2.790697674 | D44: =A44^(1/2)*'Terme font'!$G$8 -> 300 | E44: 145.8337685 | F44: 32.07462386 | G44: 610.1394369 | H44: =IFERROR((letalitat!P15*1000)/((3.14159*$C$10*((E44+G44)^$D$10)*$E$10*((F44+G44)^$F$10)+$C$24*D44)*$C$12),0) -> 0.2660630648 | I44: 7.384935474e-05 | J44: 314.2868103 | K44: 109.5467052 | L44: 4302.799562 | M44: =(letalitat!P15*1000)/((3.14159*$I$10*((J44+L44)^$J$10)*$K$10*((K44+L44)^$L$10)+$C$24*D44)*$I$12) -> 0.2660204339 | N44: 0.0001164802199 | O44: =IFERROR(letalitat!L54/1000,0) -> 0.2661369142
A45: =letalitat!B56 -> 20 | B45: =(A45^(1/2))/4.3 -> 1.040031617 | C45: =('Terme font'!$G$8/2.15) -> 2.790697674 | D45: =A45^(1/2)*'Terme font'!$G$8 -> 26.83281573 | E45: =(B45/$C$10)^(1/$D$10) -> 10.12381684 | F45: =(C45/$E$10)^(1/$F$10) -> 32.07462386 | G45: 22.46370412 | H45: =IFERROR((letalitat!P9*1000)/((3.14159*$C$10*((E45+G45)^$D$10)*$E$10*((F45+G45)^$F$10)+$C$24*D45)*$C$12),0) -> 0.3729944768 | I45: =O45-H45 -> 0.0006004891709 | J45: =(B45/$I$10)^(1/$J$10) -> 21.62515285 | K45: =(C45/$K$10)^(1/$L$10) -> 109.5467052 | L45: 182.2066903 | M45: =(letalitat!P9*1000)/((3.14159*$I$10*((J45+L45)^$J$10)*$K$10*((K45+L45)^$L$10)+$C$24*D45)*$I$12) -> 0.3707047878 | N45: =O45-M45 -> 0.002890178164 | O45: =IFERROR(letalitat!L56/1000,0) -> 0.3735949659
A46: =letalitat!B57 -> 50 | B46: 1.644434375 | C46: =('Terme font'!$G$8/2.15) -> 2.790697674 | D46: =A46^(1/2)*'Terme font'!$G$8 -> 42.42640687 | E46: 16.79579779 | F46: 32.07462386 | G46: 27.30922427 | H46: =IFERROR((letalitat!P10*1000)/((3.14159*$C$10*((E46+G46)^$D$10)*$E$10*((F46+G46)^$F$10)+$C$24*D46)*$C$12),0) -> 0.3735778177 | I46: 1.714825323e-05 | J46: 35.93740995 | K46: 109.5467052 | L46: 230.2886065 | M46: =(letalitat!P10*1000)/((3.14159*$I$10*((J46+L46)^$J$10)*$K$10*((K46+L46)^$L$10)+$C$24*D46)*$I$12) -> 0.3734862596 | N46: 0.000108706292 | O46: =IFERROR(letalitat!L57/1000,0) -> 0.3735949659
A47: =letalitat!B58 -> 100 | B47: 2.325581395 | C47: =('Terme font'!$G$8/2.15) -> 2.790697674 | D47: =A47^(1/2)*'Terme font'!$G$8 -> 60 | E47: 24.63290048 | F47: 32.07462386 | G47: 50.74043951 | H47: =IFERROR((letalitat!P11*1000)/((3.14159*$C$10*((E47+G47)^$D$10)*$E$10*((F47+G47)^$F$10)+$C$24*D47)*$C$12),0) -> 0.3734012378 | I47: 0.0001937281058 | J47: 52.77337171 | K47: 109.5467052 | L47: 386.9853771 | M47: =(letalitat!P11*1000)/((3.14159*$I$10*((J47+L47)^$J$10)*$K$10*((K47+L47)^$L$10)+$C$24*D47)*$I$12) -> 0.373330717 | N47: 0.0002642488989 | O47: =IFERROR(letalitat!L58/1000,0) -> 0.3735949659
A48: =letalitat!B59 -> 300 | B48: 4.028025134 | C48: =('Terme font'!$G$8/2.15) -> 2.790697674 | D48: =A48^(1/2)*'Terme font'!$G$8 -> 103.9230485 | E48: 45.19792065 | F48: 32.07462386 | G48: 117.1739541 | H48: =IFERROR((letalitat!P12*1000)/((3.14159*$C$10*((E48+G48)^$D$10)*$E$10*((F48+G48)^$F$10)+$C$24*D48)*$C$12),0) -> 0.3732136216 | I48: 0.0003813443085 | J48: 97.02741778 | K48: 109.5467052 | L48: 835.8884145 | M48: =(letalitat!P12*1000)/((3.14159*$I$10*((J48+L48)^$J$10)*$K$10*((K48+L48)^$L$10)+$C$24*D48)*$I$12) -> 0.3740689322 | N48: -0.0004739662263 | O48: =IFERROR(letalitat!L59/1000,0) -> 0.3735949659
A49: =letalitat!B60 -> 600 | B49: 5.696487774 | C49: =('Terme font'!$G$8/2.15) -> 2.790697674 | D49: =A49^(1/2)*'Terme font'!$G$8 -> 146.9693846 | E49: 66.28776405 | F49: 32.07462386 | G49: 189.1765314 | H49: =IFERROR((letalitat!P13*1000)/((3.14159*$C$10*((E49+G49)^$D$10)*$E$10*((F49+G49)^$F$10)+$C$24*D49)*$C$12),0) -> 0.3733957705 | I49: 0.0001991954836 | J49: 142.4828331 | K49: 109.5467052 | L49: 1336.721404 | M49: =(letalitat!P13*1000)/((3.14159*$I$10*((J49+L49)^$J$10)*$K$10*((K49+L49)^$L$10)+$C$24*D49)*$I$12) -> 0.3732674247 | N49: 0.0003275412888 | O49: =IFERROR(letalitat!L60/1000,0) -> 0.3735949659
A50: =letalitat!B61 -> 900 | B50: 6.976744186 | C50: =('Terme font'!$G$8/2.15) -> 2.790697674 | D50: =A50^(1/2)*'Terme font'!$G$8 -> 180 | E50: 82.93185096 | F50: 32.07462386 | G50: 247.831098 | H50: =IFERROR((letalitat!P14*1000)/((3.14159*$C$10*((E50+G50)^$D$10)*$E$10*((F50+G50)^$F$10)+$C$24*D50)*$C$12),0) -> 0.3734982073 | I50: 9.675868785e-05 | J50: 178.3914784 | K50: 109.5467052 | L50: 1749.424948 | M50: =(letalitat!P14*1000)/((3.14159*$I$10*((J50+L50)^$J$10)*$K$10*((K50+L50)^$L$10)+$C$24*D50)*$I$12) -> 0.3735131554 | N50: 8.181052687e-05 | O50: =IFERROR(letalitat!L61/1000,0) -> 0.3735949659
A51: =letalitat!B62 -> 2500 | B51: 11.62790698 | C51: =('Terme font'!$G$8/2.15) -> 2.790697674 | D51: =A51^(1/2)*'Terme font'!$G$8 -> 300 | E51: 145.8337685 | F51: 32.07462386 | G51: 479.4702 | H51: =IFERROR((letalitat!P15*1000)/((3.14159*$C$10*((E51+G51)^$D$10)*$E$10*((F51+G51)^$F$10)+$C$24*D51)*$C$12),0) -> 0.3734758191 | I51: 0.0001191468479 | J51: 314.2868103 | K51: 109.5467052 | L51: 3420.060191 | M51: =(letalitat!P15*1000)/((3.14159*$I$10*((J51+L51)^$J$10)*$K$10*((K51+L51)^$L$10)+$C$24*D51)*$I$12) -> 0.3734393266 | N51: 0.0001556393549 | O51: =IFERROR(letalitat!L62/1000,0) -> 0.3735949659
A52: =letalitat!B64 -> 20 | B52: =(A52^(1/2))/4.3 -> 1.040031617 | C52: =('Terme font'!$G$8/2.15) -> 2.790697674 | D52: =A52^(1/2)*'Terme font'!$G$8 -> 26.83281573 | E52: =(B52/$C$10)^(1/$D$10) -> 10.12381684 | F52: =(C52/$E$10)^(1/$F$10) -> 32.07462386 | G52: 12.79248294 | H52: =IFERROR((letalitat!P9*1000)/((3.14159*$C$10*((E52+G52)^$D$10)*$E$10*((F52+G52)^$F$10)+$C$24*D52)*$C$12),0) -> 0.555299444 | I52: =O52-H52 -> 0.0004401441927 | J52: =(B52/$I$10)^(1/$J$10) -> 21.62515285 | K52: =(C52/$K$10)^(1/$L$10) -> 109.5467052 | L52: 127.3615335 | M52: =(letalitat!P9*1000)/((3.14159*$I$10*((J52+L52)^$J$10)*$K$10*((K52+L52)^$L$10)+$C$24*D52)*$I$12) -> 0.5541691975 | N52: =O52-M52 -> 0.001570390741 | O52: =IFERROR(letalitat!L64/1000,0) -> 0.5557395882
A53: =letalitat!B65 -> 50 | B53: 1.644434375 | C53: =('Terme font'!$G$8/2.15) -> 2.790697674 | D53: =A53^(1/2)*'Terme font'!$G$8 -> 42.42640687 | E53: 16.79579779 | F53: 32.07462386 | G53: 14.94642652 | H53: =IFERROR((letalitat!P10*1000)/((3.14159*$C$10*((E53+G53)^$D$10)*$E$10*((F53+G53)^$F$10)+$C$24*D53)*$C$12),0) -> 0.5557126175 | I53: 2.69707498e-05 | J53: 35.93740995 | K53: 109.5467052 | L53: 161.7287631 | M53: =(letalitat!P10*1000)/((3.14159*$I$10*((J53+L53)^$J$10)*$K$10*((K53+L53)^$L$10)+$C$24*D53)*$I$12) -> 0.5556314946 | N53: 0.0001080936207 | O53: =IFERROR(letalitat!L65/1000,0) -> 0.5557395882
A54: =letalitat!B66 -> 100 | B54: 2.325581395 | C54: =('Terme font'!$G$8/2.15) -> 2.790697674 | D54: =A54^(1/2)*'Terme font'!$G$8 -> 60 | E54: 24.63290048 | F54: 32.07462386 | G54: 32.16316403 | H54: =IFERROR((letalitat!P11*1000)/((3.14159*$C$10*((E54+G54)^$D$10)*$E$10*((F54+G54)^$F$10)+$C$24*D54)*$C$12),0) -> 0.5554417947 | I54: 0.0002977935362 | J54: 52.77337171 | K54: 109.5467052 | L54: 280.270041 | M54: =(letalitat!P11*1000)/((3.14159*$I$10*((J54+L54)^$J$10)*$K$10*((K54+L54)^$L$10)+$C$24*D54)*$I$12) -> 0.5554464651 | N54: 0.0002931231703 | O54: =IFERROR(letalitat!L66/1000,0) -> 0.5557395882
A55: =letalitat!B67 -> 300 | B55: 4.028025134 | C55: =('Terme font'!$G$8/2.15) -> 2.790697674 | D55: =A55^(1/2)*'Terme font'!$G$8 -> 103.9230485 | E55: 45.19792065 | F55: 32.07462386 | G55: 81.97346525 | H55: =IFERROR((letalitat!P12*1000)/((3.14159*$C$10*((E55+G55)^$D$10)*$E$10*((F55+G55)^$F$10)+$C$24*D55)*$C$12),0) -> 0.5551788123 | I55: 0.0005607759454 | J55: 97.02741778 | K55: 109.5467052 | L55: 623.3982378 | M55: =(letalitat!P12*1000)/((3.14159*$I$10*((J55+L55)^$J$10)*$K$10*((K55+L55)^$L$10)+$C$24*D55)*$I$12) -> 0.5552268834 | N55: 0.0005127048615 | O55: =IFERROR(letalitat!L67/1000,0) -> 0.5557395882
A56: =letalitat!B68 -> 600 | B56: 5.696487774 | C56: =('Terme font'!$G$8/2.15) -> 2.790697674 | D56: =A56^(1/2)*'Terme font'!$G$8 -> 146.9693846 | E56: 66.28776405 | F56: 32.07462386 | G56: 136.364069 | H56: =IFERROR((letalitat!P13*1000)/((3.14159*$C$10*((E56+G56)^$D$10)*$E$10*((F56+G56)^$F$10)+$C$24*D56)*$C$12),0) -> 0.5554638581 | I56: 0.0002757300833 | J56: 142.4828331 | K56: 109.5467052 | L56: 1005.081743 | M56: =(letalitat!P13*1000)/((3.14159*$I$10*((J56+L56)^$J$10)*$K$10*((K56+L56)^$L$10)+$C$24*D56)*$I$12) -> 0.5553497898 | N56: 0.0003897984142 | O56: =IFERROR(letalitat!L68/1000,0) -> 0.5557395882
A57: =letalitat!B69 -> 900 | B57: 6.976744186 | C57: =('Terme font'!$G$8/2.15) -> 2.790697674 | D57: =A57^(1/2)*'Terme font'!$G$8 -> 180 | E57: 82.93185096 | F57: 32.07462386 | G57: 180.7781836 | H57: =IFERROR((letalitat!P14*1000)/((3.14159*$C$10*((E57+G57)^$D$10)*$E$10*((F57+G57)^$F$10)+$C$24*D57)*$C$12),0) -> 0.5556428463 | I57: 9.674193527e-05 | J57: 178.3914784 | K57: 109.5467052 | L57: 1321.226049 | M57: =(letalitat!P14*1000)/((3.14159*$I$10*((J57+L57)^$J$10)*$K$10*((K57+L57)^$L$10)+$C$24*D57)*$I$12) -> 0.5555109129 | N57: 0.0002286753034 | O57: =IFERROR(letalitat!L69/1000,0) -> 0.5557395882
A58: =letalitat!B70 -> 2500 | B58: 11.62790698 | C58: =('Terme font'!$G$8/2.15) -> 2.790697674 | D58: =A58^(1/2)*'Terme font'!$G$8 -> 300 | E58: 145.8337685 | F58: 32.07462386 | G58: 356.6379789 | H58: =IFERROR((letalitat!P15*1000)/((3.14159*$C$10*((E58+G58)^$D$10)*$E$10*((F58+G58)^$F$10)+$C$24*D58)*$C$12),0) -> 0.5556035876 | I58: 0.0001360006716 | J58: 314.2868103 | K58: 109.5467052 | L58: 2601.083554 | M58: =(letalitat!P15*1000)/((3.14159*$I$10*((J58+L58)^$J$10)*$K$10*((K58+L58)^$L$10)+$C$24*D58)*$I$12) -> 0.5555412921 | N58: 0.0001982961053 | O58: =IFERROR(letalitat!L70/1000,0) -> 0.5557395882
A59: =letalitat!B72 -> 20 | B59: =(A59^(1/2))/4.3 -> 1.040031617 | C59: =('Terme font'!$G$8/2.15) -> 2.790697674 | D59: =A59^(1/2)*'Terme font'!$G$8 -> 26.83281573 | E59: =(B59/$C$10)^(1/$D$10) -> 10.12381684 | F59: =(C59/$E$10)^(1/$F$10) -> 32.07462386 | G59: 0.5030148735 | H59: =IFERROR((letalitat!P9*1000)/((3.14159*$C$10*((E59+G59)^$D$10)*$E$10*((F59+G59)^$F$10)+$C$24*D59)*$C$12),0) -> 1.110616223 | I59: =O59-H59 -> 1.745024125e-10 | J59: =(B59/$I$10)^(1/$J$10) -> 21.62515285 | K59: =(C59/$K$10)^(1/$L$10) -> 109.5467052 | L59: 60.56782487 | M59: =(letalitat!P9*1000)/((3.14159*$I$10*((J59+L59)^$J$10)*$K$10*((K59+L59)^$L$10)+$C$24*D59)*$I$12) -> 1.110022967 | N59: =O59-M59 -> 0.0005932562402 | O59: =IFERROR(letalitat!L72/1000,0) -> 1.110616223
A60: =letalitat!B73 -> 50 | B60: 1.644434375 | C60: =('Terme font'!$G$8/2.15) -> 2.790697674 | D60: =A60^(1/2)*'Terme font'!$G$8 -> 42.42640687 | E60: 16.79579779 | F60: 32.07462386 | G60: 0 | H60: =IFERROR((letalitat!P10*1000)/((3.14159*$C$10*((E60+G60)^$D$10)*$E$10*((F60+G60)^$F$10)+$C$24*D60)*$C$12),0) -> 1.038194957 | I60: 0.07242126638 | J60: 35.93740995 | K60: 109.5467052 | L60: 76.32023419 | M60: =(letalitat!P10*1000)/((3.14159*$I$10*((J60+L60)^$J$10)*$K$10*((K60+L60)^$L$10)+$C$24*D60)*$I$12) -> 1.110439708 | N60: 0.0001765152547 | O60: =IFERROR(letalitat!L73/1000,0) -> 1.110616223
A61: =letalitat!B74 -> 100 | B61: 2.325581395 | C61: =('Terme font'!$G$8/2.15) -> 2.790697674 | D61: =A61^(1/2)*'Terme font'!$G$8 -> 60 | E61: 24.63290048 | F61: 32.07462386 | G61: 7.779196351 | H61: =IFERROR((letalitat!P11*1000)/((3.14159*$C$10*((E61+G61)^$D$10)*$E$10*((F61+G61)^$F$10)+$C$24*D61)*$C$12),0) -> 1.110372384 | I61: 0.000243839241 | J61: 52.77337171 | K61: 109.5467052 | L61: 147.0366743 | M61: =(letalitat!P11*1000)/((3.14159*$I$10*((J61+L61)^$J$10)*$K$10*((K61+L61)^$L$10)+$C$24*D61)*$I$12) -> 1.109879239 | N61: 0.0007369834202 | O61: =IFERROR(letalitat!L74/1000,0) -> 1.110616223
A62: =letalitat!B75 -> 300 | B62: 4.028025134 | C62: =('Terme font'!$G$8/2.15) -> 2.790697674 | D62: =A62^(1/2)*'Terme font'!$G$8 -> 103.9230485 | E62: 45.19792065 | F62: 32.07462386 | G62: 36.60779665 | H62: =IFERROR((letalitat!P12*1000)/((3.14159*$C$10*((E62+G62)^$D$10)*$E$10*((F62+G62)^$F$10)+$C$24*D62)*$C$12),0) -> 1.10982469 | I62: 0.0007915328579 | J62: 97.02741778 | K62: 109.5467052 | L62: 356.8495845 | M62: =(letalitat!P12*1000)/((3.14159*$I$10*((J62+L62)^$J$10)*$K$10*((K62+L62)^$L$10)+$C$24*D62)*$I$12) -> 1.109490488 | N62: 0.001125735109 | O62: =IFERROR(letalitat!L75/1000,0) -> 1.110616223
A63: =letalitat!B76 -> 600 | B63: 5.696487774 | C63: =('Terme font'!$G$8/2.15) -> 2.790697674 | D63: =A63^(1/2)*'Terme font'!$G$8 -> 146.9693846 | E63: 66.28776405 | F63: 32.07462386 | G63: 68.91701346 | H63: =IFERROR((letalitat!P13*1000)/((3.14159*$C$10*((E63+G63)^$D$10)*$E$10*((F63+G63)^$F$10)+$C$24*D63)*$C$12),0) -> 1.110194827 | I63: 0.0004213958557 | J63: 142.4828331 | K63: 109.5467052 | L63: 592.5111892 | M63: =(letalitat!P13*1000)/((3.14159*$I$10*((J63+L63)^$J$10)*$K$10*((K63+L63)^$L$10)+$C$24*D63)*$I$12) -> 1.109964147 | N63: 0.0006520755182 | O63: =IFERROR(letalitat!L76/1000,0) -> 1.110616223
A64: =letalitat!B77 -> 900 | B64: 6.976744186 | C64: =('Terme font'!$G$8/2.15) -> 2.790697674 | D64: =A64^(1/2)*'Terme font'!$G$8 -> 180 | E64: 82.93185096 | F64: 32.07462386 | G64: 95.50123421 | H64: =IFERROR((letalitat!P14*1000)/((3.14159*$C$10*((E64+G64)^$D$10)*$E$10*((F64+G64)^$F$10)+$C$24*D64)*$C$12),0) -> 1.110422966 | I64: 0.0001932571507 | J64: 178.3914784 | K64: 109.5467052 | L64: 788.4336463 | M64: =(letalitat!P14*1000)/((3.14159*$I$10*((J64+L64)^$J$10)*$K$10*((K64+L64)^$L$10)+$C$24*D64)*$I$12) -> 1.110315223 | N64: 0.0003010003613 | O64: =IFERROR(letalitat!L77/1000,0) -> 1.110616223
A65: =letalitat!B78 -> 2500 | B65: 11.62790698 | C65: =('Terme font'!$G$8/2.15) -> 2.790697674 | D65: =A65^(1/2)*'Terme font'!$G$8 -> 300 | E65: 145.8337685 | F65: 32.07462386 | G65: 201.5092453 | H65: =IFERROR((letalitat!P15*1000)/((3.14159*$C$10*((E65+G65)^$D$10)*$E$10*((F65+G65)^$F$10)+$C$24*D65)*$C$12),0) -> 1.109945389 | I65: 0.000670833727 | J65: 314.2868103 | K65: 109.5467052 | L65: 1585.007429 | M65: =(letalitat!P15*1000)/((3.14159*$I$10*((J65+L65)^$J$10)*$K$10*((K65+L65)^$L$10)+$C$24*D65)*$I$12) -> 1.109855657 | N65: 0.0007605655097 | O65: =IFERROR(letalitat!L78/1000,0) -> 1.110616223
A66: =A67 -> 600 | B66: =(A66^(1/2))/4.3 -> 5.696487774 | C66: =('Terme font'!$G$8/2.15) -> 2.790697674 | D66: =A66^(1/2)*'Terme font'!$G$8 -> 146.9693846 | E66: =(B66/$C$10)^(1/$D$10) -> 66.28776405 | F66: =(C66/$E$10)^(1/$F$10) -> 32.07462386 | G66: 68.86309294 | H66: =IFERROR((letalitat!P8*1000)/((3.14159*$C$10*((E66+G66)^$D$10)*$E$10*((F66+G66)^$F$10)+$C$24*D66)*$C$12),0) -> 1.110949055 | I66: =O66-H66 -> 0.001731892332 | J66: =(B66/$I$10)^(1/$J$10) -> 142.4828331 | K66: =(C66/$K$10)^(1/$L$10) -> 109.5467052 | L66: 593.8430942 | M66: =(letalitat!P8*1000)/((3.14159*$I$10*((J66+L66)^$J$10)*$K$10*((K66+L66)^$L$10)+$C$24*D66)*$I$12) -> 1.106865892 | N66: =O66-M66 -> 0.005815054926 | O66: =IFERROR(letalitat!L71/1000,0) -> 1.112680947
A67: =A68 -> 600 | B67: =(A67^(1/2))/4.3 -> 5.696487774 | C67: =('Terme font'!$G$8/2.15) -> 2.790697674 | D67: =A67^(1/2)*'Terme font'!$G$8 -> 146.9693846 | E67: =(B67/$C$10)^(1/$D$10) -> 66.28776405 | F67: =(C67/$E$10)^(1/$F$10) -> 32.07462386 | G67: 136.3881991 | H67: =IFERROR((letalitat!P8*1000)/((3.14159*$C$10*((E67+G67)^$D$10)*$E$10*((F67+G67)^$F$10)+$C$24*D67)*$C$12),0) -> 0.5553504293 | I67: =O67-H67 -> 0.0004541826921 | J67: =(B67/$I$10)^(1/$J$10) -> 142.4828331 | K67: =(C67/$K$10)^(1/$L$10) -> 109.5467052 | L67: 1005.038593 | M67: =(letalitat!P8*1000)/((3.14159*$I$10*((J67+L67)^$J$10)*$K$10*((K67+L67)^$L$10)+$C$24*D67)*$I$12) -> 0.5553824132 | N67: =O67-M67 -> 0.0004221987921 | O67: =IFERROR(letalitat!L63/1000,0) -> 0.555804612
A68: =A69 -> 600 | B68: =(A68^(1/2))/4.3 -> 5.696487774 | C68: =('Terme font'!$G$8/2.15) -> 2.790697674 | D68: =A68^(1/2)*'Terme font'!$G$8 -> 146.9693846 | E68: =(B68/$C$10)^(1/$D$10) -> 66.28776405 | F68: =(C68/$E$10)^(1/$F$10) -> 32.07462386 | G68: 188.8452895 | H68: =IFERROR((letalitat!P8*1000)/((3.14159*$C$10*((E68+G68)^$D$10)*$E$10*((F68+G68)^$F$10)+$C$24*D68)*$C$12),0) -> 0.3742270568 | I68: =O68-H68 -> 8.769888066e-05 | J68: =(B68/$I$10)^(1/$J$10) -> 142.4828331 | K68: =(C68/$K$10)^(1/$L$10) -> 109.5467052 | L68: 1334.515941 | M68: =(letalitat!P8*1000)/((3.14159*$I$10*((J68+L68)^$J$10)*$K$10*((K68+L68)^$L$10)+$C$24*D68)*$I$12) -> 0.3741414142 | N68: =O68-M68 -> 0.00017334147 | O68: =IFERROR(letalitat!L55/1000,0) -> 0.3743147557
A69: =B15 -> 600 | B69: =(A69^(1/2))/4.3 -> 5.696487774 | C69: =('Terme font'!$G$8/2.15) -> 2.790697674 | D69: =A69^(1/2)*'Terme font'!$G$8 -> 146.9693846 | E69: =(B69/$C$10)^(1/$D$10) -> 66.28776405 | F69: =(C69/$E$10)^(1/$F$10) -> 32.07462386 | G69: 245.058771 | H69: =IFERROR((letalitat!P8*1000)/((3.14159*$C$10*((E69+G69)^$D$10)*$E$10*((F69+G69)^$F$10)+$C$24*D69)*$C$12),0) -> 0.2661035812 | I69: =O69-H69 -> 7.417559261e-05 | J69: =(B69/$I$10)^(1/$J$10) -> 142.4828331 | K69: =(C69/$K$10)^(1/$L$10) -> 109.5467052 | L69: 1692.881625 | M69: =(letalitat!P8*1000)/((3.14159*$I$10*((J69+L69)^$J$10)*$K$10*((K69+L69)^$L$10)+$C$24*D69)*$I$12) -> 0.2660878866 | N69: =O69-M69 -> 8.987012998e-05 | O69: =IFERROR(letalitat!L47/1000,0) -> 0.2661777568

Sheet Representació gràfica
S5: ENDARRERE | T5: ENDAVANT
H7: ='Terme font'!E8 -> 600 | I7: m2 | R7: ='Terme font'!E8 -> 600 | S7: m2
I10: LC1 | S10: LC1
H11: C [mg/m3] | I11: X [m] | J11: Y [m] | R11: C [mg/m3] | S11: X [m] | T11: Y [m]
H12: =dispersió!$O$38*1000 -> 266.1369142 | I12: =dispersió!$G$69 -> 245.058771 | J12: =IF(ISERROR(MAX('Càlculs interns'!$C$3:$C$35)),"0",(MAX('Càlculs interns'!$C$3:$C$35))) -> 19.2769951 | R12: =dispersió!$O$38*1000 -> 266.1369142 | S12: =dispersió!$L$69 -> 1692.881625 | T12: =IF(ISERROR(MAX('Càlculs interns'!$C$41:$C$70)),"0",MAX('Càlculs interns'!$C$41:$C$70)) -> 45.63550081
I13: LC10 | S13: LC10
H14: C [mg/m3] | I14: X [m] | J14: Y [m] | R14: C [mg/m3] | S14: X [m] | T14: Y [m]
H15: =dispersió!$O$45*1000 -> 373.5949659 | I15: =dispersió!$G$68 -> 188.8452895 | J15: =IF(ISERROR(MAX('Càlculs interns'!$H$6:$H$35)),"0",MAX('Càlculs interns'!$H$6:$H$35)) -> 16.09704308 | R15: =dispersió!$O$45*1000 -> 373.5949659 | S15: =dispersió!$L$68 -> 1334.515941 | T15: =IF(ISERROR(MAX('Càlculs interns'!$H$41:$H$70)),"0",MAX('Càlculs interns'!$H$41:$H$70)) -> 37.45456087
I16: LC50 | S16: LC50
H17: C [mg/m3] | I17: X [m] | J17: Y [m] | R17: C [mg/m3] | S17: X [m] | T17: Y [m]
H18: =dispersió!$O$52*1000 -> 555.7395882 | I18: =dispersió!$G$67 -> 136.3881991 | J18: =IF(ISERROR(MAX('Càlculs interns'!$M$6:$M$35)),"0",MAX('Càlculs interns'!$M$6:$M$35)) -> 13.04177368 | R18: =dispersió!$O$52*1000 -> 555.7395882 | S18: =dispersió!$L$67 -> 1005.038593 | T18: =IF(ISERROR(MAX('Càlculs interns'!$M$41:$M$70)),"0",MAX('Càlculs interns'!$M$41:$M$70)) -> 29.71996593
I19: LC99 | S19: LC99
H20: C [mg/m3] | I20: X [m] | J20: Y [m] | R20: C [mg/m3] | S20: X [m] | T20: Y [m]
H21: =dispersió!$O$59*1000 -> 1110.616223 | I21: =dispersió!$G$66 -> 68.86309294 | J21: =IF(ISERROR(MAX('Càlculs interns'!$R$6:$R$35)),"0",MAX('Càlculs interns'!$R$6:$R$35)) -> 8.928883949 | R21: =dispersió!$O$59*1000 -> 1110.616223 | S21: =dispersió!$L$66 -> 593.8430942 | T21: =IF(ISERROR(MAX('Càlculs interns'!$R$41:$R$70)),"0",MAX('Càlculs interns'!$R$41:$R$70)) -> 19.67050506
I30: LC1 | S30: LC1
H31: C [mg/m3] | I31: X [m] | J31: Y [m] | R31: C [mg/m3] | S31: X [m] | T31: Y [m]
H32: =dispersió!$O$38*1000 -> 266.1369142 | I32: =dispersió!$G$38 -> 32.70567722 | J32: =IF(ISERROR(MAX('Càlculs interns'!$C$78:$C$107)),"0",MAX('Càlculs interns'!$C$78:$C$107)) -> 2.671321174 | R32: =dispersió!$O$38*1000 -> 266.1369142 | S32: =dispersió!$L$38 -> 240.0714157 | T32: =IF(ISERROR(MAX('Càlculs interns'!$C$113:$C$142)),"0",MAX('Càlculs interns'!$C$113:$C$142)) -> 7.184404962
I33: LC10 | S33: LC10
H34: C [mg/m3] | I34: X [m] | J34: Y [m] | R34: C [mg/m3] | S34: X [m] | T34: Y [m]
H35: =dispersió!$O$45*1000 -> 373.5949659 | I35: =dispersió!$G$45 -> 22.46370412 | J35: =IF(ISERROR(MAX('Càlculs interns'!$H$78:$H$107)),"0",MAX('Càlculs interns'!$H$78:$H$107)) -> 1.996507577 | R35: =dispersió!$O$45*1000 -> 373.5949659 | S35: =dispersió!$L$45 -> 182.2066903 | T35: =IF(ISERROR(MAX('Càlculs interns'!$H$113:$H$142)),"0",MAX('Càlculs interns'!$H$113:$H$142)) -> 5.597357618
I36: LC50 | S36: LC50
H37: C [mg/m3] | I37: X [m] | J37: Y [m] | R37: C [mg/m3] | S37: X [m] | T37: Y [m]
H38: =dispersió!$O$52*1000 -> 555.7395882 | I38: =dispersió!$G$52 -> 12.79248294 | J38: =IF(ISERROR(MAX('Càlculs interns'!$M$78:$M$107)),"0",MAX('Càlculs interns'!$M$78:$M$107)) -> 1.355464972 | R38: =dispersió!$O$52*1000 -> 555.7395882 | S38: =dispersió!$L$52 -> 127.3615335 | T38: =IF(ISERROR(MAX('Càlculs interns'!$M$113:$M$142)),"0",MAX('Càlculs interns'!$M$113:$M$142)) -> 4.097245286
I39: LC99 | S39: LC99
H40: C [mg/m3] | I40: X [m] | J40: Y [m] | R40: C [mg/m3] | S40: X [m] | T40: Y [m]
H41: =dispersió!$O$59*1000 -> 1110.616223 | I41: =dispersió!$G$59 -> 0.5030148735 | J41: =IF(ISERROR(MAX('Càlculs interns'!$R$78:$R$107)),"0",MAX('Càlculs interns'!$R$78:$R$107)) -> 0.2768531181 | R41: =dispersió!$O$59*1000 -> 1110.616223 | S41: =dispersió!$L$59 -> 60.56782487 | T41: =IF(ISERROR(MAX('Càlculs interns'!$R$113:$R$142)),"0",MAX('Càlculs interns'!$R$113:$R$142)) -> 2.213587973
H43: VÀLID | R43: VÀLID
H44: 20 | R44: 20
I50: LC1 | S50: LC1
H51: C [mg/m3] | I51: X [m] | J51: Y [m] | R51: C [mg/m3] | S51: X [m] | T51: Y [m]
H52: =dispersió!$O$39*1000 -> 266.1369142 | I52: =dispersió!$G$39 -> 40.24758303 | J52: =IF(ISERROR(MAX('Càlculs interns'!$C$149:$C$178)),"0",MAX('Càlculs interns'!$C$149:$C$178)) -> 3.569012594 | R52: =dispersió!$O$39*1000 -> 266.1369142 | S52: =dispersió!$L$39 -> 303.9924973 | T52: =IF(ISERROR(MAX('Càlculs interns'!$C$185:$C$214)),"0",MAX('Càlculs interns'!$C$185:$C$214)) -> 9.28626053
I53: LC10 | S53: LC10
H54: C [mg/m3] | I54: X [m] | J54: Y [m] | R54: C [mg/m3] | S54: X [m] | T54: Y [m]
H55: =dispersió!$O$46*1000 -> 373.5949659 | I55: =dispersió!$G$46 -> 27.30922427 | J55: =IF(ISERROR(MAX('Càlculs interns'!$H$149:$H$178)),"0",MAX('Càlculs interns'!$H$149:$H$178)) -> 2.709928953 | R55: =dispersió!$O$46*1000 -> 373.5949659 | S55: =dispersió!$L$46 -> 230.2886065 | T55: =IF(ISERROR(MAX('Càlculs interns'!$H$185:$H$214)),"0",MAX('Càlculs interns'!$H$185:$H$214)) -> 7.302167244
I56: LC50 | S56: LC50
H57: C [mg/m3] | I57: X [m] | J57: Y [m] | R57: C [mg/m3] | S57: X [m] | T57: Y [m]
H58: =dispersió!$O$53*1000 -> 555.7395882 | I58: =dispersió!$G$53 -> 14.94642652 | J58: =IF(ISERROR(MAX('Càlculs interns'!$M$149:$M$178)),"0",MAX('Càlculs interns'!$M$149:$M$178)) -> 1.87588568 | R58: =dispersió!$O$53*1000 -> 555.7395882 | S58: =dispersió!$L$53 -> 161.7287631 | T58: =IF(ISERROR(MAX('Càlculs interns'!$M$185:$M$214)),"0",MAX('Càlculs interns'!$M$185:$M$214)) -> 5.415592405
I59: LC99 | S59: LC99
H60: C [mg/m3] | I60: X [m] | J60: Y [m] | R60: C [mg/m3] | S60: X [m] | T60: Y [m]
H61: =dispersió!$O$60*1000 -> 1110.616223 | I61: =dispersió!$G$60 -> 0 | J61: =IF(ISERROR(MAX('Càlculs interns'!$R$149:$R$178)),"0",MAX('Càlculs interns'!$R$149:$R$178)) -> 0 | R61: =dispersió!$O$60*1000 -> 1110.616223 | S61: =dispersió!$L$60 -> 76.32023419 | T61: =IF(ISERROR(MAX('Càlculs interns'!$R$185:$R$214)),"0",MAX('Càlculs interns'!$R$185:$R$214)) -> 2.997604754
H63: VÀLID
H64: 50 | R64: VÀLID
R65: 50
I72: LC1 | S72: LC1
H73: C [mg/m3] | I73: X [m] | J73: Y [m] | R73: C [mg/m3] | S73: X [m] | T73: Y [m]
H74: =dispersió!$O$40*1000 -> 266.1369142 | I74: =dispersió!$G$40 -> 70.21829046 | J74: =IF(ISERROR(MAX('Càlculs interns'!$C$221:$C$250)),"0",MAX('Càlculs interns'!$C$221:$C$250)) -> 6.006549039 | R74: =dispersió!$O$40*1000 -> 266.1369142 | S74: =dispersió!$L$40 -> 501.6284509 | T74: =IF(ISERROR(MAX('Càlculs interns'!$C$256:$C$285)),"0",MAX('Càlculs interns'!$C$256:$C$285)) -> 14.87306078
I75: LC10 | S75: LC10
H76: C [mg/m3] | I76: X [m] | J76: Y [m] | R76: C [mg/m3] | S76: X [m] | T76: Y [m]
H77: =dispersió!$O$47*1000 -> 373.5949659 | I77: =dispersió!$G$47 -> 50.74043951 | J77: =IF(ISERROR(MAX('Càlculs interns'!$H$221:$H$250)),"0",MAX('Càlculs interns'!$H$221:$H$250)) -> 4.752446352 | R77: =dispersió!$O$47*1000 -> 373.5949659 | S77: =dispersió!$L$47 -> 386.9853771 | T77: =IF(ISERROR(MAX('Càlculs interns'!$H$256:$H$285)),"0",MAX('Càlculs interns'!$H$256:$H$285)) -> 11.91651069
I78: LC50 | S78: LC50
H79: C [mg/m3] | I79: X [m] | J79: Y [m] | R79: C [mg/m3] | S79: X [m] | T79: Y [m]
H80: =dispersió!$O$54*1000 -> 555.7395882 | I80: =dispersió!$G$54 -> 32.16316403 | J80: =IF(ISERROR(MAX('Càlculs interns'!$M$221:$M$250)),"0",MAX('Càlculs interns'!$M$221:$M$250)) -> 3.520151082 | R80: =dispersió!$O$54*1000 -> 555.7395882 | S80: =dispersió!$L$54 -> 280.270041 | T80: =IF(ISERROR(MAX('Càlculs interns'!$M$256:$M$285)),"0",MAX('Càlculs interns'!$M$256:$M$285)) -> 9.089860545
I81: LC99 | S81: LC99
H82: C [mg/m3] | I82: X [m] | J82: Y [m] | R82: C [mg/m3] | S82: X [m] | T82: Y [m]
H83: =dispersió!$O$61*1000 -> 1110.616223 | I83: =dispersió!$G$61 -> 7.779196351 | J83: =IF(ISERROR(MAX('Càlculs interns'!$R$221:$R$250)),"0",MAX('Càlculs interns'!$R$221:$R$250)) -> 1.737637816 | R83: =dispersió!$O$61*1000 -> 1110.616223 | S83: =dispersió!$L$61 -> 147.0366743 | T83: =IF(ISERROR(MAX('Càlculs interns'!$R$256:$R$285)),"0",MAX('Càlculs interns'!$R$256:$R$285)) -> 5.427464218
H85: VÀLID | R85: VÀLID
H86: 100 | R86: 100
I93: LC1 | S93: LC1
H94: C [mg/m3] | I94: X [m] | J94: Y [m] | R94: C [mg/m3] | S94: X [m] | T94: Y [m]
H95: =dispersió!$O$41*1000 -> 266.1369142 | I95: =dispersió!$G$41 -> 154.2827197 | J95: =IF(ISERROR(MAX('Càlculs interns'!$C$293:$C$322)),"0",MAX('Càlculs interns'!$C$293:$C$322)) -> 12.55862265 | R95: =dispersió!$O$41*1000 -> 266.1369142 | S95: =dispersió!$L$41 -> 1067.419627 | T95: =IF(ISERROR(MAX('Càlculs interns'!$C$329:$C$358)),"0",MAX('Càlculs interns'!$C$329:$C$358)) -> 29.92678217
I96: LC10 | S96: LC10
H97: C [mg/m3] | I97: X [m] | J97: Y [m] | R97: C [mg/m3] | S97: X [m] | T97: Y [m]
H98: =dispersió!$O$48*1000 -> 373.5949659 | I98: =dispersió!$G$48 -> 117.1739541 | J98: =IF(ISERROR(MAX('Càlculs interns'!$H$293:$H$322)),"0",MAX('Càlculs interns'!$H$293:$H$322)) -> 10.33849327 | R98: =dispersió!$O$48*1000 -> 373.5949659 | S98: =dispersió!$L$48 -> 835.8884145 | T98: =IF(ISERROR(MAX('Càlculs interns'!$H$329:$H$358)),"0",MAX('Càlculs interns'!$H$329:$H$358)) -> 24.42195207
I99: LC50 | S99: LC50
H100: C [mg/m3] | I100: X [m] | J100: Y [m] | R100: C [mg/m3] | S100: X [m] | T100: Y [m]
H101: =dispersió!$O$55*1000 -> 555.7395882 | I101: =dispersió!$G$55 -> 81.97346525 | J101: =IF(ISERROR(MAX('Càlculs interns'!$M$293:$M$322)),"0",MAX('Càlculs interns'!$M$293:$M$322)) -> 8.16885483 | R101: =dispersió!$O$55*1000 -> 555.7395882 | S101: =dispersió!$L$55 -> 623.3982378 | T101: =IF(ISERROR(MAX('Càlculs interns'!$M$329:$M$358)),"0",MAX('Càlculs interns'!$M$329:$M$358)) -> 19.15708776
I102: LC99 | S102: LC99
H103: C [mg/m3] | I103: X [m] | J103: Y [m] | R103: C [mg/m3] | S103: X [m] | T103: Y [m]
H104: =dispersió!$O$62*1000 -> 1110.616223 | I104: =dispersió!$G$62 -> 36.60779665 | J104: =IF(ISERROR(MAX('Càlculs interns'!$R$293:$R$322)),"0",MAX('Càlculs interns'!$R$293:$R$322)) -> 5.221411637 | R104: =dispersió!$O$62*1000 -> 1110.616223 | S104: =dispersió!$L$62 -> 356.8495845 | T104: =IF(ISERROR(MAX('Càlculs interns'!$R$329:$R$358)),"0",MAX('Càlculs interns'!$R$329:$R$358)) -> 12.33955854
H106: VÀLID | R106: VÀLID
H107: 300 | R107: 300
I114: LC1 | S114: LC1
H115: C [mg/m3] | I115: X [m] | J115: Y [m] | R115: C [mg/m3] | S115: X [m] | T115: Y [m]
H116: =dispersió!$O$42*1000 -> 266.1369142 | I116: =dispersió!$G$42 -> 245.1725472 | J116: =IF(ISERROR(MAX('Càlculs interns'!$C$365:$C$394)),"0",MAX('Càlculs interns'!$C$365:$C$394)) -> 19.27850151 | R116: =dispersió!$O$42*1000 -> 266.1369142 | S116: =dispersió!$L$42 -> 1693.421506 | T116: =IF(ISERROR(MAX('Càlculs interns'!$C$401:$C$430)),"0",MAX('Càlculs interns'!$C$401:$C$430)) -> 45.63968723
I117: LC10 | S117: LC10
H118: C [mg/m3] | I118: X [m] | J118: Y [m] | R118: C [mg/m3] | S118: X [m] | T118: Y [m]
H119: =dispersió!$O$49*1000 -> 373.5949659 | I119: =dispersió!$G$49 -> 189.1765314 | J119: =IF(ISERROR(MAX('Càlculs interns'!$H$365:$H$394)),"0",MAX('Càlculs interns'!$H$365:$H$394)) -> 16.11349827 | R119: =dispersió!$O$49*1000 -> 373.5949659 | S119: =dispersió!$L$49 -> 1336.721404 | T119: =IF(ISERROR(MAX('Càlculs interns'!$H$401:$H$430)),"0",MAX('Càlculs interns'!$H$401:$H$430)) -> 37.49645599
I120: LC50 | S120: LC50
H121: C [mg/m3] | I121: X [m] | J121: Y [m] | R121: C [mg/m3] | S121: X [m] | T121: Y [m]
H122: =dispersió!$O$56*1000 -> 555.7395882 | I122: =dispersió!$G$56 -> 136.364069 | J122: =IF(ISERROR(MAX('Càlculs interns'!$M$365:$M$394)),"0",MAX('Càlculs interns'!$M$365:$M$394)) -> 13.04256527 | R122: =dispersió!$O$56*1000 -> 555.7395882 | S122: =dispersió!$L$56 -> 1005.081743 | T122: =IF(ISERROR(MAX('Càlculs interns'!$M$401:$M$430)),"0",MAX('Càlculs interns'!$M$401:$M$430)) -> 29.72205697
I123: LC99 | S123: LC99
H124: C [mg/m3] | I124: X [m] | J124: Y [m] | R124: C [mg/m3] | S124: X [m] | T124: Y [m]
H125: =dispersió!$O$63*1000 -> 1110.616223 | I125: =dispersió!$G$63 -> 68.91701346 | J125: =IF(ISERROR(MAX('Càlculs interns'!$R$365:$R$394)),"0",MAX('Càlculs interns'!$R$365:$R$394)) -> 8.938353283 | R125: =dispersió!$O$63*1000 -> 1110.616223 | S125: =dispersió!$L$63 -> 592.5111892 | T125: =IF(ISERROR(MAX('Càlculs interns'!$R$401:$R$430)),"0",MAX('Càlculs interns'!$R$401:$R$430)) -> 19.69112767
H127: VÀLID | R127: VÀLID
H128: 600 | R128: 600
I135: LC1 | S135: LC1
H136: C [mg/m3] | I136: X [m] | J136: Y [m] | R136: C [mg/m3] | S136: X [m] | T136: Y [m]
H137: =dispersió!$O$43*1000 -> 266.1369142 | I137: =dispersió!$G$43 -> 318.9940091 | J137: =IF(ISERROR(MAX('Càlculs interns'!$C$437:$C$466)),"0",MAX('Càlculs interns'!$C$437:$C$466)) -> 24.55368863 | R137: =dispersió!$O$43*1000 -> 266.1369142 | S137: =dispersió!$L$43 -> 2210.909878 | T137: =IF(ISERROR(MAX('Càlculs interns'!$C$472:$C$501)),"0",MAX('Càlculs interns'!$C$472:$C$501)) -> 58.15963019
I138: LC10 | S138: LC10
H139: C [mg/m3] | I139: X [m] | J139: Y [m] | R139: C [mg/m3] | S139: X [m] | T139: Y [m]
H140: =dispersió!$O$50*1000 -> 373.5949659 | I140: =dispersió!$G$50 -> 247.831098 | J140: =IF(ISERROR(MAX('Càlculs interns'!$H$437:$H$466)),"0",MAX('Càlculs interns'!$H$437:$H$466)) -> 20.65483713 | R140: =dispersió!$O$50*1000 -> 373.5949659 | S140: =dispersió!$L$50 -> 1749.424948 | T140: =IF(ISERROR(MAX('Càlculs interns'!$H$472:$H$501)),"0",MAX('Càlculs interns'!$H$472:$H$501)) -> 47.9157124
I141: LC50 | S141: LC50
H142: C [mg/m3] | I142: X [m] | J142: Y [m] | R142: C [mg/m3] | S142: X [m] | T142: Y [m]
H143: =dispersió!$O$57*1000 -> 555.7395882 | I143: =dispersió!$G$57 -> 180.7781836 | J143: =IF(ISERROR(MAX('Càlculs interns'!$M$437:$M$466)),"0",MAX('Càlculs interns'!$M$437:$M$466)) -> 16.8902516 | R143: =dispersió!$O$57*1000 -> 555.7395882 | S143: =dispersió!$L$57 -> 1321.226049 | T143: =IF(ISERROR(MAX('Càlculs interns'!$M$472:$M$501)),"0",MAX('Càlculs interns'!$M$472:$M$501)) -> 38.14718363
I144: LC99 | S144: LC99
H145: C [mg/m3] | I145: X [m] | J145: Y [m] | R145: C [mg/m3] | S145: X [m] | T145: Y [m]
H146: =dispersió!$O$64*1000 -> 1110.616223 | I146: =dispersió!$G$64 -> 95.50123421 | J146: =IF(ISERROR(MAX('Càlculs interns'!$R$437:$R$466)),"0",MAX('Càlculs interns'!$R$437:$R$466)) -> 11.92446859 | R146: =dispersió!$O$64*1000 -> 1110.616223 | S146: =dispersió!$L$64 -> 788.4336463 | T146: =IF(ISERROR(MAX('Càlculs interns'!$R$472:$R$501)),"0",MAX('Càlculs interns'!$R$472:$R$501)) -> 25.56877426
H148: VÀLID | R148: VÀLID
H149: 900 | R149: 900
I156: LC1 | S156: LC1
H157: C [mg/m3] | I157: X [m] | J157: Y [m] | R157: C [mg/m3] | S157: X [m] | T157: Y [m]
H158: =dispersió!$O$44*1000 -> 266.1369142 | I158: =dispersió!$G$44 -> 610.1394369 | J158: =IF(ISERROR(MAX('Càlculs interns'!$C$508:$C$537)),"0",MAX('Càlculs interns'!$C$508:$C$537)) -> 44.27812408 | R158: =dispersió!$O$44*1000 -> 266.1369142 | S158: =dispersió!$L$44 -> 4302.799562 | T158: =IF(ISERROR(MAX('Càlculs interns'!$C$543:$C$572)),"0",MAX('Càlculs interns'!$C$543:$C$572)) -> 106.0994827
I159: LC10 | S159: LC10
H160: C [mg/m3] | I160: X [m] | J160: Y [m] | R160: C [mg/m3] | S160: X [m] | T160: Y [m]
H161: =dispersió!$O$51*1000 -> 373.5949659 | I161: =dispersió!$G$51 -> 479.4702 | J161: =IF(ISERROR(MAX('Càlculs interns'!$H$508:$H$537)),"0",MAX('Càlculs interns'!$H$508:$H$537)) -> 37.64273375 | R161: =dispersió!$O$51*1000 -> 373.5949659 | S161: =dispersió!$L$51 -> 3420.060191 | T161: =IF(ISERROR(MAX('Càlculs interns'!$H$543:$H$572)),"0",MAX('Càlculs interns'!$H$543:$H$572)) -> 87.7974498
I162: LC50 | S162: LC50
H163: C [mg/m3] | I163: X [m] | J163: Y [m] | R163: C [mg/m3] | S163: X [m] | T163: Y [m]
H164: =dispersió!$O$58*1000 -> 555.7395882 | I164: =dispersió!$G$58 -> 356.6379789 | J164: =IF(ISERROR(MAX('Càlculs interns'!$M$508:$M$537)),"0",MAX('Càlculs interns'!$M$508:$M$537)) -> 31.31061565 | R164: =dispersió!$O$58*1000 -> 555.7395882 | S164: =dispersió!$L$58 -> 2601.083554 | T164: =IF(ISERROR(MAX('Càlculs interns'!$M$543:$M$572)),"0",MAX('Càlculs interns'!$M$543:$M$572)) -> 70.38804314
I165: LC99 | S165: LC99
H166: C [mg/m3] | I166: X [m] | J166: Y [m] | R166: C [mg/m3] | S166: X [m] | T166: Y [m]
H167: =dispersió!$O$65*1000 -> 1110.616223 | I167: =dispersió!$G$65 -> 201.5092453 | J167: =IF(ISERROR(MAX('Càlculs interns'!$R$508:$R$537)),"0",MAX('Càlculs interns'!$R$508:$R$537)) -> 23.252119 | R167: =dispersió!$O$65*1000 -> 1110.616223 | S167: =dispersió!$L$65 -> 1585.007429 | T167: =IF(ISERROR(MAX('Càlculs interns'!$R$543:$R$572)),"0",MAX('Càlculs interns'!$R$543:$R$572)) -> 48.07958736
H169: VÀLID | R169: VÀLID
H170: 2500 | R170: 2500
S175: ENDARRERE | T175: ENDAVANT

Sheet RESULTATS
Q5: ENDARRERE
G7: RECULL DE RESULTATS A INTRODUIR AL RISKCURVES
E9: INCENDI DE MENOR ÀREA | N9: INCENDI D'ÀREA MÀXIMA
C11: ÀREA [m2] | D11: 20 | L11: ÀREA [m2] | M11: =Escenaris!E7 -> 600
C13: FREQÜÈNCA [any-1] | E13: =Escenaris!M66 -> 0.000767536 | L13: FREQÜÈNCA [any-1] | N13: =Escenaris!N66 -> 7.92e-08
C15: CONSEQÜÈNCIES | L15: CONSEQÜÈNCIES
C16: ESTABILITAT ATMOSFÈRICA D | G16: ESTABILITAT ATMOSFÈRICA D | L16: ESTABILITAT ATMOSFÈRICA D | P16: ESTABILITAT ATMOSFÈRICA D
C17: Vvent [m/s] | D17: =dispersió!C12 -> 4.8 | G17: Vvent [m/s] | H17: =dispersió!I12 -> 1.56 | L17: Vvent [m/s] | M17: =D17 -> 4.8 | P17: Vvent [m/s] | Q17: =H17 -> 1.56
D18: ='Representació gràfica'!I30 -> LC1 | H18: ='Representació gràfica'!S30 -> LC1 | M18: ='Representació gràfica'!I30 -> LC1 | Q18: ='Representació gràfica'!S10 -> LC1
C19: C [mg/m3] | D19: ='Representació gràfica'!I31 -> X [m] | E19: ='Representació gràfica'!J31 -> Y [m] | G19: C [mg/m3] | H19: ='Representació gràfica'!S31 -> X [m] | I19: ='Representació gràfica'!T31 -> Y [m] | L19: C [mg/m3] | M19: ='Representació gràfica'!I31 -> X [m] | N19: ='Representació gràfica'!J31 -> Y [m] | P19: C [mg/m3] | Q19: ='Representació gràfica'!S11 -> X [m] | R19: ='Representació gràfica'!T11 -> Y [m]
C20: ='Representació gràfica'!H32 -> 266.1369142 | D20: ='Representació gràfica'!I32 -> 32.70567722 | E20: ='Representació gràfica'!J32 -> 2.671321174 | G20: ='Representació gràfica'!R32 -> 266.1369142 | H20: ='Representació gràfica'!S32 -> 240.0714157 | I20: ='Representació gràfica'!T32 -> 7.184404962 | L20: ='Representació gràfica'!H32 -> 266.1369142 | M20: ='Representació gràfica'!I32 -> 32.70567722 | N20: ='Representació gràfica'!J32 -> 2.671321174 | P20: ='Representació gràfica'!R12 -> 266.1369142 | Q20: ='Representació gràfica'!S12 -> 1692.881625 | R20: ='Representació gràfica'!T12 -> 45.63550081
D21: ='Representació gràfica'!I33 -> LC10 | H21: ='Representació gràfica'!S33 -> LC10 | M21: ='Representació gràfica'!I33 -> LC10 | Q21: ='Representació gràfica'!S13 -> LC10
C22: C [mg/m3] | D22: ='Representació gràfica'!I34 -> X [m] | E22: ='Representació gràfica'!J34 -> Y [m] | G22: C [mg/m3] | H22: ='Representació gràfica'!S34 -> X [m] | I22: ='Representació gràfica'!T34 -> Y [m] | L22: C [mg/m3] | M22: ='Representació gràfica'!I34 -> X [m] | N22: ='Representació gràfica'!J34 -> Y [m] | P22: C [mg/m3] | Q22: ='Representació gràfica'!S14 -> X [m] | R22: ='Representació gràfica'!T14 -> Y [m]
C23: ='Representació gràfica'!H35 -> 373.5949659 | D23: ='Representació gràfica'!I35 -> 22.46370412 | E23: ='Representació gràfica'!J35 -> 1.996507577 | G23: ='Representació gràfica'!R35 -> 373.5949659 | H23: ='Representació gràfica'!S35 -> 182.2066903 | I23: ='Representació gràfica'!T35 -> 5.597357618 | L23: ='Representació gràfica'!H35 -> 373.5949659 | M23: ='Representació gràfica'!I35 -> 22.46370412 | N23: ='Representació gràfica'!J35 -> 1.996507577 | P23: ='Representació gràfica'!R15 -> 373.5949659 | Q23: ='Representació gràfica'!S15 -> 1334.515941 | R23: ='Representació gràfica'!T15 -> 37.45456087
D24: ='Representació gràfica'!I36 -> LC50 | H24: ='Representació gràfica'!S36 -> LC50 | M24: ='Representació gràfica'!I36 -> LC50 | Q24: ='Representació gràfica'!S16 -> LC50
C25: C [mg/m3] | D25: ='Representació gràfica'!I37 -> X [m] | E25: ='Representació gràfica'!J37 -> Y [m] | G25: C [mg/m3] | H25: ='Representació gràfica'!S37 -> X [m] | I25: ='Representació gràfica'!T37 -> Y [m] | L25: C [mg/m3] | M25: ='Representació gràfica'!I37 -> X [m] | N25: ='Representació gràfica'!J37 -> Y [m] | P25: C [mg/m3] | Q25: ='Representació gràfica'!S17 -> X [m] | R25: ='Representació gràfica'!T17 -> Y [m]
C26: ='Representació gràfica'!H38 -> 555.7395882 | D26: ='Representació gràfica'!I38 -> 12.79248294 | E26: ='Representació gràfica'!J38 -> 1.355464972 | G26: ='Representació gràfica'!R38 -> 555.7395882 | H26: ='Representació gràfica'!S38 -> 127.3615335 | I26: ='Representació gràfica'!T38 -> 4.097245286 | L26: ='Representació gràfica'!H38 -> 555.7395882 | M26: ='Representació gràfica'!I38 -> 12.79248294 | N26: ='Representació gràfica'!J38 -> 1.355464972 | P26: ='Representació gràfica'!R18 -> 555.7395882 | Q26: ='Representació gràfica'!S18 -> 1005.038593 | R26: ='Representació gràfica'!T18 -> 29.71996593
D27: ='Representació gràfica'!I39 -> LC99 | H27: ='Representació gràfica'!S39 -> LC99 | M27: ='Representació gràfica'!I39 -> LC99 | Q27: ='Representació gràfica'!S19 -> LC99
C28: C [mg/m3] | D28: ='Representació gràfica'!I40 -> X [m] | E28: ='Representació gràfica'!J40 -> Y [m] | G28: C [mg/m3] | H28: ='Representació gràfica'!S40 -> X [m] | I28: ='Representació gràfica'!T40 -> Y [m] | L28: C [mg/m3] | M28: ='Representació gràfica'!I40 -> X [m] | N28: ='Representació gràfica'!J40 -> Y [m] | P28: C [mg/m3] | Q28: ='Representació gràfica'!S20 -> X [m] | R28: ='Representació gràfica'!T20 -> Y [m]
C29: ='Representació gràfica'!H41 -> 1110.616223 | D29: ='Representació gràfica'!I41 -> 0.5030148735 | E29: ='Representació gràfica'!J41 -> 0.2768531181 | G29: ='Representació gràfica'!R41 -> 1110.616223 | H29: ='Representació gràfica'!S41 -> 60.56782487 | I29: ='Representació gràfica'!T41 -> 2.213587973 | L29: ='Representació gràfica'!H41 -> 1110.616223 | M29: ='Representació gràfica'!I41 -> 0.5030148735 | N29: ='Representació gràfica'!J41 -> 0.2768531181 | P29: ='Representació gràfica'!R21 -> 1110.616223 | Q29: ='Representació gràfica'!S21 -> 593.8430942 | R29: ='Representació gràfica'!T21 -> 19.67050506

Sheet Càlculs interns
A2: Area | C2: m2
A3: Est. D
A4: LC1 | C4: LC1+ | D4: LC1- | F4: LC10 | H4: LC10+ | I4: LC10- | K4: LC50 | M4: LC50+ | N4: LC50- | P4: LC99 | R4: LC99+ | S4: LC99-
A5: X | B5: C(x) | C5: y+ | D5: y- | F5: X | G5: C(x) | H5: y+ | I5: y- | K5: X | L5: C(x) | M5: y+ | N5: y- | P5: X | Q5: C(x) | R5: y+ | S5: y-
A6: 0 | B6: =IFERROR((letalitat!$P$8*1000)/((3.14159*dispersió!$C$10*((dispersió!$E$69+A6)^dispersió!$D$10)*dispersió!$E$10*((dispersió!$F$69+A6)^dispersió!$F$10)+dispersió!$C$24*dispersió!$D$69)*dispersió!$C$12),0) -> 3.596412826 | C6: =IFERROR(dispersió!$C$10*((dispersió!$E$69+'Càlculs interns'!A6)^dispersió!$D$10)*(2*LN('Càlculs interns'!B6/dispersió!$O$69))^(1/2),0) -> 12.99880058 | D6: =-C6 -> -12.99880058 | F6: 0 | G6: =IFERROR((letalitat!$P$8*1000)/((3.14159*dispersió!$C$10*((dispersió!$E$68+F6)^dispersió!$D$10)*dispersió!$E$10*((dispersió!$F$68+F6)^dispersió!$F$10)+dispersió!$C$24*dispersió!$D$68)*dispersió!$C$12),0) -> 3.596412826 | H6: =IFERROR(dispersió!$C$10*((dispersió!$E$68+'Càlculs interns'!F6)^dispersió!$D$10)*(2*LN('Càlculs interns'!G6/dispersió!$O$68))^(1/2),0) -> 12.1178506 | I6: =-H6 -> -12.1178506 | K6: 0 | L6: =IFERROR((letalitat!$P$8*1000)/((3.14159*dispersió!$C$10*((dispersió!$E$67+K6)^dispersió!$D$10)*dispersió!$E$10*((dispersió!$F$67+K6)^dispersió!$F$10)+dispersió!$C$24*dispersió!$D$67)*dispersió!$C$12),0) -> 3.596412826 | M6: =IFERROR(dispersió!$C$10*((dispersió!$E$67+'Càlculs interns'!K6)^dispersió!$D$10)*(2*LN('Càlculs interns'!L6/dispersió!$O$67))^(1/2),0) -> 11.00845452 | N6: =-M6 -> -11.00845452 | P6: 0 | Q6: =IFERROR((letalitat!$P$8*1000)/((3.14159*dispersió!$C$10*((dispersió!$E$66+P6)^dispersió!$D$10)*dispersió!$E$10*((dispersió!$F$66+P6)^dispersió!$F$10)+dispersió!$C$24*dispersió!$D$66)*dispersió!$C$12),0) -> 3.596412826 | R6: =IFERROR(dispersió!$C$10*((dispersió!$E$66+'Càlculs interns'!P6)^dispersió!$D$10)*(2*LN('Càlculs interns'!Q6/dispersió!$O$66))^(1/2),0) -> 8.725727203 | S6: =-R6 -> -8.725727203
A7: =A36/30 -> 8.168625699 | B7: =IFERROR((letalitat!$P$8*1000)/((3.14159*dispersió!$C$10*((dispersió!$E$69+A7)^dispersió!$D$10)*dispersió!$E$10*((dispersió!$F$69+A7)^dispersió!$F$10)+dispersió!$C$24*dispersió!$D$69)*dispersió!$C$12),0) -> 2.993492342 | C7: =IFERROR(dispersió!$C$10*((dispersió!$E$69+'Càlculs interns'!A7)^dispersió!$D$10)*(2*LN('Càlculs interns'!B7/dispersió!$O$69))^(1/2),0) -> 13.92216501 | D7: =-C7 -> -13.92216501 | F7: =F36/30 -> 6.294842983 | G7: =IFERROR((letalitat!$P$8*1000)/((3.14159*dispersió!$C$10*((dispersió!$E$68+F7)^dispersió!$D$10)*dispersió!$E$10*((dispersió!$F$68+F7)^dispersió!$F$10)+dispersió!$C$24*dispersió!$D$68)*dispersió!$C$12),0) -> 3.117646174 | H7: =IFERROR(dispersió!$C$10*((dispersió!$E$68+'Càlculs interns'!F7)^dispersió!$D$10)*(2*LN('Càlculs interns'!G7/dispersió!$O$68))^(1/2),0) -> 12.73266694 | I7: =-H7 -> -12.73266694 | K7: =K36/30 -> 4.546273302 | L7: =IFERROR((letalitat!$P$8*1000)/((3.14159*dispersió!$C$10*((dispersió!$E$67+K7)^dispersió!$D$10)*dispersió!$E$10*((dispersió!$F$67+K7)^dispersió!$F$10)+dispersió!$C$24*dispersió!$D$67)*dispersió!$C$12),0) -> 3.240603679 | M7: =IFERROR(dispersió!$C$10*((dispersió!$E$67+'Càlculs interns'!K7)^dispersió!$D$10)*(2*LN('Càlculs interns'!L7/dispersió!$O$67))^(1/2),0) -> 11.35879371 | N7: =-M7 -> -11.35879371 | P7: =P36/30 -> 2.295436431 | Q7: =IFERROR((letalitat!$P$8*1000)/((3.14159*dispersió!$C$10*((dispersió!$E$66+P7)^dispersió!$D$10)*dispersió!$E$10*((dispersió!$F$66+P7)^dispersió!$F$10)+dispersió!$C$24*dispersió!$D$66)*dispersió!$C$12),0) -> 3.409856575 | R7: =IFERROR(dispersió!$C$10*((dispersió!$E$66+'Càlculs interns'!P7)^dispersió!$D$10)*(2*LN('Càlculs interns'!Q7/dispersió!$O$66))^(1/2),0) -> 8.792072013 | S7: =-R7 -> -8.792072013
A8: =A$7+A7 -> 16.3372514 | B8: =IFERROR((letalitat!$P$8*1000)/((3.14159*dispersió!$C$10*((dispersió!$E$69+A8)^dispersió!$D$10)*dispersió!$E$10*((dispersió!$F$69+A8)^dispersió!$F$10)+dispersió!$C$24*dispersió!$D$69)*dispersió!$C$12),0) -> 2.530601889 | C8: =IFERROR(dispersió!$C$10*((dispersió!$E$69+'Càlculs interns'!A8)^dispersió!$D$10)*(2*LN('Càlculs interns'!B8/dispersió!$O$69))^(1/2),0) -> 14.75705703 | D8: -14.75705703 | F8: =F$7+F7 -> 12.58968597 | G8: =IFERROR((letalitat!$P$8*1000)/((3.14159*dispersió!$C$10*((dispersió!$E$68+F8)^dispersió!$D$10)*dispersió!$E$10*((dispersió!$F$68+F8)^dispersió!$F$10)+dispersió!$C$24*dispersió!$D$68)*dispersió!$C$12),0) -> 2.72846566 | H8: =IFERROR(dispersió!$C$10*((dispersió!$E$68+'Càlculs interns'!F8)^dispersió!$D$10)*(2*LN('Càlculs interns'!G8/dispersió!$O$68))^(1/2),0) -> 13.28924798 | I8: -13.28924798 | K8: =K$7+K7 -> 9.092546604 | L8: =IFERROR((letalitat!$P$8*1000)/((3.14159*dispersió!$C$10*((dispersió!$E$67+K8)^dispersió!$D$10)*dispersió!$E$10*((dispersió!$F$67+K8)^dispersió!$F$10)+dispersió!$C$24*dispersió!$D$67)*dispersió!$C$12),0) -> 2.934992069 | M8: =IFERROR(dispersió!$C$10*((dispersió!$E$67+'Càlculs interns'!K8)^dispersió!$D$10)*(2*LN('Càlculs interns'!L8/dispersió!$O$67))^(1/2),0) -> 11.67416126 | N8: -11.67416126 | P8: =P$7+P7 -> 4.590872863 | Q8: =IFERROR((letalitat!$P$8*1000)/((3.14159*dispersió!$C$10*((dispersió!$E$66+P8)^dispersió!$D$10)*dispersió!$E$10*((dispersió!$F$66+P8)^dispersió!$F$10)+dispersió!$C$24*dispersió!$D$66)*dispersió!$C$12),0) -> 3.23737788 | R8: =IFERROR(dispersió!$C$10*((dispersió!$E$66+'Càlculs interns'!P8)^dispersió!$D$10)*(2*LN('Càlculs interns'!Q8/dispersió!$O$66))^(1/2),0) -> 8.845557909 | S8: -8.845557909
A9: =A$7+A8 -> 24.5058771 | B9: =IFERROR((letalitat!$P$8*1000)/((3.14159*dispersió!$C$10*((dispersió!$E$69+A9)^dispersió!$D$10)*dispersió!$E$10*((dispersió!$F$69+A9)^dispersió!$F$10)+dispersió!$C$24*dispersió!$D$69)*dispersió!$C$12),0) -> 2.16821046 | C9: =IFERROR(dispersió!$C$10*((dispersió!$E$69+'Càlculs interns'!A9)^dispersió!$D$10)*(2*LN('Càlculs interns'!B9/dispersió!$O$69))^(1/2),0) -> 15.51012878 | D9: -15.51012878 | F9: =F$7+F8 -> 18.88452895 | G9: =IFERROR((letalitat!$P$8*1000)/((3.14159*dispersió!$C$10*((dispersió!$E$68+F9)^dispersió!$D$10)*dispersió!$E$10*((dispersió!$F$68+F9)^dispersió!$F$10)+dispersió!$C$24*dispersió!$D$68)*dispersió!$C$12),0) -> 2.408269893 | H9: =IFERROR(dispersió!$C$10*((dispersió!$E$68+'Càlculs interns'!F9)^dispersió!$D$10)*(2*LN('Càlculs interns'!G9/dispersió!$O$68))^(1/2),0) -> 13.79063559 | I9: -13.79063559 | K9: =K$7+K8 -> 13.63881991 | L9: =IFERROR((letalitat!$P$8*1000)/((3.14159*dispersió!$C$10*((dispersió!$E$67+K9)^dispersió!$D$10)*dispersió!$E$10*((dispersió!$F$67+K9)^dispersió!$F$10)+dispersió!$C$24*dispersió!$D$67)*dispersió!$C$12),0) -> 2.6707756 | M9: =IFERROR(dispersió!$C$10*((dispersió!$E$67+'Càlculs interns'!K9)^dispersió!$D$10)*(2*LN('Càlculs interns'!L9/dispersió!$O$67))^(1/2),0) -> 11.95555937 | N9: -11.95555937 | P9: =P$7+P8 -> 6.886309294 | Q9: =IFERROR((letalitat!$P$8*1000)/((3.14159*dispersió!$C$10*((dispersió!$E$66+P9)^dispersió!$D$10)*dispersió!$E$10*((dispersió!$F$66+P9)^dispersió!$F$10)+dispersió!$C$24*dispersió!$D$66)*dispersió!$C$12),0) -> 3.077634372 | R9: =IFERROR(dispersió!$C$10*((dispersió!$E$66+'Càlculs interns'!P9)^dispersió!$D$10)*(2*LN('Càlculs interns'!Q9/dispersió!$O$66))^(1/2),0) -> 8.88611139 | S9: -8.88611139
A10: 32.67450279 | B10: =IFERROR((letalitat!$P$8*1000)/((3.14159*dispersió!$C$10*((dispersió!$E$69+A10)^dispersió!$D$10)*dispersió!$E$10*((dispersió!$F$69+A10)^dispersió!$F$10)+dispersió!$C$24*dispersió!$D$69)*dispersió!$C$12),0) -> 1.879533913 | C10: =IFERROR(dispersió!$C$10*((dispersió!$E$69+'Càlculs interns'!A10)^dispersió!$D$10)*(2*LN('Càlculs interns'!B10/dispersió!$O$69))^(1/2),0) -> 16.18659775 | D10: -16.18659775 | F10: 25.17937193 | G10: =IFERROR((letalitat!$P$8*1000)/((3.14159*dispersió!$C$10*((dispersió!$E$68+F10)^dispersió!$D$10)*dispersió!$E$10*((dispersió!$F$68+F10)^dispersió!$F$10)+dispersió!$C$24*dispersió!$D$68)*dispersió!$C$12),0) -> 2.141918909 | H10: =IFERROR(dispersió!$C$10*((dispersió!$E$68+'Càlculs interns'!F10)^dispersió!$D$10)*(2*LN('Càlculs interns'!G10/dispersió!$O$68))^(1/2),0) -> 14.23927802 | I10: -14.23927802 | K10: 18.18509321 | L10: =IFERROR((letalitat!$P$8*1000)/((3.14159*dispersió!$C$10*((dispersió!$E$67+K10)^dispersió!$D$10)*dispersió!$E$10*((dispersió!$F$67+K10)^dispersió!$F$10)+dispersió!$C$24*dispersió!$D$67)*dispersió!$C$12),0) -> 2.440949724 | M10: =IFERROR(dispersió!$C$10*((dispersió!$E$67+'Càlculs interns'!K10)^dispersió!$D$10)*(2*LN('Càlculs interns'!L10/dispersió!$O$67))^(1/2),0) -> 12.20378707 | N10: -12.20378707 | P10: 9.181745726 | Q10: =IFERROR((letalitat!$P$8*1000)/((3.14159*dispersió!$C$10*((dispersió!$E$66+P10)^dispersió!$D$10)*dispersió!$E$10*((dispersió!$F$66+P10)^dispersió!$F$10)+dispersió!$C$24*dispersió!$D$66)*dispersió!$C$12),0) -> 2.929435438 | R10: =IFERROR(dispersió!$C$10*((dispersió!$E$66+'Càlculs interns'!P10)^dispersió!$D$10)*(2*LN('Càlculs interns'!Q10/dispersió!$O$66))^(1/2),0) -> 8.91362293 | S10: -8.91362293
A11: 40.84312849 | B11: =IFERROR((letalitat!$P$8*1000)/((3.14159*dispersió!$C$10*((dispersió!$E$69+A11)^dispersió!$D$10)*dispersió!$E$10*((dispersió!$F$69+A11)^dispersió!$F$10)+dispersió!$C$24*dispersió!$D$69)*dispersió!$C$12),0) -> 1.645999254 | C11: =IFERROR(dispersió!$C$10*((dispersió!$E$69+'Càlculs interns'!A11)^dispersió!$D$10)*(2*LN('Càlculs interns'!B11/dispersió!$O$69))^(1/2),0) -> 16.7905398 | D11: -16.7905398 | F11: 31.47421491 | G11: =IFERROR((letalitat!$P$8*1000)/((3.14159*dispersió!$C$10*((dispersió!$E$68+F11)^dispersió!$D$10)*dispersió!$E$10*((dispersió!$F$68+F11)^dispersió!$F$10)+dispersió!$C$24*dispersió!$D$68)*dispersió!$C$12),0) -> 1.918121333 | H11: =IFERROR(dispersió!$C$10*((dispersió!$E$68+'Càlculs interns'!F11)^dispersió!$D$10)*(2*LN('Càlculs interns'!G11/dispersió!$O$68))^(1/2),0) -> 14.63711296 | I11: -14.63711296 | K11: 22.73136651 | L11: =IFERROR((letalitat!$P$8*1000)/((3.14159*dispersió!$C$10*((dispersió!$E$67+K11)^dispersió!$D$10)*dispersió!$E$10*((dispersió!$F$67+K11)^dispersió!$F$10)+dispersió!$C$24*dispersió!$D$67)*dispersió!$C$12),0) -> 2.239893416 | M11: =IFERROR(dispersió!$C$10*((dispersió!$E$67+'Càlculs interns'!K11)^dispersió!$D$10)*(2*LN('Càlculs interns'!L11/dispersió!$O$67))^(1/2),0) -> 12.41945239 | N11: -12.41945239 | P11: 11.47718216 | Q11: =IFERROR((letalitat!$P$8*1000)/((3.14159*dispersió!$C$10*((dispersió!$E$66+P11)^dispersió!$D$10)*dispersió!$E$10*((dispersió!$F$66+P11)^dispersió!$F$10)+dispersió!$C$24*dispersió!$D$66)*dispersió!$C$12),0) -> 2.791722281 | R11: =IFERROR(dispersió!$C$10*((dispersió!$E$66+'Càlculs interns'!P11)^dispersió!$D$10)*(2*LN('Càlculs interns'!Q11/dispersió!$O$66))^(1/2),0) -> 8.92794405 | S11: -8.92794405
A12: 49.01175419 | B12: =IFERROR((letalitat!$P$8*1000)/((3.14159*dispersió!$C$10*((dispersió!$E$69+A12)^dispersió!$D$10)*dispersió!$E$10*((dispersió!$F$69+A12)^dispersió!$F$10)+dispersió!$C$24*dispersió!$D$69)*dispersió!$C$12),0) -> 1.454455356 | C12: =IFERROR(dispersió!$C$10*((dispersió!$E$69+'Càlculs interns'!A12)^dispersió!$D$10)*(2*LN('Càlculs interns'!B12/dispersió!$O$69))^(1/2),0) -> 17.3251154 | D12: -17.3251154 | F12: 37.7690579 | G12: =IFERROR((letalitat!$P$8*1000)/((3.14159*dispersió!$C$10*((dispersió!$E$68+F12)^dispersió!$D$10)*dispersió!$E$10*((dispersió!$F$68+F12)^dispersió!$F$10)+dispersió!$C$24*dispersió!$D$68)*dispersió!$C$12),0) -> 1.728343553 | H12: =IFERROR(dispersió!$C$10*((dispersió!$E$68+'Càlculs interns'!F12)^dispersió!$D$10)*(2*LN('Càlculs interns'!G12/dispersió!$O$68))^(1/2),0) -> 14.98563781 | I12: -14.98563781 | K12: 27.27763981 | L12: =IFERROR((letalitat!$P$8*1000)/((3.14159*dispersió!$C$10*((dispersió!$E$67+K12)^dispersió!$D$10)*dispersió!$E$10*((dispersió!$F$67+K12)^dispersió!$F$10)+dispersió!$C$24*dispersió!$D$67)*dispersió!$C$12),0) -> 2.063061796 | M12: =IFERROR(dispersió!$C$10*((dispersió!$E$67+'Càlculs interns'!K12)^dispersió!$D$10)*(2*LN('Càlculs interns'!L12/dispersió!$O$67))^(1/2),0) -> 12.6029835 | N12: -12.6029835 | P12: 13.77261859 | Q12: =IFERROR((letalitat!$P$8*1000)/((3.14159*dispersió!$C$10*((dispersió!$E$66+P12)^dispersió!$D$10)*dispersió!$E$10*((dispersió!$F$66+P12)^dispersió!$F$10)+dispersió!$C$24*dispersió!$D$66)*dispersió!$C$12),0) -> 2.663551102 | R12: =IFERROR(dispersió!$C$10*((dispersió!$E$66+'Càlculs interns'!P12)^dispersió!$D$10)*(2*LN('Càlculs interns'!Q12/dispersió!$O$66))^(1/2),0) -> 8.928883949 | S12: -8.928883949
A13: 57.18037989 | B13: =IFERROR((letalitat!$P$8*1000)/((3.14159*dispersió!$C$10*((dispersió!$E$69+A13)^dispersió!$D$10)*dispersió!$E$10*((dispersió!$F$69+A13)^dispersió!$F$10)+dispersió!$C$24*dispersió!$D$69)*dispersió!$C$12),0) -> 1.295409234 | C13: =IFERROR(dispersió!$C$10*((dispersió!$E$69+'Càlculs interns'!A13)^dispersió!$D$10)*(2*LN('Càlculs interns'!B13/dispersió!$O$69))^(1/2),0) -> 17.79273542 | D13: -17.79273542 | F13: 44.06390088 | G13: =IFERROR((letalitat!$P$8*1000)/((3.14159*dispersió!$C$10*((dispersió!$E$68+F13)^dispersió!$D$10)*dispersió!$E$10*((dispersió!$F$68+F13)^dispersió!$F$10)+dispersió!$C$24*dispersió!$D$68)*dispersió!$C$12),0) -> 1.566055961 | H13: =IFERROR(dispersió!$C$10*((dispersió!$E$68+'Càlculs interns'!F13)^dispersió!$D$10)*(2*LN('Càlculs interns'!G13/dispersió!$O$68))^(1/2),0) -> 15.28596444 | I13: -15.28596444 | K13: 31.82391311 | L13: =IFERROR((letalitat!$P$8*1000)/((3.14159*dispersió!$C$10*((dispersió!$E$67+K13)^dispersió!$D$10)*dispersió!$E$10*((dispersió!$F$67+K13)^dispersió!$F$10)+dispersió!$C$24*dispersió!$D$67)*dispersió!$C$12),0) -> 1.906754244 | M13: =IFERROR(dispersió!$C$10*((dispersió!$E$67+'Càlculs interns'!K13)^dispersió!$D$10)*(2*LN('Càlculs interns'!L13/dispersió!$O$67))^(1/2),0) -> 12.75463707 | N13: -12.75463707 | P13: 16.06805502 | Q13: =IFERROR((letalitat!$P$8*1000)/((3.14159*dispersió!$C$10*((dispersió!$E$66+P13)^dispersió!$D$10)*dispersió!$E$10*((dispersió!$F$66+P13)^dispersió!$F$10)+dispersió!$C$24*dispersió!$D$66)*dispersió!$C$12),0) -> 2.544078786 | R13: =IFERROR(dispersió!$C$10*((dispersió!$E$66+'Càlculs interns'!P13)^dispersió!$D$10)*(2*LN('Càlculs interns'!Q13/dispersió!$O$66))^(1/2),0) -> 8.916205492 | S13: -8.916205492
A14: 65.34900559 | B14: =IFERROR((letalitat!$P$8*1000)/((3.14159*dispersió!$C$10*((dispersió!$E$69+A14)^dispersió!$D$10)*dispersió!$E$10*((dispersió!$F$69+A14)^dispersió!$F$10)+dispersió!$C$24*dispersió!$D$69)*dispersió!$C$12),0) -> 1.161885787 | C14: =IFERROR(dispersió!$C$10*((dispersió!$E$69+'Càlculs interns'!A14)^dispersió!$D$10)*(2*LN('Càlculs interns'!B14/dispersió!$O$69))^(1/2),0) -> 18.19517999 | D14: -18.19517999 | F14: 50.35874386 | G14: =IFERROR((letalitat!$P$8*1000)/((3.14159*dispersió!$C$10*((dispersió!$E$68+F14)^dispersió!$D$10)*dispersió!$E$10*((dispersió!$F$68+F14)^dispersió!$F$10)+dispersió!$C$24*dispersió!$D$68)*dispersió!$C$12),0) -> 1.426203994 | H14: =IFERROR(dispersió!$C$10*((dispersió!$E$68+'Càlculs interns'!F14)^dispersió!$D$10)*(2*LN('Càlculs interns'!G14/dispersió!$O$68))^(1/2),0) -> 15.53885934 | I14: -15.53885934 | K14: 36.37018641 | L14: =IFERROR((letalitat!$P$8*1000)/((3.14159*dispersió!$C$10*((dispersió!$E$67+K14)^dispersió!$D$10)*dispersió!$E$10*((dispersió!$F$67+K14)^dispersió!$F$10)+dispersió!$C$24*dispersió!$D$67)*dispersió!$C$12),0) -> 1.767937489 | M14: =IFERROR(dispersió!$C$10*((dispersió!$E$67+'Càlculs interns'!K14)^dispersió!$D$10)*(2*LN('Càlculs interns'!L14/dispersió!$O$67))^(1/2),0) -> 12.8745032 | N14: -12.8745032 | P14: 18.36349145 | Q14: =IFERROR((letalitat!$P$8*1000)/((3.14159*dispersió!$C$10*((dispersió!$E$66+P14)^dispersió!$D$10)*dispersió!$E$10*((dispersió!$F$66+P14)^dispersió!$F$10)+dispersió!$C$24*dispersió!$D$66)*dispersió!$C$12),0) -> 2.432550626 | R14: =IFERROR(dispersió!$C$10*((dispersió!$E$66+'Càlculs interns'!P14)^dispersió!$D$10)*(2*LN('Càlculs interns'!Q14/dispersió!$O$66))^(1/2),0) -> 8.889620338 | S14: -8.889620338
A15: 73.51763129 | B15: =IFERROR((letalitat!$P$8*1000)/((3.14159*dispersió!$C$10*((dispersió!$E$69+A15)^dispersió!$D$10)*dispersió!$E$10*((dispersió!$F$69+A15)^dispersió!$F$10)+dispersió!$C$24*dispersió!$D$69)*dispersió!$C$12),0) -> 1.048675577 | C15: =IFERROR(dispersió!$C$10*((dispersió!$E$69+'Càlculs interns'!A15)^dispersió!$D$10)*(2*LN('Càlculs interns'!B15/dispersió!$O$69))^(1/2),0) -> 18.53368136 | D15: -18.53368136 | F15: 56.65358685 | G15: =IFERROR((letalitat!$P$8*1000)/((3.14159*dispersió!$C$10*((dispersió!$E$68+F15)^dispersió!$D$10)*dispersió!$E$10*((dispersió!$F$68+F15)^dispersió!$F$10)+dispersió!$C$24*dispersió!$D$68)*dispersió!$C$12),0) -> 1.304831972 | H15: =IFERROR(dispersió!$C$10*((dispersió!$E$68+'Càlculs interns'!F15)^dispersió!$D$10)*(2*LN('Càlculs interns'!G15/dispersió!$O$68))^(1/2),0) -> 15.74477109 | I15: -15.74477109 | K15: 40.91645972 | L15: =IFERROR((letalitat!$P$8*1000)/((3.14159*dispersió!$C$10*((dispersió!$E$67+K15)^dispersió!$D$10)*dispersió!$E$10*((dispersió!$F$67+K15)^dispersió!$F$10)+dispersió!$C$24*dispersió!$D$67)*dispersió!$C$12),0) -> 1.644109453 | M15: =IFERROR(dispersió!$C$10*((dispersió!$E$67+'Càlculs interns'!K15)^dispersió!$D$10)*(2*LN('Càlculs interns'!L15/dispersió!$O$67))^(1/2),0) -> 12.96250651 | N15: -12.96250651 | P15: 20.65892788 | Q15: =IFERROR((letalitat!$P$8*1000)/((3.14159*dispersió!$C$10*((dispersió!$E$66+P15)^dispersió!$D$10)*dispersió!$E$10*((dispersió!$F$66+P15)^dispersió!$F$10)+dispersió!$C$24*dispersió!$D$66)*dispersió!$C$12),0) -> 2.328289744 | R15: =IFERROR(dispersió!$C$10*((dispersió!$E$66+'Càlculs interns'!P15)^dispersió!$D$10)*(2*LN('Càlculs interns'!Q15/dispersió!$O$66))^(1/2),0) -> 8.848782982 | S15: -8.848782982
A16: 81.68625699 | B16: =IFERROR((letalitat!$P$8*1000)/((3.14159*dispersió!$C$10*((dispersió!$E$69+A16)^dispersió!$D$10)*dispersió!$E$10*((dispersió!$F$69+A16)^dispersió!$F$10)+dispersió!$C$24*dispersió!$D$69)*dispersió!$C$12),0) -> 0.951829078 | C16: =IFERROR(dispersió!$C$10*((dispersió!$E$69+'Càlculs interns'!A16)^dispersió!$D$10)*(2*LN('Càlculs interns'!B16/dispersió!$O$69))^(1/2),0) -> 18.80897914 | D16: -18.80897914 | F16: 62.94842983 | G16: =IFERROR((letalitat!$P$8*1000)/((3.14159*dispersió!$C$10*((dispersió!$E$68+F16)^dispersió!$D$10)*dispersió!$E$10*((dispersió!$F$68+F16)^dispersió!$F$10)+dispersió!$C$24*dispersió!$D$68)*dispersió!$C$12),0) -> 1.198812296 | H16: =IFERROR(dispersió!$C$10*((dispersió!$E$68+'Càlculs interns'!F16)^dispersió!$D$10)*(2*LN('Càlculs interns'!G16/dispersió!$O$68))^(1/2),0) -> 15.90384642 | I16: -15.90384642 | K16: 45.46273302 | L16: =IFERROR((letalitat!$P$8*1000)/((3.14159*dispersió!$C$10*((dispersió!$E$67+K16)^dispersió!$D$10)*dispersió!$E$10*((dispersió!$F$67+K16)^dispersió!$F$10)+dispersió!$C$24*dispersió!$D$67)*dispersió!$C$12),0) -> 1.533193671 | M16: =IFERROR(dispersió!$C$10*((dispersió!$E$67+'Càlculs interns'!K16)^dispersió!$D$10)*(2*LN('Càlculs interns'!L16/dispersió!$O$67))^(1/2),0) -> 13.01840324 | N16: -13.01840324 | P16: 22.95436431 | Q16: =IFERROR((letalitat!$P$8*1000)/((3.14159*dispersió!$C$10*((dispersió!$E$66+P16)^dispersió!$D$10)*dispersió!$E$10*((dispersió!$F$66+P16)^dispersió!$F$10)+dispersió!$C$24*dispersió!$D$66)*dispersió!$C$12),0) -> 2.23068794 | R16: =IFERROR(dispersió!$C$10*((dispersió!$E$66+'Càlculs interns'!P16)^dispersió!$D$10)*(2*LN('Càlculs interns'!Q16/dispersió!$O$66))^(1/2),0) -> 8.793283383 | S16: -8.793283383
A17: 89.85488268 | B17: =IFERROR((letalitat!$P$8*1000)/((3.14159*dispersió!$C$10*((dispersió!$E$69+A17)^dispersió!$D$10)*dispersió!$E$10*((dispersió!$F$69+A17)^dispersió!$F$10)+dispersió!$C$24*dispersió!$D$69)*dispersió!$C$12),0) -> 0.8683104503 | C17: =IFERROR(dispersió!$C$10*((dispersió!$E$69+'Càlculs interns'!A17)^dispersió!$D$10)*(2*LN('Càlculs interns'!B17/dispersió!$O$69))^(1/2),0) -> 19.02135312 | D17: -19.02135312 | F17: 69.24327281 | G17: =IFERROR((letalitat!$P$8*1000)/((3.14159*dispersió!$C$10*((dispersió!$E$68+F17)^dispersió!$D$10)*dispersió!$E$10*((dispersió!$F$68+F17)^dispersió!$F$10)+dispersió!$C$24*dispersió!$D$68)*dispersió!$C$12),0) -> 1.105648215 | H17: =IFERROR(dispersió!$C$10*((dispersió!$E$68+'Càlculs interns'!F17)^dispersió!$D$10)*(2*LN('Càlculs interns'!G17/dispersió!$O$68))^(1/2),0) -> 16.01593599 | I17: -16.01593599 | K17: 50.00900632 | L17: =IFERROR((letalitat!$P$8*1000)/((3.14159*dispersió!$C$10*((dispersió!$E$67+K17)^dispersió!$D$10)*dispersió!$E$10*((dispersió!$F$67+K17)^dispersió!$F$10)+dispersió!$C$24*dispersió!$D$67)*dispersió!$C$12),0) -> 1.43345686 | M17: =IFERROR(dispersió!$C$10*((dispersió!$E$67+'Càlculs interns'!K17)^dispersió!$D$10)*(2*LN('Càlculs interns'!L17/dispersió!$O$67))^(1/2),0) -> 13.04177368 | N17: -13.04177368 | P17: 25.24980075 | Q17: =IFERROR((letalitat!$P$8*1000)/((3.14159*dispersió!$C$10*((dispersió!$E$66+P17)^dispersió!$D$10)*dispersió!$E$10*((dispersió!$F$66+P17)^dispersió!$F$10)+dispersió!$C$24*dispersió!$D$66)*dispersió!$C$12),0) -> 2.139197733 | R17: =IFERROR(dispersió!$C$10*((dispersió!$E$66+'Càlculs interns'!P17)^dispersió!$D$10)*(2*LN('Càlculs interns'!Q17/dispersió!$O$66))^(1/2),0) -> 8.722637794 | S17: -8.722637794
A18: 98.02350838 | B18: =IFERROR((letalitat!$P$8*1000)/((3.14159*dispersió!$C$10*((dispersió!$E$69+A18)^dispersió!$D$10)*dispersió!$E$10*((dispersió!$F$69+A18)^dispersió!$F$10)+dispersió!$C$24*dispersió!$D$69)*dispersió!$C$12),0) -> 0.7957564883 | C18: =IFERROR(dispersió!$C$10*((dispersió!$E$69+'Càlculs interns'!A18)^dispersió!$D$10)*(2*LN('Càlculs interns'!B18/dispersió!$O$69))^(1/2),0) -> 19.17063694 | D18: -19.17063694 | F18: 75.53811579 | G18: =IFERROR((letalitat!$P$8*1000)/((3.14159*dispersió!$C$10*((dispersió!$E$68+F18)^dispersió!$D$10)*dispersió!$E$10*((dispersió!$F$68+F18)^dispersió!$F$10)+dispersió!$C$24*dispersió!$D$68)*dispersió!$C$12),0) -> 1.023328557 | H18: =IFERROR(dispersió!$C$10*((dispersió!$E$68+'Càlculs interns'!F18)^dispersió!$D$10)*(2*LN('Càlculs interns'!G18/dispersió!$O$68))^(1/2),0) -> 16.08058994 | I18: -16.08058994 | K18: 54.55527962 | L18: =IFERROR((letalitat!$P$8*1000)/((3.14159*dispersió!$C$10*((dispersió!$E$67+K18)^dispersió!$D$10)*dispersió!$E$10*((dispersió!$F$67+K18)^dispersió!$F$10)+dispersió!$C$24*dispersió!$D$67)*dispersió!$C$12),0) -> 1.343444157 | M18: =IFERROR(dispersió!$C$10*((dispersió!$E$67+'Càlculs interns'!K18)^dispersió!$D$10)*(2*LN('Càlculs interns'!L18/dispersió!$O$67))^(1/2),0) -> 13.03200949 | N18: -13.03200949 | P18: 27.54523718 | Q18: =IFERROR((letalitat!$P$8*1000)/((3.14159*dispersió!$C$10*((dispersió!$E$66+P18)^dispersió!$D$10)*dispersió!$E$10*((dispersió!$F$66+P18)^dispersió!$F$10)+dispersió!$C$24*dispersió!$D$66)*dispersió!$C$12),0) -> 2.053325447 | R18: =IFERROR(dispersió!$C$10*((dispersió!$E$66+'Càlculs interns'!P18)^dispersió!$D$10)*(2*LN('Càlculs interns'!Q18/dispersió!$O$66))^(1/2),0) -> 8.636277282 | S18: -8.636277282
A19: 106.1921341 | B19: =IFERROR((letalitat!$P$8*1000)/((3.14159*dispersió!$C$10*((dispersió!$E$69+A19)^dispersió!$D$10)*dispersió!$E$10*((dispersió!$F$69+A19)^dispersió!$F$10)+dispersió!$C$24*dispersió!$D$69)*dispersió!$C$12),0) -> 0.7323060959 | C19: =IFERROR(dispersió!$C$10*((dispersió!$E$69+'Càlculs interns'!A19)^dispersió!$D$10)*(2*LN('Càlculs interns'!B19/dispersió!$O$69))^(1/2),0) -> 19.25621395 | D19: -19.25621395 | F19: 81.83295878 | G19: =IFERROR((letalitat!$P$8*1000)/((3.14159*dispersió!$C$10*((dispersió!$E$68+F19)^dispersió!$D$10)*dispersió!$E$10*((dispersió!$F$68+F19)^dispersió!$F$10)+dispersió!$C$24*dispersió!$D$68)*dispersió!$C$12),0) -> 0.9502195718 | H19: =IFERROR(dispersió!$C$10*((dispersió!$E$68+'Càlculs interns'!F19)^dispersió!$D$10)*(2*LN('Càlculs interns'!G19/dispersió!$O$68))^(1/2),0) -> 16.09704308 | I19: -16.09704308 | K19: 59.10155292 | L19: =IFERROR((letalitat!$P$8*1000)/((3.14159*dispersió!$C$10*((dispersió!$E$67+K19)^dispersió!$D$10)*dispersió!$E$10*((dispersió!$F$67+K19)^dispersió!$F$10)+dispersió!$C$24*dispersió!$D$67)*dispersió!$C$12),0) -> 1.261927899 | M19: =IFERROR(dispersió!$C$10*((dispersió!$E$67+'Càlculs interns'!K19)^dispersió!$D$10)*(2*LN('Càlculs interns'!L19/dispersió!$O$67))^(1/2),0) -> 12.98829497 | N19: -12.98829497 | P19: 29.84067361 | Q19: =IFERROR((letalitat!$P$8*1000)/((3.14159*dispersió!$C$10*((dispersió!$E$66+P19)^dispersió!$D$10)*dispersió!$E$10*((dispersió!$F$66+P19)^dispersió!$F$10)+dispersió!$C$24*dispersió!$D$66)*dispersió!$C$12),0) -> 1.972625157 | R19: =IFERROR(dispersió!$C$10*((dispersió!$E$66+'Càlculs interns'!P19)^dispersió!$D$10)*(2*LN('Càlculs interns'!Q19/dispersió!$O$66))^(1/2),0) -> 8.533533219 | S19: -8.533533219
A20: 114.3607598 | B20: =IFERROR((letalitat!$P$8*1000)/((3.14159*dispersió!$C$10*((dispersió!$E$69+A20)^dispersió!$D$10)*dispersió!$E$10*((dispersió!$F$69+A20)^dispersió!$F$10)+dispersió!$C$24*dispersió!$D$69)*dispersió!$C$12),0) -> 0.6764778533 | C20: =IFERROR(dispersió!$C$10*((dispersió!$E$69+'Càlculs interns'!A20)^dispersió!$D$10)*(2*LN('Càlculs interns'!B20/dispersió!$O$69))^(1/2),0) -> 19.2769951 | D20: -19.2769951 | F20: 88.12780176 | G20: =IFERROR((letalitat!$P$8*1000)/((3.14159*dispersió!$C$10*((dispersió!$E$68+F20)^dispersió!$D$10)*dispersió!$E$10*((dispersió!$F$68+F20)^dispersió!$F$10)+dispersió!$C$24*dispersió!$D$68)*dispersió!$C$12),0) -> 0.884983591 | H20: =IFERROR(dispersió!$C$10*((dispersió!$E$68+'Càlculs interns'!F20)^dispersió!$D$10)*(2*LN('Càlculs interns'!G20/dispersió!$O$68))^(1/2),0) -> 16.0641881 | I20: -16.0641881 | K20: 63.64782623 | L20: =IFERROR((letalitat!$P$8*1000)/((3.14159*dispersió!$C$10*((dispersió!$E$67+K20)^dispersió!$D$10)*dispersió!$E$10*((dispersió!$F$67+K20)^dispersió!$F$10)+dispersió!$C$24*dispersió!$D$67)*dispersió!$C$12),0) -> 1.18786689 | M20: =IFERROR(dispersió!$C$10*((dispersió!$E$67+'Càlculs interns'!K20)^dispersió!$D$10)*(2*LN('Càlculs interns'!L20/dispersió!$O$67))^(1/2),0) -> 12.90958056 | N20: -12.90958056 | P20: 32.13611004 | Q20: =IFERROR((letalitat!$P$8*1000)/((3.14159*dispersió!$C$10*((dispersió!$E$66+P20)^dispersió!$D$10)*dispersió!$E$10*((dispersió!$F$66+P20)^dispersió!$F$10)+dispersió!$C$24*dispersió!$D$66)*dispersió!$C$12),0) -> 1.896693404 | R20: =IFERROR(dispersió!$C$10*((dispersió!$E$66+'Càlculs interns'!P20)^dispersió!$D$10)*(2*LN('Càlculs interns'!Q20/dispersió!$O$66))^(1/2),0) -> 8.41361877 | S20: -8.41361877
A21: 122.5293855 | B21: =IFERROR((letalitat!$P$8*1000)/((3.14159*dispersió!$C$10*((dispersió!$E$69+A21)^dispersió!$D$10)*dispersió!$E$10*((dispersió!$F$69+A21)^dispersió!$F$10)+dispersió!$C$24*dispersió!$D$69)*dispersió!$C$12),0) -> 0.6270808834 | C21: =IFERROR(dispersió!$C$10*((dispersió!$E$69+'Càlculs interns'!A21)^dispersió!$D$10)*(2*LN('Càlculs interns'!B21/dispersió!$O$69))^(1/2),0) -> 19.2313767 | D21: -19.2313767 | F21: 94.42264474 | G21: =IFERROR((letalitat!$P$8*1000)/((3.14159*dispersió!$C$10*((dispersió!$E$68+F21)^dispersió!$D$10)*dispersió!$E$10*((dispersió!$F$68+F21)^dispersió!$F$10)+dispersió!$C$24*dispersió!$D$68)*dispersió!$C$12),0) -> 0.8265172443 | H21: =IFERROR(dispersió!$C$10*((dispersió!$E$68+'Càlculs interns'!F21)^dispersió!$D$10)*(2*LN('Càlculs interns'!G21/dispersió!$O$68))^(1/2),0) -> 15.98053479 | I21: -15.98053479 | K21: 68.19409953 | L21: =IFERROR((letalitat!$P$8*1000)/((3.14159*dispersió!$C$10*((dispersió!$E$67+K21)^dispersió!$D$10)*dispersió!$E$10*((dispersió!$F$67+K21)^dispersió!$F$10)+dispersió!$C$24*dispersió!$D$67)*dispersió!$C$12),0) -> 1.120373802 | M21: =IFERROR(dispersió!$C$10*((dispersió!$E$67+'Càlculs interns'!K21)^dispersió!$D$10)*(2*LN('Càlculs interns'!L21/dispersió!$O$67))^(1/2),0) -> 12.7945467 | N21: -12.7945467 | P21: 34.43154647 | Q21: =IFERROR((letalitat!$P$8*1000)/((3.14159*dispersió!$C$10*((dispersió!$E$66+P21)^dispersió!$D$10)*dispersió!$E$10*((dispersió!$F$66+P21)^dispersió!$F$10)+dispersió!$C$24*dispersió!$D$66)*dispersió!$C$12),0) -> 1.825164555 | R21: =IFERROR(dispersió!$C$10*((dispersió!$E$66+'Càlculs interns'!P21)^dispersió!$D$10)*(2*LN('Càlculs interns'!Q21/dispersió!$O$66))^(1/2),0) -> 8.275605003 | S21: -8.275605003
A22: 130.6980112 | B22: =IFERROR((letalitat!$P$8*1000)/((3.14159*dispersió!$C$10*((dispersió!$E$69+A22)^dispersió!$D$10)*dispersió!$E$10*((dispersió!$F$69+A22)^dispersió!$F$10)+dispersió!$C$24*dispersió!$D$69)*dispersió!$C$12),0) -> 0.5831491165 | C22: =IFERROR(dispersió!$C$10*((dispersió!$E$69+'Càlculs interns'!A22)^dispersió!$D$10)*(2*LN('Càlculs interns'!B22/dispersió!$O$69))^(1/2),0) -> 19.11717427 | D22: -19.11717427 | F22: 100.7174877 | G22: =IFERROR((letalitat!$P$8*1000)/((3.14159*dispersió!$C$10*((dispersió!$E$68+F22)^dispersió!$D$10)*dispersió!$E$10*((dispersió!$F$68+F22)^dispersió!$F$10)+dispersió!$C$24*dispersió!$D$68)*dispersió!$C$12),0) -> 0.773904095 | H22: =IFERROR(dispersió!$C$10*((dispersió!$E$68+'Càlculs interns'!F22)^dispersió!$D$10)*(2*LN('Càlculs interns'!G22/dispersió!$O$68))^(1/2),0) -> 15.84415125 | I22: -15.84415125 | K22: 72.74037283 | L22: =IFERROR((letalitat!$P$8*1000)/((3.14159*dispersió!$C$10*((dispersió!$E$67+K22)^dispersió!$D$10)*dispersió!$E$10*((dispersió!$F$67+K22)^dispersió!$F$10)+dispersió!$C$24*dispersió!$D$67)*dispersió!$C$12),0) -> 1.058688947 | M22: =IFERROR(dispersió!$C$10*((dispersió!$E$67+'Càlculs interns'!K22)^dispersió!$D$10)*(2*LN('Càlculs interns'!L22/dispersió!$O$67))^(1/2),0) -> 12.64155476 | N22: -12.64155476 | P22: 36.7269829 | Q22: =IFERROR((letalitat!$P$8*1000)/((3.14159*dispersió!$C$10*((dispersió!$E$66+P22)^dispersió!$D$10)*dispersió!$E$10*((dispersió!$F$66+P22)^dispersió!$F$10)+dispersió!$C$24*dispersió!$D$66)*dispersió!$C$12),0) -> 1.757706736 | R22: =IFERROR(dispersió!$C$10*((dispersió!$E$66+'Càlculs interns'!P22)^dispersió!$D$10)*(2*LN('Càlculs interns'!Q22/dispersió!$O$66))^(1/2),0) -> 8.118389643 | S22: -8.118389643
A23: 138.8666369 | B23: =IFERROR((letalitat!$P$8*1000)/((3.14159*dispersió!$C$10*((dispersió!$E$69+A23)^dispersió!$D$10)*dispersió!$E$10*((dispersió!$F$69+A23)^dispersió!$F$10)+dispersió!$C$24*dispersió!$D$69)*dispersió!$C$12),0) -> 0.5438922234 | C23: =IFERROR(dispersió!$C$10*((dispersió!$E$69+'Càlculs interns'!A23)^dispersió!$D$10)*(2*LN('Càlculs interns'!B23/dispersió!$O$69))^(1/2),0) -> 18.93152545 | D23: -18.93152545 | F23: 107.0123307 | G23: =IFERROR((letalitat!$P$8*1000)/((3.14159*dispersió!$C$10*((dispersió!$E$68+F23)^dispersió!$D$10)*dispersió!$E$10*((dispersió!$F$68+F23)^dispersió!$F$10)+dispersió!$C$24*dispersió!$D$68)*dispersió!$C$12),0) -> 0.7263780094 | H23: =IFERROR(dispersió!$C$10*((dispersió!$E$68+'Càlculs interns'!F23)^dispersió!$D$10)*(2*LN('Càlculs interns'!G23/dispersió!$O$68))^(1/2),0) -> 15.65258144 | I23: -15.65258144 | K23: 77.28664613 | L23: =IFERROR((letalitat!$P$8*1000)/((3.14159*dispersió!$C$10*((dispersió!$E$67+K23)^dispersió!$D$10)*dispersió!$E$10*((dispersió!$F$67+K23)^dispersió!$F$10)+dispersió!$C$24*dispersió!$D$67)*dispersió!$C$12),0) -> 1.002159054 | M23: =IFERROR(dispersió!$C$10*((dispersió!$E$67+'Càlculs interns'!K23)^dispersió!$D$10)*(2*LN('Càlculs interns'!L23/dispersió!$O$67))^(1/2),0) -> 12.44858022 | N23: -12.44858022 | P23: 39.02241934 | Q23: =IFERROR((letalitat!$P$8*1000)/((3.14159*dispersió!$C$10*((dispersió!$E$66+P23)^dispersió!$D$10)*dispersió!$E$10*((dispersió!$F$66+P23)^dispersió!$F$10)+dispersió!$C$24*dispersió!$D$66)*dispersió!$C$12),0) -> 1.694018237 | R23: =IFERROR(dispersió!$C$10*((dispersió!$E$66+'Càlculs interns'!P23)^dispersió!$D$10)*(2*LN('Càlculs interns'!Q23/dispersió!$O$66))^(1/2),0) -> 7.940655542 | S23: -7.940655542
A24: 147.0352626 | B24: =IFERROR((letalitat!$P$8*1000)/((3.14159*dispersió!$C$10*((dispersió!$E$69+A24)^dispersió!$D$10)*dispersió!$E$10*((dispersió!$F$69+A24)^dispersió!$F$10)+dispersió!$C$24*dispersió!$D$69)*dispersió!$C$12),0) -> 0.508658575 | C24: =IFERROR(dispersió!$C$10*((dispersió!$E$69+'Càlculs interns'!A24)^dispersió!$D$10)*(2*LN('Càlculs interns'!B24/dispersió!$O$69))^(1/2),0) -> 18.67075105 | D24: -18.67075105 | F24: 113.3071737 | G24: =IFERROR((letalitat!$P$8*1000)/((3.14159*dispersió!$C$10*((dispersió!$E$68+F24)^dispersió!$D$10)*dispersió!$E$10*((dispersió!$F$68+F24)^dispersió!$F$10)+dispersió!$C$24*dispersió!$D$68)*dispersió!$C$12),0) -> 0.6832945879 | H24: =IFERROR(dispersió!$C$10*((dispersió!$E$68+'Càlculs interns'!F24)^dispersió!$D$10)*(2*LN('Càlculs interns'!G24/dispersió!$O$68))^(1/2),0) -> 15.40272961 | I24: -15.40272961 | K24: 81.83291943 | L24: =IFERROR((letalitat!$P$8*1000)/((3.14159*dispersió!$C$10*((dispersió!$E$67+K24)^dispersió!$D$10)*dispersió!$E$10*((dispersió!$F$67+K24)^dispersió!$F$10)+dispersió!$C$24*dispersió!$D$67)*dispersió!$C$12),0) -> 0.9502200029 | M24: =IFERROR(dispersió!$C$10*((dispersió!$E$67+'Càlculs interns'!K24)^dispersió!$D$10)*(2*LN('Càlculs interns'!L24/dispersió!$O$67))^(1/2),0) -> 12.21312091 | N24: -12.21312091 | P24: 41.31785577 | Q24: =IFERROR((letalitat!$P$8*1000)/((3.14159*dispersió!$C$10*((dispersió!$E$66+P24)^dispersió!$D$10)*dispersió!$E$10*((dispersió!$F$66+P24)^dispersió!$F$10)+dispersió!$C$24*dispersió!$D$66)*dispersió!$C$12),0) -> 1.633824362 | R24: =IFERROR(dispersió!$C$10*((dispersió!$E$66+'Càlculs interns'!P24)^dispersió!$D$10)*(2*LN('Càlculs interns'!Q24/dispersió!$O$66))^(1/2),0) -> 7.740814458 | S24: -7.740814458
A25: 155.2038883 | B25: =IFERROR((letalitat!$P$8*1000)/((3.14159*dispersió!$C$10*((dispersió!$E$69+A25)^dispersió!$D$10)*dispersió!$E$10*((dispersió!$F$69+A25)^dispersió!$F$10)+dispersió!$C$24*dispersió!$D$69)*dispersió!$C$12),0) -> 0.4769069862 | C25: =IFERROR(dispersió!$C$10*((dispersió!$E$69+'Càlculs interns'!A25)^dispersió!$D$10)*(2*LN('Càlculs interns'!B25/dispersió!$O$69))^(1/2),0) -> 18.33015663 | D25: -18.33015663 | F25: 119.6020167 | G25: =IFERROR((letalitat!$P$8*1000)/((3.14159*dispersió!$C$10*((dispersió!$E$68+F25)^dispersió!$D$10)*dispersió!$E$10*((dispersió!$F$68+F25)^dispersió!$F$10)+dispersió!$C$24*dispersió!$D$68)*dispersió!$C$12),0) -> 0.6441087066 | H25: =IFERROR(dispersió!$C$10*((dispersió!$E$68+'Càlculs interns'!F25)^dispersió!$D$10)*(2*LN('Càlculs interns'!G25/dispersió!$O$68))^(1/2),0) -> 15.09069759 | I25: -15.09069759 | K25: 86.37919273 | L25: =IFERROR((letalitat!$P$8*1000)/((3.14159*dispersió!$C$10*((dispersió!$E$67+K25)^dispersió!$D$10)*dispersió!$E$10*((dispersió!$F$67+K25)^dispersió!$F$10)+dispersió!$C$24*dispersió!$D$67)*dispersió!$C$12),0) -> 0.9023827123 | M25: =IFERROR(dispersió!$C$10*((dispersió!$E$67+'Càlculs interns'!K25)^dispersió!$D$10)*(2*LN('Càlculs interns'!L25/dispersió!$O$67))^(1/2),0) -> 11.93206905 | N25: -11.93206905 | P25: 43.6132922 | Q25: =IFERROR((letalitat!$P$8*1000)/((3.14159*dispersió!$C$10*((dispersió!$E$66+P25)^dispersió!$D$10)*dispersió!$E$10*((dispersió!$F$66+P25)^dispersió!$F$10)+dispersió!$C$24*dispersió!$D$66)*dispersió!$C$12),0) -> 1.576874634 | R25: =IFERROR(dispersió!$C$10*((dispersió!$E$66+'Càlculs interns'!P25)^dispersió!$D$10)*(2*LN('Càlculs interns'!Q25/dispersió!$O$66))^(1/2),0) -> 7.516929296 | S25: -7.516929296
A26: 163.372514 | B26: =IFERROR((letalitat!$P$8*1000)/((3.14159*dispersió!$C$10*((dispersió!$E$69+A26)^dispersió!$D$10)*dispersió!$E$10*((dispersió!$F$69+A26)^dispersió!$F$10)+dispersió!$C$24*dispersió!$D$69)*dispersió!$C$12),0) -> 0.4481849481 | C26: =IFERROR(dispersió!$C$10*((dispersió!$E$69+'Càlculs interns'!A26)^dispersió!$D$10)*(2*LN('Càlculs interns'!B26/dispersió!$O$69))^(1/2),0) -> 17.903746 | D26: -17.903746 | F26: 125.8968597 | G26: =IFERROR((letalitat!$P$8*1000)/((3.14159*dispersió!$C$10*((dispersió!$E$68+F26)^dispersió!$D$10)*dispersió!$E$10*((dispersió!$F$68+F26)^dispersió!$F$10)+dispersió!$C$24*dispersió!$D$68)*dispersió!$C$12),0) -> 0.6083567294 | H26: =IFERROR(dispersió!$C$10*((dispersió!$E$68+'Càlculs interns'!F26)^dispersió!$D$10)*(2*LN('Càlculs interns'!G26/dispersió!$O$68))^(1/2),0) -> 14.71155127 | I26: -14.71155127 | K26: 90.92546604 | L26: =IFERROR((letalitat!$P$8*1000)/((3.14159*dispersió!$C$10*((dispersió!$E$67+K26)^dispersió!$D$10)*dispersió!$E$10*((dispersió!$F$67+K26)^dispersió!$F$10)+dispersió!$C$24*dispersió!$D$67)*dispersió!$C$12),0) -> 0.8582215367 | M26: =IFERROR(dispersió!$C$10*((dispersió!$E$67+'Càlculs interns'!K26)^dispersió!$D$10)*(2*LN('Càlculs interns'!L26/dispersió!$O$67))^(1/2),0) -> 11.6015288 | N26: -11.6015288 | P26: 45.90872863 | Q26: =IFERROR((letalitat!$P$8*1000)/((3.14159*dispersió!$C$10*((dispersió!$E$66+P26)^dispersió!$D$10)*dispersió!$E$10*((dispersió!$F$66+P26)^dispersió!$F$10)+dispersió!$C$24*dispersió!$D$66)*dispersió!$C$12),0) -> 1.522940328 | R26: =IFERROR(dispersió!$C$10*((dispersió!$E$66+'Càlculs interns'!P26)^dispersió!$D$10)*(2*LN('Càlculs interns'!Q26/dispersió!$O$66))^(1/2),0) -> 7.26660379 | S26: -7.26660379
A27: 171.5411397 | B27: =IFERROR((letalitat!$P$8*1000)/((3.14159*dispersió!$C$10*((dispersió!$E$69+A27)^dispersió!$D$10)*dispersió!$E$10*((dispersió!$F$69+A27)^dispersió!$F$10)+dispersió!$C$24*dispersió!$D$69)*dispersió!$C$12),0) -> 0.4221117034 | C27: =IFERROR(dispersió!$C$10*((dispersió!$E$69+'Càlculs interns'!A27)^dispersió!$D$10)*(2*LN('Càlculs interns'!B27/dispersió!$O$69))^(1/2),0) -> 17.38379837 | D27: -17.38379837 | F27: 132.1917026 | G27: =IFERROR((letalitat!$P$8*1000)/((3.14159*dispersió!$C$10*((dispersió!$E$68+F27)^dispersió!$D$10)*dispersió!$E$10*((dispersió!$F$68+F27)^dispersió!$F$10)+dispersió!$C$24*dispersió!$D$68)*dispersió!$C$12),0) -> 0.5756423183 | H27: =IFERROR(dispersió!$C$10*((dispersió!$E$68+'Càlculs interns'!F27)^dispersió!$D$10)*(2*LN('Càlculs interns'!G27/dispersió!$O$68))^(1/2),0) -> 14.25897748 | I27: -14.25897748 | K27: 95.47173934 | L27: =IFERROR((letalitat!$P$8*1000)/((3.14159*dispersió!$C$10*((dispersió!$E$67+K27)^dispersió!$D$10)*dispersió!$E$10*((dispersió!$F$67+K27)^dispersió!$F$10)+dispersió!$C$24*dispersió!$D$67)*dispersió!$C$12),0) -> 0.8173646907 | M27: =IFERROR(dispersió!$C$10*((dispersió!$E$67+'Càlculs interns'!K27)^dispersió!$D$10)*(2*LN('Càlculs interns'!L27/dispersió!$O$67))^(1/2),0) -> 11.216549 | N27: -11.216549 | P27: 48.20416506 | Q27: =IFERROR((letalitat!$P$8*1000)/((3.14159*dispersió!$C$10*((dispersió!$E$66+P27)^dispersió!$D$10)*dispersió!$E$10*((dispersió!$F$66+P27)^dispersió!$F$10)+dispersió!$C$24*dispersió!$D$66)*dispersió!$C$12),0) -> 1.471812285 | R27: =IFERROR(dispersió!$C$10*((dispersió!$E$66+'Càlculs interns'!P27)^dispersió!$D$10)*(2*LN('Càlculs interns'!Q27/dispersió!$O$66))^(1/2),0) -> 6.986821226 | S27: -6.986821226
A28: 179.7097654 | B28: =IFERROR((letalitat!$P$8*1000)/((3.14159*dispersió!$C$10*((dispersió!$E$69+A28)^dispersió!$D$10)*dispersió!$E$10*((dispersió!$F$69+A28)^dispersió!$F$10)+dispersió!$C$24*dispersió!$D$69)*dispersió!$C$12),0) -> 0.3983649749 | C28: =IFERROR(dispersió!$C$10*((dispersió!$E$69+'Càlculs interns'!A28)^dispersió!$D$10)*(2*LN('Càlculs interns'!B28/dispersió!$O$69))^(1/2),0) -> 16.7602252 | D28: -16.7602252 | F28: 138.4865456 | G28: =IFERROR((letalitat!$P$8*1000)/((3.14159*dispersió!$C$10*((dispersió!$E$68+F28)^dispersió!$D$10)*dispersió!$E$10*((dispersió!$F$68+F28)^dispersió!$F$10)+dispersió!$C$24*dispersió!$D$68)*dispersió!$C$12),0) -> 0.5456250375 | H28: =IFERROR(dispersió!$C$10*((dispersió!$E$68+'Càlculs interns'!F28)^dispersió!$D$10)*(2*LN('Càlculs interns'!G28/dispersió!$O$68))^(1/2),0) -> 13.72476323 | I28: -13.72476323 | K28: 100.0180126 | L28: =IFERROR((letalitat!$P$8*1000)/((3.14159*dispersió!$C$10*((dispersió!$E$67+K28)^dispersió!$D$10)*dispersió!$E$10*((dispersió!$F$67+K28)^dispersió!$F$10)+dispersió!$C$24*dispersió!$D$67)*dispersió!$C$12),0) -> 0.7794863045 | M28: =IFERROR(dispersió!$C$10*((dispersió!$E$67+'Càlculs interns'!K28)^dispersió!$D$10)*(2*LN('Càlculs interns'!L28/dispersió!$O$67))^(1/2),0) -> 10.77071809 | N28: -10.77071809 | P28: 50.49960149 | Q28: =IFERROR((letalitat!$P$8*1000)/((3.14159*dispersió!$C$10*((dispersió!$E$66+P28)^dispersió!$D$10)*dispersió!$E$10*((dispersió!$F$66+P28)^dispersió!$F$10)+dispersió!$C$24*dispersió!$D$66)*dispersió!$C$12),0) -> 1.423298974 | R28: =IFERROR(dispersió!$C$10*((dispersió!$E$66+'Càlculs interns'!P28)^dispersió!$D$10)*(2*LN('Càlculs interns'!Q28/dispersió!$O$66))^(1/2),0) -> 6.673700005 | S28: -6.673700005
A29: 187.8783911 | B29: =IFERROR((letalitat!$P$8*1000)/((3.14159*dispersió!$C$10*((dispersió!$E$69+A29)^dispersió!$D$10)*dispersió!$E$10*((dispersió!$F$69+A29)^dispersió!$F$10)+dispersió!$C$24*dispersió!$D$69)*dispersió!$C$12),0) -> 0.3766704721 | C29: =IFERROR(dispersió!$C$10*((dispersió!$E$69+'Càlculs interns'!A29)^dispersió!$D$10)*(2*LN('Càlculs interns'!B29/dispersió!$O$69))^(1/2),0) -> 16.0195515 | D29: -16.0195515 | F29: 144.7813886 | G29: =IFERROR((letalitat!$P$8*1000)/((3.14159*dispersió!$C$10*((dispersió!$E$68+F29)^dispersió!$D$10)*dispersió!$E$10*((dispersió!$F$68+F29)^dispersió!$F$10)+dispersió!$C$24*dispersió!$D$68)*dispersió!$C$12),0) -> 0.5180111424 | H29: =IFERROR(dispersió!$C$10*((dispersió!$E$68+'Càlculs interns'!F29)^dispersió!$D$10)*(2*LN('Càlculs interns'!G29/dispersió!$O$68))^(1/2),0) -> 13.09797169 | I29: -13.09797169 | K29: 104.5642859 | L29: =IFERROR((letalitat!$P$8*1000)/((3.14159*dispersió!$C$10*((dispersió!$E$67+K29)^dispersió!$D$10)*dispersió!$E$10*((dispersió!$F$67+K29)^dispersió!$F$10)+dispersió!$C$24*dispersió!$D$67)*dispersió!$C$12),0) -> 0.7442998052 | M29: =IFERROR(dispersió!$C$10*((dispersió!$E$67+'Càlculs interns'!K29)^dispersió!$D$10)*(2*LN('Càlculs interns'!L29/dispersió!$O$67))^(1/2),0) -> 10.25552323 | N29: -10.25552323 | P29: 52.79503792 | Q29: =IFERROR((letalitat!$P$8*1000)/((3.14159*dispersió!$C$10*((dispersió!$E$66+P29)^dispersió!$D$10)*dispersió!$E$10*((dispersió!$F$66+P29)^dispersió!$F$10)+dispersió!$C$24*dispersió!$D$66)*dispersió!$C$12),0) -> 1.377224765 | R29: =IFERROR(dispersió!$C$10*((dispersió!$E$66+'Càlculs interns'!P29)^dispersió!$D$10)*(2*LN('Càlculs interns'!Q29/dispersió!$O$66))^(1/2),0) -> 6.322106527 | S29: -6.322106527
A30: 196.0470168 | B30: =IFERROR((letalitat!$P$8*1000)/((3.14159*dispersió!$C$10*((dispersió!$E$69+A30)^dispersió!$D$10)*dispersió!$E$10*((dispersió!$F$69+A30)^dispersió!$F$10)+dispersió!$C$24*dispersió!$D$69)*dispersió!$C$12),0) -> 0.3567935337 | C30: =IFERROR(dispersió!$C$10*((dispersió!$E$69+'Càlculs interns'!A30)^dispersió!$D$10)*(2*LN('Càlculs interns'!B30/dispersió!$O$69))^(1/2),0) -> 15.14321563 | D30: -15.14321563 | F30: 151.0762316 | G30: =IFERROR((letalitat!$P$8*1000)/((3.14159*dispersió!$C$10*((dispersió!$E$68+F30)^dispersió!$D$10)*dispersió!$E$10*((dispersió!$F$68+F30)^dispersió!$F$10)+dispersió!$C$24*dispersió!$D$68)*dispersió!$C$12),0) -> 0.4925460889 | H30: =IFERROR(dispersió!$C$10*((dispersió!$E$68+'Càlculs interns'!F30)^dispersió!$D$10)*(2*LN('Càlculs interns'!G30/dispersió!$O$68))^(1/2),0) -> 12.36356764 | I30: -12.36356764 | K30: 109.1105592 | L30: =IFERROR((letalitat!$P$8*1000)/((3.14159*dispersió!$C$10*((dispersió!$E$67+K30)^dispersió!$D$10)*dispersió!$E$10*((dispersió!$F$67+K30)^dispersió!$F$10)+dispersió!$C$24*dispersió!$D$67)*dispersió!$C$12),0) -> 0.7115523784 | M30: =IFERROR(dispersió!$C$10*((dispersió!$E$67+'Càlculs interns'!K30)^dispersió!$D$10)*(2*LN('Càlculs interns'!L30/dispersió!$O$67))^(1/2),0) -> 9.659280679 | N30: -9.659280679 | P30: 55.09047436 | Q30: =IFERROR((letalitat!$P$8*1000)/((3.14159*dispersió!$C$10*((dispersió!$E$66+P30)^dispersió!$D$10)*dispersió!$E$10*((dispersió!$F$66+P30)^dispersió!$F$10)+dispersió!$C$24*dispersió!$D$66)*dispersió!$C$12),0) -> 1.333428399 | R30: =IFERROR(dispersió!$C$10*((dispersió!$E$66+'Càlculs interns'!P30)^dispersió!$D$10)*(2*LN('Càlculs interns'!Q30/dispersió!$O$66))^(1/2),0) -> 5.925007559 | S30: -5.925007559
A31: 204.2156425 | B31: =IFERROR((letalitat!$P$8*1000)/((3.14159*dispersió!$C$10*((dispersió!$E$69+A31)^dispersió!$D$10)*dispersió!$E$10*((dispersió!$F$69+A31)^dispersió!$F$10)+dispersió!$C$24*dispersió!$D$69)*dispersió!$C$12),0) -> 0.3385324218 | C31: =IFERROR(dispersió!$C$10*((dispersió!$E$69+'Càlculs interns'!A31)^dispersió!$D$10)*(2*LN('Càlculs interns'!B31/dispersió!$O$69))^(1/2),0) -> 14.10453185 | D31: -14.10453185 | F31: 157.3710746 | G31: =IFERROR((letalitat!$P$8*1000)/((3.14159*dispersió!$C$10*((dispersió!$E$68+F31)^dispersió!$D$10)*dispersió!$E$10*((dispersió!$F$68+F31)^dispersió!$F$10)+dispersió!$C$24*dispersió!$D$68)*dispersió!$C$12),0) -> 0.4690084072 | H31: =IFERROR(dispersió!$C$10*((dispersió!$E$68+'Càlculs interns'!F31)^dispersió!$D$10)*(2*LN('Càlculs interns'!G31/dispersió!$O$68))^(1/2),0) -> 11.49996213 | I31: -11.49996213 | K31: 113.6568325 | L31: =IFERROR((letalitat!$P$8*1000)/((3.14159*dispersió!$C$10*((dispersió!$E$67+K31)^dispersió!$D$10)*dispersió!$E$10*((dispersió!$F$67+K31)^dispersió!$F$10)+dispersió!$C$24*dispersió!$D$67)*dispersió!$C$12),0) -> 0.681020315 | M31: =IFERROR(dispersió!$C$10*((dispersió!$E$67+'Càlculs interns'!K31)^dispersió!$D$10)*(2*LN('Càlculs interns'!L31/dispersió!$O$67))^(1/2),0) -> 8.965222422 | N31: -8.965222422 | P31: 57.38591079 | Q31: =IFERROR((letalitat!$P$8*1000)/((3.14159*dispersió!$C$10*((dispersió!$E$66+P31)^dispersió!$D$10)*dispersió!$E$10*((dispersió!$F$66+P31)^dispersió!$F$10)+dispersió!$C$24*dispersió!$D$66)*dispersió!$C$12),0) -> 1.291761618 | R31: =IFERROR(dispersió!$C$10*((dispersió!$E$66+'Càlculs interns'!P31)^dispersió!$D$10)*(2*LN('Càlculs interns'!Q31/dispersió!$O$66))^(1/2),0) -> 5.472307921 | S31: -5.472307921
A32: 212.3842682 | B32: =IFERROR((letalitat!$P$8*1000)/((3.14159*dispersió!$C$10*((dispersió!$E$69+A32)^dispersió!$D$10)*dispersió!$E$10*((dispersió!$F$69+A32)^dispersió!$F$10)+dispersió!$C$24*dispersió!$D$69)*dispersió!$C$12),0) -> 0.3217129055 | C32: =IFERROR(dispersió!$C$10*((dispersió!$E$69+'Càlculs interns'!A32)^dispersió!$D$10)*(2*LN('Càlculs interns'!B32/dispersió!$O$69))^(1/2),0) -> 12.86274305 | D32: -12.86274305 | F32: 163.6659176 | G32: =IFERROR((letalitat!$P$8*1000)/((3.14159*dispersió!$C$10*((dispersió!$E$68+F32)^dispersió!$D$10)*dispersió!$E$10*((dispersió!$F$68+F32)^dispersió!$F$10)+dispersió!$C$24*dispersió!$D$68)*dispersió!$C$12),0) -> 0.447204663 | H32: =IFERROR(dispersió!$C$10*((dispersió!$E$68+'Càlculs interns'!F32)^dispersió!$D$10)*(2*LN('Càlculs interns'!G32/dispersió!$O$68))^(1/2),0) -> 10.47420443 | I32: -10.47420443 | K32: 118.2031058 | L32: =IFERROR((letalitat!$P$8*1000)/((3.14159*dispersió!$C$10*((dispersió!$E$67+K32)^dispersió!$D$10)*dispersió!$E$10*((dispersió!$F$67+K32)^dispersió!$F$10)+dispersió!$C$24*dispersió!$D$67)*dispersió!$C$12),0) -> 0.6525050857 | M32: =IFERROR(dispersió!$C$10*((dispersió!$E$67+'Càlculs interns'!K32)^dispersió!$D$10)*(2*LN('Càlculs interns'!L32/dispersió!$O$67))^(1/2),0) -> 8.147742256 | N32: -8.147742256 | P32: 59.68134722 | Q32: =IFERROR((letalitat!$P$8*1000)/((3.14159*dispersió!$C$10*((dispersió!$E$66+P32)^dispersió!$D$10)*dispersió!$E$10*((dispersió!$F$66+P32)^dispersió!$F$10)+dispersió!$C$24*dispersió!$D$66)*dispersió!$C$12),0) -> 1.252087944 | R32: =IFERROR(dispersió!$C$10*((dispersió!$E$66+'Càlculs interns'!P32)^dispersió!$D$10)*(2*LN('Càlculs interns'!Q32/dispersió!$O$66))^(1/2),0) -> 4.948559627 | S32: -4.948559627
A33: 220.5528939 | B33: =IFERROR((letalitat!$P$8*1000)/((3.14159*dispersió!$C$10*((dispersió!$E$69+A33)^dispersió!$D$10)*dispersió!$E$10*((dispersió!$F$69+A33)^dispersió!$F$10)+dispersió!$C$24*dispersió!$D$69)*dispersió!$C$12),0) -> 0.3061838582 | C33: =IFERROR(dispersió!$C$10*((dispersió!$E$69+'Càlculs interns'!A33)^dispersió!$D$10)*(2*LN('Càlculs interns'!B33/dispersió!$O$69))^(1/2),0) -> 11.34976974 | D33: -11.34976974 | F33: 169.9607605 | G33: =IFERROR((letalitat!$P$8*1000)/((3.14159*dispersió!$C$10*((dispersió!$E$68+F33)^dispersió!$D$10)*dispersió!$E$10*((dispersió!$F$68+F33)^dispersió!$F$10)+dispersió!$C$24*dispersió!$D$68)*dispersió!$C$12),0) -> 0.4269652924 | H33: =IFERROR(dispersió!$C$10*((dispersió!$E$68+'Càlculs interns'!F33)^dispersió!$D$10)*(2*LN('Càlculs interns'!G33/dispersió!$O$68))^(1/2),0) -> 9.231267642 | I33: -9.231267642 | K33: 122.7493791 | L33: =IFERROR((letalitat!$P$8*1000)/((3.14159*dispersió!$C$10*((dispersió!$E$67+K33)^dispersió!$D$10)*dispersió!$E$10*((dispersió!$F$67+K33)^dispersió!$F$10)+dispersió!$C$24*dispersió!$D$67)*dispersió!$C$12),0) -> 0.6258300179 | M33: =IFERROR(dispersió!$C$10*((dispersió!$E$67+'Càlculs interns'!K33)^dispersió!$D$10)*(2*LN('Càlculs interns'!L33/dispersió!$O$67))^(1/2),0) -> 7.164005878 | N33: -7.164005878 | P33: 61.97678365 | Q33: =IFERROR((letalitat!$P$8*1000)/((3.14159*dispersió!$C$10*((dispersió!$E$66+P33)^dispersió!$D$10)*dispersió!$E$10*((dispersió!$F$66+P33)^dispersió!$F$10)+dispersió!$C$24*dispersió!$D$66)*dispersió!$C$12),0) -> 1.214281587 | R33: =IFERROR(dispersió!$C$10*((dispersió!$E$66+'Càlculs interns'!P33)^dispersió!$D$10)*(2*LN('Càlculs interns'!Q33/dispersió!$O$66))^(1/2),0) -> 4.32780913 | S33: -4.32780913
A34: 228.7215196 | B34: =IFERROR((letalitat!$P$8*1000)/((3.14159*dispersió!$C$10*((dispersió!$E$69+A34)^dispersió!$D$10)*dispersió!$E$10*((dispersió!$F$69+A34)^dispersió!$F$10)+dispersió!$C$24*dispersió!$D$69)*dispersió!$C$12),0) -> 0.291813658 | C34: =IFERROR(dispersió!$C$10*((dispersió!$E$69+'Càlculs interns'!A34)^dispersió!$D$10)*(2*LN('Càlculs interns'!B34/dispersió!$O$69))^(1/2),0) -> 9.434192166 | D34: -9.434192166 | F34: 176.2556035 | G34: =IFERROR((letalitat!$P$8*1000)/((3.14159*dispersió!$C$10*((dispersió!$E$68+F34)^dispersió!$D$10)*dispersió!$E$10*((dispersió!$F$68+F34)^dispersió!$F$10)+dispersió!$C$24*dispersió!$D$68)*dispersió!$C$12),0) -> 0.4081411407 | H34: =IFERROR(dispersió!$C$10*((dispersió!$E$68+'Càlculs interns'!F34)^dispersió!$D$10)*(2*LN('Càlculs interns'!G34/dispersió!$O$68))^(1/2),0) -> 7.664919923 | I34: -7.664919923 | K34: 127.2956525 | L34: =IFERROR((letalitat!$P$8*1000)/((3.14159*dispersió!$C$10*((dispersió!$E$67+K34)^dispersió!$D$10)*dispersió!$E$10*((dispersió!$F$67+K34)^dispersió!$F$10)+dispersió!$C$24*dispersió!$D$67)*dispersió!$C$12),0) -> 0.6008374708 | M34: =IFERROR(dispersió!$C$10*((dispersió!$E$67+'Càlculs interns'!K34)^dispersió!$D$10)*(2*LN('Càlculs interns'!L34/dispersió!$O$67))^(1/2),0) -> 5.931037914 | N34: -5.931037914 | P34: 64.27222008 | Q34: =IFERROR((letalitat!$P$8*1000)/((3.14159*dispersió!$C$10*((dispersió!$E$66+P34)^dispersió!$D$10)*dispersió!$E$10*((dispersió!$F$66+P34)^dispersió!$F$10)+dispersió!$C$24*dispersió!$D$66)*dispersió!$C$12),0) -> 1.178226472 | R34: =IFERROR(dispersió!$C$10*((dispersió!$E$66+'Càlculs interns'!P34)^dispersió!$D$10)*(2*LN('Càlculs interns'!Q34/dispersió!$O$66))^(1/2),0) -> 3.559386274 | S34: -3.559386274
A35: 236.8901453 | B35: =IFERROR((letalitat!$P$8*1000)/((3.14159*dispersió!$C$10*((dispersió!$E$69+A35)^dispersió!$D$10)*dispersió!$E$10*((dispersió!$F$69+A35)^dispersió!$F$10)+dispersió!$C$24*dispersió!$D$69)*dispersió!$C$12),0) -> 0.2784872265 | C35: =IFERROR(dispersió!$C$10*((dispersió!$E$69+'Càlculs interns'!A35)^dispersió!$D$10)*(2*LN('Càlculs interns'!B35/dispersió!$O$69))^(1/2),0) -> 6.78060079 | D35: -6.78060079 | F35: 182.5504465 | G35: =IFERROR((letalitat!$P$8*1000)/((3.14159*dispersió!$C$10*((dispersió!$E$68+F35)^dispersió!$D$10)*dispersió!$E$10*((dispersió!$F$68+F35)^dispersió!$F$10)+dispersió!$C$24*dispersió!$D$68)*dispersió!$C$12),0) -> 0.3906005741 | H35: =IFERROR(dispersió!$C$10*((dispersió!$E$68+'Càlculs interns'!F35)^dispersió!$D$10)*(2*LN('Càlculs interns'!G35/dispersió!$O$68))^(1/2),0) -> 5.50396727 | I35: -5.50396727 | K35: 131.8419258 | L35: =IFERROR((letalitat!$P$8*1000)/((3.14159*dispersió!$C$10*((dispersió!$E$67+K35)^dispersió!$D$10)*dispersió!$E$10*((dispersió!$F$67+K35)^dispersió!$F$10)+dispersió!$C$24*dispersió!$D$67)*dispersió!$C$12),0) -> 0.5773864267 | M35: =IFERROR(dispersió!$C$10*((dispersió!$E$67+'Càlculs interns'!K35)^dispersió!$D$10)*(2*LN('Càlculs interns'!L35/dispersió!$O$67))^(1/2),0) -> 4.235434692 | N35: -4.235434692 | P35: 66.56765651 | Q35: =IFERROR((letalitat!$P$8*1000)/((3.14159*dispersió!$C$10*((dispersió!$E$66+P35)^dispersió!$D$10)*dispersió!$E$10*((dispersió!$F$66+P35)^dispersió!$F$10)+dispersió!$C$24*dispersió!$D$66)*dispersió!$C$12),0) -> 1.143815358 | R35: =IFERROR(dispersió!$C$10*((dispersió!$E$66+'Càlculs interns'!P35)^dispersió!$D$10)*(2*LN('Càlculs interns'!Q35/dispersió!$O$66))^(1/2),0) -> 2.51081669 | S35: -2.51081669
A36: =dispersió!G69 -> 245.058771 | B36: =IFERROR((letalitat!$P$8*1000)/((3.14159*dispersió!$C$10*((dispersió!$E$69+A36)^dispersió!$D$10)*dispersió!$E$10*((dispersió!$F$69+A36)^dispersió!$F$10)+dispersió!$C$24*dispersió!$D$69)*dispersió!$C$12),0) -> 0.2661035812 | C36: =IFERROR(dispersió!$C$10*((dispersió!$E$69+'Càlculs interns'!A36)^dispersió!$D$10)*(2*LN('Càlculs interns'!B36/dispersió!$O$69))^(1/2),0) -> 0 | D36: 0 | F36: =dispersió!G68 -> 188.8452895 | G36: =IFERROR((letalitat!$P$8*1000)/((3.14159*dispersió!$C$10*((dispersió!$E$68+F36)^dispersió!$D$10)*dispersió!$E$10*((dispersió!$F$68+F36)^dispersió!$F$10)+dispersió!$C$24*dispersió!$D$68)*dispersió!$C$12),0) -> 0.3742270568 | H36: =IFERROR(dispersió!$C$10*((dispersió!$E$68+'Càlculs interns'!F36)^dispersió!$D$10)*(2*LN('Càlculs interns'!G36/dispersió!$O$68))^(1/2),0) -> 0 | I36: 0 | K36: =dispersió!G67 -> 136.3881991 | L36: =IFERROR((letalitat!$P$8*1000)/((3.14159*dispersió!$C$10*((dispersió!$E$67+K36)^dispersió!$D$10)*dispersió!$E$10*((dispersió!$F$67+K36)^dispersió!$F$10)+dispersió!$C$24*dispersió!$D$67)*dispersió!$C$12),0) -> 0.5553504293 | M36: =IFERROR(dispersió!$C$10*((dispersió!$E$67+'Càlculs interns'!K36)^dispersió!$D$10)*(2*LN('Càlculs interns'!L36/dispersió!$O$67))^(1/2),0) -> 0 | N36: 0 | P36: =dispersió!G66 -> 68.86309294 | Q36: =IFERROR((letalitat!$P$8*1000)/((3.14159*dispersió!$C$10*((dispersió!$E$66+P36)^dispersió!$D$10)*dispersió!$E$10*((dispersió!$F$66+P36)^dispersió!$F$10)+dispersió!$C$24*dispersió!$D$66)*dispersió!$C$12),0) -> 1.110949055 | R36: =IFERROR(dispersió!$C$10*((dispersió!$E$66+'Càlculs interns'!P36)^dispersió!$D$10)*(2*LN('Càlculs interns'!Q36/dispersió!$O$66))^(1/2),0) -> 0 | S36: 0
A38: Est. F
A39: LC1 | C39: LC1+ | D39: LC1- | F39: LC10 | H39: LC10+ | I39: LC10- | K39: LC50 | M39: LC50+ | N39: LC50- | P39: LC99 | R39: LC99+ | S39: LC99-
A40: X | B40: C(x) | C40: y+ | D40: y- | F40: X | G40: C(x) | H40: y+ | I40: y- | K40: X | L40: C(x) | M40: y+ | N40: y- | P40: X | Q40: C(x) | R40: y+ | S40: y-
A41: 0 | B41: =IFERROR((letalitat!$P$8*1000)/((3.14159*dispersió!$I$10*((dispersió!$J$69+A41)^dispersió!$J$10)*dispersió!$K$10*((dispersió!$K$69+A41)^dispersió!$L$10)+dispersió!$C$24*dispersió!$D$69)*dispersió!$I$12),0) -> 11.06588562 | C41: =IFERROR(dispersió!$I$10*((dispersió!$J$69+'Càlculs interns'!A41)^dispersió!$J$10)*(2*LN('Càlculs interns'!B41/dispersió!$O$69))^(1/2),0) -> 15.55351468 | D41: =-C41 -> -15.55351468 | F41: 0 | G41: =IFERROR((letalitat!$P$8*1000)/((3.14159*dispersió!$I$10*((dispersió!$J$68+F41)^dispersió!$J$10)*dispersió!$K$10*((dispersió!$K$68+F41)^dispersió!$L$10)+dispersió!$C$24*dispersió!$D$68)*dispersió!$I$12),0) -> 11.06588562 | H41: =IFERROR(dispersió!$I$10*((dispersió!$J$68+'Càlculs interns'!F41)^dispersió!$J$10)*(2*LN('Càlculs interns'!G41/dispersió!$O$68))^(1/2),0) -> 14.82515786 | I41: =-H41 -> -14.82515786 | K41: 0 | L41: =IFERROR((letalitat!$P$8*1000)/((3.14159*dispersió!$I$10*((dispersió!$J$67+K41)^dispersió!$J$10)*dispersió!$K$10*((dispersió!$K$67+K41)^dispersió!$L$10)+dispersió!$C$24*dispersió!$D$67)*dispersió!$I$12),0) -> 11.06588562 | M41: =IFERROR(dispersió!$I$10*((dispersió!$J$67+'Càlculs interns'!K41)^dispersió!$J$10)*(2*LN('Càlculs interns'!L41/dispersió!$O$67))^(1/2),0) -> 13.93302097 | N41: =-M41 -> -13.93302097 | P41: 0 | Q41: =IFERROR((letalitat!$P$8*1000)/((3.14159*dispersió!$I$10*((dispersió!$J$66+P41)^dispersió!$J$10)*dispersió!$K$10*((dispersió!$K$66+P41)^dispersió!$L$10)+dispersió!$C$24*dispersió!$D$66)*dispersió!$I$12),0) -> 11.06588562 | R41: =IFERROR(dispersió!$I$10*((dispersió!$J$66+'Càlculs interns'!P41)^dispersió!$J$10)*(2*LN('Càlculs interns'!Q41/dispersió!$O$66))^(1/2),0) -> 12.20988606 | S41: =-R41 -> -12.20988606
A42: =A71/30 -> 56.42938751 | B42: =IFERROR((letalitat!$P$8*1000)/((3.14159*dispersió!$I$10*((dispersió!$J$69+A42)^dispersió!$J$10)*dispersió!$K$10*((dispersió!$K$69+A42)^dispersió!$L$10)+dispersió!$C$24*dispersió!$D$69)*dispersió!$I$12),0) -> 7.406611714 | C42: =IFERROR(dispersió!$I$10*((dispersió!$J$69+'Càlculs interns'!A42)^dispersió!$J$10)*(2*LN('Càlculs interns'!B42/dispersió!$O$69))^(1/2),0) -> 19.85088025 | D42: =-C42 -> -19.85088025 | F42: =F71/30 -> 44.4838647 | G42: =IFERROR((letalitat!$P$8*1000)/((3.14159*dispersió!$I$10*((dispersió!$J$68+F42)^dispersió!$J$10)*dispersió!$K$10*((dispersió!$K$68+F42)^dispersió!$L$10)+dispersió!$C$24*dispersió!$D$68)*dispersió!$I$12),0) -> 8.012103856 | H42: =IFERROR(dispersió!$I$10*((dispersió!$J$68+'Càlculs interns'!F42)^dispersió!$J$10)*(2*LN('Càlculs interns'!G42/dispersió!$O$68))^(1/2),0) -> 18.01675485 | I42: =-H42 -> -18.01675485 | K42: =K71/30 -> 33.50128643 | L42: =IFERROR((letalitat!$P$8*1000)/((3.14159*dispersió!$I$10*((dispersió!$J$67+K42)^dispersió!$J$10)*dispersió!$K$10*((dispersió!$K$67+K42)^dispersió!$L$10)+dispersió!$C$24*dispersió!$D$67)*dispersió!$I$12),0) -> 8.63733107 | M42: =IFERROR(dispersió!$I$10*((dispersió!$J$67+'Càlculs interns'!K42)^dispersió!$J$10)*(2*LN('Càlculs interns'!L42/dispersió!$O$67))^(1/2),0) -> 16.1433083 | N42: =-M42 -> -16.1433083 | P42: =P71/30 -> 19.79476981 | Q42: =IFERROR((letalitat!$P$8*1000)/((3.14159*dispersió!$I$10*((dispersió!$J$66+P42)^dispersió!$J$10)*dispersió!$K$10*((dispersió!$K$66+P42)^dispersió!$L$10)+dispersió!$C$24*dispersió!$D$66)*dispersió!$I$12),0) -> 9.525565904 | R42: =IFERROR(dispersió!$I$10*((dispersió!$J$66+'Càlculs interns'!P42)^dispersió!$J$10)*(2*LN('Càlculs interns'!Q42/dispersió!$O$66))^(1/2),0) -> 13.27451157 | S42: =-R42 -> -13.27451157
A43: =A$42+A42 -> 112.858775 | B43: =IFERROR((letalitat!$P$8*1000)/((3.14159*dispersió!$I$10*((dispersió!$J$69+A43)^dispersió!$J$10)*dispersió!$K$10*((dispersió!$K$69+A43)^dispersió!$L$10)+dispersió!$C$24*dispersió!$D$69)*dispersió!$I$12),0) -> 5.312956488 | C43: =IFERROR(dispersió!$I$10*((dispersió!$J$69+'Càlculs interns'!A43)^dispersió!$J$10)*(2*LN('Càlculs interns'!B43/dispersió!$O$69))^(1/2),0) -> 23.59168843 | D43: -23.59168843 | F43: =F$42+F42 -> 88.96772941 | G43: =IFERROR((letalitat!$P$8*1000)/((3.14159*dispersió!$I$10*((dispersió!$J$68+F43)^dispersió!$J$10)*dispersió!$K$10*((dispersió!$K$68+F43)^dispersió!$L$10)+dispersió!$C$24*dispersió!$D$68)*dispersió!$I$12),0) -> 6.071071832 | H43: =IFERROR(dispersió!$I$10*((dispersió!$J$68+'Càlculs interns'!F43)^dispersió!$J$10)*(2*LN('Càlculs interns'!G43/dispersió!$O$68))^(1/2),0) -> 20.82933083 | I43: -20.82933083 | K43: =K$42+K42 -> 67.00257285 | L43: =IFERROR((letalitat!$P$8*1000)/((3.14159*dispersió!$I$10*((dispersió!$J$67+K43)^dispersió!$J$10)*dispersió!$K$10*((dispersió!$K$67+K43)^dispersió!$L$10)+dispersió!$C$24*dispersió!$D$67)*dispersió!$I$12),0) -> 6.926908645 | M43: =IFERROR(dispersió!$I$10*((dispersió!$J$67+'Càlculs interns'!K43)^dispersió!$J$10)*(2*LN('Càlculs interns'!L43/dispersió!$O$67))^(1/2),0) -> 18.11533398 | N43: -18.11533398 | P43: =P$42+P42 -> 39.58953961 | Q43: =IFERROR((letalitat!$P$8*1000)/((3.14159*dispersió!$I$10*((dispersió!$J$66+P43)^dispersió!$J$10)*dispersió!$K$10*((dispersió!$K$66+P43)^dispersió!$L$10)+dispersió!$C$24*dispersió!$D$66)*dispersió!$I$12),0) -> 8.282026605 | R43: =IFERROR(dispersió!$I$10*((dispersió!$J$66+'Càlculs interns'!P43)^dispersió!$J$10)*(2*LN('Càlculs interns'!Q43/dispersió!$O$66))^(1/2),0) -> 14.23889507 | S43: -14.23889507
A44: =A$42+A43 -> 169.2881625 | B44: =IFERROR((letalitat!$P$8*1000)/((3.14159*dispersió!$I$10*((dispersió!$J$69+A44)^dispersió!$J$10)*dispersió!$K$10*((dispersió!$K$69+A44)^dispersió!$L$10)+dispersió!$C$24*dispersió!$D$69)*dispersió!$I$12),0) -> 4.015080389 | C44: =IFERROR(dispersió!$I$10*((dispersió!$J$69+'Càlculs interns'!A44)^dispersió!$J$10)*(2*LN('Càlculs interns'!B44/dispersió!$O$69))^(1/2),0) -> 26.89335257 | D44: -26.89335257 | F44: =F$42+F43 -> 133.4515941 | G44: =IFERROR((letalitat!$P$8*1000)/((3.14159*dispersió!$I$10*((dispersió!$J$68+F44)^dispersió!$J$10)*dispersió!$K$10*((dispersió!$K$68+F44)^dispersió!$L$10)+dispersió!$C$24*dispersió!$D$68)*dispersió!$I$12),0) -> 4.771536753 | H44: =IFERROR(dispersió!$I$10*((dispersió!$J$68+'Càlculs interns'!F44)^dispersió!$J$10)*(2*LN('Càlculs interns'!G44/dispersió!$O$68))^(1/2),0) -> 23.3295859 | I44: -23.3295859 | K44: =K$42+K43 -> 100.5038593 | L44: =IFERROR((letalitat!$P$8*1000)/((3.14159*dispersió!$I$10*((dispersió!$J$67+K44)^dispersió!$J$10)*dispersió!$K$10*((dispersió!$K$67+K44)^dispersió!$L$10)+dispersió!$C$24*dispersió!$D$67)*dispersió!$I$12),0) -> 5.685359575 | M44: =IFERROR(dispersió!$I$10*((dispersió!$J$67+'Càlculs interns'!K44)^dispersió!$J$10)*(2*LN('Càlculs interns'!L44/dispersió!$O$67))^(1/2),0) -> 19.88185874 | N44: -19.88185874 | P44: =P$42+P43 -> 59.38430942 | Q44: =IFERROR((letalitat!$P$8*1000)/((3.14159*dispersió!$I$10*((dispersió!$J$66+P44)^dispersió!$J$10)*dispersió!$K$10*((dispersió!$K$66+P44)^dispersió!$L$10)+dispersió!$C$24*dispersió!$D$66)*dispersió!$I$12),0) -> 7.267559344 | R44: =IFERROR(dispersió!$I$10*((dispersió!$J$66+'Càlculs interns'!P44)^dispersió!$J$10)*(2*LN('Càlculs interns'!Q44/dispersió!$O$66))^(1/2),0) -> 15.11085315 | S44: -15.11085315
A45: 225.71755 | B45: =IFERROR((letalitat!$P$8*1000)/((3.14159*dispersió!$I$10*((dispersió!$J$69+A45)^dispersió!$J$10)*dispersió!$K$10*((dispersió!$K$69+A45)^dispersió!$L$10)+dispersió!$C$24*dispersió!$D$69)*dispersió!$I$12),0) -> 3.155734586 | C45: =IFERROR(dispersió!$I$10*((dispersió!$J$69+'Càlculs interns'!A45)^dispersió!$J$10)*(2*LN('Càlculs interns'!B45/dispersió!$O$69))^(1/2),0) -> 29.82853377 | D45: -29.82853377 | F45: 177.9354588 | G45: =IFERROR((letalitat!$P$8*1000)/((3.14159*dispersió!$I$10*((dispersió!$J$68+F45)^dispersió!$J$10)*dispersió!$K$10*((dispersió!$K$68+F45)^dispersió!$L$10)+dispersió!$C$24*dispersió!$D$68)*dispersió!$I$12),0) -> 3.860776921 | H45: =IFERROR(dispersió!$I$10*((dispersió!$J$68+'Càlculs interns'!F45)^dispersió!$J$10)*(2*LN('Càlculs interns'!G45/dispersió!$O$68))^(1/2),0) -> 25.56181842 | I45: -25.56181842 | K45: 134.0051457 | L45: =IFERROR((letalitat!$P$8*1000)/((3.14159*dispersió!$I$10*((dispersió!$J$67+K45)^dispersió!$J$10)*dispersió!$K$10*((dispersió!$K$67+K45)^dispersió!$L$10)+dispersió!$C$24*dispersió!$D$67)*dispersió!$I$12),0) -> 4.758192189 | M45: =IFERROR(dispersió!$I$10*((dispersió!$J$67+'Càlculs interns'!K45)^dispersió!$J$10)*(2*LN('Càlculs interns'!L45/dispersió!$O$67))^(1/2),0) -> 21.46630119 | N45: -21.46630119 | P45: 79.17907922 | Q45: =IFERROR((letalitat!$P$8*1000)/((3.14159*dispersió!$I$10*((dispersió!$J$66+P45)^dispersió!$J$10)*dispersió!$K$10*((dispersió!$K$66+P45)^dispersió!$L$10)+dispersió!$C$24*dispersió!$D$66)*dispersió!$I$12),0) -> 6.43111201 | R45: =IFERROR(dispersió!$I$10*((dispersió!$J$66+'Càlculs interns'!P45)^dispersió!$J$10)*(2*LN('Càlculs interns'!Q45/dispersió!$O$66))^(1/2),0) -> 15.89655186 | S45: -15.89655186
A46: 282.1469375 | B46: =IFERROR((letalitat!$P$8*1000)/((3.14159*dispersió!$I$10*((dispersió!$J$69+A46)^dispersió!$J$10)*dispersió!$K$10*((dispersió!$K$69+A46)^dispersió!$L$10)+dispersió!$C$24*dispersió!$D$69)*dispersió!$I$12),0) -> 2.556324963 | C46: =IFERROR(dispersió!$I$10*((dispersió!$J$69+'Càlculs interns'!A46)^dispersió!$J$10)*(2*LN('Càlculs interns'!B46/dispersió!$O$69))^(1/2),0) -> 32.44558311 | D46: -32.44558311 | F46: 222.4193235 | G46: =IFERROR((letalitat!$P$8*1000)/((3.14159*dispersió!$I$10*((dispersió!$J$68+F46)^dispersió!$J$10)*dispersió!$K$10*((dispersió!$K$68+F46)^dispersió!$L$10)+dispersió!$C$24*dispersió!$D$68)*dispersió!$I$12),0) -> 3.197578259 | H46: =IFERROR(dispersió!$I$10*((dispersió!$J$68+'Càlculs interns'!F46)^dispersió!$J$10)*(2*LN('Càlculs interns'!G46/dispersió!$O$68))^(1/2),0) -> 27.55690278 | I46: -27.55690278 | K46: 167.5064321 | L46: =IFERROR((letalitat!$P$8*1000)/((3.14159*dispersió!$I$10*((dispersió!$J$67+K46)^dispersió!$J$10)*dispersió!$K$10*((dispersió!$K$67+K46)^dispersió!$L$10)+dispersió!$C$24*dispersió!$D$67)*dispersió!$I$12),0) -> 4.048086935 | M46: =IFERROR(dispersió!$I$10*((dispersió!$J$67+'Càlculs interns'!K46)^dispersió!$J$10)*(2*LN('Càlculs interns'!L46/dispersió!$O$67))^(1/2),0) -> 22.88584994 | N46: -22.88584994 | P46: 98.97384903 | Q46: =IFERROR((letalitat!$P$8*1000)/((3.14159*dispersió!$I$10*((dispersió!$J$66+P46)^dispersió!$J$10)*dispersió!$K$10*((dispersió!$K$66+P46)^dispersió!$L$10)+dispersió!$C$24*dispersió!$D$66)*dispersió!$I$12),0) -> 5.734293229 | R46: =IFERROR(dispersió!$I$10*((dispersió!$J$66+'Càlculs interns'!P46)^dispersió!$J$10)*(2*LN('Càlculs interns'!Q46/dispersió!$O$66))^(1/2),0) -> 16.6008565 | S46: -16.6008565
A47: 338.576325 | B47: =IFERROR((letalitat!$P$8*1000)/((3.14159*dispersió!$I$10*((dispersió!$J$69+A47)^dispersió!$J$10)*dispersió!$K$10*((dispersió!$K$69+A47)^dispersió!$L$10)+dispersió!$C$24*dispersió!$D$69)*dispersió!$I$12),0) -> 2.120562497 | C47: =IFERROR(dispersió!$I$10*((dispersió!$J$69+'Càlculs interns'!A47)^dispersió!$J$10)*(2*LN('Càlculs interns'!B47/dispersió!$O$69))^(1/2),0) -> 34.77834699 | D47: -34.77834699 | F47: 266.9031882 | G47: =IFERROR((letalitat!$P$8*1000)/((3.14159*dispersió!$I$10*((dispersió!$J$68+F47)^dispersió!$J$10)*dispersió!$K$10*((dispersió!$K$68+F47)^dispersió!$L$10)+dispersió!$C$24*dispersió!$D$68)*dispersió!$I$12),0) -> 2.699058044 | H47: =IFERROR(dispersió!$I$10*((dispersió!$J$68+'Càlculs interns'!F47)^dispersió!$J$10)*(2*LN('Càlculs interns'!G47/dispersió!$O$68))^(1/2),0) -> 29.33712559 | I47: -29.33712559 | K47: 201.0077186 | L47: =IFERROR((letalitat!$P$8*1000)/((3.14159*dispersió!$I$10*((dispersió!$J$67+K47)^dispersió!$J$10)*dispersió!$K$10*((dispersió!$K$67+K47)^dispersió!$L$10)+dispersió!$C$24*dispersió!$D$67)*dispersió!$I$12),0) -> 3.492102241 | M47: =IFERROR(dispersió!$I$10*((dispersió!$J$67+'Càlculs interns'!K47)^dispersió!$J$10)*(2*LN('Càlculs interns'!L47/dispersió!$O$67))^(1/2),0) -> 24.15336426 | N47: -24.15336426 | P47: 118.7686188 | Q47: =IFERROR((letalitat!$P$8*1000)/((3.14159*dispersió!$I$10*((dispersió!$J$66+P47)^dispersió!$J$10)*dispersió!$K$10*((dispersió!$K$66+P47)^dispersió!$L$10)+dispersió!$C$24*dispersió!$D$66)*dispersió!$I$12),0) -> 5.148110053 | R47: =IFERROR(dispersió!$I$10*((dispersió!$J$66+'Càlculs interns'!P47)^dispersió!$J$10)*(2*LN('Càlculs interns'!Q47/dispersió!$O$66))^(1/2),0) -> 17.22758765 | S47: -17.22758765
A48: 395.0057126 | B48: =IFERROR((letalitat!$P$8*1000)/((3.14159*dispersió!$I$10*((dispersió!$J$69+A48)^dispersió!$J$10)*dispersió!$K$10*((dispersió!$K$69+A48)^dispersió!$L$10)+dispersió!$C$24*dispersió!$D$69)*dispersió!$I$12),0) -> 1.793025957 | C48: =IFERROR(dispersió!$I$10*((dispersió!$J$69+'Càlculs interns'!A48)^dispersió!$J$10)*(2*LN('Càlculs interns'!B48/dispersió!$O$69))^(1/2),0) -> 36.85132929 | D48: -36.85132929 | F48: 311.3870529 | G48: =IFERROR((letalitat!$P$8*1000)/((3.14159*dispersió!$I$10*((dispersió!$J$68+F48)^dispersió!$J$10)*dispersió!$K$10*((dispersió!$K$68+F48)^dispersió!$L$10)+dispersió!$C$24*dispersió!$D$68)*dispersió!$I$12),0) -> 2.314262235 | H48: =IFERROR(dispersió!$I$10*((dispersió!$J$68+'Càlculs interns'!F48)^dispersió!$J$10)*(2*LN('Càlculs interns'!G48/dispersió!$O$68))^(1/2),0) -> 30.91895033 | I48: -30.91895033 | K48: 234.509005 | L48: =IFERROR((letalitat!$P$8*1000)/((3.14159*dispersió!$I$10*((dispersió!$J$67+K48)^dispersió!$J$10)*dispersió!$K$10*((dispersió!$K$67+K48)^dispersió!$L$10)+dispersió!$C$24*dispersió!$D$67)*dispersió!$I$12),0) -> 3.048367613 | M48: =IFERROR(dispersió!$I$10*((dispersió!$J$67+'Càlculs interns'!K48)^dispersió!$J$10)*(2*LN('Càlculs interns'!L48/dispersió!$O$67))^(1/2),0) -> 25.27856952 | N48: -25.27856952 | P48: 138.5633886 | Q48: =IFERROR((letalitat!$P$8*1000)/((3.14159*dispersió!$I$10*((dispersió!$J$66+P48)^dispersió!$J$10)*dispersió!$K$10*((dispersió!$K$66+P48)^dispersió!$L$10)+dispersió!$C$24*dispersió!$D$66)*dispersió!$I$12),0) -> 4.650499435 | R48: =IFERROR(dispersió!$I$10*((dispersió!$J$66+'Càlculs interns'!P48)^dispersió!$J$10)*(2*LN('Càlculs interns'!Q48/dispersió!$O$66))^(1/2),0) -> 17.7797076 | S48: -17.7797076
A49: 451.4351001 | B49: =IFERROR((letalitat!$P$8*1000)/((3.14159*dispersió!$I$10*((dispersió!$J$69+A49)^dispersió!$J$10)*dispersió!$K$10*((dispersió!$K$69+A49)^dispersió!$L$10)+dispersió!$C$24*dispersió!$D$69)*dispersió!$I$12),0) -> 1.540019412 | C49: =IFERROR(dispersió!$I$10*((dispersió!$J$69+'Càlculs interns'!A49)^dispersió!$J$10)*(2*LN('Càlculs interns'!B49/dispersió!$O$69))^(1/2),0) -> 38.68262273 | D49: -38.68262273 | F49: 355.8709176 | G49: =IFERROR((letalitat!$P$8*1000)/((3.14159*dispersió!$I$10*((dispersió!$J$68+F49)^dispersió!$J$10)*dispersió!$K$10*((dispersió!$K$68+F49)^dispersió!$L$10)+dispersió!$C$24*dispersió!$D$68)*dispersió!$I$12),0) -> 2.010550752 | H49: =IFERROR(dispersió!$I$10*((dispersió!$J$68+'Càlculs interns'!F49)^dispersió!$J$10)*(2*LN('Càlculs interns'!G49/dispersió!$O$68))^(1/2),0) -> 32.31468233 | I49: -32.31468233 | K49: 268.0102914 | L49: =IFERROR((letalitat!$P$8*1000)/((3.14159*dispersió!$I$10*((dispersió!$J$67+K49)^dispersió!$J$10)*dispersió!$K$10*((dispersió!$K$67+K49)^dispersió!$L$10)+dispersió!$C$24*dispersió!$D$67)*dispersió!$I$12),0) -> 2.688266264 | M49: =IFERROR(dispersió!$I$10*((dispersió!$J$67+'Càlculs interns'!K49)^dispersió!$J$10)*(2*LN('Càlculs interns'!L49/dispersió!$O$67))^(1/2),0) -> 26.26883059 | N49: -26.26883059 | P49: 158.3581584 | Q49: =IFERROR((letalitat!$P$8*1000)/((3.14159*dispersió!$I$10*((dispersió!$J$66+P49)^dispersió!$J$10)*dispersió!$K$10*((dispersió!$K$66+P49)^dispersió!$L$10)+dispersió!$C$24*dispersió!$D$66)*dispersió!$I$12),0) -> 4.224516347 | R49: =IFERROR(dispersió!$I$10*((dispersió!$J$66+'Càlculs interns'!P49)^dispersió!$J$10)*(2*LN('Càlculs interns'!Q49/dispersió!$O$66))^(1/2),0) -> 18.2594548 | S49: -18.2594548
A50: 507.8644876 | B50: =IFERROR((letalitat!$P$8*1000)/((3.14159*dispersió!$I$10*((dispersió!$J$69+A50)^dispersió!$J$10)*dispersió!$K$10*((dispersió!$K$69+A50)^dispersió!$L$10)+dispersió!$C$24*dispersió!$D$69)*dispersió!$I$12),0) -> 1.340094446 | C50: =IFERROR(dispersió!$I$10*((dispersió!$J$69+'Càlculs interns'!A50)^dispersió!$J$10)*(2*LN('Càlculs interns'!B50/dispersió!$O$69))^(1/2),0) -> 40.2856727 | D50: -40.2856727 | F50: 400.3547823 | G50: =IFERROR((letalitat!$P$8*1000)/((3.14159*dispersió!$I$10*((dispersió!$J$68+F50)^dispersió!$J$10)*dispersió!$K$10*((dispersió!$K$68+F50)^dispersió!$L$10)+dispersió!$C$24*dispersió!$D$68)*dispersió!$I$12),0) -> 1.766252173 | H50: =IFERROR(dispersió!$I$10*((dispersió!$J$68+'Càlculs interns'!F50)^dispersió!$J$10)*(2*LN('Càlculs interns'!G50/dispersió!$O$68))^(1/2),0) -> 33.53351372 | I50: -33.53351372 | K50: 301.5115778 | L50: =IFERROR((letalitat!$P$8*1000)/((3.14159*dispersió!$I$10*((dispersió!$J$67+K50)^dispersió!$J$10)*dispersió!$K$10*((dispersió!$K$67+K50)^dispersió!$L$10)+dispersió!$C$24*dispersió!$D$67)*dispersió!$I$12),0) -> 2.391746109 | M50: =IFERROR(dispersió!$I$10*((dispersió!$J$67+'Càlculs interns'!K50)^dispersió!$J$10)*(2*LN('Càlculs interns'!L50/dispersió!$O$67))^(1/2),0) -> 27.12966317 | N50: -27.12966317 | P50: 178.1529282 | Q50: =IFERROR((letalitat!$P$8*1000)/((3.14159*dispersió!$I$10*((dispersió!$J$66+P50)^dispersió!$J$10)*dispersió!$K$10*((dispersió!$K$66+P50)^dispersió!$L$10)+dispersió!$C$24*dispersió!$D$66)*dispersió!$I$12),0) -> 3.857017984 | R50: =IFERROR(dispersió!$I$10*((dispersió!$J$66+'Càlculs interns'!P50)^dispersió!$J$10)*(2*LN('Càlculs interns'!Q50/dispersió!$O$66))^(1/2),0) -> 18.66843932 | S50: -18.66843932
A51: 564.2938751 | B51: =IFERROR((letalitat!$P$8*1000)/((3.14159*dispersió!$I$10*((dispersió!$J$69+A51)^dispersió!$J$10)*dispersió!$K$10*((dispersió!$K$69+A51)^dispersió!$L$10)+dispersió!$C$24*dispersió!$D$69)*dispersió!$I$12),0) -> 1.179060783 | C51: =IFERROR(dispersió!$I$10*((dispersió!$J$69+'Càlculs interns'!A51)^dispersió!$J$10)*(2*LN('Càlculs interns'!B51/dispersió!$O$69))^(1/2),0) -> 41.67038327 | D51: -41.67038327 | F51: 444.838647 | G51: =IFERROR((letalitat!$P$8*1000)/((3.14159*dispersió!$I$10*((dispersió!$J$68+F51)^dispersió!$J$10)*dispersió!$K$10*((dispersió!$K$68+F51)^dispersió!$L$10)+dispersió!$C$24*dispersió!$D$68)*dispersió!$I$12),0) -> 1.566522688 | H51: =IFERROR(dispersió!$I$10*((dispersió!$J$68+'Càlculs interns'!F51)^dispersió!$J$10)*(2*LN('Càlculs interns'!G51/dispersió!$O$68))^(1/2),0) -> 34.58219778 | I51: -34.58219778 | K51: 335.0128643 | L51: =IFERROR((letalitat!$P$8*1000)/((3.14159*dispersió!$I$10*((dispersió!$J$67+K51)^dispersió!$J$10)*dispersió!$K$10*((dispersió!$K$67+K51)^dispersió!$L$10)+dispersió!$C$24*dispersió!$D$67)*dispersió!$I$12),0) -> 2.144435232 | M51: =IFERROR(dispersió!$I$10*((dispersió!$J$67+'Càlculs interns'!K51)^dispersió!$J$10)*(2*LN('Càlculs interns'!L51/dispersió!$O$67))^(1/2),0) -> 27.86507546 | N51: -27.86507546 | P51: 197.9476981 | Q51: =IFERROR((letalitat!$P$8*1000)/((3.14159*dispersió!$I$10*((dispersió!$J$66+P51)^dispersió!$J$10)*dispersió!$K$10*((dispersió!$K$66+P51)^dispersió!$L$10)+dispersió!$C$24*dispersió!$D$66)*dispersió!$I$12),0) -> 3.537709121 | R51: =IFERROR(dispersió!$I$10*((dispersió!$J$66+'Càlculs interns'!P51)^dispersió!$J$10)*(2*LN('Càlculs interns'!Q51/dispersió!$O$66))^(1/2),0) -> 19.00770778 | S51: -19.00770778
A52: 620.7232626 | B52: =IFERROR((letalitat!$P$8*1000)/((3.14159*dispersió!$I$10*((dispersió!$J$69+A52)^dispersió!$J$10)*dispersió!$K$10*((dispersió!$K$69+A52)^dispersió!$L$10)+dispersió!$C$24*dispersió!$D$69)*dispersió!$I$12),0) -> 1.047216656 | C52: =IFERROR(dispersió!$I$10*((dispersió!$J$69+'Càlculs interns'!A52)^dispersió!$J$10)*(2*LN('Càlculs interns'!B52/dispersió!$O$69))^(1/2),0) -> 42.84382712 | D52: -42.84382712 | F52: 489.3225117 | G52: =IFERROR((letalitat!$P$8*1000)/((3.14159*dispersió!$I$10*((dispersió!$J$68+F52)^dispersió!$J$10)*dispersió!$K$10*((dispersió!$K$68+F52)^dispersió!$L$10)+dispersió!$C$24*dispersió!$D$68)*dispersió!$I$12),0) -> 1.400915551 | H52: =IFERROR(dispersió!$I$10*((dispersió!$J$68+'Càlculs interns'!F52)^dispersió!$J$10)*(2*LN('Càlculs interns'!G52/dispersió!$O$68))^(1/2),0) -> 35.46548918 | I52: -35.46548918 | K52: 368.5141507 | L52: =IFERROR((letalitat!$P$8*1000)/((3.14159*dispersió!$I$10*((dispersió!$J$67+K52)^dispersió!$J$10)*dispersió!$K$10*((dispersió!$K$67+K52)^dispersió!$L$10)+dispersió!$C$24*dispersió!$D$67)*dispersió!$I$12),0) -> 1.93582091 | M52: =IFERROR(dispersió!$I$10*((dispersió!$J$67+'Càlculs interns'!K52)^dispersió!$J$10)*(2*LN('Càlculs interns'!L52/dispersió!$O$67))^(1/2),0) -> 28.4777948 | N52: -28.4777948 | P52: 217.7424679 | Q52: =IFERROR((letalitat!$P$8*1000)/((3.14159*dispersió!$I$10*((dispersió!$J$66+P52)^dispersió!$J$10)*dispersió!$K$10*((dispersió!$K$66+P52)^dispersió!$L$10)+dispersió!$C$24*dispersió!$D$66)*dispersió!$I$12),0) -> 3.258446645 | R52: =IFERROR(dispersió!$I$10*((dispersió!$J$66+'Càlculs interns'!P52)^dispersió!$J$10)*(2*LN('Càlculs interns'!Q52/dispersió!$O$66))^(1/2),0) -> 19.2777837 | S52: -19.2777837
A53: 677.1526501 | B53: =IFERROR((letalitat!$P$8*1000)/((3.14159*dispersió!$I$10*((dispersió!$J$69+A53)^dispersió!$J$10)*dispersió!$K$10*((dispersió!$K$69+A53)^dispersió!$L$10)+dispersió!$C$24*dispersió!$D$69)*dispersió!$I$12),0) -> 0.9377393755 | C53: =IFERROR(dispersió!$I$10*((dispersió!$J$69+'Càlculs interns'!A53)^dispersió!$J$10)*(2*LN('Càlculs interns'!B53/dispersió!$O$69))^(1/2),0) -> 43.8107012 | D53: -43.8107012 | F53: 533.8063765 | G53: =IFERROR((letalitat!$P$8*1000)/((3.14159*dispersió!$I$10*((dispersió!$J$68+F53)^dispersió!$J$10)*dispersió!$K$10*((dispersió!$K$68+F53)^dispersió!$L$10)+dispersió!$C$24*dispersió!$D$68)*dispersió!$I$12),0) -> 1.26190196 | H53: =IFERROR(dispersió!$I$10*((dispersió!$J$68+'Càlculs interns'!F53)^dispersió!$J$10)*(2*LN('Càlculs interns'!G53/dispersió!$O$68))^(1/2),0) -> 36.18642725 | I53: -36.18642725 | K53: 402.0154371 | L53: =IFERROR((letalitat!$P$8*1000)/((3.14159*dispersió!$I$10*((dispersió!$J$67+K53)^dispersió!$J$10)*dispersió!$K$10*((dispersió!$K$67+K53)^dispersió!$L$10)+dispersió!$C$24*dispersió!$D$67)*dispersió!$I$12),0) -> 1.758071119 | M53: =IFERROR(dispersió!$I$10*((dispersió!$J$67+'Càlculs interns'!K53)^dispersió!$J$10)*(2*LN('Càlculs interns'!L53/dispersió!$O$67))^(1/2),0) -> 28.96941193 | N53: -28.96941193 | P53: 237.5372377 | Q53: =IFERROR((letalitat!$P$8*1000)/((3.14159*dispersió!$I$10*((dispersió!$J$66+P53)^dispersió!$J$10)*dispersió!$K$10*((dispersió!$K$66+P53)^dispersió!$L$10)+dispersió!$C$24*dispersió!$D$66)*dispersió!$I$12),0) -> 3.01272941 | R53: =IFERROR(dispersió!$I$10*((dispersió!$J$66+'Càlculs interns'!P53)^dispersió!$J$10)*(2*LN('Càlculs interns'!Q53/dispersió!$O$66))^(1/2),0) -> 19.47868648 | S53: -19.47868648
A54: 733.5820376 | B54: =IFERROR((letalitat!$P$8*1000)/((3.14159*dispersió!$I$10*((dispersió!$J$69+A54)^dispersió!$J$10)*dispersió!$K$10*((dispersió!$K$69+A54)^dispersió!$L$10)+dispersió!$C$24*dispersió!$D$69)*dispersió!$I$12),0) -> 0.8457123132 | C54: =IFERROR(dispersió!$I$10*((dispersió!$J$69+'Càlculs interns'!A54)^dispersió!$J$10)*(2*LN('Càlculs interns'!B54/dispersió!$O$69))^(1/2),0) -> 44.57360731 | D54: -44.57360731 | F54: 578.2902412 | G54: =IFERROR((letalitat!$P$8*1000)/((3.14159*dispersió!$I$10*((dispersió!$J$68+F54)^dispersió!$J$10)*dispersió!$K$10*((dispersió!$K$68+F54)^dispersió!$L$10)+dispersió!$C$24*dispersió!$D$68)*dispersió!$I$12),0) -> 1.143941462 | H54: =IFERROR(dispersió!$I$10*((dispersió!$J$68+'Càlculs interns'!F54)^dispersió!$J$10)*(2*LN('Càlculs interns'!G54/dispersió!$O$68))^(1/2),0) -> 36.74650644 | I54: -36.74650644 | K54: 435.5167235 | L54: =IFERROR((letalitat!$P$8*1000)/((3.14159*dispersió!$I$10*((dispersió!$J$67+K54)^dispersió!$J$10)*dispersió!$K$10*((dispersió!$K$67+K54)^dispersió!$L$10)+dispersió!$C$24*dispersió!$D$67)*dispersió!$I$12),0) -> 1.605253861 | M54: =IFERROR(dispersió!$I$10*((dispersió!$J$67+'Càlculs interns'!K54)^dispersió!$J$10)*(2*LN('Càlculs interns'!L54/dispersió!$O$67))^(1/2),0) -> 29.34046196 | N54: -29.34046196 | P54: 257.3320075 | Q54: =IFERROR((letalitat!$P$8*1000)/((3.14159*dispersió!$I$10*((dispersió!$J$66+P54)^dispersió!$J$10)*dispersió!$K$10*((dispersió!$K$66+P54)^dispersió!$L$10)+dispersió!$C$24*dispersió!$D$66)*dispersió!$I$12),0) -> 2.795320932 | R54: =IFERROR(dispersió!$I$10*((dispersió!$J$66+'Càlculs interns'!P54)^dispersió!$J$10)*(2*LN('Càlculs interns'!Q54/dispersió!$O$66))^(1/2),0) -> 19.60993065 | S54: -19.60993065
A55: 790.0114251 | B55: =IFERROR((letalitat!$P$8*1000)/((3.14159*dispersió!$I$10*((dispersió!$J$69+A55)^dispersió!$J$10)*dispersió!$K$10*((dispersió!$K$69+A55)^dispersió!$L$10)+dispersió!$C$24*dispersió!$D$69)*dispersió!$I$12),0) -> 0.7675159871 | C55: =IFERROR(dispersió!$I$10*((dispersió!$J$69+'Càlculs interns'!A55)^dispersió!$J$10)*(2*LN('Càlculs interns'!B55/dispersió!$O$69))^(1/2),0) -> 45.13320183 | D55: -45.13320183 | F55: 622.7741059 | G55: =IFERROR((letalitat!$P$8*1000)/((3.14159*dispersió!$I$10*((dispersió!$J$68+F55)^dispersió!$J$10)*dispersió!$K$10*((dispersió!$K$68+F55)^dispersió!$L$10)+dispersió!$C$24*dispersió!$D$68)*dispersió!$I$12),0) -> 1.042880689 | H55: =IFERROR(dispersió!$I$10*((dispersió!$J$68+'Càlculs interns'!F55)^dispersió!$J$10)*(2*LN('Càlculs interns'!G55/dispersió!$O$68))^(1/2),0) -> 37.14575881 | I55: -37.14575881 | K55: 469.01801 | L55: =IFERROR((letalitat!$P$8*1000)/((3.14159*dispersió!$I$10*((dispersió!$J$67+K55)^dispersió!$J$10)*dispersió!$K$10*((dispersió!$K$67+K55)^dispersió!$L$10)+dispersió!$C$24*dispersió!$D$67)*dispersió!$I$12),0) -> 1.472808785 | M55: =IFERROR(dispersió!$I$10*((dispersió!$J$67+'Càlculs interns'!K55)^dispersió!$J$10)*(2*LN('Càlculs interns'!L55/dispersió!$O$67))^(1/2),0) -> 29.59045231 | N55: -29.59045231 | P55: 277.1267773 | Q55: =IFERROR((letalitat!$P$8*1000)/((3.14159*dispersió!$I$10*((dispersió!$J$66+P55)^dispersió!$J$10)*dispersió!$K$10*((dispersió!$K$66+P55)^dispersió!$L$10)+dispersió!$C$24*dispersió!$D$66)*dispersió!$I$12),0) -> 2.601967864 | R55: =IFERROR(dispersió!$I$10*((dispersió!$J$66+'Càlculs interns'!P55)^dispersió!$J$10)*(2*LN('Càlculs interns'!Q55/dispersió!$O$66))^(1/2),0) -> 19.67050506 | S55: -19.67050506
A56: 846.4408126 | B56: =IFERROR((letalitat!$P$8*1000)/((3.14159*dispersió!$I$10*((dispersió!$J$69+A56)^dispersió!$J$10)*dispersió!$K$10*((dispersió!$K$69+A56)^dispersió!$L$10)+dispersió!$C$24*dispersió!$D$69)*dispersió!$I$12),0) -> 0.7004353054 | C56: =IFERROR(dispersió!$I$10*((dispersió!$J$69+'Càlculs interns'!A56)^dispersió!$J$10)*(2*LN('Càlculs interns'!B56/dispersió!$O$69))^(1/2),0) -> 45.48823698 | D56: -45.48823698 | F56: 667.2579706 | G56: =IFERROR((letalitat!$P$8*1000)/((3.14159*dispersió!$I$10*((dispersió!$J$68+F56)^dispersió!$J$10)*dispersió!$K$10*((dispersió!$K$68+F56)^dispersió!$L$10)+dispersió!$C$24*dispersió!$D$68)*dispersió!$I$12),0) -> 0.9555543664 | H56: =IFERROR(dispersió!$I$10*((dispersió!$J$68+'Càlculs interns'!F56)^dispersió!$J$10)*(2*LN('Càlculs interns'!G56/dispersió!$O$68))^(1/2),0) -> 37.38276003 | I56: -37.38276003 | K56: 502.5192964 | L56: =IFERROR((letalitat!$P$8*1000)/((3.14159*dispersió!$I$10*((dispersió!$J$67+K56)^dispersió!$J$10)*dispersió!$K$10*((dispersió!$K$67+K56)^dispersió!$L$10)+dispersió!$C$24*dispersió!$D$67)*dispersió!$I$12),0) -> 1.357182416 | M56: =IFERROR(dispersió!$I$10*((dispersió!$J$67+'Càlculs interns'!K56)^dispersió!$J$10)*(2*LN('Càlculs interns'!L56/dispersió!$O$67))^(1/2),0) -> 29.71784137 | N56: -29.71784137 | P56: 296.9215471 | Q56: =IFERROR((letalitat!$P$8*1000)/((3.14159*dispersió!$I$10*((dispersió!$J$66+P56)^dispersió!$J$10)*dispersió!$K$10*((dispersió!$K$66+P56)^dispersió!$L$10)+dispersió!$C$24*dispersió!$D$66)*dispersió!$I$12),0) -> 2.429187994 | R56: =IFERROR(dispersió!$I$10*((dispersió!$J$66+'Càlculs interns'!P56)^dispersió!$J$10)*(2*LN('Càlculs interns'!Q56/dispersió!$O$66))^(1/2),0) -> 19.65882996 | S56: -19.65882996
A57: 902.8702001 | B57: =IFERROR((letalitat!$P$8*1000)/((3.14159*dispersió!$I$10*((dispersió!$J$69+A57)^dispersió!$J$10)*dispersió!$K$10*((dispersió!$K$69+A57)^dispersió!$L$10)+dispersió!$C$24*dispersió!$D$69)*dispersió!$I$12),0) -> 0.642399378 | C57: =IFERROR(dispersió!$I$10*((dispersió!$J$69+'Càlculs interns'!A57)^dispersió!$J$10)*(2*LN('Càlculs interns'!B57/dispersió!$O$69))^(1/2),0) -> 45.63550081 | D57: -45.63550081 | F57: 711.7418353 | G57: =IFERROR((letalitat!$P$8*1000)/((3.14159*dispersió!$I$10*((dispersió!$J$68+F57)^dispersió!$J$10)*dispersió!$K$10*((dispersió!$K$68+F57)^dispersió!$L$10)+dispersió!$C$24*dispersió!$D$68)*dispersió!$I$12),0) -> 0.8795143928 | H57: =IFERROR(dispersió!$I$10*((dispersió!$J$68+'Càlculs interns'!F57)^dispersió!$J$10)*(2*LN('Càlculs interns'!G57/dispersió!$O$68))^(1/2),0) -> 37.45456087 | I57: -37.45456087 | K57: 536.0205828 | L57: =IFERROR((letalitat!$P$8*1000)/((3.14159*dispersió!$I$10*((dispersió!$J$67+K57)^dispersió!$J$10)*dispersió!$K$10*((dispersió!$K$67+K57)^dispersió!$L$10)+dispersió!$C$24*dispersió!$D$67)*dispersió!$I$12),0) -> 1.25557171 | M57: =IFERROR(dispersió!$I$10*((dispersió!$J$67+'Càlculs interns'!K57)^dispersió!$J$10)*(2*LN('Càlculs interns'!L57/dispersió!$O$67))^(1/2),0) -> 29.71996593 | N57: -29.71996593 | P57: 316.7163169 | Q57: =IFERROR((letalitat!$P$8*1000)/((3.14159*dispersió!$I$10*((dispersió!$J$66+P57)^dispersió!$J$10)*dispersió!$K$10*((dispersió!$K$66+P57)^dispersió!$L$10)+dispersió!$C$24*dispersió!$D$66)*dispersió!$I$12),0) -> 2.274109156 | R57: =IFERROR(dispersió!$I$10*((dispersió!$J$66+'Càlculs interns'!P57)^dispersió!$J$10)*(2*LN('Càlculs interns'!Q57/dispersió!$O$66))^(1/2),0) -> 19.57268761 | S57: -19.57268761
A58: 959.2995876 | B58: =IFERROR((letalitat!$P$8*1000)/((3.14159*dispersió!$I$10*((dispersió!$J$69+A58)^dispersió!$J$10)*dispersió!$K$10*((dispersió!$K$69+A58)^dispersió!$L$10)+dispersió!$C$24*dispersió!$D$69)*dispersió!$I$12),0) -> 0.5918050139 | C58: =IFERROR(dispersió!$I$10*((dispersió!$J$69+'Càlculs interns'!A58)^dispersió!$J$10)*(2*LN('Càlculs interns'!B58/dispersió!$O$69))^(1/2),0) -> 45.56964947 | D58: -45.56964947 | F58: 756.2257 | G58: =IFERROR((letalitat!$P$8*1000)/((3.14159*dispersió!$I$10*((dispersió!$J$68+F58)^dispersió!$J$10)*dispersió!$K$10*((dispersió!$K$68+F58)^dispersió!$L$10)+dispersió!$C$24*dispersió!$D$68)*dispersió!$I$12),0) -> 0.8128420402 | H58: =IFERROR(dispersió!$I$10*((dispersió!$J$68+'Càlculs interns'!F58)^dispersió!$J$10)*(2*LN('Càlculs interns'!G58/dispersió!$O$68))^(1/2),0) -> 37.35653652 | I58: -37.35653652 | K58: 569.5218693 | L58: =IFERROR((letalitat!$P$8*1000)/((3.14159*dispersió!$I$10*((dispersió!$J$67+K58)^dispersió!$J$10)*dispersió!$K$10*((dispersió!$K$67+K58)^dispersió!$L$10)+dispersió!$C$24*dispersió!$D$67)*dispersió!$I$12),0) -> 1.165740762 | M58: =IFERROR(dispersió!$I$10*((dispersió!$J$67+'Càlculs interns'!K58)^dispersió!$J$10)*(2*LN('Càlculs interns'!L58/dispersió!$O$67))^(1/2),0) -> 29.59290908 | N58: -29.59290908 | P58: 336.5110867 | Q58: =IFERROR((letalitat!$P$8*1000)/((3.14159*dispersió!$I$10*((dispersió!$J$66+P58)^dispersió!$J$10)*dispersió!$K$10*((dispersió!$K$66+P58)^dispersió!$L$10)+dispersió!$C$24*dispersió!$D$66)*dispersió!$I$12),0) -> 2.134345748 | R58: =IFERROR(dispersió!$I$10*((dispersió!$J$66+'Càlculs interns'!P58)^dispersió!$J$10)*(2*LN('Càlculs interns'!Q58/dispersió!$O$66))^(1/2),0) -> 19.40911893 | S58: -19.40911893
A59: 1015.728975 | B59: =IFERROR((letalitat!$P$8*1000)/((3.14159*dispersió!$I$10*((dispersió!$J$69+A59)^dispersió!$J$10)*dispersió!$K$10*((dispersió!$K$69+A59)^dispersió!$L$10)+dispersió!$C$24*dispersió!$D$69)*dispersió!$I$12),0) -> 0.5473944249 | C59: =IFERROR(dispersió!$I$10*((dispersió!$J$69+'Càlculs interns'!A59)^dispersió!$J$10)*(2*LN('Càlculs interns'!B59/dispersió!$O$69))^(1/2),0) -> 45.28291113 | D59: -45.28291113 | F59: 800.7095647 | G59: =IFERROR((letalitat!$P$8*1000)/((3.14159*dispersió!$I$10*((dispersió!$J$68+F59)^dispersió!$J$10)*dispersió!$K$10*((dispersió!$K$68+F59)^dispersió!$L$10)+dispersió!$C$24*dispersió!$D$68)*dispersió!$I$12),0) -> 0.7540153197 | H59: =IFERROR(dispersió!$I$10*((dispersió!$J$68+'Càlculs interns'!F59)^dispersió!$J$10)*(2*LN('Càlculs interns'!G59/dispersió!$O$68))^(1/2),0) -> 37.08213522 | I59: -37.08213522 | K59: 603.0231557 | L59: =IFERROR((letalitat!$P$8*1000)/((3.14159*dispersió!$I$10*((dispersió!$J$67+K59)^dispersió!$J$10)*dispersió!$K$10*((dispersió!$K$67+K59)^dispersió!$L$10)+dispersió!$C$24*dispersió!$D$67)*dispersió!$I$12),0) -> 1.085887755 | M59: =IFERROR(dispersió!$I$10*((dispersió!$J$67+'Càlculs interns'!K59)^dispersió!$J$10)*(2*LN('Càlculs interns'!L59/dispersió!$O$67))^(1/2),0) -> 29.33129289 | N59: -29.33129289 | P59: 356.3058565 | Q59: =IFERROR((letalitat!$P$8*1000)/((3.14159*dispersió!$I$10*((dispersió!$J$66+P59)^dispersió!$J$10)*dispersió!$K$10*((dispersió!$K$66+P59)^dispersió!$L$10)+dispersió!$C$24*dispersió!$D$66)*dispersió!$I$12),0) -> 2.007903244 | R59: =IFERROR(dispersió!$I$10*((dispersió!$J$66+'Càlculs interns'!P59)^dispersió!$J$10)*(2*LN('Càlculs interns'!Q59/dispersió!$O$66))^(1/2),0) -> 19.16427415 | S59: -19.16427415
A60: 1072.158363 | B60: =IFERROR((letalitat!$P$8*1000)/((3.14159*dispersió!$I$10*((dispersió!$J$69+A60)^dispersió!$J$10)*dispersió!$K$10*((dispersió!$K$69+A60)^dispersió!$L$10)+dispersió!$C$24*dispersió!$D$69)*dispersió!$I$12),0) -> 0.5081688586 | C60: =IFERROR(dispersió!$I$10*((dispersió!$J$69+'Càlculs interns'!A60)^dispersió!$J$10)*(2*LN('Càlculs interns'!B60/dispersió!$O$69))^(1/2),0) -> 44.76462098 | D60: -44.76462098 | F60: 845.1934294 | G60: =IFERROR((letalitat!$P$8*1000)/((3.14159*dispersió!$I$10*((dispersió!$J$68+F60)^dispersió!$J$10)*dispersió!$K$10*((dispersió!$K$68+F60)^dispersió!$L$10)+dispersió!$C$24*dispersió!$D$68)*dispersió!$I$12),0) -> 0.7018137118 | H60: =IFERROR(dispersió!$I$10*((dispersió!$J$68+'Càlculs interns'!F60)^dispersió!$J$10)*(2*LN('Càlculs interns'!G60/dispersió!$O$68))^(1/2),0) -> 36.6224923 | I60: -36.6224923 | K60: 636.5244421 | L60: =IFERROR((letalitat!$P$8*1000)/((3.14159*dispersió!$I$10*((dispersió!$J$67+K60)^dispersió!$J$10)*dispersió!$K$10*((dispersió!$K$67+K60)^dispersió!$L$10)+dispersió!$C$24*dispersió!$D$67)*dispersió!$I$12),0) -> 1.014547037 | M60: =IFERROR(dispersió!$I$10*((dispersió!$J$67+'Càlculs interns'!K60)^dispersió!$J$10)*(2*LN('Càlculs interns'!L60/dispersió!$O$67))^(1/2),0) -> 28.92796811 | N60: -28.92796811 | P60: 376.1006263 | Q60: =IFERROR((letalitat!$P$8*1000)/((3.14159*dispersió!$I$10*((dispersió!$J$66+P60)^dispersió!$J$10)*dispersió!$K$10*((dispersió!$K$66+P60)^dispersió!$L$10)+dispersió!$C$24*dispersió!$D$66)*dispersió!$I$12),0) -> 1.893103762 | R60: =IFERROR(dispersió!$I$10*((dispersió!$J$66+'Càlculs interns'!P60)^dispersió!$J$10)*(2*LN('Càlculs interns'!Q60/dispersió!$O$66))^(1/2),0) -> 18.8331982 | S60: -18.8331982
A61: 1128.58775 | B61: =IFERROR((letalitat!$P$8*1000)/((3.14159*dispersió!$I$10*((dispersió!$J$69+A61)^dispersió!$J$10)*dispersió!$K$10*((dispersió!$K$69+A61)^dispersió!$L$10)+dispersió!$C$24*dispersió!$D$69)*dispersió!$I$12),0) -> 0.4733265488 | C61: =IFERROR(dispersió!$I$10*((dispersió!$J$69+'Càlculs interns'!A61)^dispersió!$J$10)*(2*LN('Càlculs interns'!B61/dispersió!$O$69))^(1/2),0) -> 44.00051697 | D61: -44.00051697 | F61: 889.6772941 | G61: =IFERROR((letalitat!$P$8*1000)/((3.14159*dispersió!$I$10*((dispersió!$J$68+F61)^dispersió!$J$10)*dispersió!$K$10*((dispersió!$K$68+F61)^dispersió!$L$10)+dispersió!$C$24*dispersió!$D$68)*dispersió!$I$12),0) -> 0.6552486722 | H61: =IFERROR(dispersió!$I$10*((dispersió!$J$68+'Càlculs interns'!F61)^dispersió!$J$10)*(2*LN('Càlculs interns'!G61/dispersió!$O$68))^(1/2),0) -> 35.9658516 | I61: -35.9658516 | K61: 670.0257285 | L61: =IFERROR((letalitat!$P$8*1000)/((3.14159*dispersió!$I$10*((dispersió!$J$67+K61)^dispersió!$J$10)*dispersió!$K$10*((dispersió!$K$67+K61)^dispersió!$L$10)+dispersió!$C$24*dispersió!$D$67)*dispersió!$I$12),0) -> 0.9505160878 | M61: =IFERROR(dispersió!$I$10*((dispersió!$J$67+'Càlculs interns'!K61)^dispersió!$J$10)*(2*LN('Càlculs interns'!L61/dispersió!$O$67))^(1/2),0) -> 28.37355479 | N61: -28.37355479 | P61: 395.8953961 | Q61: =IFERROR((letalitat!$P$8*1000)/((3.14159*dispersió!$I$10*((dispersió!$J$66+P61)^dispersió!$J$10)*dispersió!$K$10*((dispersió!$K$66+P61)^dispersió!$L$10)+dispersió!$C$24*dispersió!$D$66)*dispersió!$I$12),0) -> 1.788527577 | R61: =IFERROR(dispersió!$I$10*((dispersió!$J$66+'Càlculs interns'!P61)^dispersió!$J$10)*(2*LN('Càlculs interns'!Q61/dispersió!$O$66))^(1/2),0) -> 18.40951883 | S61: -18.40951883
A62: 1185.017138 | B62: =IFERROR((letalitat!$P$8*1000)/((3.14159*dispersió!$I$10*((dispersió!$J$69+A62)^dispersió!$J$10)*dispersió!$K$10*((dispersió!$K$69+A62)^dispersió!$L$10)+dispersió!$C$24*dispersió!$D$69)*dispersió!$I$12),0) -> 0.442217434 | C62: =IFERROR(dispersió!$I$10*((dispersió!$J$69+'Càlculs interns'!A62)^dispersió!$J$10)*(2*LN('Càlculs interns'!B62/dispersió!$O$69))^(1/2),0) -> 42.97167431 | D62: -42.97167431 | F62: 934.1611588 | G62: =IFERROR((letalitat!$P$8*1000)/((3.14159*dispersió!$I$10*((dispersió!$J$68+F62)^dispersió!$J$10)*dispersió!$K$10*((dispersió!$K$68+F62)^dispersió!$L$10)+dispersió!$C$24*dispersió!$D$68)*dispersió!$I$12),0) -> 0.6135122206 | H62: =IFERROR(dispersió!$I$10*((dispersió!$J$68+'Càlculs interns'!F62)^dispersió!$J$10)*(2*LN('Càlculs interns'!G62/dispersió!$O$68))^(1/2),0) -> 35.0966947 | I62: -35.0966947 | K62: 703.527015 | L62: =IFERROR((letalitat!$P$8*1000)/((3.14159*dispersió!$I$10*((dispersió!$J$67+K62)^dispersió!$J$10)*dispersió!$K$10*((dispersió!$K$67+K62)^dispersió!$L$10)+dispersió!$C$24*dispersió!$D$67)*dispersió!$I$12),0) -> 0.8928004151 | M62: =IFERROR(dispersió!$I$10*((dispersió!$J$67+'Càlculs interns'!K62)^dispersió!$J$10)*(2*LN('Càlculs interns'!L62/dispersió!$O$67))^(1/2),0) -> 27.65575529 | N62: -27.65575529 | P62: 415.6901659 | Q62: =IFERROR((letalitat!$P$8*1000)/((3.14159*dispersió!$I$10*((dispersió!$J$66+P62)^dispersió!$J$10)*dispersió!$K$10*((dispersió!$K$66+P62)^dispersió!$L$10)+dispersió!$C$24*dispersió!$D$66)*dispersió!$I$12),0) -> 1.692966822 | R62: =IFERROR(dispersió!$I$10*((dispersió!$J$66+'Càlculs interns'!P62)^dispersió!$J$10)*(2*LN('Càlculs interns'!Q62/dispersió!$O$66))^(1/2),0) -> 17.88498425 | S62: -17.88498425
A63: 1241.446525 | B63: =IFERROR((letalitat!$P$8*1000)/((3.14159*dispersió!$I$10*((dispersió!$J$69+A63)^dispersió!$J$10)*dispersió!$K$10*((dispersió!$K$69+A63)^dispersió!$L$10)+dispersió!$C$24*dispersió!$D$69)*dispersió!$I$12),0) -> 0.4143096421 | C63: =IFERROR(dispersió!$I$10*((dispersió!$J$69+'Càlculs interns'!A63)^dispersió!$J$10)*(2*LN('Càlculs interns'!B63/dispersió!$O$69))^(1/2),0) -> 41.652863 | D63: -41.652863 | F63: 978.6450235 | G63: =IFERROR((letalitat!$P$8*1000)/((3.14159*dispersió!$I$10*((dispersió!$J$68+F63)^dispersió!$J$10)*dispersió!$K$10*((dispersió!$K$68+F63)^dispersió!$L$10)+dispersió!$C$24*dispersió!$D$68)*dispersió!$I$12),0) -> 0.5759384151 | H63: =IFERROR(dispersió!$I$10*((dispersió!$J$68+'Càlculs interns'!F63)^dispersió!$J$10)*(2*LN('Càlculs interns'!G63/dispersió!$O$68))^(1/2),0) -> 33.99440201 | I63: -33.99440201 | K63: 737.0283014 | L63: =IFERROR((letalitat!$P$8*1000)/((3.14159*dispersió!$I$10*((dispersió!$J$67+K63)^dispersió!$J$10)*dispersió!$K$10*((dispersió!$K$67+K63)^dispersió!$L$10)+dispersió!$C$24*dispersió!$D$67)*dispersió!$I$12),0) -> 0.8405714988 | M63: =IFERROR(dispersió!$I$10*((dispersió!$J$67+'Càlculs interns'!K63)^dispersió!$J$10)*(2*LN('Càlculs interns'!L63/dispersió!$O$67))^(1/2),0) -> 26.75830126 | N63: -26.75830126 | P63: 435.4849357 | Q63: =IFERROR((letalitat!$P$8*1000)/((3.14159*dispersió!$I$10*((dispersió!$J$66+P63)^dispersió!$J$10)*dispersió!$K$10*((dispersió!$K$66+P63)^dispersió!$L$10)+dispersió!$C$24*dispersió!$D$66)*dispersió!$I$12),0) -> 1.605388574 | R63: =IFERROR(dispersió!$I$10*((dispersió!$J$66+'Càlculs interns'!P63)^dispersió!$J$10)*(2*LN('Càlculs interns'!Q63/dispersió!$O$66))^(1/2),0) -> 17.24875586 | S63: -17.24875586
A64: 1297.875913 | B64: =IFERROR((letalitat!$P$8*1000)/((3.14159*dispersió!$I$10*((dispersió!$J$69+A64)^dispersió!$J$10)*dispersió!$K$10*((dispersió!$K$69+A64)^dispersió!$L$10)+dispersió!$C$24*dispersió!$D$69)*dispersió!$I$12),0) -> 0.3891643572 | C64: =IFERROR(dispersió!$I$10*((dispersió!$J$69+'Càlculs interns'!A64)^dispersió!$J$10)*(2*LN('Càlculs interns'!B64/dispersió!$O$69))^(1/2),0) -> 40.00992871 | D64: -40.00992871 | F64: 1023.128888 | G64: =IFERROR((letalitat!$P$8*1000)/((3.14159*dispersió!$I$10*((dispersió!$J$68+F64)^dispersió!$J$10)*dispersió!$K$10*((dispersió!$K$68+F64)^dispersió!$L$10)+dispersió!$C$24*dispersió!$D$68)*dispersió!$I$12),0) -> 0.5419741365 | H64: =IFERROR(dispersió!$I$10*((dispersió!$J$68+'Càlculs interns'!F64)^dispersió!$J$10)*(2*LN('Càlculs interns'!G64/dispersió!$O$68))^(1/2),0) -> 32.63112036 | I64: -32.63112036 | K64: 770.5295878 | L64: =IFERROR((letalitat!$P$8*1000)/((3.14159*dispersió!$I$10*((dispersió!$J$67+K64)^dispersió!$J$10)*dispersió!$K$10*((dispersió!$K$67+K64)^dispersió!$L$10)+dispersió!$C$24*dispersió!$D$67)*dispersió!$I$12),0) -> 0.7931343722 | M64: =IFERROR(dispersió!$I$10*((dispersió!$J$67+'Càlculs interns'!K64)^dispersió!$J$10)*(2*LN('Càlculs interns'!L64/dispersió!$O$67))^(1/2),0) -> 25.65927891 | N64: -25.65927891 | P64: 455.2797055 | Q64: =IFERROR((letalitat!$P$8*1000)/((3.14159*dispersió!$I$10*((dispersió!$J$66+P64)^dispersió!$J$10)*dispersió!$K$10*((dispersió!$K$66+P64)^dispersió!$L$10)+dispersió!$C$24*dispersió!$D$66)*dispersió!$I$12),0) -> 1.524905213 | R64: =IFERROR(dispersió!$I$10*((dispersió!$J$66+'Càlculs interns'!P64)^dispersió!$J$10)*(2*LN('Càlculs interns'!Q64/dispersió!$O$66))^(1/2),0) -> 16.48628113 | S64: -16.48628113
A65: 1354.3053 | B65: =IFERROR((letalitat!$P$8*1000)/((3.14159*dispersió!$I$10*((dispersió!$J$69+A65)^dispersió!$J$10)*dispersió!$K$10*((dispersió!$K$69+A65)^dispersió!$L$10)+dispersió!$C$24*dispersió!$D$69)*dispersió!$I$12),0) -> 0.3664167475 | C65: =IFERROR(dispersió!$I$10*((dispersió!$J$69+'Càlculs interns'!A65)^dispersió!$J$10)*(2*LN('Càlculs interns'!B65/dispersió!$O$69))^(1/2),0) -> 37.99540796 | D65: -37.99540796 | F65: 1067.612753 | G65: =IFERROR((letalitat!$P$8*1000)/((3.14159*dispersió!$I$10*((dispersió!$J$68+F65)^dispersió!$J$10)*dispersió!$K$10*((dispersió!$K$68+F65)^dispersió!$L$10)+dispersió!$C$24*dispersió!$D$68)*dispersió!$I$12),0) -> 0.5111566894 | H65: =IFERROR(dispersió!$I$10*((dispersió!$J$68+'Càlculs interns'!F65)^dispersió!$J$10)*(2*LN('Càlculs interns'!G65/dispersió!$O$68))^(1/2),0) -> 30.96819479 | I65: -30.96819479 | K65: 804.0308742 | L65: =IFERROR((letalitat!$P$8*1000)/((3.14159*dispersió!$I$10*((dispersió!$J$67+K65)^dispersió!$J$10)*dispersió!$K$10*((dispersió!$K$67+K65)^dispersió!$L$10)+dispersió!$C$24*dispersió!$D$67)*dispersió!$I$12),0) -> 0.7499023872 | M65: =IFERROR(dispersió!$I$10*((dispersió!$J$67+'Càlculs interns'!K65)^dispersió!$J$10)*(2*LN('Càlculs interns'!L65/dispersió!$O$67))^(1/2),0) -> 24.32832771 | N65: -24.32832771 | P65: 475.0744753 | Q65: =IFERROR((letalitat!$P$8*1000)/((3.14159*dispersió!$I$10*((dispersió!$J$66+P65)^dispersió!$J$10)*dispersió!$K$10*((dispersió!$K$66+P65)^dispersió!$L$10)+dispersió!$C$24*dispersió!$D$66)*dispersió!$I$12),0) -> 1.450750486 | R65: =IFERROR(dispersió!$I$10*((dispersió!$J$66+'Càlculs interns'!P65)^dispersió!$J$10)*(2*LN('Càlculs interns'!Q65/dispersió!$O$66))^(1/2),0) -> 15.57739867 | S65: -15.57739867
A66: 1410.734688 | B66: =IFERROR((letalitat!$P$8*1000)/((3.14159*dispersió!$I$10*((dispersió!$J$69+A66)^dispersió!$J$10)*dispersió!$K$10*((dispersió!$K$69+A66)^dispersió!$L$10)+dispersió!$C$24*dispersió!$D$69)*dispersió!$I$12),0) -> 0.3457613317 | C66: =IFERROR(dispersió!$I$10*((dispersió!$J$69+'Càlculs interns'!A66)^dispersió!$J$10)*(2*LN('Càlculs interns'!B66/dispersió!$O$69))^(1/2),0) -> 35.54068486 | D66: -35.54068486 | F66: 1112.096618 | G66: =IFERROR((letalitat!$P$8*1000)/((3.14159*dispersió!$I$10*((dispersió!$J$68+F66)^dispersió!$J$10)*dispersió!$K$10*((dispersió!$K$68+F66)^dispersió!$L$10)+dispersió!$C$24*dispersió!$D$68)*dispersió!$I$12),0) -> 0.4830964554 | H66: =IFERROR(dispersió!$I$10*((dispersió!$J$68+'Càlculs interns'!F66)^dispersió!$J$10)*(2*LN('Càlculs interns'!G66/dispersió!$O$68))^(1/2),0) -> 28.94978611 | I66: -28.94978611 | K66: 837.5321607 | L66: =IFERROR((letalitat!$P$8*1000)/((3.14159*dispersió!$I$10*((dispersió!$J$67+K66)^dispersió!$J$10)*dispersió!$K$10*((dispersió!$K$67+K66)^dispersió!$L$10)+dispersió!$C$24*dispersió!$D$67)*dispersió!$I$12),0) -> 0.7103773988 | M66: =IFERROR(dispersió!$I$10*((dispersió!$J$67+'Càlculs interns'!K66)^dispersió!$J$10)*(2*LN('Càlculs interns'!L66/dispersió!$O$67))^(1/2),0) -> 22.72162882 | N66: -22.72162882 | P66: 494.8692451 | Q66: =IFERROR((letalitat!$P$8*1000)/((3.14159*dispersió!$I$10*((dispersió!$J$66+P66)^dispersió!$J$10)*dispersió!$K$10*((dispersió!$K$66+P66)^dispersió!$L$10)+dispersió!$C$24*dispersió!$D$66)*dispersió!$I$12),0) -> 1.382260038 | R66: =IFERROR(dispersió!$I$10*((dispersió!$J$66+'Càlculs interns'!P66)^dispersió!$J$10)*(2*LN('Càlculs interns'!Q66/dispersió!$O$66))^(1/2),0) -> 14.49292022 | S66: -14.49292022
A67: 1467.164075 | B67: =IFERROR((letalitat!$P$8*1000)/((3.14159*dispersió!$I$10*((dispersió!$J$69+A67)^dispersió!$J$10)*dispersió!$K$10*((dispersió!$K$69+A67)^dispersió!$L$10)+dispersió!$C$24*dispersió!$D$69)*dispersió!$I$12),0) -> 0.3269406367 | C67: =IFERROR(dispersió!$I$10*((dispersió!$J$69+'Càlculs interns'!A67)^dispersió!$J$10)*(2*LN('Càlculs interns'!B67/dispersió!$O$69))^(1/2),0) -> 32.54063331 | D67: -32.54063331 | F67: 1156.580482 | G67: =IFERROR((letalitat!$P$8*1000)/((3.14159*dispersió!$I$10*((dispersió!$J$68+F67)^dispersió!$J$10)*dispersió!$K$10*((dispersió!$K$68+F67)^dispersió!$L$10)+dispersió!$C$24*dispersió!$D$68)*dispersió!$I$12),0) -> 0.4574633309 | H67: =IFERROR(dispersió!$I$10*((dispersió!$J$68+'Càlculs interns'!F67)^dispersió!$J$10)*(2*LN('Càlculs interns'!G67/dispersió!$O$68))^(1/2),0) -> 26.49037069 | I67: -26.49037069 | K67: 871.0334471 | L67: =IFERROR((letalitat!$P$8*1000)/((3.14159*dispersió!$I$10*((dispersió!$J$67+K67)^dispersió!$J$10)*dispersió!$K$10*((dispersió!$K$67+K67)^dispersió!$L$10)+dispersió!$C$24*dispersió!$D$67)*dispersió!$I$12),0) -> 0.6741340725 | M67: =IFERROR(dispersió!$I$10*((dispersió!$J$67+'Càlculs interns'!K67)^dispersió!$J$10)*(2*LN('Càlculs interns'!L67/dispersió!$O$67))^(1/2),0) -> 20.77208298 | N67: -20.77208298 | P67: 514.6640149 | Q67: =IFERROR((letalitat!$P$8*1000)/((3.14159*dispersió!$I$10*((dispersió!$J$66+P67)^dispersió!$J$10)*dispersió!$K$10*((dispersió!$K$66+P67)^dispersió!$L$10)+dispersió!$C$24*dispersió!$D$66)*dispersió!$I$12),0) -> 1.318855503 | R67: =IFERROR(dispersió!$I$10*((dispersió!$J$66+'Càlculs interns'!P67)^dispersió!$J$10)*(2*LN('Càlculs interns'!Q67/dispersió!$O$66))^(1/2),0) -> 13.1878512 | S67: -13.1878512
A68: 1523.593463 | B68: =IFERROR((letalitat!$P$8*1000)/((3.14159*dispersió!$I$10*((dispersió!$J$69+A68)^dispersió!$J$10)*dispersió!$K$10*((dispersió!$K$69+A68)^dispersió!$L$10)+dispersió!$C$24*dispersió!$D$69)*dispersió!$I$12),0) -> 0.3097363235 | C68: =IFERROR(dispersió!$I$10*((dispersió!$J$69+'Càlculs interns'!A68)^dispersió!$J$10)*(2*LN('Càlculs interns'!B68/dispersió!$O$69))^(1/2),0) -> 28.81941581 | D68: -28.81941581 | F68: 1201.064347 | G68: =IFERROR((letalitat!$P$8*1000)/((3.14159*dispersió!$I$10*((dispersió!$J$68+F68)^dispersió!$J$10)*dispersió!$K$10*((dispersió!$K$68+F68)^dispersió!$L$10)+dispersió!$C$24*dispersió!$D$68)*dispersió!$I$12),0) -> 0.433976032 | H68: =IFERROR(dispersió!$I$10*((dispersió!$J$68+'Càlculs interns'!F68)^dispersió!$J$10)*(2*LN('Càlculs interns'!G68/dispersió!$O$68))^(1/2),0) -> 23.44688904 | I68: -23.44688904 | K68: 904.5347335 | L68: =IFERROR((letalitat!$P$8*1000)/((3.14159*dispersió!$I$10*((dispersió!$J$67+K68)^dispersió!$J$10)*dispersió!$K$10*((dispersió!$K$67+K68)^dispersió!$L$10)+dispersió!$C$24*dispersió!$D$67)*dispersió!$I$12),0) -> 0.640807362 | M68: =IFERROR(dispersió!$I$10*((dispersió!$J$67+'Càlculs interns'!K68)^dispersió!$J$10)*(2*LN('Càlculs interns'!L68/dispersió!$O$67))^(1/2),0) -> 18.3674007 | N68: -18.3674007 | P68: 534.4587847 | Q68: =IFERROR((letalitat!$P$8*1000)/((3.14159*dispersió!$I$10*((dispersió!$J$66+P68)^dispersió!$J$10)*dispersió!$K$10*((dispersió!$K$66+P68)^dispersió!$L$10)+dispersió!$C$24*dispersió!$D$66)*dispersió!$I$12),0) -> 1.260031409 | R68: =IFERROR(dispersió!$I$10*((dispersió!$J$66+'Càlculs interns'!P68)^dispersió!$J$10)*(2*LN('Càlculs interns'!Q68/dispersió!$O$66))^(1/2),0) -> 11.58599603 | S68: -11.58599603
A69: 1580.02285 | B69: =IFERROR((letalitat!$P$8*1000)/((3.14159*dispersió!$I$10*((dispersió!$J$69+A69)^dispersió!$J$10)*dispersió!$K$10*((dispersió!$K$69+A69)^dispersió!$L$10)+dispersió!$C$24*dispersió!$D$69)*dispersió!$I$12),0) -> 0.2939621825 | C69: =IFERROR(dispersió!$I$10*((dispersió!$J$69+'Càlculs interns'!A69)^dispersió!$J$10)*(2*LN('Càlculs interns'!B69/dispersió!$O$69))^(1/2),0) -> 24.03759396 | D69: -24.03759396 | F69: 1245.548212 | G69: =IFERROR((letalitat!$P$8*1000)/((3.14159*dispersió!$I$10*((dispersió!$J$68+F69)^dispersió!$J$10)*dispersió!$K$10*((dispersió!$K$68+F69)^dispersió!$L$10)+dispersió!$C$24*dispersió!$D$68)*dispersió!$I$12),0) -> 0.4123935898 | H69: =IFERROR(dispersió!$I$10*((dispersió!$J$68+'Càlculs interns'!F69)^dispersió!$J$10)*(2*LN('Càlculs interns'!G69/dispersió!$O$68))^(1/2),0) -> 19.54303938 | I69: -19.54303938 | K69: 938.03602 | L69: =IFERROR((letalitat!$P$8*1000)/((3.14159*dispersió!$I$10*((dispersió!$J$67+K69)^dispersió!$J$10)*dispersió!$K$10*((dispersió!$K$67+K69)^dispersió!$L$10)+dispersió!$C$24*dispersió!$D$67)*dispersió!$I$12),0) -> 0.6100824429 | M69: =IFERROR(dispersió!$I$10*((dispersió!$J$67+'Càlculs interns'!K69)^dispersió!$J$10)*(2*LN('Càlculs interns'!L69/dispersió!$O$67))^(1/2),0) -> 15.29043214 | N69: -15.29043214 | P69: 554.2535545 | Q69: =IFERROR((letalitat!$P$8*1000)/((3.14159*dispersió!$I$10*((dispersió!$J$66+P69)^dispersió!$J$10)*dispersió!$K$10*((dispersió!$K$66+P69)^dispersió!$L$10)+dispersió!$C$24*dispersió!$D$66)*dispersió!$I$12),0) -> 1.20534437 | R69: =IFERROR(dispersió!$I$10*((dispersió!$J$66+'Càlculs interns'!P69)^dispersió!$J$10)*(2*LN('Càlculs interns'!Q69/dispersió!$O$66))^(1/2),0) -> 9.536784336 | S69: -9.536784336
A70: 1636.452238 | B70: =IFERROR((letalitat!$P$8*1000)/((3.14159*dispersió!$I$10*((dispersió!$J$69+A70)^dispersió!$J$10)*dispersió!$K$10*((dispersió!$K$69+A70)^dispersió!$L$10)+dispersió!$C$24*dispersió!$D$69)*dispersió!$I$12),0) -> 0.2794585595 | C70: =IFERROR(dispersió!$I$10*((dispersió!$J$69+'Càlculs interns'!A70)^dispersió!$J$10)*(2*LN('Càlculs interns'!B70/dispersió!$O$69))^(1/2),0) -> 17.32970548 | D70: -17.32970548 | F70: 1290.032076 | G70: =IFERROR((letalitat!$P$8*1000)/((3.14159*dispersió!$I$10*((dispersió!$J$68+F70)^dispersió!$J$10)*dispersió!$K$10*((dispersió!$K$68+F70)^dispersió!$L$10)+dispersió!$C$24*dispersió!$D$68)*dispersió!$I$12),0) -> 0.392508538 | H70: =IFERROR(dispersió!$I$10*((dispersió!$J$68+'Càlculs interns'!F70)^dispersió!$J$10)*(2*LN('Càlculs interns'!G70/dispersió!$O$68))^(1/2),0) -> 14.07341164 | I70: -14.07341164 | K70: 971.5373064 | L70: =IFERROR((letalitat!$P$8*1000)/((3.14159*dispersió!$I$10*((dispersió!$J$67+K70)^dispersió!$J$10)*dispersió!$K$10*((dispersió!$K$67+K70)^dispersió!$L$10)+dispersió!$C$24*dispersió!$D$67)*dispersió!$I$12),0) -> 0.5816865647 | M70: =IFERROR(dispersió!$I$10*((dispersió!$J$67+'Càlculs interns'!K70)^dispersió!$J$10)*(2*LN('Càlculs interns'!L70/dispersió!$O$67))^(1/2),0) -> 10.9850708 | N70: -10.9850708 | P70: 574.0483243 | Q70: =IFERROR((letalitat!$P$8*1000)/((3.14159*dispersió!$I$10*((dispersió!$J$66+P70)^dispersió!$J$10)*dispersió!$K$10*((dispersió!$K$66+P70)^dispersió!$L$10)+dispersió!$C$24*dispersió!$D$66)*dispersió!$I$12),0) -> 1.154404096 | R70: =IFERROR(dispersió!$I$10*((dispersió!$J$66+'Càlculs interns'!P70)^dispersió!$J$10)*(2*LN('Càlculs interns'!Q70/dispersió!$O$66))^(1/2),0) -> 6.635055254 | S70: -6.635055254
A71: =dispersió!L69 -> 1692.881625 | B71: =IFERROR((letalitat!$P$8*1000)/((3.14159*dispersió!$I$10*((dispersió!$J$69+A71)^dispersió!$J$10)*dispersió!$K$10*((dispersió!$K$69+A71)^dispersió!$L$10)+dispersió!$C$24*dispersió!$D$69)*dispersió!$I$12),0) -> 0.2660878866 | C71: =IFERROR(dispersió!$I$10*((dispersió!$J$69+'Càlculs interns'!A71)^dispersió!$J$10)*(2*LN('Càlculs interns'!B71/dispersió!$O$69))^(1/2),0) -> 0 | D71: 0 | F71: =dispersió!L68 -> 1334.515941 | G71: =IFERROR((letalitat!$P$8*1000)/((3.14159*dispersió!$I$10*((dispersió!$J$68+F71)^dispersió!$J$10)*dispersió!$K$10*((dispersió!$K$68+F71)^dispersió!$L$10)+dispersió!$C$24*dispersió!$D$68)*dispersió!$I$12),0) -> 0.3741414142 | H71: =IFERROR(dispersió!$I$10*((dispersió!$J$68+'Càlculs interns'!F71)^dispersió!$J$10)*(2*LN('Càlculs interns'!G71/dispersió!$O$68))^(1/2),0) -> 0 | I71: 0 | K71: =dispersió!L67 -> 1005.038593 | L71: =IFERROR((letalitat!$P$8*1000)/((3.14159*dispersió!$I$10*((dispersió!$J$67+K71)^dispersió!$J$10)*dispersió!$K$10*((dispersió!$K$67+K71)^dispersió!$L$10)+dispersió!$C$24*dispersió!$D$67)*dispersió!$I$12),0) -> 0.5553824132 | M71: =IFERROR(dispersió!$I$10*((dispersió!$J$67+'Càlculs interns'!K71)^dispersió!$J$10)*(2*LN('Càlculs interns'!L71/dispersió!$O$67))^(1/2),0) -> 0 | N71: 0 | P71: =dispersió!L66 -> 593.8430942 | Q71: =IFERROR((letalitat!$P$8*1000)/((3.14159*dispersió!$I$10*((dispersió!$J$66+P71)^dispersió!$J$10)*dispersió!$K$10*((dispersió!$K$66+P71)^dispersió!$L$10)+dispersió!$C$24*dispersió!$D$66)*dispersió!$I$12),0) -> 1.106865892 | R71: =IFERROR(dispersió!$I$10*((dispersió!$J$66+'Càlculs interns'!P71)^dispersió!$J$10)*(2*LN('Càlculs interns'!Q71/dispersió!$O$66))^(1/2),0) -> 0 | S71: 0
A74: Area 20m2
A75: Est. D
A76: LC1 | C76: LC1+ | D76: LC1- | F76: LC10 | H76: LC10+ | I76: LC10- | K76: LC50 | M76: LC50+ | N76: LC50- | P76: LC99 | R76: LC99+ | S76: LC99-
A77: X | B77: C(x) | C77: y+ | D77: y- | F77: X | G77: C(x) | H77: y+ | I77: y- | K77: X | L77: C(x) | M77: y+ | N77: y- | P77: X | Q77: C(x) | R77: y+ | S77: y-
A78: 0 | B78: =IFERROR((letalitat!$P$9*1000)/((3.14159*dispersió!$C$10*((dispersió!$E$38+A78)^dispersió!$D$10)*dispersió!$E$10*((dispersió!$F$38+A78)^dispersió!$F$10)+dispersió!$C$24*dispersió!$D$38)*dispersió!$C$12),0) -> 1.150671164 | C78: =IFERROR(dispersió!$C$10*((dispersió!$E$38+'Càlculs interns'!A78)^dispersió!$D$10)*(2*LN('Càlculs interns'!B78/dispersió!$O$38))^(1/2),0) -> 1.779694239 | D78: =-C78 -> -1.779694239 | F78: 0 | G78: =IFERROR((letalitat!$P$9*1000)/((3.14159*dispersió!$C$10*((dispersió!$E$38+F78)^dispersió!$D$10)*dispersió!$E$10*((dispersió!$F$38+F78)^dispersió!$F$10)+dispersió!$C$24*dispersió!$D$38)*dispersió!$C$12),0) -> 1.150671164 | H78: =IFERROR(dispersió!$C$10*((dispersió!$E$38+'Càlculs interns'!F78)^dispersió!$D$10)*(2*LN('Càlculs interns'!G78/dispersió!$O$45))^(1/2),0) -> 1.559997809 | I78: =-H78 -> -1.559997809 | K78: 0 | L78: =IFERROR((letalitat!$P$9*1000)/((3.14159*dispersió!$C$10*((dispersió!$E$38+K78)^dispersió!$D$10)*dispersió!$E$10*((dispersió!$F$38+K78)^dispersió!$F$10)+dispersió!$C$24*dispersió!$D$38)*dispersió!$C$12),0) -> 1.150671164 | M78: =IFERROR(dispersió!$C$10*((dispersió!$E$38+'Càlculs interns'!K78)^dispersió!$D$10)*(2*LN('Càlculs interns'!L78/dispersió!$O$52))^(1/2),0) -> 1.254780672 | N78: =-M78 -> -1.254780672 | P78: 0 | Q78: =IFERROR((letalitat!$P$9*1000)/((3.14159*dispersió!$C$10*((dispersió!$E$38+P78)^dispersió!$D$10)*dispersió!$E$10*((dispersió!$F$38+P78)^dispersió!$F$10)+dispersió!$C$24*dispersió!$D$38)*dispersió!$C$12),0) -> 1.150671164 | R78: =IFERROR(dispersió!$C$10*((dispersió!$E$38+'Càlculs interns'!P78)^dispersió!$D$10)*(2*LN('Càlculs interns'!Q78/dispersió!$O$59))^(1/2),0) -> 0.2768531181 | S78: =-R78 -> -0.2768531181
A79: =A108/30 -> 1.090189241 | B79: =IFERROR((letalitat!$P$9*1000)/((3.14159*dispersió!$C$10*((dispersió!$E$38+A79)^dispersió!$D$10)*dispersió!$E$10*((dispersió!$F$38+A79)^dispersió!$F$10)+dispersió!$C$24*dispersió!$D$38)*dispersió!$C$12),0) -> 1.06660884 | C79: =IFERROR(dispersió!$C$10*((dispersió!$E$38+'Càlculs interns'!A79)^dispersió!$D$10)*(2*LN('Càlculs interns'!B79/dispersió!$O$38))^(1/2),0) -> 1.901030078 | D79: -1.901030078 | F79: =F108/30 -> 0.7487901375 | G79: =IFERROR((letalitat!$P$9*1000)/((3.14159*dispersió!$C$10*((dispersió!$E$38+F79)^dispersió!$D$10)*dispersió!$E$10*((dispersió!$F$38+F79)^dispersió!$F$10)+dispersió!$C$24*dispersió!$D$38)*dispersió!$C$12),0) -> 1.091849381 | H79: =IFERROR(dispersió!$C$10*((dispersió!$E$38+'Càlculs interns'!F79)^dispersió!$D$10)*(2*LN('Càlculs interns'!G79/dispersió!$O$45))^(1/2),0) -> 1.62478797 | I79: =-H79 -> -1.62478797 | K79: =K108/30 -> 0.426416098 | L79: =IFERROR((letalitat!$P$9*1000)/((3.14159*dispersió!$C$10*((dispersió!$E$38+K79)^dispersió!$D$10)*dispersió!$E$10*((dispersió!$F$38+K79)^dispersió!$F$10)+dispersió!$C$24*dispersió!$D$38)*dispersió!$C$12),0) -> 1.116570642 | M79: =IFERROR(dispersió!$C$10*((dispersió!$E$38+'Càlculs interns'!K79)^dispersió!$D$10)*(2*LN('Càlculs interns'!L79/dispersió!$O$52))^(1/2),0) -> 1.275313439 | N79: =-M79 -> -1.275313439 | P79: =P108/30 -> 0.01676716245 | Q79: =IFERROR((letalitat!$P$9*1000)/((3.14159*dispersió!$C$10*((dispersió!$E$38+P79)^dispersió!$D$10)*dispersió!$E$10*((dispersió!$F$38+P79)^dispersió!$F$10)+dispersió!$C$24*dispersió!$D$38)*dispersió!$C$12),0) -> 1.149298987 | R79: =IFERROR(dispersió!$C$10*((dispersió!$E$38+'Càlculs interns'!P79)^dispersió!$D$10)*(2*LN('Càlculs interns'!Q79/dispersió!$O$59))^(1/2),0) -> 0.272559195 | S79: =-R79 -> -0.272559195
A80: =A$79+A79 -> 2.180378481 | B80: =IFERROR((letalitat!$P$9*1000)/((3.14159*dispersió!$C$10*((dispersió!$E$38+A80)^dispersió!$D$10)*dispersió!$E$10*((dispersió!$F$38+A80)^dispersió!$F$10)+dispersió!$C$24*dispersió!$D$38)*dispersió!$C$12),0) -> 0.9919376664 | C80: =IFERROR(dispersió!$C$10*((dispersió!$E$38+'Càlculs interns'!A80)^dispersió!$D$10)*(2*LN('Càlculs interns'!B80/dispersió!$O$38))^(1/2),0) -> 2.012765644 | D80: -2.012765644 | F80: =F$79+F79 -> 1.497580275 | G80: =IFERROR((letalitat!$P$9*1000)/((3.14159*dispersió!$C$10*((dispersió!$E$38+F80)^dispersió!$D$10)*dispersió!$E$10*((dispersió!$F$38+F80)^dispersió!$F$10)+dispersió!$C$24*dispersió!$D$38)*dispersió!$C$12),0) -> 1.037687393 | H80: =IFERROR(dispersió!$C$10*((dispersió!$E$38+'Càlculs interns'!F80)^dispersió!$D$10)*(2*LN('Càlculs interns'!G80/dispersió!$O$45))^(1/2),0) -> 1.684300015 | I80: -1.684300015 | K80: =K$79+K79 -> 0.852832196 | L80: =IFERROR((letalitat!$P$9*1000)/((3.14159*dispersió!$C$10*((dispersió!$E$38+K80)^dispersió!$D$10)*dispersió!$E$10*((dispersió!$F$38+K80)^dispersió!$F$10)+dispersió!$C$24*dispersió!$D$38)*dispersió!$C$12),0) -> 1.0840571 | M80: =IFERROR(dispersió!$C$10*((dispersió!$E$38+'Càlculs interns'!K80)^dispersió!$D$10)*(2*LN('Càlculs interns'!L80/dispersió!$O$52))^(1/2),0) -> 1.29357709 | N80: -1.29357709 | P80: =P$79+P79 -> 0.0335343249 | Q80: =IFERROR((letalitat!$P$9*1000)/((3.14159*dispersió!$C$10*((dispersió!$E$38+P80)^dispersió!$D$10)*dispersió!$E$10*((dispersió!$F$38+P80)^dispersió!$F$10)+dispersió!$C$24*dispersió!$D$38)*dispersió!$C$12),0) -> 1.147929427 | R80: =IFERROR(dispersió!$C$10*((dispersió!$E$38+'Càlculs interns'!P80)^dispersió!$D$10)*(2*LN('Càlculs interns'!Q80/dispersió!$O$59))^(1/2),0) -> 0.2681716594 | S80: =-R80 -> -0.2681716594
A81: =A$79+A80 -> 3.270567722 | B81: =IFERROR((letalitat!$P$9*1000)/((3.14159*dispersió!$C$10*((dispersió!$E$38+A81)^dispersió!$D$10)*dispersió!$E$10*((dispersió!$F$38+A81)^dispersió!$F$10)+dispersió!$C$24*dispersió!$D$38)*dispersió!$C$12),0) -> 0.9252607799 | C81: =IFERROR(dispersió!$C$10*((dispersió!$E$38+'Càlculs interns'!A81)^dispersió!$D$10)*(2*LN('Càlculs interns'!B81/dispersió!$O$38))^(1/2),0) -> 2.115243506 | D81: -2.115243506 | F81: =F$79+F80 -> 2.246370412 | G81: =IFERROR((letalitat!$P$9*1000)/((3.14159*dispersió!$C$10*((dispersió!$E$38+F81)^dispersió!$D$10)*dispersió!$E$10*((dispersió!$F$38+F81)^dispersió!$F$10)+dispersió!$C$24*dispersió!$D$38)*dispersió!$C$12),0) -> 0.9876868007 | H81: =IFERROR(dispersió!$C$10*((dispersió!$E$38+'Càlculs interns'!F81)^dispersió!$D$10)*(2*LN('Càlculs interns'!G81/dispersió!$O$45))^(1/2),0) -> 1.738608634 | I81: -1.738608634 | K81: =K$79+K80 -> 1.279248294 | L81: =IFERROR((letalitat!$P$9*1000)/((3.14159*dispersió!$C$10*((dispersió!$E$38+K81)^dispersió!$D$10)*dispersió!$E$10*((dispersió!$F$38+K81)^dispersió!$F$10)+dispersió!$C$24*dispersió!$D$38)*dispersió!$C$12),0) -> 1.053029365 | M81: =IFERROR(dispersió!$C$10*((dispersió!$E$38+'Càlculs interns'!K81)^dispersió!$D$10)*(2*LN('Càlculs interns'!L81/dispersió!$O$52))^(1/2),0) -> 1.309552638 | N81: -1.309552638 | P81: =P$79+P80 -> 0.05030148735 | Q81: =IFERROR((letalitat!$P$9*1000)/((3.14159*dispersió!$C$10*((dispersió!$E$38+P81)^dispersió!$D$10)*dispersió!$E$10*((dispersió!$F$38+P81)^dispersió!$F$10)+dispersió!$C$24*dispersió!$D$38)*dispersió!$C$12),0) -> 1.146562475 | R81: =IFERROR(dispersió!$C$10*((dispersió!$E$38+'Càlculs interns'!P81)^dispersió!$D$10)*(2*LN('Càlculs interns'!Q81/dispersió!$O$59))^(1/2),0) -> 0.2636858054 | S81: -0.2636858054
A82: 4.360756963 | B82: =IFERROR((letalitat!$P$9*1000)/((3.14159*dispersió!$C$10*((dispersió!$E$38+A82)^dispersió!$D$10)*dispersió!$E$10*((dispersió!$F$38+A82)^dispersió!$F$10)+dispersió!$C$24*dispersió!$D$38)*dispersió!$C$12),0) -> 0.8654401982 | C82: =IFERROR(dispersió!$C$10*((dispersió!$E$38+'Càlculs interns'!A82)^dispersió!$D$10)*(2*LN('Càlculs interns'!B82/dispersió!$O$38))^(1/2),0) -> 2.208734033 | D82: -2.208734033 | F82: 2.99516055 | G82: =IFERROR((letalitat!$P$9*1000)/((3.14159*dispersió!$C$10*((dispersió!$E$38+F82)^dispersió!$D$10)*dispersió!$E$10*((dispersió!$F$38+F82)^dispersió!$F$10)+dispersió!$C$24*dispersió!$D$38)*dispersió!$C$12),0) -> 0.9414166569 | H82: =IFERROR(dispersió!$C$10*((dispersió!$E$38+'Càlculs interns'!F82)^dispersió!$D$10)*(2*LN('Càlculs interns'!G82/dispersió!$O$45))^(1/2),0) -> 1.787765812 | I82: -1.787765812 | K82: 1.705664392 | L82: =IFERROR((letalitat!$P$9*1000)/((3.14159*dispersió!$C$10*((dispersió!$E$38+K82)^dispersió!$D$10)*dispersió!$E$10*((dispersió!$F$38+K82)^dispersió!$F$10)+dispersió!$C$24*dispersió!$D$38)*dispersió!$C$12),0) -> 1.023394565 | M82: =IFERROR(dispersió!$C$10*((dispersió!$E$38+'Càlculs interns'!K82)^dispersió!$D$10)*(2*LN('Càlculs interns'!L82/dispersió!$O$52))^(1/2),0) -> 1.323214997 | N82: =-M82 -> -1.323214997 | P82: 0.0670686498 | Q82: =IFERROR((letalitat!$P$9*1000)/((3.14159*dispersió!$C$10*((dispersió!$E$38+P82)^dispersió!$D$10)*dispersió!$E$10*((dispersió!$F$38+P82)^dispersió!$F$10)+dispersió!$C$24*dispersió!$D$38)*dispersió!$C$12),0) -> 1.145198126 | R82: =IFERROR(dispersió!$C$10*((dispersió!$E$38+'Càlculs interns'!P82)^dispersió!$D$10)*(2*LN('Càlculs interns'!Q82/dispersió!$O$59))^(1/2),0) -> 0.2590964928 | S82: -0.2590964928
A83: 5.450946204 | B83: =IFERROR((letalitat!$P$9*1000)/((3.14159*dispersió!$C$10*((dispersió!$E$38+A83)^dispersió!$D$10)*dispersió!$E$10*((dispersió!$F$38+A83)^dispersió!$F$10)+dispersió!$C$24*dispersió!$D$38)*dispersió!$C$12),0) -> 0.8115392681 | C83: =IFERROR(dispersió!$C$10*((dispersió!$E$38+'Càlculs interns'!A83)^dispersió!$D$10)*(2*LN('Càlculs interns'!B83/dispersió!$O$38))^(1/2),0) -> 2.293446416 | D83: -2.293446416 | F83: 3.743950687 | G83: =IFERROR((letalitat!$P$9*1000)/((3.14159*dispersió!$C$10*((dispersió!$E$38+F83)^dispersió!$D$10)*dispersió!$E$10*((dispersió!$F$38+F83)^dispersió!$F$10)+dispersió!$C$24*dispersió!$D$38)*dispersió!$C$12),0) -> 0.8985023248 | H83: =IFERROR(dispersió!$C$10*((dispersió!$E$38+'Càlculs interns'!F83)^dispersió!$D$10)*(2*LN('Càlculs interns'!G83/dispersió!$O$45))^(1/2),0) -> 1.831802217 | I83: =-H83 -> -1.831802217 | K83: 2.13208049 | L83: =IFERROR((letalitat!$P$9*1000)/((3.14159*dispersió!$C$10*((dispersió!$E$38+K83)^dispersió!$D$10)*dispersió!$E$10*((dispersió!$F$38+K83)^dispersió!$F$10)+dispersió!$C$24*dispersió!$D$38)*dispersió!$C$12),0) -> 0.9950672776 | M83: =IFERROR(dispersió!$C$10*((dispersió!$E$38+'Càlculs interns'!K83)^dispersió!$D$10)*(2*LN('Càlculs interns'!L83/dispersió!$O$52))^(1/2),0) -> 1.334532599 | N83: -1.334532599 | P83: 0.08383581225 | Q83: =IFERROR((letalitat!$P$9*1000)/((3.14159*dispersió!$C$10*((dispersió!$E$38+P83)^dispersió!$D$10)*dispersió!$E$10*((dispersió!$F$38+P83)^dispersió!$F$10)+dispersió!$C$24*dispersió!$D$38)*dispersió!$C$12),0) -> 1.143836372 | R83: =IFERROR(dispersió!$C$10*((dispersió!$E$38+'Càlculs interns'!P83)^dispersió!$D$10)*(2*LN('Càlculs interns'!Q83/dispersió!$O$59))^(1/2),0) -> 0.2543980883 | S83: -0.2543980883
A84: 6.541135444 | B84: =IFERROR((letalitat!$P$9*1000)/((3.14159*dispersió!$C$10*((dispersió!$E$38+A84)^dispersió!$D$10)*dispersió!$E$10*((dispersió!$F$38+A84)^dispersió!$F$10)+dispersió!$C$24*dispersió!$D$38)*dispersió!$C$12),0) -> 0.7627800799 | C84: =IFERROR(dispersió!$C$10*((dispersió!$E$38+'Càlculs interns'!A84)^dispersió!$D$10)*(2*LN('Càlculs interns'!B84/dispersió!$O$38))^(1/2),0) -> 2.369536255 | D84: -2.369536255 | F84: 4.492740825 | G84: =IFERROR((letalitat!$P$9*1000)/((3.14159*dispersió!$C$10*((dispersió!$E$38+F84)^dispersió!$D$10)*dispersió!$E$10*((dispersió!$F$38+F84)^dispersió!$F$10)+dispersió!$C$24*dispersió!$D$38)*dispersió!$C$12),0) -> 0.8586165316 | H84: =IFERROR(dispersió!$C$10*((dispersió!$E$38+'Càlculs interns'!F84)^dispersió!$D$10)*(2*LN('Càlculs interns'!G84/dispersió!$O$45))^(1/2),0) -> 1.87072798 | I84: -1.87072798 | K84: 2.558496588 | L84: =IFERROR((letalitat!$P$9*1000)/((3.14159*dispersió!$C$10*((dispersió!$E$38+K84)^dispersió!$D$10)*dispersió!$E$10*((dispersió!$F$38+K84)^dispersió!$F$10)+dispersió!$C$24*dispersió!$D$38)*dispersió!$C$12),0) -> 0.9679687932 | M84: =IFERROR(dispersió!$C$10*((dispersió!$E$38+'Càlculs interns'!K84)^dispersió!$D$10)*(2*LN('Càlculs interns'!L84/dispersió!$O$52))^(1/2),0) -> 1.343466891 | N84: -1.343466891 | P84: 0.1006029747 | Q84: =IFERROR((letalitat!$P$9*1000)/((3.14159*dispersió!$C$10*((dispersió!$E$38+P84)^dispersió!$D$10)*dispersió!$E$10*((dispersió!$F$38+P84)^dispersió!$F$10)+dispersió!$C$24*dispersió!$D$38)*dispersió!$C$12),0) -> 1.142477207 | R84: =IFERROR(dispersió!$C$10*((dispersió!$E$38+'Càlculs interns'!P84)^dispersió!$D$10)*(2*LN('Càlculs interns'!Q84/dispersió!$O$59))^(1/2),0) -> 0.2495843962 | S84: -0.2495843962
A85: 7.631324685 | B85: =IFERROR((letalitat!$P$9*1000)/((3.14159*dispersió!$C$10*((dispersió!$E$38+A85)^dispersió!$D$10)*dispersió!$E$10*((dispersió!$F$38+A85)^dispersió!$F$10)+dispersió!$C$24*dispersió!$D$38)*dispersió!$C$12),0) -> 0.7185113829 | C85: =IFERROR(dispersió!$C$10*((dispersió!$E$38+'Càlculs interns'!A85)^dispersió!$D$10)*(2*LN('Càlculs interns'!B85/dispersió!$O$38))^(1/2),0) -> 2.437110678 | D85: -2.437110678 | F85: 5.241530962 | G85: =IFERROR((letalitat!$P$9*1000)/((3.14159*dispersió!$C$10*((dispersió!$E$38+F85)^dispersió!$D$10)*dispersió!$E$10*((dispersió!$F$38+F85)^dispersió!$F$10)+dispersió!$C$24*dispersió!$D$38)*dispersió!$C$12),0) -> 0.8214721091 | H85: =IFERROR(dispersió!$C$10*((dispersió!$E$38+'Càlculs interns'!F85)^dispersió!$D$10)*(2*LN('Càlculs interns'!G85/dispersió!$O$45))^(1/2),0) -> 1.904532916 | I85: -1.904532916 | K85: 2.984912686 | L85: =IFERROR((letalitat!$P$9*1000)/((3.14159*dispersió!$C$10*((dispersió!$E$38+K85)^dispersió!$D$10)*dispersió!$E$10*((dispersió!$F$38+K85)^dispersió!$F$10)+dispersió!$C$24*dispersió!$D$38)*dispersió!$C$12),0) -> 0.9420264588 | M85: =IFERROR(dispersió!$C$10*((dispersió!$E$38+'Càlculs interns'!K85)^dispersió!$D$10)*(2*LN('Càlculs interns'!L85/dispersió!$O$52))^(1/2),0) -> 1.349971695 | N85: -1.349971695 | P85: 0.1173701372 | Q85: =IFERROR((letalitat!$P$9*1000)/((3.14159*dispersió!$C$10*((dispersió!$E$38+P85)^dispersió!$D$10)*dispersió!$E$10*((dispersió!$F$38+P85)^dispersió!$F$10)+dispersió!$C$24*dispersió!$D$38)*dispersió!$C$12),0) -> 1.141120623 | R85: =IFERROR(dispersió!$C$10*((dispersió!$E$38+'Càlculs interns'!P85)^dispersió!$D$10)*(2*LN('Càlculs interns'!Q85/dispersió!$O$59))^(1/2),0) -> 0.2446485761 | S85: -0.2446485761
A86: 8.721513926 | B86: =IFERROR((letalitat!$P$9*1000)/((3.14159*dispersió!$C$10*((dispersió!$E$38+A86)^dispersió!$D$10)*dispersió!$E$10*((dispersió!$F$38+A86)^dispersió!$F$10)+dispersió!$C$24*dispersió!$D$38)*dispersió!$C$12),0) -> 0.6781840394 | C86: =IFERROR(dispersió!$C$10*((dispersió!$E$38+'Càlculs interns'!A86)^dispersió!$D$10)*(2*LN('Càlculs interns'!B86/dispersió!$O$38))^(1/2),0) -> 2.496231554 | D86: -2.496231554 | F86: 5.9903211 | G86: =IFERROR((letalitat!$P$9*1000)/((3.14159*dispersió!$C$10*((dispersió!$E$38+F86)^dispersió!$D$10)*dispersió!$E$10*((dispersió!$F$38+F86)^dispersió!$F$10)+dispersió!$C$24*dispersió!$D$38)*dispersió!$C$12),0) -> 0.7868160506 | H86: =IFERROR(dispersió!$C$10*((dispersió!$E$38+'Càlculs interns'!F86)^dispersió!$D$10)*(2*LN('Càlculs interns'!G86/dispersió!$O$45))^(1/2),0) -> 1.933186235 | I86: -1.933186235 | K86: 3.411328784 | L86: =IFERROR((letalitat!$P$9*1000)/((3.14159*dispersió!$C$10*((dispersió!$E$38+K86)^dispersió!$D$10)*dispersió!$E$10*((dispersió!$F$38+K86)^dispersió!$F$10)+dispersió!$C$24*dispersió!$D$38)*dispersió!$C$12),0) -> 0.9171731041 | M86: =IFERROR(dispersió!$C$10*((dispersió!$E$38+'Càlculs interns'!K86)^dispersió!$D$10)*(2*LN('Càlculs interns'!L86/dispersió!$O$52))^(1/2),0) -> 1.353992403 | N86: -1.353992403 | P86: 0.1341372996 | Q86: =IFERROR((letalitat!$P$9*1000)/((3.14159*dispersió!$C$10*((dispersió!$E$38+P86)^dispersió!$D$10)*dispersió!$E$10*((dispersió!$F$38+P86)^dispersió!$F$10)+dispersió!$C$24*dispersió!$D$38)*dispersió!$C$12),0) -> 1.139766613 | R86: =IFERROR(dispersió!$C$10*((dispersió!$E$38+'Càlculs interns'!P86)^dispersió!$D$10)*(2*LN('Càlculs interns'!Q86/dispersió!$O$59))^(1/2),0) -> 0.2395830438 | S86: -0.2395830438
A87: 9.811703166 | B87: =IFERROR((letalitat!$P$9*1000)/((3.14159*dispersió!$C$10*((dispersió!$E$38+A87)^dispersió!$D$10)*dispersió!$E$10*((dispersió!$F$38+A87)^dispersió!$F$10)+dispersió!$C$24*dispersió!$D$38)*dispersió!$C$12),0) -> 0.6413319955 | C87: =IFERROR(dispersió!$C$10*((dispersió!$E$38+'Càlculs interns'!A87)^dispersió!$D$10)*(2*LN('Càlculs interns'!B87/dispersió!$O$38))^(1/2),0) -> 2.546917146 | D87: -2.546917146 | F87: 6.739111237 | G87: =IFERROR((letalitat!$P$9*1000)/((3.14159*dispersió!$C$10*((dispersió!$E$38+F87)^dispersió!$D$10)*dispersió!$E$10*((dispersió!$F$38+F87)^dispersió!$F$10)+dispersió!$C$24*dispersió!$D$38)*dispersió!$C$12),0) -> 0.7544246082 | H87: =IFERROR(dispersió!$C$10*((dispersió!$E$38+'Càlculs interns'!F87)^dispersió!$D$10)*(2*LN('Càlculs interns'!G87/dispersió!$O$45))^(1/2),0) -> 1.956635738 | I87: -1.956635738 | K87: 3.837744882 | L87: =IFERROR((letalitat!$P$9*1000)/((3.14159*dispersió!$C$10*((dispersió!$E$38+K87)^dispersió!$D$10)*dispersió!$E$10*((dispersió!$F$38+K87)^dispersió!$F$10)+dispersió!$C$24*dispersió!$D$38)*dispersió!$C$12),0) -> 0.893346532 | M87: =IFERROR(dispersió!$C$10*((dispersió!$E$38+'Càlculs interns'!K87)^dispersió!$D$10)*(2*LN('Càlculs interns'!L87/dispersió!$O$52))^(1/2),0) -> 1.355464972 | N87: -1.355464972 | P87: 0.1509044621 | Q87: =IFERROR((letalitat!$P$9*1000)/((3.14159*dispersió!$C$10*((dispersió!$E$38+P87)^dispersió!$D$10)*dispersió!$E$10*((dispersió!$F$38+P87)^dispersió!$F$10)+dispersió!$C$24*dispersió!$D$38)*dispersió!$C$12),0) -> 1.138415172 | R87: =IFERROR(dispersió!$C$10*((dispersió!$E$38+'Càlculs interns'!P87)^dispersió!$D$10)*(2*LN('Càlculs interns'!Q87/dispersió!$O$59))^(1/2),0) -> 0.2343793524 | S87: -0.2343793524
A88: 10.90189241 | B88: =IFERROR((letalitat!$P$9*1000)/((3.14159*dispersió!$C$10*((dispersió!$E$38+A88)^dispersió!$D$10)*dispersió!$E$10*((dispersió!$F$38+A88)^dispersió!$F$10)+dispersió!$C$24*dispersió!$D$38)*dispersió!$C$12),0) -> 0.607557358 | C88: =IFERROR(dispersió!$C$10*((dispersió!$E$38+'Càlculs interns'!A88)^dispersió!$D$10)*(2*LN('Càlculs interns'!B88/dispersió!$O$38))^(1/2),0) -> 2.589142376 | D88: -2.589142376 | F88: 7.487901375 | G88: =IFERROR((letalitat!$P$9*1000)/((3.14159*dispersió!$C$10*((dispersió!$E$38+F88)^dispersió!$D$10)*dispersió!$E$10*((dispersió!$F$38+F88)^dispersió!$F$10)+dispersió!$C$24*dispersió!$D$38)*dispersió!$C$12),0) -> 0.7240992172 | H88: =IFERROR(dispersió!$C$10*((dispersió!$E$38+'Càlculs interns'!F88)^dispersió!$D$10)*(2*LN('Càlculs interns'!G88/dispersió!$O$45))^(1/2),0) -> 1.974806455 | I88: -1.974806455 | K88: 4.26416098 | L88: =IFERROR((letalitat!$P$9*1000)/((3.14159*dispersió!$C$10*((dispersió!$E$38+K88)^dispersió!$D$10)*dispersió!$E$10*((dispersió!$F$38+K88)^dispersió!$F$10)+dispersió!$C$24*dispersió!$D$38)*dispersió!$C$12),0) -> 0.8704890657 | M88: =IFERROR(dispersió!$C$10*((dispersió!$E$38+'Càlculs interns'!K88)^dispersió!$D$10)*(2*LN('Càlculs interns'!L88/dispersió!$O$52))^(1/2),0) -> 1.354314674 | N88: -1.354314674 | P88: 0.1676716245 | Q88: =IFERROR((letalitat!$P$9*1000)/((3.14159*dispersió!$C$10*((dispersió!$E$38+P88)^dispersió!$D$10)*dispersió!$E$10*((dispersió!$F$38+P88)^dispersió!$F$10)+dispersió!$C$24*dispersió!$D$38)*dispersió!$C$12),0) -> 1.137066291 | R88: =IFERROR(dispersió!$C$10*((dispersió!$E$38+'Càlculs interns'!P88)^dispersió!$D$10)*(2*LN('Càlculs interns'!Q88/dispersió!$O$59))^(1/2),0) -> 0.2290280472 | S88: -0.2290280472
A89: 11.99208165 | B89: =IFERROR((letalitat!$P$9*1000)/((3.14159*dispersió!$C$10*((dispersió!$E$38+A89)^dispersió!$D$10)*dispersió!$E$10*((dispersió!$F$38+A89)^dispersió!$F$10)+dispersió!$C$24*dispersió!$D$38)*dispersió!$C$12),0) -> 0.5765185688 | C89: =IFERROR(dispersió!$C$10*((dispersió!$E$38+'Càlculs interns'!A89)^dispersió!$D$10)*(2*LN('Càlculs interns'!B89/dispersió!$O$38))^(1/2),0) -> 2.62283776 | D89: -2.62283776 | F89: 8.236691512 | G89: =IFERROR((letalitat!$P$9*1000)/((3.14159*dispersió!$C$10*((dispersió!$E$38+F89)^dispersió!$D$10)*dispersió!$E$10*((dispersió!$F$38+F89)^dispersió!$F$10)+dispersió!$C$24*dispersió!$D$38)*dispersió!$C$12),0) -> 0.695663088 | H89: =IFERROR(dispersió!$C$10*((dispersió!$E$38+'Càlculs interns'!F89)^dispersió!$D$10)*(2*LN('Càlculs interns'!G89/dispersió!$O$45))^(1/2),0) -> 1.987598661 | I89: -1.987598661 | K89: 4.690577078 | L89: =IFERROR((letalitat!$P$9*1000)/((3.14159*dispersió!$C$10*((dispersió!$E$38+K89)^dispersió!$D$10)*dispersió!$E$10*((dispersió!$F$38+K89)^dispersió!$F$10)+dispersió!$C$24*dispersió!$D$38)*dispersió!$C$12),0) -> 0.8485471462 | M89: =IFERROR(dispersió!$C$10*((dispersió!$E$38+'Càlculs interns'!K89)^dispersió!$D$10)*(2*LN('Càlculs interns'!L89/dispersió!$O$52))^(1/2),0) -> 1.350454538 | N89: -1.350454538 | P89: 0.184438787 | Q89: =IFERROR((letalitat!$P$9*1000)/((3.14159*dispersió!$C$10*((dispersió!$E$38+P89)^dispersió!$D$10)*dispersió!$E$10*((dispersió!$F$38+P89)^dispersió!$F$10)+dispersió!$C$24*dispersió!$D$38)*dispersió!$C$12),0) -> 1.135719965 | R89: =IFERROR(dispersió!$C$10*((dispersió!$E$38+'Càlculs interns'!P89)^dispersió!$D$10)*(2*LN('Càlculs interns'!Q89/dispersió!$O$59))^(1/2),0) -> 0.2235184878 | S89: -0.2235184878
A90: 13.08227089 | B90: =IFERROR((letalitat!$P$9*1000)/((3.14159*dispersió!$C$10*((dispersió!$E$38+A90)^dispersió!$D$10)*dispersió!$E$10*((dispersió!$F$38+A90)^dispersió!$F$10)+dispersió!$C$24*dispersió!$D$38)*dispersió!$C$12),0) -> 0.5479209486 | C90: =IFERROR(dispersió!$C$10*((dispersió!$E$38+'Càlculs interns'!A90)^dispersió!$D$10)*(2*LN('Càlculs interns'!B90/dispersió!$O$38))^(1/2),0) -> 2.647886954 | D90: -2.647886954 | F90: 8.98548165 | G90: =IFERROR((letalitat!$P$9*1000)/((3.14159*dispersió!$C$10*((dispersió!$E$38+F90)^dispersió!$D$10)*dispersió!$E$10*((dispersió!$F$38+F90)^dispersió!$F$10)+dispersió!$C$24*dispersió!$D$38)*dispersió!$C$12),0) -> 0.6689583386 | H90: =IFERROR(dispersió!$C$10*((dispersió!$E$38+'Càlculs interns'!F90)^dispersió!$D$10)*(2*LN('Càlculs interns'!G90/dispersió!$O$45))^(1/2),0) -> 1.994885149 | I90: -1.994885149 | K90: 5.116993176 | L90: =IFERROR((letalitat!$P$9*1000)/((3.14159*dispersió!$C$10*((dispersió!$E$38+K90)^dispersió!$D$10)*dispersió!$E$10*((dispersió!$F$38+K90)^dispersió!$F$10)+dispersió!$C$24*dispersió!$D$38)*dispersió!$C$12),0) -> 0.8274709722 | M90: =IFERROR(dispersió!$C$10*((dispersió!$E$38+'Càlculs interns'!K90)^dispersió!$D$10)*(2*LN('Càlculs interns'!L90/dispersió!$O$52))^(1/2),0) -> 1.343783403 | N90: -1.343783403 | P90: 0.2012059494 | Q90: =IFERROR((letalitat!$P$9*1000)/((3.14159*dispersió!$C$10*((dispersió!$E$38+P90)^dispersió!$D$10)*dispersió!$E$10*((dispersió!$F$38+P90)^dispersió!$F$10)+dispersió!$C$24*dispersió!$D$38)*dispersió!$C$12),0) -> 1.134376186 | R90: =IFERROR(dispersió!$C$10*((dispersió!$E$38+'Càlculs interns'!P90)^dispersió!$D$10)*(2*LN('Càlculs interns'!Q90/dispersió!$O$59))^(1/2),0) -> 0.2178386276 | S90: -0.2178386276
A91: 14.17246013 | B91: =IFERROR((letalitat!$P$9*1000)/((3.14159*dispersió!$C$10*((dispersió!$E$38+A91)^dispersió!$D$10)*dispersió!$E$10*((dispersió!$F$38+A91)^dispersió!$F$10)+dispersió!$C$24*dispersió!$D$38)*dispersió!$C$12),0) -> 0.5215090721 | C91: =IFERROR(dispersió!$C$10*((dispersió!$E$38+'Càlculs interns'!A91)^dispersió!$D$10)*(2*LN('Càlculs interns'!B91/dispersió!$O$38))^(1/2),0) -> 2.664122744 | D91: -2.664122744 | F91: 9.734271787 | G91: =IFERROR((letalitat!$P$9*1000)/((3.14159*dispersió!$C$10*((dispersió!$E$38+F91)^dispersió!$D$10)*dispersió!$E$10*((dispersió!$F$38+F91)^dispersió!$F$10)+dispersió!$C$24*dispersió!$D$38)*dispersió!$C$12),0) -> 0.6438435685 | H91: =IFERROR(dispersió!$C$10*((dispersió!$E$38+'Càlculs interns'!F91)^dispersió!$D$10)*(2*LN('Càlculs interns'!G91/dispersió!$O$45))^(1/2),0) -> 1.996507577 | I91: -1.996507577 | K91: 5.543409274 | L91: =IFERROR((letalitat!$P$9*1000)/((3.14159*dispersió!$C$10*((dispersió!$E$38+K91)^dispersió!$D$10)*dispersió!$E$10*((dispersió!$F$38+K91)^dispersió!$F$10)+dispersió!$C$24*dispersió!$D$38)*dispersió!$C$12),0) -> 0.8072141781 | M91: =IFERROR(dispersió!$C$10*((dispersió!$E$38+'Càlculs interns'!K91)^dispersió!$D$10)*(2*LN('Càlculs interns'!L91/dispersió!$O$52))^(1/2),0) -> 1.334183452 | N91: -1.334183452 | P91: 0.2179731119 | Q91: =IFERROR((letalitat!$P$9*1000)/((3.14159*dispersió!$C$10*((dispersió!$E$38+P91)^dispersió!$D$10)*dispersió!$E$10*((dispersió!$F$38+P91)^dispersió!$F$10)+dispersió!$C$24*dispersió!$D$38)*dispersió!$C$12),0) -> 1.133034948 | R91: =IFERROR(dispersió!$C$10*((dispersió!$E$38+'Càlculs interns'!P91)^dispersió!$D$10)*(2*LN('Càlculs interns'!Q91/dispersió!$O$59))^(1/2),0) -> 0.2119747367 | S91: -0.2119747367
A92: 15.26264937 | B92: =IFERROR((letalitat!$P$9*1000)/((3.14159*dispersió!$C$10*((dispersió!$E$38+A92)^dispersió!$D$10)*dispersió!$E$10*((dispersió!$F$38+A92)^dispersió!$F$10)+dispersió!$C$24*dispersió!$D$38)*dispersió!$C$12),0) -> 0.4970605722 | C92: =IFERROR(dispersió!$C$10*((dispersió!$E$38+'Càlculs interns'!A92)^dispersió!$D$10)*(2*LN('Càlculs interns'!B92/dispersió!$O$38))^(1/2),0) -> 2.671321174 | D92: -2.671321174 | F92: 10.48306192 | G92: =IFERROR((letalitat!$P$9*1000)/((3.14159*dispersió!$C$10*((dispersió!$E$38+F92)^dispersió!$D$10)*dispersió!$E$10*((dispersió!$F$38+F92)^dispersió!$F$10)+dispersió!$C$24*dispersió!$D$38)*dispersió!$C$12),0) -> 0.6201917969 | H92: =IFERROR(dispersió!$C$10*((dispersió!$E$38+'Càlculs interns'!F92)^dispersió!$D$10)*(2*LN('Càlculs interns'!G92/dispersió!$O$45))^(1/2),0) -> 1.992271644 | I92: -1.992271644 | K92: 5.969825372 | L92: =IFERROR((letalitat!$P$9*1000)/((3.14159*dispersió!$C$10*((dispersió!$E$38+K92)^dispersió!$D$10)*dispersió!$E$10*((dispersió!$F$38+K92)^dispersió!$F$10)+dispersió!$C$24*dispersió!$D$38)*dispersió!$C$12),0) -> 0.7877335441 | M92: =IFERROR(dispersió!$C$10*((dispersió!$E$38+'Càlculs interns'!K92)^dispersió!$D$10)*(2*LN('Càlculs interns'!L92/dispersió!$O$52))^(1/2),0) -> 1.321517079 | N92: -1.321517079 | P92: 0.2347402743 | Q92: =IFERROR((letalitat!$P$9*1000)/((3.14159*dispersió!$C$10*((dispersió!$E$38+P92)^dispersió!$D$10)*dispersió!$E$10*((dispersió!$F$38+P92)^dispersió!$F$10)+dispersió!$C$24*dispersió!$D$38)*dispersió!$C$12),0) -> 1.131696245 | R92: =IFERROR(dispersió!$C$10*((dispersió!$E$38+'Càlculs interns'!P92)^dispersió!$D$10)*(2*LN('Càlculs interns'!Q92/dispersió!$O$59))^(1/2),0) -> 0.205911052 | S92: -0.205911052
A93: 16.35283861 | B93: =IFERROR((letalitat!$P$9*1000)/((3.14159*dispersió!$C$10*((dispersió!$E$38+A93)^dispersió!$D$10)*dispersió!$E$10*((dispersió!$F$38+A93)^dispersió!$F$10)+dispersió!$C$24*dispersió!$D$38)*dispersió!$C$12),0) -> 0.4743810712 | C93: =IFERROR(dispersió!$C$10*((dispersió!$E$38+'Càlculs interns'!A93)^dispersió!$D$10)*(2*LN('Càlculs interns'!B93/dispersió!$O$38))^(1/2),0) -> 2.669193351 | D93: -2.669193351 | F93: 11.23185206 | G93: =IFERROR((letalitat!$P$9*1000)/((3.14159*dispersió!$C$10*((dispersió!$E$38+F93)^dispersió!$D$10)*dispersió!$E$10*((dispersió!$F$38+F93)^dispersió!$F$10)+dispersió!$C$24*dispersió!$D$38)*dispersió!$C$12),0) -> 0.5978887017 | H93: =IFERROR(dispersió!$C$10*((dispersió!$E$38+'Càlculs interns'!F93)^dispersió!$D$10)*(2*LN('Càlculs interns'!G93/dispersió!$O$45))^(1/2),0) -> 1.981940732 | I93: -1.981940732 | K93: 6.39624147 | L93: =IFERROR((letalitat!$P$9*1000)/((3.14159*dispersió!$C$10*((dispersió!$E$38+K93)^dispersió!$D$10)*dispersió!$E$10*((dispersió!$F$38+K93)^dispersió!$F$10)+dispersió!$C$24*dispersió!$D$38)*dispersió!$C$12),0) -> 0.7689887368 | M93: =IFERROR(dispersió!$C$10*((dispersió!$E$38+'Càlculs interns'!K93)^dispersió!$D$10)*(2*LN('Càlculs interns'!L93/dispersió!$O$52))^(1/2),0) -> 1.30562286 | N93: -1.30562286 | P93: 0.2515074368 | Q93: =IFERROR((letalitat!$P$9*1000)/((3.14159*dispersió!$C$10*((dispersió!$E$38+P93)^dispersió!$D$10)*dispersió!$E$10*((dispersió!$F$38+P93)^dispersió!$F$10)+dispersió!$C$24*dispersió!$D$38)*dispersió!$C$12),0) -> 1.130360068 | R93: =IFERROR(dispersió!$C$10*((dispersió!$E$38+'Càlculs interns'!P93)^dispersió!$D$10)*(2*LN('Càlculs interns'!Q93/dispersió!$O$59))^(1/2),0) -> 0.1996293254 | S93: -0.1996293254
A94: 17.44302785 | B94: =IFERROR((letalitat!$P$9*1000)/((3.14159*dispersió!$C$10*((dispersió!$E$38+A94)^dispersió!$D$10)*dispersió!$E$10*((dispersió!$F$38+A94)^dispersió!$F$10)+dispersió!$C$24*dispersió!$D$38)*dispersió!$C$12),0) -> 0.4533000072 | C94: =IFERROR(dispersió!$C$10*((dispersió!$E$38+'Càlculs interns'!A94)^dispersió!$D$10)*(2*LN('Càlculs interns'!B94/dispersió!$O$38))^(1/2),0) -> 2.657374185 | D94: -2.657374185 | F94: 11.9806422 | G94: =IFERROR((letalitat!$P$9*1000)/((3.14159*dispersió!$C$10*((dispersió!$E$38+F94)^dispersió!$D$10)*dispersió!$E$10*((dispersió!$F$38+F94)^dispersió!$F$10)+dispersió!$C$24*dispersió!$D$38)*dispersió!$C$12),0) -> 0.5768311094 | H94: =IFERROR(dispersió!$C$10*((dispersió!$E$38+'Càlculs interns'!F94)^dispersió!$D$10)*(2*LN('Càlculs interns'!G94/dispersió!$O$45))^(1/2),0) -> 1.965227456 | I94: -1.965227456 | K94: 6.822657568 | L94: =IFERROR((letalitat!$P$9*1000)/((3.14159*dispersió!$C$10*((dispersió!$E$38+K94)^dispersió!$D$10)*dispersió!$E$10*((dispersió!$F$38+K94)^dispersió!$F$10)+dispersió!$C$24*dispersió!$D$38)*dispersió!$C$12),0) -> 0.750942074 | M94: =IFERROR(dispersió!$C$10*((dispersió!$E$38+'Càlculs interns'!K94)^dispersió!$D$10)*(2*LN('Càlculs interns'!L94/dispersió!$O$52))^(1/2),0) -> 1.286310276 | N94: -1.286310276 | P94: 0.2682745992 | Q94: =IFERROR((letalitat!$P$9*1000)/((3.14159*dispersió!$C$10*((dispersió!$E$38+P94)^dispersió!$D$10)*dispersió!$E$10*((dispersió!$F$38+P94)^dispersió!$F$10)+dispersió!$C$24*dispersió!$D$38)*dispersió!$C$12),0) -> 1.129026412 | R94: =IFERROR(dispersió!$C$10*((dispersió!$E$38+'Càlculs interns'!P94)^dispersió!$D$10)*(2*LN('Càlculs interns'!Q94/dispersió!$O$59))^(1/2),0) -> 0.1931082355 | S94: -0.1931082355
A95: 18.53321709 | B95: =IFERROR((letalitat!$P$9*1000)/((3.14159*dispersió!$C$10*((dispersió!$E$38+A95)^dispersió!$D$10)*dispersió!$E$10*((dispersió!$F$38+A95)^dispersió!$F$10)+dispersió!$C$24*dispersió!$D$38)*dispersió!$C$12),0) -> 0.4336671771 | C95: =IFERROR(dispersió!$C$10*((dispersió!$E$38+'Càlculs interns'!A95)^dispersió!$D$10)*(2*LN('Càlculs interns'!B95/dispersió!$O$38))^(1/2),0) -> 2.635406975 | D95: -2.635406975 | F95: 12.72943234 | G95: =IFERROR((letalitat!$P$9*1000)/((3.14159*dispersió!$C$10*((dispersió!$E$38+F95)^dispersió!$D$10)*dispersió!$E$10*((dispersió!$F$38+F95)^dispersió!$F$10)+dispersió!$C$24*dispersió!$D$38)*dispersió!$C$12),0) -> 0.5569256943 | H95: =IFERROR(dispersió!$C$10*((dispersió!$E$38+'Càlculs interns'!F95)^dispersió!$D$10)*(2*LN('Càlculs interns'!G95/dispersió!$O$45))^(1/2),0) -> 1.941782344 | I95: -1.941782344 | K95: 7.249073666 | L95: =IFERROR((letalitat!$P$9*1000)/((3.14159*dispersió!$C$10*((dispersió!$E$38+K95)^dispersió!$D$10)*dispersió!$E$10*((dispersió!$F$38+K95)^dispersió!$F$10)+dispersió!$C$24*dispersió!$D$38)*dispersió!$C$12),0) -> 0.7335583131 | M95: =IFERROR(dispersió!$C$10*((dispersió!$E$38+'Càlculs interns'!K95)^dispersió!$D$10)*(2*LN('Càlculs interns'!L95/dispersió!$O$52))^(1/2),0) -> 1.263352734 | N95: -1.263352734 | P95: 0.2850417617 | Q95: =IFERROR((letalitat!$P$9*1000)/((3.14159*dispersió!$C$10*((dispersió!$E$38+P95)^dispersió!$D$10)*dispersió!$E$10*((dispersió!$F$38+P95)^dispersió!$F$10)+dispersió!$C$24*dispersió!$D$38)*dispersió!$C$12),0) -> 1.12769527 | R95: =IFERROR(dispersió!$C$10*((dispersió!$E$38+'Càlculs interns'!P95)^dispersió!$D$10)*(2*LN('Càlculs interns'!Q95/dispersió!$O$59))^(1/2),0) -> 0.1863226059 | S95: -0.1863226059
A96: 19.62340633 | B96: =IFERROR((letalitat!$P$9*1000)/((3.14159*dispersió!$C$10*((dispersió!$E$38+A96)^dispersió!$D$10)*dispersió!$E$10*((dispersió!$F$38+A96)^dispersió!$F$10)+dispersió!$C$24*dispersió!$D$38)*dispersió!$C$12),0) -> 0.4153498572 | C96: =IFERROR(dispersió!$C$10*((dispersió!$E$38+'Càlculs interns'!A96)^dispersió!$D$10)*(2*LN('Càlculs interns'!B96/dispersió!$O$38))^(1/2),0) -> 2.602722172 | D96: -2.602722172 | F96: 13.47822247 | G96: =IFERROR((letalitat!$P$9*1000)/((3.14159*dispersió!$C$10*((dispersió!$E$38+F96)^dispersió!$D$10)*dispersió!$E$10*((dispersió!$F$38+F96)^dispersió!$F$10)+dispersió!$C$24*dispersió!$D$38)*dispersió!$C$12),0) -> 0.5380878552 | H96: =IFERROR(dispersió!$C$10*((dispersió!$E$38+'Càlculs interns'!F96)^dispersió!$D$10)*(2*LN('Càlculs interns'!G96/dispersió!$O$45))^(1/2),0) -> 1.91117844 | I96: -1.91117844 | K96: 7.675489764 | L96: =IFERROR((letalitat!$P$9*1000)/((3.14159*dispersió!$C$10*((dispersió!$E$38+K96)^dispersió!$D$10)*dispersió!$E$10*((dispersió!$F$38+K96)^dispersió!$F$10)+dispersió!$C$24*dispersió!$D$38)*dispersió!$C$12),0) -> 0.7168044591 | M96: =IFERROR(dispersió!$C$10*((dispersió!$E$38+'Càlculs interns'!K96)^dispersió!$D$10)*(2*LN('Càlculs interns'!L96/dispersió!$O$52))^(1/2),0) -> 1.236478124 | N96: -1.236478124 | P96: 0.3018089241 | Q96: =IFERROR((letalitat!$P$9*1000)/((3.14159*dispersió!$C$10*((dispersió!$E$38+P96)^dispersió!$D$10)*dispersió!$E$10*((dispersió!$F$38+P96)^dispersió!$F$10)+dispersió!$C$24*dispersió!$D$38)*dispersió!$C$12),0) -> 1.126366636 | R96: =IFERROR(dispersió!$C$10*((dispersió!$E$38+'Càlculs interns'!P96)^dispersió!$D$10)*(2*LN('Càlculs interns'!Q96/dispersió!$O$59))^(1/2),0) -> 0.1792423475 | S96: -0.1792423475
A97: 20.71359557 | B97: =IFERROR((letalitat!$P$9*1000)/((3.14159*dispersió!$C$10*((dispersió!$E$38+A97)^dispersió!$D$10)*dispersió!$E$10*((dispersió!$F$38+A97)^dispersió!$F$10)+dispersió!$C$24*dispersió!$D$38)*dispersió!$C$12),0) -> 0.3982303929 | C97: =IFERROR(dispersió!$C$10*((dispersió!$E$38+'Càlculs interns'!A97)^dispersió!$D$10)*(2*LN('Càlculs interns'!B97/dispersió!$O$38))^(1/2),0) -> 2.558607668 | D97: -2.558607668 | F97: 14.22701261 | G97: =IFERROR((letalitat!$P$9*1000)/((3.14159*dispersió!$C$10*((dispersió!$E$38+F97)^dispersió!$D$10)*dispersió!$E$10*((dispersió!$F$38+F97)^dispersió!$F$10)+dispersió!$C$24*dispersió!$D$38)*dispersió!$C$12),0) -> 0.5202407402 | H97: =IFERROR(dispersió!$C$10*((dispersió!$E$38+'Càlculs interns'!F97)^dispersió!$D$10)*(2*LN('Càlculs interns'!G97/dispersió!$O$45))^(1/2),0) -> 1.872889933 | I97: -1.872889933 | K97: 8.101905862 | L97: =IFERROR((letalitat!$P$9*1000)/((3.14159*dispersió!$C$10*((dispersió!$E$38+K97)^dispersió!$D$10)*dispersió!$E$10*((dispersió!$F$38+K97)^dispersió!$F$10)+dispersió!$C$24*dispersió!$D$38)*dispersió!$C$12),0) -> 0.7006495905 | M97: =IFERROR(dispersió!$C$10*((dispersió!$E$38+'Càlculs interns'!K97)^dispersió!$D$10)*(2*LN('Càlculs interns'!L97/dispersió!$O$52))^(1/2),0) -> 1.205355785 | N97: -1.205355785 | P97: 0.3185760866 | Q97: =IFERROR((letalitat!$P$9*1000)/((3.14159*dispersió!$C$10*((dispersió!$E$38+P97)^dispersió!$D$10)*dispersió!$E$10*((dispersió!$F$38+P97)^dispersió!$F$10)+dispersió!$C$24*dispersió!$D$38)*dispersió!$C$12),0) -> 1.125040502 | R97: =IFERROR(dispersió!$C$10*((dispersió!$E$38+'Càlculs interns'!P97)^dispersió!$D$10)*(2*LN('Càlculs interns'!Q97/dispersió!$O$59))^(1/2),0) -> 0.1718309945 | S97: -0.1718309945
A98: 21.80378481 | B98: =IFERROR((letalitat!$P$9*1000)/((3.14159*dispersió!$C$10*((dispersió!$E$38+A98)^dispersió!$D$10)*dispersió!$E$10*((dispersió!$F$38+A98)^dispersió!$F$10)+dispersió!$C$24*dispersió!$D$38)*dispersió!$C$12),0) -> 0.3822041703 | C98: =IFERROR(dispersió!$C$10*((dispersió!$E$38+'Càlculs interns'!A98)^dispersió!$D$10)*(2*LN('Càlculs interns'!B98/dispersió!$O$38))^(1/2),0) -> 2.502166397 | D98: -2.502166397 | F98: 14.97580275 | G98: =IFERROR((letalitat!$P$9*1000)/((3.14159*dispersió!$C$10*((dispersió!$E$38+F98)^dispersió!$D$10)*dispersió!$E$10*((dispersió!$F$38+F98)^dispersió!$F$10)+dispersió!$C$24*dispersió!$D$38)*dispersió!$C$12),0) -> 0.5033143991 | H98: =IFERROR(dispersió!$C$10*((dispersió!$E$38+'Càlculs interns'!F98)^dispersió!$D$10)*(2*LN('Càlculs interns'!G98/dispersió!$O$45))^(1/2),0) -> 1.826261818 | I98: -1.826261818 | K98: 8.52832196 | L98: =IFERROR((letalitat!$P$9*1000)/((3.14159*dispersió!$C$10*((dispersió!$E$38+K98)^dispersió!$D$10)*dispersió!$E$10*((dispersió!$F$38+K98)^dispersió!$F$10)+dispersió!$C$24*dispersió!$D$38)*dispersió!$C$12),0) -> 0.6850647015 | M98: =IFERROR(dispersió!$C$10*((dispersió!$E$38+'Càlculs interns'!K98)^dispersió!$D$10)*(2*LN('Càlculs interns'!L98/dispersió!$O$52))^(1/2),0) -> 1.169578045 | N98: -1.169578045 | P98: 0.335343249 | Q98: =IFERROR((letalitat!$P$9*1000)/((3.14159*dispersió!$C$10*((dispersió!$E$38+P98)^dispersió!$D$10)*dispersió!$E$10*((dispersió!$F$38+P98)^dispersió!$F$10)+dispersió!$C$24*dispersió!$D$38)*dispersió!$C$12),0) -> 1.123716863 | R98: =IFERROR(dispersió!$C$10*((dispersió!$E$38+'Càlculs interns'!P98)^dispersió!$D$10)*(2*LN('Càlculs interns'!Q98/dispersió!$O$59))^(1/2),0) -> 0.1640436255 | S98: -0.1640436255
A99: 22.89397406 | B99: =IFERROR((letalitat!$P$9*1000)/((3.14159*dispersió!$C$10*((dispersió!$E$38+A99)^dispersió!$D$10)*dispersió!$E$10*((dispersió!$F$38+A99)^dispersió!$F$10)+dispersió!$C$24*dispersió!$D$38)*dispersió!$C$12),0) -> 0.3671779032 | C99: =IFERROR(dispersió!$C$10*((dispersió!$E$38+'Càlculs interns'!A99)^dispersió!$D$10)*(2*LN('Càlculs interns'!B99/dispersió!$O$38))^(1/2),0) -> 2.432254148 | D99: -2.432254148 | F99: 15.72459289 | G99: =IFERROR((letalitat!$P$9*1000)/((3.14159*dispersió!$C$10*((dispersió!$E$38+F99)^dispersió!$D$10)*dispersió!$E$10*((dispersió!$F$38+F99)^dispersió!$F$10)+dispersió!$C$24*dispersió!$D$38)*dispersió!$C$12),0) -> 0.4872450423 | H99: =IFERROR(dispersió!$C$10*((dispersió!$E$38+'Càlculs interns'!F99)^dispersió!$D$10)*(2*LN('Càlculs interns'!G99/dispersió!$O$45))^(1/2),0) -> 1.770465525 | I99: -1.770465525 | K99: 8.954738058 | L99: =IFERROR((letalitat!$P$9*1000)/((3.14159*dispersió!$C$10*((dispersió!$E$38+K99)^dispersió!$D$10)*dispersió!$E$10*((dispersió!$F$38+K99)^dispersió!$F$10)+dispersió!$C$24*dispersió!$D$38)*dispersió!$C$12),0) -> 0.6700225584 | M99: =IFERROR(dispersió!$C$10*((dispersió!$E$38+'Càlculs interns'!K99)^dispersió!$D$10)*(2*LN('Càlculs interns'!L99/dispersió!$O$52))^(1/2),0) -> 1.128633283 | N99: -1.128633283 | P99: 0.3521104115 | Q99: =IFERROR((letalitat!$P$9*1000)/((3.14159*dispersió!$C$10*((dispersió!$E$38+P99)^dispersió!$D$10)*dispersió!$E$10*((dispersió!$F$38+P99)^dispersió!$F$10)+dispersió!$C$24*dispersió!$D$38)*dispersió!$C$12),0) -> 1.122395711 | R99: =IFERROR(dispersió!$C$10*((dispersió!$E$38+'Càlculs interns'!P99)^dispersió!$D$10)*(2*LN('Càlculs interns'!Q99/dispersió!$O$59))^(1/2),0) -> 0.155823822 | S99: -0.155823822
A100: 23.9841633 | B100: =IFERROR((letalitat!$P$9*1000)/((3.14159*dispersió!$C$10*((dispersió!$E$38+A100)^dispersió!$D$10)*dispersió!$E$10*((dispersió!$F$38+A100)^dispersió!$F$10)+dispersió!$C$24*dispersió!$D$38)*dispersió!$C$12),0) -> 0.3530681782 | C100: =IFERROR(dispersió!$C$10*((dispersió!$E$38+'Càlculs interns'!A100)^dispersió!$D$10)*(2*LN('Càlculs interns'!B100/dispersió!$O$38))^(1/2),0) -> 2.347385208 | D100: -2.347385208 | F100: 16.47338302 | G100: =IFERROR((letalitat!$P$9*1000)/((3.14159*dispersió!$C$10*((dispersió!$E$38+F100)^dispersió!$D$10)*dispersió!$E$10*((dispersió!$F$38+F100)^dispersió!$F$10)+dispersió!$C$24*dispersió!$D$38)*dispersió!$C$12),0) -> 0.4719743937 | H100: =IFERROR(dispersió!$C$10*((dispersió!$E$38+'Càlculs interns'!F100)^dispersió!$D$10)*(2*LN('Càlculs interns'!G100/dispersió!$O$45))^(1/2),0) -> 1.704431712 | I100: -1.704431712 | K100: 9.381154156 | L100: =IFERROR((letalitat!$P$9*1000)/((3.14159*dispersió!$C$10*((dispersió!$E$38+K100)^dispersió!$D$10)*dispersió!$E$10*((dispersió!$F$38+K100)^dispersió!$F$10)+dispersió!$C$24*dispersió!$D$38)*dispersió!$C$12),0) -> 0.655497568 | M100: =IFERROR(dispersió!$C$10*((dispersió!$E$38+'Càlculs interns'!K100)^dispersió!$D$10)*(2*LN('Càlculs interns'!L100/dispersió!$O$52))^(1/2),0) -> 1.081865163 | N100: -1.081865163 | P100: 0.3688775739 | Q100: =IFERROR((letalitat!$P$9*1000)/((3.14159*dispersió!$C$10*((dispersió!$E$38+P100)^dispersió!$D$10)*dispersió!$E$10*((dispersió!$F$38+P100)^dispersió!$F$10)+dispersió!$C$24*dispersió!$D$38)*dispersió!$C$12),0) -> 1.12107704 | R100: =IFERROR(dispersió!$C$10*((dispersió!$E$38+'Càlculs interns'!P100)^dispersió!$D$10)*(2*LN('Càlculs interns'!Q100/dispersió!$O$59))^(1/2),0) -> 0.1470990517 | S100: -0.1470990517
A101: 25.07435254 | B101: =IFERROR((letalitat!$P$9*1000)/((3.14159*dispersió!$C$10*((dispersió!$E$38+A101)^dispersió!$D$10)*dispersió!$E$10*((dispersió!$F$38+A101)^dispersió!$F$10)+dispersió!$C$24*dispersió!$D$38)*dispersió!$C$12),0) -> 0.3398002153 | C101: =IFERROR(dispersió!$C$10*((dispersió!$E$38+'Càlculs interns'!A101)^dispersió!$D$10)*(2*LN('Càlculs interns'!B101/dispersió!$O$38))^(1/2),0) -> 2.245582937 | D101: -2.245582937 | F101: 17.22217316 | G101: =IFERROR((letalitat!$P$9*1000)/((3.14159*dispersió!$C$10*((dispersió!$E$38+F101)^dispersió!$D$10)*dispersió!$E$10*((dispersió!$F$38+F101)^dispersió!$F$10)+dispersió!$C$24*dispersió!$D$38)*dispersió!$C$12),0) -> 0.4574491209 | H101: =IFERROR(dispersió!$C$10*((dispersió!$E$38+'Càlculs interns'!F101)^dispersió!$D$10)*(2*LN('Càlculs interns'!G101/dispersió!$O$45))^(1/2),0) -> 1.626743933 | I101: -1.626743933 | K101: 9.807570254 | L101: =IFERROR((letalitat!$P$9*1000)/((3.14159*dispersió!$C$10*((dispersió!$E$38+K101)^dispersió!$D$10)*dispersió!$E$10*((dispersió!$F$38+K101)^dispersió!$F$10)+dispersió!$C$24*dispersió!$D$38)*dispersió!$C$12),0) -> 0.6414656584 | M101: =IFERROR(dispersió!$C$10*((dispersió!$E$38+'Càlculs interns'!K101)^dispersió!$D$10)*(2*LN('Càlculs interns'!L101/dispersió!$O$52))^(1/2),0) -> 1.028408197 | N101: -1.028408197 | P101: 0.3856447364 | Q101: =IFERROR((letalitat!$P$9*1000)/((3.14159*dispersió!$C$10*((dispersió!$E$38+P101)^dispersió!$D$10)*dispersió!$E$10*((dispersió!$F$38+P101)^dispersió!$F$10)+dispersió!$C$24*dispersió!$D$38)*dispersió!$C$12),0) -> 1.119760845 | R101: =IFERROR(dispersió!$C$10*((dispersió!$E$38+'Càlculs interns'!P101)^dispersió!$D$10)*(2*LN('Càlculs interns'!Q101/dispersió!$O$59))^(1/2),0) -> 0.1377733531 | S101: -0.1377733531
A102: 26.16454178 | B102: =IFERROR((letalitat!$P$9*1000)/((3.14159*dispersió!$C$10*((dispersió!$E$38+A102)^dispersió!$D$10)*dispersió!$E$10*((dispersió!$F$38+A102)^dispersió!$F$10)+dispersió!$C$24*dispersió!$D$38)*dispersió!$C$12),0) -> 0.3273068081 | C102: =IFERROR(dispersió!$C$10*((dispersió!$E$38+'Càlculs interns'!A102)^dispersió!$D$10)*(2*LN('Càlculs interns'!B102/dispersió!$O$38))^(1/2),0) -> 2.124130001 | D102: -2.124130001 | F102: 17.9709633 | G102: =IFERROR((letalitat!$P$9*1000)/((3.14159*dispersió!$C$10*((dispersió!$E$38+F102)^dispersió!$D$10)*dispersió!$E$10*((dispersió!$F$38+F102)^dispersió!$F$10)+dispersió!$C$24*dispersió!$D$38)*dispersió!$C$12),0) -> 0.4436203349 | H102: =IFERROR(dispersió!$C$10*((dispersió!$E$38+'Càlculs interns'!F102)^dispersió!$D$10)*(2*LN('Càlculs interns'!G102/dispersió!$O$45))^(1/2),0) -> 1.535460981 | I102: -1.535460981 | K102: 10.23398635 | L102: =IFERROR((letalitat!$P$9*1000)/((3.14159*dispersió!$C$10*((dispersió!$E$38+K102)^dispersió!$D$10)*dispersió!$E$10*((dispersió!$F$38+K102)^dispersió!$F$10)+dispersió!$C$24*dispersió!$D$38)*dispersió!$C$12),0) -> 0.6279041695 | M102: =IFERROR(dispersió!$C$10*((dispersió!$E$38+'Càlculs interns'!K102)^dispersió!$D$10)*(2*LN('Càlculs interns'!L102/dispersió!$O$52))^(1/2),0) -> 0.9670801524 | N102: -0.9670801524 | P102: 0.4024118988 | Q102: =IFERROR((letalitat!$P$9*1000)/((3.14159*dispersió!$C$10*((dispersió!$E$38+P102)^dispersió!$D$10)*dispersió!$E$10*((dispersió!$F$38+P102)^dispersió!$F$10)+dispersió!$C$24*dispersió!$D$38)*dispersió!$C$12),0) -> 1.118447117 | R102: =IFERROR(dispersió!$C$10*((dispersió!$E$38+'Càlculs interns'!P102)^dispersió!$D$10)*(2*LN('Càlculs interns'!Q102/dispersió!$O$59))^(1/2),0) -> 0.1277150894 | S102: -0.1277150894
A103: 27.25473102 | B103: =IFERROR((letalitat!$P$9*1000)/((3.14159*dispersió!$C$10*((dispersió!$E$38+A103)^dispersió!$D$10)*dispersió!$E$10*((dispersió!$F$38+A103)^dispersió!$F$10)+dispersió!$C$24*dispersió!$D$38)*dispersió!$C$12),0) -> 0.3155274131 | C103: =IFERROR(dispersió!$C$10*((dispersió!$E$38+'Càlculs interns'!A103)^dispersió!$D$10)*(2*LN('Càlculs interns'!B103/dispersió!$O$38))^(1/2),0) -> 1.979120671 | D103: -1.979120671 | F103: 18.71975344 | G103: =IFERROR((letalitat!$P$9*1000)/((3.14159*dispersió!$C$10*((dispersió!$E$38+F103)^dispersió!$D$10)*dispersió!$E$10*((dispersió!$F$38+F103)^dispersió!$F$10)+dispersió!$C$24*dispersió!$D$38)*dispersió!$C$12),0) -> 0.4304431479 | H103: =IFERROR(dispersió!$C$10*((dispersió!$E$38+'Càlculs interns'!F103)^dispersió!$D$10)*(2*LN('Càlculs interns'!G103/dispersió!$O$45))^(1/2),0) -> 1.427798498 | I103: -1.427798498 | K103: 10.66040245 | L103: =IFERROR((letalitat!$P$9*1000)/((3.14159*dispersió!$C$10*((dispersió!$E$38+K103)^dispersió!$D$10)*dispersió!$E$10*((dispersió!$F$38+K103)^dispersió!$F$10)+dispersió!$C$24*dispersió!$D$38)*dispersió!$C$12),0) -> 0.614791753 | M103: =IFERROR(dispersió!$C$10*((dispersió!$E$38+'Càlculs interns'!K103)^dispersió!$D$10)*(2*LN('Càlculs interns'!L103/dispersió!$O$52))^(1/2),0) -> 0.8961893748 | N103: -0.8961893748 | P103: 0.4191790613 | Q103: =IFERROR((letalitat!$P$9*1000)/((3.14159*dispersió!$C$10*((dispersió!$E$38+P103)^dispersió!$D$10)*dispersió!$E$10*((dispersió!$F$38+P103)^dispersió!$F$10)+dispersió!$C$24*dispersió!$D$38)*dispersió!$C$12),0) -> 1.117135851 | R103: =IFERROR(dispersió!$C$10*((dispersió!$E$38+'Càlculs interns'!P103)^dispersió!$D$10)*(2*LN('Càlculs interns'!Q103/dispersió!$O$59))^(1/2),0) -> 0.1167349817 | S103: -0.1167349817
A104: 28.34492026 | B104: =IFERROR((letalitat!$P$9*1000)/((3.14159*dispersió!$C$10*((dispersió!$E$38+A104)^dispersió!$D$10)*dispersió!$E$10*((dispersió!$F$38+A104)^dispersió!$F$10)+dispersió!$C$24*dispersió!$D$38)*dispersió!$C$12),0) -> 0.3044073654 | C104: =IFERROR(dispersió!$C$10*((dispersió!$E$38+'Càlculs interns'!A104)^dispersió!$D$10)*(2*LN('Càlculs interns'!B104/dispersió!$O$38))^(1/2),0) -> 1.804579687 | D104: -1.804579687 | F104: 19.46854357 | G104: =IFERROR((letalitat!$P$9*1000)/((3.14159*dispersió!$C$10*((dispersió!$E$38+F104)^dispersió!$D$10)*dispersió!$E$10*((dispersió!$F$38+F104)^dispersió!$F$10)+dispersió!$C$24*dispersió!$D$38)*dispersió!$C$12),0) -> 0.4178762825 | H104: =IFERROR(dispersió!$C$10*((dispersió!$E$38+'Càlculs interns'!F104)^dispersió!$D$10)*(2*LN('Càlculs interns'!G104/dispersió!$O$45))^(1/2),0) -> 1.299502382 | I104: -1.299502382 | K104: 11.08681855 | L104: =IFERROR((letalitat!$P$9*1000)/((3.14159*dispersió!$C$10*((dispersió!$E$38+K104)^dispersió!$D$10)*dispersió!$E$10*((dispersió!$F$38+K104)^dispersió!$F$10)+dispersió!$C$24*dispersió!$D$38)*dispersió!$C$12),0) -> 0.6021082808 | M104: =IFERROR(dispersió!$C$10*((dispersió!$E$38+'Càlculs interns'!K104)^dispersió!$D$10)*(2*LN('Càlculs interns'!L104/dispersió!$O$52))^(1/2),0) -> 0.8131560281 | N104: -0.8131560281 | P104: 0.4359462237 | Q104: =IFERROR((letalitat!$P$9*1000)/((3.14159*dispersió!$C$10*((dispersió!$E$38+P104)^dispersió!$D$10)*dispersió!$E$10*((dispersió!$F$38+P104)^dispersió!$F$10)+dispersió!$C$24*dispersió!$D$38)*dispersió!$C$12),0) -> 1.11582704 | R104: =IFERROR(dispersió!$C$10*((dispersió!$E$38+'Càlculs interns'!P104)^dispersió!$D$10)*(2*LN('Càlculs interns'!Q104/dispersió!$O$59))^(1/2),0) -> 0.1045428895 | S104: -0.1045428895
A105: 29.4351095 | B105: =IFERROR((letalitat!$P$9*1000)/((3.14159*dispersió!$C$10*((dispersió!$E$38+A105)^dispersió!$D$10)*dispersió!$E$10*((dispersió!$F$38+A105)^dispersió!$F$10)+dispersió!$C$24*dispersió!$D$38)*dispersió!$C$12),0) -> 0.2938972014 | C105: =IFERROR(dispersió!$C$10*((dispersió!$E$38+'Càlculs interns'!A105)^dispersió!$D$10)*(2*LN('Càlculs interns'!B105/dispersió!$O$38))^(1/2),0) -> 1.590482919 | D105: -1.590482919 | F105: 20.21733371 | G105: =IFERROR((letalitat!$P$9*1000)/((3.14159*dispersió!$C$10*((dispersió!$E$38+F105)^dispersió!$D$10)*dispersió!$E$10*((dispersió!$F$38+F105)^dispersió!$F$10)+dispersió!$C$24*dispersió!$D$38)*dispersió!$C$12),0) -> 0.4058817249 | H105: =IFERROR(dispersió!$C$10*((dispersió!$E$38+'Càlculs interns'!F105)^dispersió!$D$10)*(2*LN('Càlculs interns'!G105/dispersió!$O$45))^(1/2),0) -> 1.14344138 | I105: -1.14344138 | K105: 11.51323465 | L105: =IFERROR((letalitat!$P$9*1000)/((3.14159*dispersió!$C$10*((dispersió!$E$38+K105)^dispersió!$D$10)*dispersió!$E$10*((dispersió!$F$38+K105)^dispersió!$F$10)+dispersió!$C$24*dispersió!$D$38)*dispersió!$C$12),0) -> 0.5898347605 | M105: =IFERROR(dispersió!$C$10*((dispersió!$E$38+'Càlculs interns'!K105)^dispersió!$D$10)*(2*LN('Càlculs interns'!L105/dispersió!$O$52))^(1/2),0) -> 0.7136629848 | N105: -0.7136629848 | P105: 0.4527133862 | Q105: =IFERROR((letalitat!$P$9*1000)/((3.14159*dispersió!$C$10*((dispersió!$E$38+P105)^dispersió!$D$10)*dispersió!$E$10*((dispersió!$F$38+P105)^dispersió!$F$10)+dispersió!$C$24*dispersió!$D$38)*dispersió!$C$12),0) -> 1.114520679 | R105: =IFERROR(dispersió!$C$10*((dispersió!$E$38+'Càlculs interns'!P105)^dispersió!$D$10)*(2*LN('Càlculs interns'!Q105/dispersió!$O$59))^(1/2),0) -> 0.09065101601 | S105: -0.09065101601
A106: 30.52529874 | B106: =IFERROR((letalitat!$P$9*1000)/((3.14159*dispersió!$C$10*((dispersió!$E$38+A106)^dispersió!$D$10)*dispersió!$E$10*((dispersió!$F$38+A106)^dispersió!$F$10)+dispersió!$C$24*dispersió!$D$38)*dispersió!$C$12),0) -> 0.2839520706 | C106: =IFERROR(dispersió!$C$10*((dispersió!$E$38+'Càlculs interns'!A106)^dispersió!$D$10)*(2*LN('Càlculs interns'!B106/dispersió!$O$38))^(1/2),0) -> 1.317302481 | D106: -1.317302481 | F106: 20.96612385 | G106: =IFERROR((letalitat!$P$9*1000)/((3.14159*dispersió!$C$10*((dispersió!$E$38+F106)^dispersió!$D$10)*dispersió!$E$10*((dispersió!$F$38+F106)^dispersió!$F$10)+dispersió!$C$24*dispersió!$D$38)*dispersió!$C$12),0) -> 0.3944244167 | H106: =IFERROR(dispersió!$C$10*((dispersió!$E$38+'Càlculs interns'!F106)^dispersió!$D$10)*(2*LN('Càlculs interns'!G106/dispersió!$O$45))^(1/2),0) -> 0.9457297374 | I106: -0.9457297374 | K106: 11.93965074 | L106: =IFERROR((letalitat!$P$9*1000)/((3.14159*dispersió!$C$10*((dispersió!$E$38+K106)^dispersió!$D$10)*dispersió!$E$10*((dispersió!$F$38+K106)^dispersió!$F$10)+dispersió!$C$24*dispersió!$D$38)*dispersió!$C$12),0) -> 0.5779532583 | M106: =IFERROR(dispersió!$C$10*((dispersió!$E$38+'Càlculs interns'!K106)^dispersió!$D$10)*(2*LN('Càlculs interns'!L106/dispersió!$O$52))^(1/2),0) -> 0.5893251502 | N106: -0.5893251502 | P106: 0.4694805486 | Q106: =IFERROR((letalitat!$P$9*1000)/((3.14159*dispersió!$C$10*((dispersió!$E$38+P106)^dispersió!$D$10)*dispersió!$E$10*((dispersió!$F$38+P106)^dispersió!$F$10)+dispersió!$C$24*dispersió!$D$38)*dispersió!$C$12),0) -> 1.113216759 | R106: =IFERROR(dispersió!$C$10*((dispersió!$E$38+'Càlculs interns'!P106)^dispersió!$D$10)*(2*LN('Càlculs interns'!Q106/dispersió!$O$59))^(1/2),0) -> 0.07410946034 | S106: -0.07410946034
A107: 31.61548798 | B107: =IFERROR((letalitat!$P$9*1000)/((3.14159*dispersió!$C$10*((dispersió!$E$38+A107)^dispersió!$D$10)*dispersió!$E$10*((dispersió!$F$38+A107)^dispersió!$F$10)+dispersió!$C$24*dispersió!$D$38)*dispersió!$C$12),0) -> 0.2745312241 | C107: =IFERROR(dispersió!$C$10*((dispersió!$E$38+'Càlculs interns'!A107)^dispersió!$D$10)*(2*LN('Càlculs interns'!B107/dispersió!$O$38))^(1/2),0) -> 0.9340668141 | D107: -0.9340668141 | F107: 21.71491399 | G107: =IFERROR((letalitat!$P$9*1000)/((3.14159*dispersió!$C$10*((dispersió!$E$38+F107)^dispersió!$D$10)*dispersió!$E$10*((dispersió!$F$38+F107)^dispersió!$F$10)+dispersió!$C$24*dispersió!$D$38)*dispersió!$C$12),0) -> 0.3834719809 | H107: =IFERROR(dispersió!$C$10*((dispersió!$E$38+'Càlculs interns'!F107)^dispersió!$D$10)*(2*LN('Càlculs interns'!G107/dispersió!$O$45))^(1/2),0) -> 0.6701514316 | I107: -0.6701514316 | K107: 12.36606684 | L107: =IFERROR((letalitat!$P$9*1000)/((3.14159*dispersió!$C$10*((dispersió!$E$38+K107)^dispersió!$D$10)*dispersió!$E$10*((dispersió!$F$38+K107)^dispersió!$F$10)+dispersió!$C$24*dispersió!$D$38)*dispersió!$C$12),0) -> 0.5664468277 | M107: =IFERROR(dispersió!$C$10*((dispersió!$E$38+'Càlculs interns'!K107)^dispersió!$D$10)*(2*LN('Càlculs interns'!L107/dispersió!$O$52))^(1/2),0) -> 0.4184092078 | N107: -0.4184092078 | P107: 0.4862477111 | Q107: =IFERROR((letalitat!$P$9*1000)/((3.14159*dispersió!$C$10*((dispersió!$E$38+P107)^dispersió!$D$10)*dispersió!$E$10*((dispersió!$F$38+P107)^dispersió!$F$10)+dispersió!$C$24*dispersió!$D$38)*dispersió!$C$12),0) -> 1.111915276 | R107: =IFERROR(dispersió!$C$10*((dispersió!$E$38+'Càlculs interns'!P107)^dispersió!$D$10)*(2*LN('Càlculs interns'!Q107/dispersió!$O$59))^(1/2),0) -> 0.05246918431 | S107: -0.05246918431
A108: =dispersió!G38 -> 32.70567722 | B108: =IFERROR((letalitat!$P$9*1000)/((3.14159*dispersió!$C$10*((dispersió!$E$38+A108)^dispersió!$D$10)*dispersió!$E$10*((dispersió!$F$38+A108)^dispersió!$F$10)+dispersió!$C$24*dispersió!$D$38)*dispersió!$C$12),0) -> 0.2655975694 | C108: =IFERROR(dispersió!$C$10*((dispersió!$E$38+'Càlculs interns'!A108)^dispersió!$D$10)*(2*LN('Càlculs interns'!B108/dispersió!$O$38))^(1/2),0) -> 0 | D108: 0 | F108: =dispersió!G45 -> 22.46370412 | G108: =IFERROR((letalitat!$P$9*1000)/((3.14159*dispersió!$C$10*((dispersió!$E$38+F108)^dispersió!$D$10)*dispersió!$E$10*((dispersió!$F$38+F108)^dispersió!$F$10)+dispersió!$C$24*dispersió!$D$38)*dispersió!$C$12),0) -> 0.3729944768 | H108: =IFERROR(dispersió!$C$10*((dispersió!$E$38+'Càlculs interns'!F108)^dispersió!$D$10)*(2*LN('Càlculs interns'!G108/dispersió!$O$45))^(1/2),0) -> 0 | I108: 0 | K108: =dispersió!G52 -> 12.79248294 | L108: =IFERROR((letalitat!$P$9*1000)/((3.14159*dispersió!$C$10*((dispersió!$E$38+K108)^dispersió!$D$10)*dispersió!$E$10*((dispersió!$F$38+K108)^dispersió!$F$10)+dispersió!$C$24*dispersió!$D$38)*dispersió!$C$12),0) -> 0.555299444 | M108: =IFERROR(dispersió!$C$10*((dispersió!$E$38+'Càlculs interns'!K108)^dispersió!$D$10)*(2*LN('Càlculs interns'!L108/dispersió!$O$52))^(1/2),0) -> 0 | N108: 0 | P108: =dispersió!G59 -> 0.5030148735 | Q108: =IFERROR((letalitat!$P$9*1000)/((3.14159*dispersió!$C$10*((dispersió!$E$38+P108)^dispersió!$D$10)*dispersió!$E$10*((dispersió!$F$38+P108)^dispersió!$F$10)+dispersió!$C$24*dispersió!$D$38)*dispersió!$C$12),0) -> 1.110616223 | R108: =IFERROR(dispersió!$C$10*((dispersió!$E$38+'Càlculs interns'!P108)^dispersió!$D$10)*(2*LN('Càlculs interns'!Q108/dispersió!$O$59))^(1/2),0) -> 0 | S108: 0
A110: Est. F
A111: LC1 | C111: LC1+ | D111: LC1- | F111: LC10 | H111: LC10+ | I111: LC10- | K111: LC50 | M111: LC50+ | N111: LC50- | P111: LC99 | R111: LC99+ | S111: LC99-
A112: X | B112: C(x) | C112: y+ | D112: y- | F112: X | G112: C(x) | H112: y+ | I112: y- | K112: X | L112: C(x) | M112: y+ | N112: y- | P112: X | Q112: C(x) | R112: y+ | S112: y-
A113: 0 | B113: =IFERROR((letalitat!$P$9*1000)/((3.14159*dispersió!$I$10*((dispersió!$J$38+A113)^dispersió!$J$10)*dispersió!$K$10*((dispersió!$K$38+A113)^dispersió!$L$10)+dispersió!$C$24*dispersió!$D$38)*dispersió!$I$12),0) -> 3.540526658 | C113: =IFERROR(dispersió!$I$10*((dispersió!$J$38+'Càlculs interns'!A113)^dispersió!$J$10)*(2*LN('Càlculs interns'!B113/dispersió!$O$38))^(1/2),0) -> 2.366166732 | D113: =-C113 -> -2.366166732 | F113: 0 | G113: =IFERROR((letalitat!$P$9*1000)/((3.14159*dispersió!$I$10*((dispersió!$J$38+F113)^dispersió!$J$10)*dispersió!$K$10*((dispersió!$K$38+F113)^dispersió!$L$10)+dispersió!$C$24*dispersió!$D$38)*dispersió!$I$12),0) -> 3.540526658 | H113: =IFERROR(dispersió!$I$10*((dispersió!$J$38+'Càlculs interns'!F113)^dispersió!$J$10)*(2*LN('Càlculs interns'!G113/dispersió!$O$45))^(1/2),0) -> 2.205680525 | I113: =-H113 -> -2.205680525 | K113: 0 | L113: =IFERROR((letalitat!$P$9*1000)/((3.14159*dispersió!$I$10*((dispersió!$J$38+K113)^dispersió!$J$10)*dispersió!$K$10*((dispersió!$K$38+K113)^dispersió!$L$10)+dispersió!$C$24*dispersió!$D$38)*dispersió!$I$12),0) -> 3.540526658 | M113: =IFERROR(dispersió!$I$10*((dispersió!$J$38+'Càlculs interns'!K113)^dispersió!$J$10)*(2*LN('Càlculs interns'!L113/dispersió!$O$52))^(1/2),0) -> 2.001476443 | N113: =-M113 -> -2.001476443 | P113: 0 | Q113: =IFERROR((letalitat!$P$9*1000)/((3.14159*dispersió!$I$10*((dispersió!$J$38+P113)^dispersió!$J$10)*dispersió!$K$10*((dispersió!$K$38+P113)^dispersió!$L$10)+dispersió!$C$24*dispersió!$D$38)*dispersió!$I$12),0) -> 3.540526658 | R113: =IFERROR(dispersió!$I$10*((dispersió!$J$38+'Càlculs interns'!P113)^dispersió!$J$10)*(2*LN('Càlculs interns'!Q113/dispersió!$O$59))^(1/2),0) -> 1.583692226 | S113: =-R113 -> -1.583692226
A114: =A143/30 -> 8.002380523 | B114: =IFERROR((letalitat!$P$9*1000)/((3.14159*dispersió!$I$10*((dispersió!$J$38+A114)^dispersió!$J$10)*dispersió!$K$10*((dispersió!$K$38+A114)^dispersió!$L$10)+dispersió!$C$24*dispersió!$D$38)*dispersió!$I$12),0) -> 2.838795051 | C114: =IFERROR(dispersió!$I$10*((dispersió!$J$38+'Càlculs interns'!A114)^dispersió!$J$10)*(2*LN('Càlculs interns'!B114/dispersió!$O$38))^(1/2),0) -> 3.006133081 | D114: -3.006133081 | F114: =F143/30 -> 6.073556343 | G114: =IFERROR((letalitat!$P$9*1000)/((3.14159*dispersió!$I$10*((dispersió!$J$38+F114)^dispersió!$J$10)*dispersió!$K$10*((dispersió!$K$38+F114)^dispersió!$L$10)+dispersió!$C$24*dispersió!$D$38)*dispersió!$I$12),0) -> 2.984138854 | H114: =IFERROR(dispersió!$I$10*((dispersió!$J$38+'Càlculs interns'!F114)^dispersió!$J$10)*(2*LN('Càlculs interns'!G114/dispersió!$O$45))^(1/2),0) -> 2.650565696 | I114: =-H114 -> -2.650565696 | K114: =K143/30 -> 4.245384452 | L114: =IFERROR((letalitat!$P$9*1000)/((3.14159*dispersió!$I$10*((dispersió!$J$38+K114)^dispersió!$J$10)*dispersió!$K$10*((dispersió!$K$38+K114)^dispersió!$L$10)+dispersió!$C$24*dispersió!$D$38)*dispersió!$I$12),0) -> 3.134425928 | M114: =IFERROR(dispersió!$I$10*((dispersió!$J$38+'Càlculs interns'!K114)^dispersió!$J$10)*(2*LN('Càlculs interns'!L114/dispersió!$O$52))^(1/2),0) -> 2.27399527 | N114: =-M114 -> -2.27399527 | P114: =P143/30 -> 2.018927496 | Q114: =IFERROR((letalitat!$P$9*1000)/((3.14159*dispersió!$I$10*((dispersió!$J$38+P114)^dispersió!$J$10)*dispersió!$K$10*((dispersió!$K$38+P114)^dispersió!$L$10)+dispersió!$C$24*dispersió!$D$38)*dispersió!$I$12),0) -> 3.336418831 | R114: =IFERROR(dispersió!$I$10*((dispersió!$J$38+'Càlculs interns'!P114)^dispersió!$J$10)*(2*LN('Càlculs interns'!Q114/dispersió!$O$59))^(1/2),0) -> 1.671933391 | S114: =-R114 -> -1.671933391
A115: =A$114+A114 -> 16.00476105 | B115: =IFERROR((letalitat!$P$9*1000)/((3.14159*dispersió!$I$10*((dispersió!$J$38+A115)^dispersió!$J$10)*dispersió!$K$10*((dispersió!$K$38+A115)^dispersió!$L$10)+dispersió!$C$24*dispersió!$D$38)*dispersió!$I$12),0) -> 2.348963158 | C115: =IFERROR(dispersió!$I$10*((dispersió!$J$38+'Càlculs interns'!A115)^dispersió!$J$10)*(2*LN('Càlculs interns'!B115/dispersió!$O$38))^(1/2),0) -> 3.577339717 | D115: -3.577339717 | F115: =F$114+F114 -> 12.14711269 | G115: =IFERROR((letalitat!$P$9*1000)/((3.14159*dispersió!$I$10*((dispersió!$J$38+F115)^dispersió!$J$10)*dispersió!$K$10*((dispersió!$K$38+F115)^dispersió!$L$10)+dispersió!$C$24*dispersió!$D$38)*dispersió!$I$12),0) -> 2.565095214 | H115: =IFERROR(dispersió!$I$10*((dispersió!$J$38+'Càlculs interns'!F115)^dispersió!$J$10)*(2*LN('Càlculs interns'!G115/dispersió!$O$45))^(1/2),0) -> 3.051989406 | I115: -3.051989406 | K115: =K$114+K114 -> 8.490768903 | L115: =IFERROR((letalitat!$P$9*1000)/((3.14159*dispersió!$I$10*((dispersió!$J$38+K115)^dispersió!$J$10)*dispersió!$K$10*((dispersió!$K$38+K115)^dispersió!$L$10)+dispersió!$C$24*dispersió!$D$38)*dispersió!$I$12),0) -> 2.803947901 | M115: =IFERROR(dispersió!$I$10*((dispersió!$J$38+'Càlculs interns'!K115)^dispersió!$J$10)*(2*LN('Càlculs interns'!L115/dispersió!$O$52))^(1/2),0) -> 2.522648121 | N115: -2.522648121 | P115: =P$114+P114 -> 4.037854991 | Q115: =IFERROR((letalitat!$P$9*1000)/((3.14159*dispersió!$I$10*((dispersió!$J$38+P115)^dispersió!$J$10)*dispersió!$K$10*((dispersió!$K$38+P115)^dispersió!$L$10)+dispersió!$C$24*dispersió!$D$38)*dispersió!$I$12),0) -> 3.152330325 | R115: =IFERROR(dispersió!$I$10*((dispersió!$J$38+'Càlculs interns'!P115)^dispersió!$J$10)*(2*LN('Càlculs interns'!Q115/dispersió!$O$59))^(1/2),0) -> 1.753126155 | S115: -1.753126155
A116: =A$114+A115 -> 24.00714157 | B116: =IFERROR((letalitat!$P$9*1000)/((3.14159*dispersió!$I$10*((dispersió!$J$38+A116)^dispersió!$J$10)*dispersió!$K$10*((dispersió!$K$38+A116)^dispersió!$L$10)+dispersió!$C$24*dispersió!$D$38)*dispersió!$I$12),0) -> 1.9886234 | C116: =IFERROR(dispersió!$I$10*((dispersió!$J$38+'Càlculs interns'!A116)^dispersió!$J$10)*(2*LN('Càlculs interns'!B116/dispersió!$O$38))^(1/2),0) -> 4.090893788 | D116: -4.090893788 | F116: =F$114+F115 -> 18.22066903 | G116: =IFERROR((letalitat!$P$9*1000)/((3.14159*dispersió!$I$10*((dispersió!$J$38+F116)^dispersió!$J$10)*dispersió!$K$10*((dispersió!$K$38+F116)^dispersió!$L$10)+dispersió!$C$24*dispersió!$D$38)*dispersió!$I$12),0) -> 2.238578438 | H116: =IFERROR(dispersió!$I$10*((dispersió!$J$38+'Càlculs interns'!F116)^dispersió!$J$10)*(2*LN('Càlculs interns'!G116/dispersió!$O$45))^(1/2),0) -> 3.415478738 | I116: -3.415478738 | K116: =K$114+K115 -> 12.73615335 | L116: =IFERROR((letalitat!$P$9*1000)/((3.14159*dispersió!$I$10*((dispersió!$J$38+K116)^dispersió!$J$10)*dispersió!$K$10*((dispersió!$K$38+K116)^dispersió!$L$10)+dispersió!$C$24*dispersió!$D$38)*dispersió!$I$12),0) -> 2.529910507 | M116: =IFERROR(dispersió!$I$10*((dispersió!$J$38+'Càlculs interns'!K116)^dispersió!$J$10)*(2*LN('Càlculs interns'!L116/dispersió!$O$52))^(1/2),0) -> 2.749546912 | N116: -2.749546912 | P116: =P$114+P115 -> 6.056782487 | Q116: =IFERROR((letalitat!$P$9*1000)/((3.14159*dispersió!$I$10*((dispersió!$J$38+P116)^dispersió!$J$10)*dispersió!$K$10*((dispersió!$K$38+P116)^dispersió!$L$10)+dispersió!$C$24*dispersió!$D$38)*dispersió!$I$12),0) -> 2.985459874 | R116: =IFERROR(dispersió!$I$10*((dispersió!$J$38+'Càlculs interns'!P116)^dispersió!$J$10)*(2*LN('Càlculs interns'!Q116/dispersió!$O$59))^(1/2),0) -> 1.827478588 | S116: -1.827478588
A117: 32.00952209 | B117: =IFERROR((letalitat!$P$9*1000)/((3.14159*dispersió!$I$10*((dispersió!$J$38+A117)^dispersió!$J$10)*dispersió!$K$10*((dispersió!$K$38+A117)^dispersió!$L$10)+dispersió!$C$24*dispersió!$D$38)*dispersió!$I$12),0) -> 1.713332707 | C117: =IFERROR(dispersió!$I$10*((dispersió!$J$38+'Càlculs interns'!A117)^dispersió!$J$10)*(2*LN('Càlculs interns'!B117/dispersió!$O$38))^(1/2),0) -> 4.554070229 | D117: -4.554070229 | F117: 24.29422537 | G117: =IFERROR((letalitat!$P$9*1000)/((3.14159*dispersió!$I$10*((dispersió!$J$38+F117)^dispersió!$J$10)*dispersió!$K$10*((dispersió!$K$38+F117)^dispersió!$L$10)+dispersió!$C$24*dispersió!$D$38)*dispersió!$I$12),0) -> 1.977472452 | H117: =IFERROR(dispersió!$I$10*((dispersió!$J$38+'Càlculs interns'!F117)^dispersió!$J$10)*(2*LN('Càlculs interns'!G117/dispersió!$O$45))^(1/2),0) -> 3.744886886 | I117: -3.744886886 | K117: 16.98153781 | L117: =IFERROR((letalitat!$P$9*1000)/((3.14159*dispersió!$I$10*((dispersió!$J$38+K117)^dispersió!$J$10)*dispersió!$K$10*((dispersió!$K$38+K117)^dispersió!$L$10)+dispersió!$C$24*dispersió!$D$38)*dispersió!$I$12),0) -> 2.299176357 | M117: =IFERROR(dispersió!$I$10*((dispersió!$J$38+'Càlculs interns'!K117)^dispersió!$J$10)*(2*LN('Càlculs interns'!L117/dispersió!$O$52))^(1/2),0) -> 2.956263565 | N117: -2.956263565 | P117: 8.075709982 | Q117: =IFERROR((letalitat!$P$9*1000)/((3.14159*dispersió!$I$10*((dispersió!$J$38+P117)^dispersió!$J$10)*dispersió!$K$10*((dispersió!$K$38+P117)^dispersió!$L$10)+dispersió!$C$24*dispersió!$D$38)*dispersió!$I$12),0) -> 2.833514713 | R117: =IFERROR(dispersió!$I$10*((dispersió!$J$38+'Càlculs interns'!P117)^dispersió!$J$10)*(2*LN('Càlculs interns'!Q117/dispersió!$O$59))^(1/2),0) -> 1.895150894 | S117: -1.895150894
A118: 40.01190262 | B118: =IFERROR((letalitat!$P$9*1000)/((3.14159*dispersió!$I$10*((dispersió!$J$38+A118)^dispersió!$J$10)*dispersió!$K$10*((dispersió!$K$38+A118)^dispersió!$L$10)+dispersió!$C$24*dispersió!$D$38)*dispersió!$I$12),0) -> 1.496879129 | C118: =IFERROR(dispersió!$I$10*((dispersió!$J$38+'Càlculs interns'!A118)^dispersió!$J$10)*(2*LN('Càlculs interns'!B118/dispersió!$O$38))^(1/2),0) -> 4.97196243 | D118: -4.97196243 | F118: 30.36778172 | G118: =IFERROR((letalitat!$P$9*1000)/((3.14159*dispersió!$I$10*((dispersió!$J$38+F118)^dispersió!$J$10)*dispersió!$K$10*((dispersió!$K$38+F118)^dispersió!$L$10)+dispersió!$C$24*dispersió!$D$38)*dispersió!$I$12),0) -> 1.76433434 | H118: =IFERROR(dispersió!$I$10*((dispersió!$J$38+'Càlculs interns'!F118)^dispersió!$J$10)*(2*LN('Càlculs interns'!G118/dispersió!$O$45))^(1/2),0) -> 4.043019871 | I118: -4.043019871 | K118: 21.22692226 | L118: =IFERROR((letalitat!$P$9*1000)/((3.14159*dispersió!$I$10*((dispersió!$J$38+K118)^dispersió!$J$10)*dispersió!$K$10*((dispersió!$K$38+K118)^dispersió!$L$10)+dispersió!$C$24*dispersió!$D$38)*dispersió!$I$12),0) -> 2.102416391 | M118: =IFERROR(dispersió!$I$10*((dispersió!$J$38+'Càlculs interns'!K118)^dispersió!$J$10)*(2*LN('Càlculs interns'!L118/dispersió!$O$52))^(1/2),0) -> 3.143991734 | N118: -3.143991734 | P118: 10.09463748 | Q118: =IFERROR((letalitat!$P$9*1000)/((3.14159*dispersió!$I$10*((dispersió!$J$38+P118)^dispersió!$J$10)*dispersió!$K$10*((dispersió!$K$38+P118)^dispersió!$L$10)+dispersió!$C$24*dispersió!$D$38)*dispersió!$I$12),0) -> 2.694597848 | R118: =IFERROR(dispersió!$I$10*((dispersió!$J$38+'Càlculs interns'!P118)^dispersió!$J$10)*(2*LN('Càlculs interns'!Q118/dispersió!$O$59))^(1/2),0) -> 1.95626185 | S118: -1.95626185
A119: 48.01428314 | B119: =IFERROR((letalitat!$P$9*1000)/((3.14159*dispersió!$I$10*((dispersió!$J$38+A119)^dispersió!$J$10)*dispersió!$K$10*((dispersió!$K$38+A119)^dispersió!$L$10)+dispersió!$C$24*dispersió!$D$38)*dispersió!$I$12),0) -> 1.32276941 | C119: =IFERROR(dispersió!$I$10*((dispersió!$J$38+'Càlculs interns'!A119)^dispersió!$J$10)*(2*LN('Càlculs interns'!B119/dispersió!$O$38))^(1/2),0) -> 5.348284127 | D119: -5.348284127 | F119: 36.44133806 | G119: =IFERROR((letalitat!$P$9*1000)/((3.14159*dispersió!$I$10*((dispersió!$J$38+F119)^dispersió!$J$10)*dispersió!$K$10*((dispersió!$K$38+F119)^dispersió!$L$10)+dispersió!$C$24*dispersió!$D$38)*dispersió!$I$12),0) -> 1.587407236 | H119: =IFERROR(dispersió!$I$10*((dispersió!$J$38+'Càlculs interns'!F119)^dispersió!$J$10)*(2*LN('Càlculs interns'!G119/dispersió!$O$45))^(1/2),0) -> 4.311974935 | I119: -4.311974935 | K119: 25.47230671 | L119: =IFERROR((letalitat!$P$9*1000)/((3.14159*dispersió!$I$10*((dispersió!$J$38+K119)^dispersió!$J$10)*dispersió!$K$10*((dispersió!$K$38+K119)^dispersió!$L$10)+dispersió!$C$24*dispersió!$D$38)*dispersió!$I$12),0) -> 1.932809277 | M119: =IFERROR(dispersió!$I$10*((dispersió!$J$38+'Càlculs interns'!K119)^dispersió!$J$10)*(2*LN('Càlculs interns'!L119/dispersió!$O$52))^(1/2),0) -> 3.313645371 | N119: -3.313645371 | P119: 12.11356497 | Q119: =IFERROR((letalitat!$P$9*1000)/((3.14159*dispersió!$I$10*((dispersió!$J$38+P119)^dispersió!$J$10)*dispersió!$K$10*((dispersió!$K$38+P119)^dispersió!$L$10)+dispersió!$C$24*dispersió!$D$38)*dispersió!$I$12),0) -> 2.567124614 | R119: =IFERROR(dispersió!$I$10*((dispersió!$J$38+'Càlculs interns'!P119)^dispersió!$J$10)*(2*LN('Càlculs interns'!Q119/dispersió!$O$59))^(1/2),0) -> 2.010893261 | S119: =-R119 -> -2.010893261
A120: 56.01666366 | B120: =IFERROR((letalitat!$P$9*1000)/((3.14159*dispersió!$I$10*((dispersió!$J$38+A120)^dispersió!$J$10)*dispersió!$K$10*((dispersió!$K$38+A120)^dispersió!$L$10)+dispersió!$C$24*dispersió!$D$38)*dispersió!$I$12),0) -> 1.180100241 | C120: =IFERROR(dispersió!$I$10*((dispersió!$J$38+'Càlculs interns'!A120)^dispersió!$J$10)*(2*LN('Càlculs interns'!B120/dispersió!$O$38))^(1/2),0) -> 5.685807364 | D120: -5.685807364 | F120: 42.5148944 | G120: =IFERROR((letalitat!$P$9*1000)/((3.14159*dispersió!$I$10*((dispersió!$J$38+F120)^dispersió!$J$10)*dispersió!$K$10*((dispersió!$K$38+F120)^dispersió!$L$10)+dispersió!$C$24*dispersió!$D$38)*dispersió!$I$12),0) -> 1.438468362 | H120: =IFERROR(dispersió!$I$10*((dispersió!$J$38+'Càlculs interns'!F120)^dispersió!$J$10)*(2*LN('Càlculs interns'!G120/dispersió!$O$45))^(1/2),0) -> 4.553339103 | I120: -4.553339103 | K120: 29.71769116 | L120: =IFERROR((letalitat!$P$9*1000)/((3.14159*dispersió!$I$10*((dispersió!$J$38+K120)^dispersió!$J$10)*dispersió!$K$10*((dispersió!$K$38+K120)^dispersió!$L$10)+dispersió!$C$24*dispersió!$D$38)*dispersió!$I$12),0) -> 1.785245064 | M120: =IFERROR(dispersió!$I$10*((dispersió!$J$38+'Càlculs interns'!K120)^dispersió!$J$10)*(2*LN('Càlculs interns'!L120/dispersió!$O$52))^(1/2),0) -> 3.465921706 | N120: -3.465921706 | P120: 14.13249247 | Q120: =IFERROR((letalitat!$P$9*1000)/((3.14159*dispersió!$I$10*((dispersió!$J$38+P120)^dispersió!$J$10)*dispersió!$K$10*((dispersió!$K$38+P120)^dispersió!$L$10)+dispersió!$C$24*dispersió!$D$38)*dispersió!$I$12),0) -> 2.449759864 | R120: =IFERROR(dispersió!$I$10*((dispersió!$J$38+'Càlculs interns'!P120)^dispersió!$J$10)*(2*LN('Càlculs interns'!Q120/dispersió!$O$59))^(1/2),0) -> 2.059092895 | S120: -2.059092895
A121: 64.01904419 | B121: =IFERROR((letalitat!$P$9*1000)/((3.14159*dispersió!$I$10*((dispersió!$J$38+A121)^dispersió!$J$10)*dispersió!$K$10*((dispersió!$K$38+A121)^dispersió!$L$10)+dispersió!$C$24*dispersió!$D$38)*dispersió!$I$12),0) -> 1.061376298 | C121: =IFERROR(dispersió!$I$10*((dispersió!$J$38+'Càlculs interns'!A121)^dispersió!$J$10)*(2*LN('Càlculs interns'!B121/dispersió!$O$38))^(1/2),0) -> 5.98662134 | D121: -5.98662134 | F121: 48.58845075 | G121: =IFERROR((letalitat!$P$9*1000)/((3.14159*dispersió!$I$10*((dispersió!$J$38+F121)^dispersió!$J$10)*dispersió!$K$10*((dispersió!$K$38+F121)^dispersió!$L$10)+dispersió!$C$24*dispersió!$D$38)*dispersió!$I$12),0) -> 1.311590957 | H121: =IFERROR(dispersió!$I$10*((dispersió!$J$38+'Càlculs interns'!F121)^dispersió!$J$10)*(2*LN('Càlculs interns'!G121/dispersió!$O$45))^(1/2),0) -> 4.76831249 | I121: -4.76831249 | K121: 33.96307561 | L121: =IFERROR((letalitat!$P$9*1000)/((3.14159*dispersió!$I$10*((dispersió!$J$38+K121)^dispersió!$J$10)*dispersió!$K$10*((dispersió!$K$38+K121)^dispersió!$L$10)+dispersió!$C$24*dispersió!$D$38)*dispersió!$I$12),0) -> 1.655816818 | M121: =IFERROR(dispersió!$I$10*((dispersió!$J$38+'Càlculs interns'!K121)^dispersió!$J$10)*(2*LN('Càlculs interns'!L121/dispersió!$O$52))^(1/2),0) -> 3.601342695 | N121: -3.601342695 | P121: 16.15141996 | Q121: =IFERROR((letalitat!$P$9*1000)/((3.14159*dispersió!$I$10*((dispersió!$J$38+P121)^dispersió!$J$10)*dispersió!$K$10*((dispersió!$K$38+P121)^dispersió!$L$10)+dispersió!$C$24*dispersió!$D$38)*dispersió!$I$12),0) -> 2.341369976 | R121: =IFERROR(dispersió!$I$10*((dispersió!$J$38+'Càlculs interns'!P121)^dispersió!$J$10)*(2*LN('Càlculs interns'!Q121/dispersió!$O$59))^(1/2),0) -> 2.100876201 | S121: -2.100876201
A122: 72.02142471 | B122: =IFERROR((letalitat!$P$9*1000)/((3.14159*dispersió!$I$10*((dispersió!$J$38+A122)^dispersió!$J$10)*dispersió!$K$10*((dispersió!$K$38+A122)^dispersió!$L$10)+dispersió!$C$24*dispersió!$D$38)*dispersió!$I$12),0) -> 0.9612783506 | C122: =IFERROR(dispersió!$I$10*((dispersió!$J$38+'Càlculs interns'!A122)^dispersió!$J$10)*(2*LN('Càlculs interns'!B122/dispersió!$O$38))^(1/2),0) -> 6.252293727 | D122: -6.252293727 | F122: 54.66200709 | G122: =IFERROR((letalitat!$P$9*1000)/((3.14159*dispersió!$I$10*((dispersió!$J$38+F122)^dispersió!$J$10)*dispersió!$K$10*((dispersió!$K$38+F122)^dispersió!$L$10)+dispersió!$C$24*dispersió!$D$38)*dispersió!$I$12),0) -> 1.202394824 | H122: =IFERROR(dispersió!$I$10*((dispersió!$J$38+'Càlculs interns'!F122)^dispersió!$J$10)*(2*LN('Càlculs interns'!G122/dispersió!$O$45))^(1/2),0) -> 4.957787676 | I122: -4.957787676 | K122: 38.20846006 | L122: =IFERROR((letalitat!$P$9*1000)/((3.14159*dispersió!$I$10*((dispersió!$J$38+K122)^dispersió!$J$10)*dispersió!$K$10*((dispersió!$K$38+K122)^dispersió!$L$10)+dispersió!$C$24*dispersió!$D$38)*dispersió!$I$12),0) -> 1.541484677 | M122: =IFERROR(dispersió!$I$10*((dispersió!$J$38+'Càlculs interns'!K122)^dispersió!$J$10)*(2*LN('Càlculs interns'!L122/dispersió!$O$52))^(1/2),0) -> 3.720282559 | N122: -3.720282559 | P122: 18.17034746 | Q122: =IFERROR((letalitat!$P$9*1000)/((3.14159*dispersió!$I$10*((dispersió!$J$38+P122)^dispersió!$J$10)*dispersió!$K$10*((dispersió!$K$38+P122)^dispersió!$L$10)+dispersió!$C$24*dispersió!$D$38)*dispersió!$I$12),0) -> 2.240985693 | R122: =IFERROR(dispersió!$I$10*((dispersió!$J$38+'Càlculs interns'!P122)^dispersió!$J$10)*(2*LN('Càlculs interns'!Q122/dispersió!$O$59))^(1/2),0) -> 2.136226982 | S122: -2.136226982
A123: 80.02380523 | B123: =IFERROR((letalitat!$P$9*1000)/((3.14159*dispersió!$I$10*((dispersió!$J$38+A123)^dispersió!$J$10)*dispersió!$K$10*((dispersió!$K$38+A123)^dispersió!$L$10)+dispersió!$C$24*dispersió!$D$38)*dispersió!$I$12),0) -> 0.8759301484 | C123: =IFERROR(dispersió!$I$10*((dispersió!$J$38+'Càlculs interns'!A123)^dispersió!$J$10)*(2*LN('Càlculs interns'!B123/dispersió!$O$38))^(1/2),0) -> 6.483974465 | D123: -6.483974465 | F123: 60.73556343 | G123: =IFERROR((letalitat!$P$9*1000)/((3.14159*dispersió!$I$10*((dispersió!$J$38+F123)^dispersió!$J$10)*dispersió!$K$10*((dispersió!$K$38+F123)^dispersió!$L$10)+dispersió!$C$24*dispersió!$D$38)*dispersió!$I$12),0) -> 1.107573358 | H123: =IFERROR(dispersió!$I$10*((dispersió!$J$38+'Càlculs interns'!F123)^dispersió!$J$10)*(2*LN('Càlculs interns'!G123/dispersió!$O$45))^(1/2),0) -> 5.122401581 | I123: -5.122401581 | K123: 42.45384452 | L123: =IFERROR((letalitat!$P$9*1000)/((3.14159*dispersió!$I$10*((dispersió!$J$38+K123)^dispersió!$J$10)*dispersió!$K$10*((dispersió!$K$38+K123)^dispersió!$L$10)+dispersió!$C$24*dispersió!$D$38)*dispersió!$I$12),0) -> 1.43984725 | M123: =IFERROR(dispersió!$I$10*((dispersió!$J$38+'Càlculs interns'!K123)^dispersió!$J$10)*(2*LN('Càlculs interns'!L123/dispersió!$O$52))^(1/2),0) -> 3.822985798 | N123: -3.822985798 | P123: 20.18927496 | Q123: =IFERROR((letalitat!$P$9*1000)/((3.14159*dispersió!$I$10*((dispersió!$J$38+P123)^dispersió!$J$10)*dispersió!$K$10*((dispersió!$K$38+P123)^dispersió!$L$10)+dispersió!$C$24*dispersió!$D$38)*dispersió!$I$12),0) -> 2.147773015 | R123: =IFERROR(dispersió!$I$10*((dispersió!$J$38+'Càlculs interns'!P123)^dispersió!$J$10)*(2*LN('Càlculs interns'!Q123/dispersió!$O$59))^(1/2),0) -> 2.165097087 | S123: -2.165097087
A124: 88.02618576 | B124: =IFERROR((letalitat!$P$9*1000)/((3.14159*dispersió!$I$10*((dispersió!$J$38+A124)^dispersió!$J$10)*dispersió!$K$10*((dispersió!$K$38+A124)^dispersió!$L$10)+dispersió!$C$24*dispersió!$D$38)*dispersió!$I$12),0) -> 0.8024428821 | C124: =IFERROR(dispersió!$I$10*((dispersió!$J$38+'Càlculs interns'!A124)^dispersió!$J$10)*(2*LN('Càlculs interns'!B124/dispersió!$O$38))^(1/2),0) -> 6.682463083 | D124: -6.682463083 | F124: 66.80911978 | G124: =IFERROR((letalitat!$P$9*1000)/((3.14159*dispersió!$I$10*((dispersió!$J$38+F124)^dispersió!$J$10)*dispersió!$K$10*((dispersió!$K$38+F124)^dispersió!$L$10)+dispersió!$C$24*dispersió!$D$38)*dispersió!$I$12),0) -> 1.024584502 | H124: =IFERROR(dispersió!$I$10*((dispersió!$J$38+'Càlculs interns'!F124)^dispersió!$J$10)*(2*LN('Càlculs interns'!G124/dispersió!$O$45))^(1/2),0) -> 5.262568877 | I124: =-H124 -> -5.262568877 | K124: 46.69922897 | L124: =IFERROR((letalitat!$P$9*1000)/((3.14159*dispersió!$I$10*((dispersió!$J$38+K124)^dispersió!$J$10)*dispersió!$K$10*((dispersió!$K$38+K124)^dispersió!$L$10)+dispersió!$C$24*dispersió!$D$38)*dispersió!$I$12),0) -> 1.348982108 | M124: =IFERROR(dispersió!$I$10*((dispersió!$J$38+'Càlculs interns'!K124)^dispersió!$J$10)*(2*LN('Càlculs interns'!L124/dispersió!$O$52))^(1/2),0) -> 3.90957818 | N124: =-M124 -> -3.90957818 | P124: 22.20820245 | Q124: =IFERROR((letalitat!$P$9*1000)/((3.14159*dispersió!$I$10*((dispersió!$J$38+P124)^dispersió!$J$10)*dispersió!$K$10*((dispersió!$K$38+P124)^dispersió!$L$10)+dispersió!$C$24*dispersió!$D$38)*dispersió!$I$12),0) -> 2.061010138 | R124: =IFERROR(dispersió!$I$10*((dispersió!$J$38+'Càlculs interns'!P124)^dispersió!$J$10)*(2*LN('Càlculs interns'!Q124/dispersió!$O$59))^(1/2),0) -> 2.187405148 | S124: -2.187405148
A125: 96.02856628 | B125: =IFERROR((letalitat!$P$9*1000)/((3.14159*dispersió!$I$10*((dispersió!$J$38+A125)^dispersió!$J$10)*dispersió!$K$10*((dispersió!$K$38+A125)^dispersió!$L$10)+dispersió!$C$24*dispersió!$D$38)*dispersió!$I$12),0) -> 0.7386217427 | C125: =IFERROR(dispersió!$I$10*((dispersió!$J$38+'Càlculs interns'!A125)^dispersió!$J$10)*(2*LN('Càlculs interns'!B125/dispersió!$O$38))^(1/2),0) -> 6.848251208 | D125: -6.848251208 | F125: 72.88267612 | G125: =IFERROR((letalitat!$P$9*1000)/((3.14159*dispersió!$I$10*((dispersió!$J$38+F125)^dispersió!$J$10)*dispersió!$K$10*((dispersió!$K$38+F125)^dispersió!$L$10)+dispersió!$C$24*dispersió!$D$38)*dispersió!$I$12),0) -> 0.9514427563 | H125: =IFERROR(dispersió!$I$10*((dispersió!$J$38+'Càlculs interns'!F125)^dispersió!$J$10)*(2*LN('Càlculs interns'!G125/dispersió!$O$45))^(1/2),0) -> 5.378502114 | I125: -5.378502114 | K125: 50.94461342 | L125: =IFERROR((letalitat!$P$9*1000)/((3.14159*dispersió!$I$10*((dispersió!$J$38+K125)^dispersió!$J$10)*dispersió!$K$10*((dispersió!$K$38+K125)^dispersió!$L$10)+dispersió!$C$24*dispersió!$D$38)*dispersió!$I$12),0) -> 1.267332036 | M125: =IFERROR(dispersió!$I$10*((dispersió!$J$38+'Càlculs interns'!K125)^dispersió!$J$10)*(2*LN('Càlculs interns'!L125/dispersió!$O$52))^(1/2),0) -> 3.980072172 | N125: -3.980072172 | P125: 24.22712995 | Q125: =IFERROR((letalitat!$P$9*1000)/((3.14159*dispersió!$I$10*((dispersió!$J$38+P125)^dispersió!$J$10)*dispersió!$K$10*((dispersió!$K$38+P125)^dispersió!$L$10)+dispersió!$C$24*dispersió!$D$38)*dispersió!$I$12),0) -> 1.980069021 | R125: =IFERROR(dispersió!$I$10*((dispersió!$J$38+'Càlculs interns'!P125)^dispersió!$J$10)*(2*LN('Càlculs interns'!Q125/dispersió!$O$59))^(1/2),0) -> 2.203034268 | S125: -2.203034268
A126: 104.0309468 | B126: =IFERROR((letalitat!$P$9*1000)/((3.14159*dispersió!$I$10*((dispersió!$J$38+A126)^dispersió!$J$10)*dispersió!$K$10*((dispersió!$K$38+A126)^dispersió!$L$10)+dispersió!$C$24*dispersió!$D$38)*dispersió!$I$12),0) -> 0.6827710107 | C126: =IFERROR(dispersió!$I$10*((dispersió!$J$38+'Càlculs interns'!A126)^dispersió!$J$10)*(2*LN('Càlculs interns'!B126/dispersió!$O$38))^(1/2),0) -> 6.981546783 | D126: =-C126 -> -6.981546783 | F126: 78.95623246 | G126: =IFERROR((letalitat!$P$9*1000)/((3.14159*dispersió!$I$10*((dispersió!$J$38+F126)^dispersió!$J$10)*dispersió!$K$10*((dispersió!$K$38+F126)^dispersió!$L$10)+dispersió!$C$24*dispersió!$D$38)*dispersió!$I$12),0) -> 0.8865755813 | H126: =IFERROR(dispersió!$I$10*((dispersió!$J$38+'Càlculs interns'!F126)^dispersió!$J$10)*(2*LN('Càlculs interns'!G126/dispersió!$O$45))^(1/2),0) -> 5.470221371 | I126: -5.470221371 | K126: 55.18999787 | L126: =IFERROR((letalitat!$P$9*1000)/((3.14159*dispersió!$I$10*((dispersió!$J$38+K126)^dispersió!$J$10)*dispersió!$K$10*((dispersió!$K$38+K126)^dispersió!$L$10)+dispersió!$C$24*dispersió!$D$38)*dispersió!$I$12),0) -> 1.19362234 | M126: =IFERROR(dispersió!$I$10*((dispersió!$J$38+'Càlculs interns'!K126)^dispersió!$J$10)*(2*LN('Càlculs interns'!L126/dispersió!$O$52))^(1/2),0) -> 4.034367506 | N126: -4.034367506 | P126: 26.24605744 | Q126: =IFERROR((letalitat!$P$9*1000)/((3.14159*dispersió!$I$10*((dispersió!$J$38+P126)^dispersió!$J$10)*dispersió!$K$10*((dispersió!$K$38+P126)^dispersió!$L$10)+dispersió!$C$24*dispersió!$D$38)*dispersió!$I$12),0) -> 1.904400511 | R126: =IFERROR(dispersió!$I$10*((dispersió!$J$38+'Càlculs interns'!P126)^dispersió!$J$10)*(2*LN('Càlculs interns'!Q126/dispersió!$O$59))^(1/2),0) -> 2.211828515 | S126: -2.211828515
A127: 112.0333273 | B127: =IFERROR((letalitat!$P$9*1000)/((3.14159*dispersió!$I$10*((dispersió!$J$38+A127)^dispersió!$J$10)*dispersió!$K$10*((dispersió!$K$38+A127)^dispersió!$L$10)+dispersió!$C$24*dispersió!$D$38)*dispersió!$I$12),0) -> 0.6335611304 | C127: =IFERROR(dispersió!$I$10*((dispersió!$J$38+'Càlculs interns'!A127)^dispersió!$J$10)*(2*LN('Càlculs interns'!B127/dispersió!$O$38))^(1/2),0) -> 7.082283446 | D127: -7.082283446 | F127: 85.02978881 | G127: =IFERROR((letalitat!$P$9*1000)/((3.14159*dispersió!$I$10*((dispersió!$J$38+F127)^dispersió!$J$10)*dispersió!$K$10*((dispersió!$K$38+F127)^dispersió!$L$10)+dispersió!$C$24*dispersió!$D$38)*dispersió!$I$12),0) -> 0.8287220458 | H127: =IFERROR(dispersió!$I$10*((dispersió!$J$38+'Càlculs interns'!F127)^dispersió!$J$10)*(2*LN('Càlculs interns'!G127/dispersió!$O$45))^(1/2),0) -> 5.537554807 | I127: -5.537554807 | K127: 59.43538232 | L127: =IFERROR((letalitat!$P$9*1000)/((3.14159*dispersió!$I$10*((dispersió!$J$38+K127)^dispersió!$J$10)*dispersió!$K$10*((dispersió!$K$38+K127)^dispersió!$L$10)+dispersió!$C$24*dispersió!$D$38)*dispersió!$I$12),0) -> 1.126799708 | M127: =IFERROR(dispersió!$I$10*((dispersió!$J$38+'Càlculs interns'!K127)^dispersió!$J$10)*(2*LN('Càlculs interns'!L127/dispersió!$O$52))^(1/2),0) -> 4.072247058 | N127: -4.072247058 | P127: 28.26498494 | Q127: =IFERROR((letalitat!$P$9*1000)/((3.14159*dispersió!$I$10*((dispersió!$J$38+P127)^dispersió!$J$10)*dispersió!$K$10*((dispersió!$K$38+P127)^dispersió!$L$10)+dispersió!$C$24*dispersió!$D$38)*dispersió!$I$12),0) -> 1.833522235 | R127: =IFERROR(dispersió!$I$10*((dispersió!$J$38+'Càlculs interns'!P127)^dispersió!$J$10)*(2*LN('Càlculs interns'!Q127/dispersió!$O$59))^(1/2),0) -> 2.213587973 | S127: -2.213587973
A128: 120.0357079 | B128: =IFERROR((letalitat!$P$9*1000)/((3.14159*dispersió!$I$10*((dispersió!$J$38+A128)^dispersió!$J$10)*dispersió!$K$10*((dispersió!$K$38+A128)^dispersió!$L$10)+dispersió!$C$24*dispersió!$D$38)*dispersió!$I$12),0) -> 0.5899359482 | C128: =IFERROR(dispersió!$I$10*((dispersió!$J$38+'Càlculs interns'!A128)^dispersió!$J$10)*(2*LN('Càlculs interns'!B128/dispersió!$O$38))^(1/2),0) -> 7.150116469 | D128: -7.150116469 | F128: 91.10334515 | G128: =IFERROR((letalitat!$P$9*1000)/((3.14159*dispersió!$I$10*((dispersió!$J$38+F128)^dispersió!$J$10)*dispersió!$K$10*((dispersió!$K$38+F128)^dispersió!$L$10)+dispersió!$C$24*dispersió!$D$38)*dispersió!$I$12),0) -> 0.7768598732 | H128: =IFERROR(dispersió!$I$10*((dispersió!$J$38+'Càlculs interns'!F128)^dispersió!$J$10)*(2*LN('Càlculs interns'!G128/dispersió!$O$45))^(1/2),0) -> 5.580130336 | I128: -5.580130336 | K128: 63.68076677 | L128: =IFERROR((letalitat!$P$9*1000)/((3.14159*dispersió!$I$10*((dispersió!$J$38+K128)^dispersió!$J$10)*dispersió!$K$10*((dispersió!$K$38+K128)^dispersió!$L$10)+dispersió!$C$24*dispersió!$D$38)*dispersió!$I$12),0) -> 1.06598632 | M128: =IFERROR(dispersió!$I$10*((dispersió!$J$38+'Càlculs interns'!K128)^dispersió!$J$10)*(2*LN('Càlculs interns'!L128/dispersió!$O$52))^(1/2),0) -> 4.093367703 | N128: -4.093367703 | P128: 30.28391243 | Q128: =IFERROR((letalitat!$P$9*1000)/((3.14159*dispersió!$I$10*((dispersió!$J$38+P128)^dispersió!$J$10)*dispersió!$K$10*((dispersió!$K$38+P128)^dispersió!$L$10)+dispersió!$C$24*dispersió!$D$38)*dispersió!$I$12),0) -> 1.767008692 | R128: =IFERROR(dispersió!$I$10*((dispersió!$J$38+'Càlculs interns'!P128)^dispersió!$J$10)*(2*LN('Càlculs interns'!Q128/dispersió!$O$59))^(1/2),0) -> 2.208061948 | S128: -2.208061948
A129: 128.0380884 | B129: =IFERROR((letalitat!$P$9*1000)/((3.14159*dispersió!$I$10*((dispersió!$J$38+A129)^dispersió!$J$10)*dispersió!$K$10*((dispersió!$K$38+A129)^dispersió!$L$10)+dispersió!$C$24*dispersió!$D$38)*dispersió!$I$12),0) -> 0.5510466546 | C129: =IFERROR(dispersió!$I$10*((dispersió!$J$38+'Càlculs interns'!A129)^dispersió!$J$10)*(2*LN('Càlculs interns'!B129/dispersió!$O$38))^(1/2),0) -> 7.184404962 | D129: -7.184404962 | F129: 97.17690149 | G129: =IFERROR((letalitat!$P$9*1000)/((3.14159*dispersió!$I$10*((dispersió!$J$38+F129)^dispersió!$J$10)*dispersió!$K$10*((dispersió!$K$38+F129)^dispersió!$L$10)+dispersió!$C$24*dispersió!$D$38)*dispersió!$I$12),0) -> 0.7301520165 | H129: =IFERROR(dispersió!$I$10*((dispersió!$J$38+'Càlculs interns'!F129)^dispersió!$J$10)*(2*LN('Càlculs interns'!G129/dispersió!$O$45))^(1/2),0) -> 5.597357618 | I129: -5.597357618 | K129: 67.92615123 | L129: =IFERROR((letalitat!$P$9*1000)/((3.14159*dispersió!$I$10*((dispersió!$J$38+K129)^dispersió!$J$10)*dispersió!$K$10*((dispersió!$K$38+K129)^dispersió!$L$10)+dispersió!$C$24*dispersió!$D$38)*dispersió!$I$12),0) -> 1.010444928 | M129: =IFERROR(dispersió!$I$10*((dispersió!$J$38+'Càlculs interns'!K129)^dispersió!$J$10)*(2*LN('Càlculs interns'!L129/dispersió!$O$52))^(1/2),0) -> 4.097245286 | N129: -4.097245286 | P129: 32.30283993 | Q129: =IFERROR((letalitat!$P$9*1000)/((3.14159*dispersió!$I$10*((dispersió!$J$38+P129)^dispersió!$J$10)*dispersió!$K$10*((dispersió!$K$38+P129)^dispersió!$L$10)+dispersió!$C$24*dispersió!$D$38)*dispersió!$I$12),0) -> 1.704483057 | R129: =IFERROR(dispersió!$I$10*((dispersió!$J$38+'Càlculs interns'!P129)^dispersió!$J$10)*(2*LN('Càlculs interns'!Q129/dispersió!$O$59))^(1/2),0) -> 2.194939756 | S129: -2.194939756
